Workbook

Sheet Portada
H2: Modelo Dinámico de Cargo de Interconexión Móvil (Costos Históricos) | R2: Desarrollado por:
H3: Organización del Modelo
B6: Organización del Modelo
O8: Importante:
P9: Para evaluar el modelo, reemplace el valor de las celdas | U9: XXXXXXX
P10: con valores de su interés

Sheet Panel de Control
H2: =+Portada!H2 -> Modelo Dinámico de Cargo de Interconexión Móvil (Costos Históricos)
H3: Parámetros Generales
B6: Parámetros
G9: Tasa de Costo de Capital | H9: [%] | I9: 0.0854 | J9: tcc
G11: Over Head | H11: [%] | I11: 0.05 | J11: t.over
C13: KPI
I15: 2013
F16: Tarifas
G17: Costo Unitario por Minuto | H17: [US cents] | I17: =IF(ISERROR(Cálculo.Tarifario!I634*100),"",Cálculo.Tarifario!I634*100) -> 4392611.36
F18: Demanda y Cobertura
G19: Cobertura | H19: [km2] | I19: =Cobertura!I179 -> 527931
G20: Demanda de Datos | H20: [MByte/mes/usuario datos] | I20: =(Demanda!K94+Demanda!K95)/Demanda!K$26/12*1024*1024 -> 752.7277714
G21: Onnet | H21: [min/mes/usuario] | I21: =Demanda!K84/SUM(Demanda!K$23:K$25)/12 -> 1388.888889
G22: Offnet | H22: [min/mes/usuario] | I22: =SUM(Demanda!K78:K80)/SUM(Demanda!K$23:K$25)/12 -> 93.05555556
G23: Entrante | H23: [min/mes/usuario] | I23: =SUM(Demanda!K52:K55)/SUM(Demanda!K$23:K$25)/12 -> 280.5555556
G24: SMS | H24: [SMS/mes/usuario] | I24: =(Demanda!K88+Demanda!K89)/SUM(Demanda!K$23:K$25)/12 -> 33.33333333
G25: Abonados Totales | H25: [usuario] | I25: =Demanda!K23+Demanda!K24+Demanda!K25 -> 300000
G26: Abonados de Datos | H26: [usuario] | I26: =Demanda!K26 -> 800000
F27: Red
G28: EB Cobertura | H28: [#] | I28: =SUM(UTRAN!J27:J38) -> 117
G29: EB Totales | H29: [#] | I29: =UTRAN!J667 -> 850
G31: Velocidad HSDPA | H31: [Kbps/Usuario Promedio] | I31: =SUMPRODUCT(Dda.Diseño!J460:J471,UTRAN!J$532:J$543)/SUM(UTRAN!J$532:J$543) -> 2983.401252
G32: Velocidad HSUPA | H32: [Kbps/Usuario Promedio] | I32: =SUMPRODUCT(Dda.Diseño!J499:J510,UTRAN!J$532:J$543)/SUM(UTRAN!J$532:J$543) -> 358.0081502
G36: Tipo de Cambio Dólar | H36: [S/.] | I36: 2.72 | J36: p.usd
G38: UIT 2013 | H38: [S/.] | I38: 3700 | J38: uit
B43: Departamentos
E45: ID | F45: N° | G45: Departamento
E46: 1 | F46: 1 | G46: Amazonas
E47: 2 | F47: 2 | G47: Ancash
E48: 3 | F48: 3 | G48: Apurímac
E49: 4 | F49: 4 | G49: Arequipa
E50: 5 | F50: 5 | G50: Ayacucho
E51: 6 | F51: 6 | G51: Cajamarca
E52: 7 | F52: 7 | G52: Callao
E53: 8 | F53: 8 | G53: Cusco
E54: 9 | F54: 9 | G54: Huancavelica
E55: 10 | F55: 10 | G55: Huánuco
E56: 11 | F56: 11 | G56: Ica
E57: 12 | F57: 12 | G57: Junín
E58: 13 | F58: 13 | G58: La Libertad
E59: 14 | F59: 14 | G59: Lambayeque
E60: 15 | F60: 15 | G60: Lima
E61: 16 | F61: 16 | G61: Loreto
E62: 17 | F62: 17 | G62: Madre de Dios
E63: 18 | F63: 18 | G63: Moquegua
E64: 19 | F64: 19 | G64: Pasco
E65: 20 | F65: 20 | G65: Piura
E66: 21 | F66: 21 | G66: Puno
E67: 22 | F67: 22 | G67: San Martín
E68: 23 | F68: 23 | G68: Tacna
E69: 24 | F69: 24 | G69: Tumbes
E70: 25 | F70: 25 | G70: Ucayali
G72: reg.nom
B74: Servicios Empresa Eficiente
F77: ID | G77: Servicios Provistos | I77: Seleccionado | K77: Voz
F78: 1 | G78: Servicio Móvil | I78: 1 | K78: 0
F79: =+F78+1 -> 2 | G79: Cargo de Acceso Móvil | I79: 1 | K79: 1
F80: 3 | G80: Servicio On-Net Móvil | I80: 1 | K80: 1
F81: 4 | G81: libre | I81: 1 | K81: 0
F82: 5 | G82: libre | I82: 1 | K82: 0
F83: 6 | G83: Conexión Móvil | I83: 1 | K83: 0
F84: 7 | G84: BAM e Internet Móvil | I84: 1 | K84: 0
F85: 8 | G85: SMS | I85: 1 | K85: 0
F86: 9 | G86: MMS | I86: 1 | K86: 0
F87: 10 | G87: libre | I87: 1 | K87: 0
F88: 11 | G88: libre | I88: 1 | K88: 0
F89: 12 | G89: libre | I89: 1 | K89: 0
F90: 13 | G90: libre | I90: 1 | K90: 0
F91: 14 | G91: libre | I91: 1 | K91: 0
F92: 15 | G92: libre | I92: 1 | K92: 0
F93: 16 | G93: libre | I93: 1 | K93: 0
F94: 17 | G94: libre | I94: 1 | K94: 0
F95: 18 | G95: libre | I95: 1 | K95: 0
F96: 19 | G96: libre | I96: 1 | K96: 0
F97: 20 | G97: libre | I97: 1 | K97: 0
G99: lista.serv.prov.ee | K99: lista.serv.prov.voz
B102: Demandas por Servicios
F105: ID | G105: Demandas por Servicios | H105: Servicios Provistos | I105: Unidad | K105: Seleccionado
F106: 1 | G106: Cliente Tipo 1 | H106: Servicio Móvil | I106: [abonado] | K106: =INDEX($I$78:$I$97,MATCH($H106,lista.serv.prov.ee,0)) -> 1
F107: =+F106+1 -> 2 | G107: Cliente Tipo 2 | H107: Servicio Móvil | I107: [abonado] | K107: 1
F108: 3 | G108: Cliente Tipo 3 | H108: Servicio Móvil | I108: [abonado] | K108: 1
F109: 4 | G109: Tráfico Móvil Voz entrante desde otras móviles | H109: Cargo de Acceso Móvil | I109: [minutos] | K109: 1
F110: 5 | G110: Tráfico Móvil Voz entrante desde redes fijas | H110: Cargo de Acceso Móvil | I110: [minutos] | K110: 1
F111: 6 | G111: Tráfico Móvil Voz entrante desde públicos | H111: Cargo de Acceso Móvil | I111: [minutos] | K111: 1
F112: 7 | G112: Tráfico Móvil Voz entrante desde LDI | H112: Cargo de Acceso Móvil | I112: [minutos] | K112: 1
F113: 8 | G113: Tráfico on-net | H113: Servicio On-Net Móvil | I113: [minutos] | K113: 1
F114: 9 | G114: Tráfico Móvil Voz saliente a otras móviles | H114: Cargo de Acceso Móvil | I114: [minutos] | K114: 1
F115: 10 | G115: Tráfico Móvil Voz saliente a redes fijas | H115: Cargo de Acceso Móvil | I115: [minutos] | K115: 1
F116: 11 | G116: Tráfico Móvil Voz saliente a LDI | H116: Cargo de Acceso Móvil | I116: [minutos] | K116: 1
F117: 12 | G117: libre | H117: libre | I117: [-] | K117: 1
F118: 13 | G118: libre | H118: libre | I118: [-] | K118: 1
F119: 14 | G119: SMS saliente a otras móviles | H119: SMS | I119: [SMS] | K119: 1
F120: 15 | G120: SMS on-net | H120: SMS | I120: [SMS] | K120: 1
F121: 16 | G121: SMS entrante desde otras móviles | H121: SMS | I121: [SMS] | K121: 1
F122: 17 | G122: libre | H122: libre | I122: [-] | K122: 1
F123: 18 | G123: libre | H123: libre | I123: [-] | K123: 1
F124: 19 | G124: libre | H124: libre | I124: [-] | K124: 1
F125: 20 | G125: Conexiones Móvil Datos banda ancha e internet móvil | H125: Conexión Móvil | I125: [Conexión] | K125: 1
F126: 21 | G126: Tráfico Móvil Datos banda ancha e internet móvil Bajada | H126: BAM e Internet Móvil | I126: [TByte] | K126: 1
F127: 22 | G127: Tráfico Móvil Datos banda ancha e internet móvil Subida | H127: BAM e Internet Móvil | I127: [TByte] | K127: 1
F128: 23 | G128: libre | H128: libre | I128: [-] | K128: 1
F129: 24 | G129: libre | H129: libre | I129: [-] | K129: 1
F130: 25 | G130: libre | H130: libre | I130: libre | K130: 1
F131: 26 | G131: libre | H131: libre | I131: libre | K131: 1
F132: 27 | G132: libre | H132: libre | I132: libre | K132: 1
F133: 28 | G133: libre | H133: libre | I133: libre | K133: 1
F134: 29 | G134: libre | H134: libre | I134: libre | K134: 1
F135: 30 | G135: libre | H135: libre | I135: libre | K135: 1
F136: 31 | G136: libre | H136: libre | I136: libre | K136: 1
F137: 32 | G137: libre | H137: libre | I137: libre | K137: 1
F138: 33 | G138: libre | H138: libre | I138: libre | K138: 1
F139: 34 | G139: libre | H139: libre | I139: libre | K139: 1
F140: 35 | G140: libre | H140: libre | I140: libre | K140: 1
F141: 36 | G141: libre | H141: libre | I141: libre | K141: 1
F142: 37 | G142: libre | H142: libre | I142: libre | K142: 1
F143: 38 | G143: libre | H143: libre | I143: libre | K143: 1
F144: 39 | G144: libre | H144: libre | I144: libre | K144: 1
F145: 40 | G145: libre | H145: libre | I145: libre | K145: 1
F146: 41 | G146: libre | H146: libre | I146: libre | K146: 1
F147: 42 | G147: libre | H147: libre | I147: libre | K147: 1
F148: 43 | G148: libre | H148: libre | I148: libre | K148: 1
F149: 44 | G149: libre | H149: libre | I149: libre | K149: 1
F150: 45 | G150: libre | H150: libre | I150: libre | K150: 1
B154: Geotipos
F156: ID | G156: Geotipo
F157: 1 | G157: 3G Tipo 1
F158: 2 | G158: 3G Tipo 2
F159: 3 | G159: 3G Tipo 3
F160: 4 | G160: 3G Tipo 4
F161: 5 | G161: 2G Tipo 1
F162: 6 | G162: 2G Tipo 2
F163: 7 | G163: 2G Tipo 3
F164: 8 | G164: 2G Tipo 4
F165: 9 | G165: libre
F166: 10 | G166: libre
F167: 11 | G167: libre
F168: 12 | G168: Carreteras
G170: geo.nom

Sheet Demanda
H2: ='Panel de Control'!$H$2 -> Modelo Dinámico de Cargo de Interconexión Móvil (Costos Históricos)
H3: Demanda de Servicios
A6: Zonas | K6: 0 | M6: 1 | N6: 2 | O6: 3 | P6: 4 | Q6: 5 | R6: 6 | S6: 7 | T6: 8 | U6: 9 | V6: 10 | W6: 11 | X6: 12 | Y6: 13 | Z6: 14 | AA6: 15 | AB6: 16 | AC6: 17 | AD6: 18 | AE6: 19 | AF6: 20 | AG6: 21 | AH6: 22 | AI6: 23 | AJ6: 24 | AK6: 25
B8: Resultados Forecast (Salida para Red y Tarifas)
C10: Líneas
K12: 9 | M12: 1 | N12: 1 | O12: 1 | P12: 1 | Q12: 1 | R12: 1 | S12: 1 | T12: 1 | U12: 1 | V12: 1 | W12: 1 | X12: 1 | Y12: 1 | Z12: 1 | AA12: 1 | AB12: 1 | AC12: 1 | AD12: 1 | AE12: 1 | AF12: 1 | AG12: 1 | AH12: 1 | AI12: 1 | AJ12: 1 | AK12: 1
K13: Total nacional | M13: =INDEX(l.reg.nom,M$6) -> Amazonas | N13: Ancash | O13: Apurímac | P13: Arequipa | Q13: Ayacucho | R13: Cajamarca | S13: Callao | T13: Cusco | U13: Huancavelica | V13: Huánuco | W13: Ica | X13: Junín | Y13: La Libertad | Z13: Lambayeque | AA13: Lima | AB13: Loreto | AC13: Madre de Dios | AD13: Moquegua | AE13: Pasco | AF13: Piura | AG13: Puno | AH13: San Martín | AI13: Tacna | AJ13: Tumbes | AK13: Ucayali
D14: aux | E14: auxaemp | F14: Firma | G14: Líneas EOP | K14: 2013 | M14: Año 0 | N14: Año 0 | O14: Año 0 | P14: Año 0 | Q14: Año 0 | R14: Año 0 | S14: Año 0 | T14: Año 0 | U14: Año 0 | V14: Año 0 | W14: Año 0 | X14: Año 0 | Y14: Año 0 | Z14: Año 0 | AA14: Año 0 | AB14: Año 0 | AC14: Año 0 | AD14: Año 0 | AE14: Año 0 | AF14: Año 0 | AG14: Año 0 | AH14: Año 0 | AI14: Año 0 | AJ14: Año 0 | AK14: Año 0
D15: 1 | E15: 1 | F15: Nextel | G15: ='Panel de Control'!G106 -> Cliente Tipo 1 | H15: [lin/año] | K15: =Dda_Mdo!I82 -> 100000 | M15: =$K15*INDEX(p.dist.pob,M$6) -> 4989.244426 | N15: 4438.098515 | O15: 4469.046526 | P15: 3500.474604 | Q15: 4141.901555 | R15: 3790.339106 | S15: 4403.309012 | T15: 3367.420963 | U15: 4147.495726 | V15: 3873.963563 | W15: =$K15*INDEX(p.dist.pob,W$6) -> 4368.669568 | X15: 4007.503392 | Y15: 4292.037826 | Z15: 4345.836706 | AA15: 2929.382952 | AB15: 4109.999173 | AC15: 4883.057212 | AD15: 3990.486788 | AE15: 3785.141089 | AF15: 3864.533903 | AG15: 3433.644666 | AH15: 3815.656933 | AI15: 3565.467829 | AJ15: 3741.768255 | AK15: 3745.519711
D16: =+D15+1 -> 2 | E16: 1 | F16: Nextel | G16: ='Panel de Control'!G107 -> Cliente Tipo 2 | H16: [lin/año] | K16: =Dda_Mdo!I83 -> 100000 | M16: 4989.244426 | N16: 4438.098515 | O16: 4469.046526 | P16: 3500.474604 | Q16: 4141.901555 | R16: 3790.339106 | S16: 4403.309012 | T16: 3367.420963 | U16: 4147.495726 | V16: 3873.963563 | W16: 4368.669568 | X16: 4007.503392 | Y16: 4292.037826 | Z16: 4345.836706 | AA16: 2929.382952 | AB16: 4109.999173 | AC16: 4883.057212 | AD16: 3990.486788 | AE16: 3785.141089 | AF16: 3864.533903 | AG16: 3433.644666 | AH16: 3815.656933 | AI16: 3565.467829 | AJ16: 3741.768255 | AK16: 3745.519711
D17: =+D16+1 -> 3 | E17: 1 | F17: Nextel | G17: ='Panel de Control'!G108 -> Cliente Tipo 3 | H17: [lin/año] | K17: =Dda_Mdo!I84 -> 100000 | M17: 4989.244426 | N17: 4438.098515 | O17: 4469.046526 | P17: 3500.474604 | Q17: 4141.901555 | R17: 3790.339106 | S17: 4403.309012 | T17: 3367.420963 | U17: 4147.495726 | V17: 3873.963563 | W17: 4368.669568 | X17: 4007.503392 | Y17: 4292.037826 | Z17: 4345.836706 | AA17: 2929.382952 | AB17: 4109.999173 | AC17: 4883.057212 | AD17: 3990.486788 | AE17: 3785.141089 | AF17: 3864.533903 | AG17: 3433.644666 | AH17: 3815.656933 | AI17: 3565.467829 | AJ17: 3741.768255 | AK17: 3745.519711
D18: 4 | E18: 1 | F18: Nextel | G18: Conexiones Móvil Datos banda ancha e internet móvil | H18: [lin/año] | K18: =Dda_Mdo!I85 -> 800000 | M18: 39913.9554 | N18: 35504.78812 | O18: 35752.37221 | P18: 28003.79683 | Q18: 33135.21244 | R18: 30322.71285 | S18: 35226.4721 | T18: 26939.36771 | U18: 33179.96581 | V18: 30991.7085 | W18: 34949.35654 | X18: 32060.02714 | Y18: 34336.30261 | Z18: 34766.69365 | AA18: 23435.06362 | AB18: 32879.99338 | AC18: 39064.4577 | AD18: 31923.8943 | AE18: 30281.12871 | AF18: 30916.27122 | AG18: 27469.15733 | AH18: 30525.25546 | AI18: 28523.74263 | AJ18: 29934.14604 | AK18: 29964.15769
G20: Total pre + pos + control | H20: [lin/año] | K20: =SUM(K15:K17) -> 300000
M21: =INDEX(l.reg.nom,M$6) -> Amazonas | N21: Ancash | O21: Apurímac | P21: Arequipa | Q21: Ayacucho | R21: Cajamarca | S21: Callao | T21: Cusco | U21: Huancavelica | V21: Huánuco | W21: Ica | X21: Junín | Y21: La Libertad | Z21: Lambayeque | AA21: Lima | AB21: Loreto | AC21: Madre de Dios | AD21: Moquegua | AE21: Pasco | AF21: Piura | AG21: Puno | AH21: San Martín | AI21: Tacna | AJ21: Tumbes | AK21: Ucayali
D22: aux | E22: auxaemp | F22: Firma | G22: Líneas AVG | K22: 2013 | M22: Año 0 | N22: Año 0 | O22: Año 0 | P22: Año 0 | Q22: Año 0 | R22: Año 0 | S22: Año 0 | T22: Año 0 | U22: Año 0 | V22: Año 0 | W22: Año 0 | X22: Año 0 | Y22: Año 0 | Z22: Año 0 | AA22: Año 0 | AB22: Año 0 | AC22: Año 0 | AD22: Año 0 | AE22: Año 0 | AF22: Año 0 | AG22: Año 0 | AH22: Año 0 | AI22: Año 0 | AJ22: Año 0 | AK22: Año 0
D23: 1 | E23: 1 | F23: Nextel | G23: ='Panel de Control'!G106 -> Cliente Tipo 1 | H23: [lin/año] | K23: =Dda_Mdo!I90 -> 100000 | M23: =$K23*INDEX(p.dist.pob,M$6) -> 4989.244426 | N23: 4438.098515 | O23: 4469.046526 | P23: 3500.474604 | Q23: 4141.901555 | R23: 3790.339106 | S23: 4403.309012 | T23: 3367.420963 | U23: 4147.495726 | V23: 3873.963563 | W23: =$K23*INDEX(p.dist.pob,W$6) -> 4368.669568 | X23: 4007.503392 | Y23: 4292.037826 | Z23: 4345.836706 | AA23: 2929.382952 | AB23: 4109.999173 | AC23: 4883.057212 | AD23: 3990.486788 | AE23: 3785.141089 | AF23: 3864.533903 | AG23: 3433.644666 | AH23: 3815.656933 | AI23: 3565.467829 | AJ23: 3741.768255 | AK23: 3745.519711
D24: =+D23+1 -> 2 | E24: 1 | F24: Nextel | G24: ='Panel de Control'!G107 -> Cliente Tipo 2 | H24: [lin/año] | K24: =Dda_Mdo!I91 -> 100000 | M24: 4989.244426 | N24: 4438.098515 | O24: 4469.046526 | P24: 3500.474604 | Q24: 4141.901555 | R24: 3790.339106 | S24: 4403.309012 | T24: 3367.420963 | U24: 4147.495726 | V24: 3873.963563 | W24: 4368.669568 | X24: 4007.503392 | Y24: 4292.037826 | Z24: 4345.836706 | AA24: 2929.382952 | AB24: 4109.999173 | AC24: 4883.057212 | AD24: 3990.486788 | AE24: 3785.141089 | AF24: 3864.533903 | AG24: 3433.644666 | AH24: 3815.656933 | AI24: 3565.467829 | AJ24: 3741.768255 | AK24: 3745.519711
D25: =+D24+1 -> 3 | E25: 1 | F25: Nextel | G25: ='Panel de Control'!G108 -> Cliente Tipo 3 | H25: [lin/año] | K25: =Dda_Mdo!I92 -> 100000 | M25: 4989.244426 | N25: 4438.098515 | O25: 4469.046526 | P25: 3500.474604 | Q25: 4141.901555 | R25: 3790.339106 | S25: 4403.309012 | T25: 3367.420963 | U25: 4147.495726 | V25: 3873.963563 | W25: 4368.669568 | X25: 4007.503392 | Y25: 4292.037826 | Z25: 4345.836706 | AA25: 2929.382952 | AB25: 4109.999173 | AC25: 4883.057212 | AD25: 3990.486788 | AE25: 3785.141089 | AF25: 3864.533903 | AG25: 3433.644666 | AH25: 3815.656933 | AI25: 3565.467829 | AJ25: 3741.768255 | AK25: 3745.519711
D26: 4 | E26: 1 | F26: Nextel | G26: Conexiones Móvil Datos banda ancha e internet móvil | H26: [lin/año] | K26: =Dda_Mdo!I93 -> 800000 | M26: 39913.9554 | N26: 35504.78812 | O26: 35752.37221 | P26: 28003.79683 | Q26: 33135.21244 | R26: 30322.71285 | S26: 35226.4721 | T26: 26939.36771 | U26: 33179.96581 | V26: 30991.7085 | W26: 34949.35654 | X26: 32060.02714 | Y26: 34336.30261 | Z26: 34766.69365 | AA26: 23435.06362 | AB26: 32879.99338 | AC26: 39064.4577 | AD26: 31923.8943 | AE26: 30281.12871 | AF26: 30916.27122 | AG26: 27469.15733 | AH26: 30525.25546 | AI26: 28523.74263 | AJ26: 29934.14604 | AK26: 29964.15769
G28: Total pre + pos + control | H28: [lin/año] | K28: =SUM(K23:K25) -> 300000
G30: Porcentaje Prepago Contrato | K30: =K16/SUM(K15:K17) -> 0.3333333333 | L30: salida.adic.prep
C32: Tráficos
K35: Total nacional | M35: =INDEX(l.reg.nom,M$6) -> Amazonas | N35: Ancash | O35: Apurímac | P35: Arequipa | Q35: Ayacucho | R35: Cajamarca | S35: Callao | T35: Cusco | U35: Huancavelica | V35: Huánuco | W35: Ica | X35: Junín | Y35: La Libertad | Z35: Lambayeque | AA35: Lima | AB35: Loreto | AC35: Madre de Dios | AD35: Moquegua | AE35: Pasco | AF35: Piura | AG35: Puno | AH35: San Martín | AI35: Tacna | AJ35: Tumbes | AK35: Ucayali
D36: aux | E36: auxaemp | F36: Firma | G36: Tráfico entrante EOP | H36: Unidad | K36: 2013 | M36: Año 0 | N36: Año 0 | O36: Año 0 | P36: Año 0 | Q36: Año 0 | R36: Año 0 | S36: Año 0 | T36: Año 0 | U36: Año 0 | V36: Año 0 | W36: Año 0 | X36: Año 0 | Y36: Año 0 | Z36: Año 0 | AA36: Año 0 | AB36: Año 0 | AC36: Año 0 | AD36: Año 0 | AE36: Año 0 | AF36: Año 0 | AG36: Año 0 | AH36: Año 0 | AI36: Año 0 | AJ36: Año 0 | AK36: Año 0
D37: 1 | E37: 1 | F37: Nextel | G37: LDI | H37: [min/año] | K37: =Dda_Mdo!I148 -> 10000000 | M37: =$K37*INDEX(p.dist.pob,M$6) -> 498924.4426 | N37: 443809.8515 | O37: 446904.6526 | P37: 350047.4604 | Q37: 414190.1555 | R37: 379033.9106 | S37: 440330.9012 | T37: 336742.0963 | U37: 414749.5726 | V37: 387396.3563 | W37: =$K37*INDEX(p.dist.pob,W$6) -> 436866.9568 | X37: 400750.3392 | Y37: 429203.7826 | Z37: 434583.6706 | AA37: 292938.2952 | AB37: 410999.9173 | AC37: 488305.7212 | AD37: 399048.6788 | AE37: 378514.1089 | AF37: 386453.3903 | AG37: 343364.4666 | AH37: 381565.6933 | AI37: 356546.7829 | AJ37: 374176.8255 | AK37: 374551.9711
D38: =+D37+1 -> 2 | E38: 1 | F38: Nextel | G38: LDN | H38: [min/año] | K38: =Dda_Mdo!I149 -> 1000000000 | M38: 49892444.26 | N38: 44380985.15 | O38: 44690465.26 | P38: 35004746.04 | Q38: 41419015.55 | R38: 37903391.06 | S38: 44033090.12 | T38: 33674209.63 | U38: 41474957.26 | V38: 38739635.63 | W38: 43686695.68 | X38: 40075033.92 | Y38: 42920378.26 | Z38: 43458367.06 | AA38: 29293829.52 | AB38: 41099991.73 | AC38: 48830572.12 | AD38: 39904867.88 | AE38: 37851410.89 | AF38: 38645339.03 | AG38: 34336446.66 | AH38: 38156569.33 | AI38: 35654678.29 | AJ38: 37417682.55 | AK38: 37455197.11
D39: =+D38+1 -> 3 | E39: 1 | F39: Nextel | G39: Local | H39: [min/año] | K39: =Dda_Mdo!I150 -> 1000000 | M39: 49892.44426 | N39: 44380.98515 | O39: 44690.46526 | P39: 35004.74604 | Q39: 41419.01555 | R39: 37903.39106 | S39: 44033.09012 | T39: 33674.20963 | U39: 41474.95726 | V39: 38739.63563 | W39: 43686.69568 | X39: 40075.03392 | Y39: 42920.37826 | Z39: 43458.36706 | AA39: 29293.82952 | AB39: 41099.99173 | AC39: 48830.57212 | AD39: 39904.86788 | AE39: 37851.41089 | AF39: 38645.33903 | AG39: 34336.44666 | AH39: 38156.56933 | AI39: 35654.67829 | AJ39: 37417.68255 | AK39: 37455.19711
D40: =+D39+1 -> 4 | E40: 1 | F40: Nextel | G40: Local Fijo-Móvil | H40: [min/año] | K40: =Dda_Mdo!I151 -> 10000000 | M40: 498924.4426 | N40: 443809.8515 | O40: 446904.6526 | P40: 350047.4604 | Q40: 414190.1555 | R40: 379033.9106 | S40: 440330.9012 | T40: 336742.0963 | U40: 414749.5726 | V40: 387396.3563 | W40: 436866.9568 | X40: 400750.3392 | Y40: 429203.7826 | Z40: 434583.6706 | AA40: 292938.2952 | AB40: 410999.9173 | AC40: 488305.7212 | AD40: 399048.6788 | AE40: 378514.1089 | AF40: 386453.3903 | AG40: 343364.4666 | AH40: 381565.6933 | AI40: 356546.7829 | AJ40: 374176.8255 | AK40: 374551.9711
D41: =+D40+1 -> 5 | E41: 1 | F41: Nextel | G41: Local Móvil-Móvil | H41: [min/año] | K41: =Dda_Mdo!I152 -> 10000000 | M41: 498924.4426 | N41: 443809.8515 | O41: 446904.6526 | P41: 350047.4604 | Q41: 414190.1555 | R41: 379033.9106 | S41: 440330.9012 | T41: 336742.0963 | U41: 414749.5726 | V41: 387396.3563 | W41: 436866.9568 | X41: 400750.3392 | Y41: 429203.7826 | Z41: 434583.6706 | AA41: 292938.2952 | AB41: 410999.9173 | AC41: 488305.7212 | AD41: 399048.6788 | AE41: 378514.1089 | AF41: 386453.3903 | AG41: 343364.4666 | AH41: 381565.6933 | AI41: 356546.7829 | AJ41: 374176.8255 | AK41: 374551.9711
D45: aux | E45: auxaemp | F45: Firma | G45: porcentaje distribución osiptel
D46: 1 | E46: 1 | F46: Nextel | G46: Desde fijo | H46: [%] | K46: =INDEX(p.dist.traf.loc.ent,$D46+3*($E46-1),1) -> 0.25
D47: =+D46+1 -> 2 | E47: 1 | F47: Nextel | G47: Desde móvil | H47: [%] | K47: =INDEX(p.dist.traf.loc.ent,$D47+3*($E47-1),1) -> 0.5
D48: =+D47+1 -> 3 | E48: 1 | F48: Nextel | G48: Desde público | H48: [%] | K48: =INDEX(p.dist.traf.loc.ent,$D48+3*($E48-1),1) -> 0.25
K49: =SUM(K46:K48)-1 -> 0
K50: Total nacional | M50: =INDEX(l.reg.nom,M$6) -> Amazonas | N50: Ancash | O50: Apurímac | P50: Arequipa | Q50: Ayacucho | R50: Cajamarca | S50: Callao | T50: Cusco | U50: Huancavelica | V50: Huánuco | W50: Ica | X50: Junín | Y50: La Libertad | Z50: Lambayeque | AA50: Lima | AB50: Loreto | AC50: Madre de Dios | AD50: Moquegua | AE50: Pasco | AF50: Piura | AG50: Puno | AH50: San Martín | AI50: Tacna | AJ50: Tumbes | AK50: Ucayali
D51: aux | E51: auxaemp | F51: Firma | G51: Tráficos entrantes separados para modelo EE | K51: 2013 | M51: Año 0 | N51: Año 0 | O51: Año 0 | P51: Año 0 | Q51: Año 0 | R51: Año 0 | S51: Año 0 | T51: Año 0 | U51: Año 0 | V51: Año 0 | W51: Año 0 | X51: Año 0 | Y51: Año 0 | Z51: Año 0 | AA51: Año 0 | AB51: Año 0 | AC51: Año 0 | AD51: Año 0 | AE51: Año 0 | AF51: Año 0 | AG51: Año 0 | AH51: Año 0 | AI51: Año 0 | AJ51: Año 0 | AK51: Año 0
D52: 1 | E52: 1 | F52: Nextel | G52: Tráfico Móvil Voz entrante desde otras móviles | H52: [min/año] | K52: =+K$38*K47 -> 500000000 | M52: =$K52*INDEX(p.dist.pob,M$6) -> 24946222.13 | N52: 22190492.57 | O52: 22345232.63 | P52: 17502373.02 | Q52: 20709507.77 | R52: 18951695.53 | S52: 22016545.06 | T52: 16837104.82 | U52: 20737478.63 | V52: 19369817.81 | W52: =$K52*INDEX(p.dist.pob,W$6) -> 21843347.84 | X52: 20037516.96 | Y52: 21460189.13 | Z52: 21729183.53 | AA52: 14646914.76 | AB52: 20549995.86 | AC52: 24415286.06 | AD52: 19952433.94 | AE52: 18925705.44 | AF52: 19322669.51 | AG52: 17168223.33 | AH52: 19078284.66 | AI52: 17827339.15 | AJ52: 18708841.28 | AK52: 18727598.56
D53: =+D52+1 -> 2 | E53: 1 | F53: Nextel | G53: Tráfico Móvil Voz entrante desde redes fijas | H53: [min/año] | K53: =+K$38*K46 -> 250000000 | M53: 12473111.06 | N53: 11095246.29 | O53: 11172616.32 | P53: 8751186.511 | Q53: 10354753.89 | R53: 9475847.766 | S53: 11008272.53 | T53: 8418552.409 | U53: 10368739.32 | V53: 9684908.907 | W53: 10921673.92 | X53: 10018758.48 | Y53: 10730094.56 | Z53: 10864591.77 | AA53: 7323457.38 | AB53: 10274997.93 | AC53: 12207643.03 | AD53: 9976216.969 | AE53: 9462852.722 | AF53: 9661334.757 | AG53: 8584111.665 | AH53: 9539142.332 | AI53: 8913669.573 | AJ53: 9354420.638 | AK53: 9363799.278
D54: =+D53+1 -> 3 | E54: 1 | F54: Nextel | G54: Tráfico Móvil Voz entrante desde públicos | H54: [min/año] | K54: =+K$38*K48 -> 250000000 | M54: 12473111.06 | N54: 11095246.29 | O54: 11172616.32 | P54: 8751186.511 | Q54: 10354753.89 | R54: 9475847.766 | S54: 11008272.53 | T54: 8418552.409 | U54: 10368739.32 | V54: 9684908.907 | W54: 10921673.92 | X54: 10018758.48 | Y54: 10730094.56 | Z54: 10864591.77 | AA54: 7323457.38 | AB54: 10274997.93 | AC54: 12207643.03 | AD54: 9976216.969 | AE54: 9462852.722 | AF54: 9661334.757 | AG54: 8584111.665 | AH54: 9539142.332 | AI54: 8913669.573 | AJ54: 9354420.638 | AK54: 9363799.278
D55: =+D54+1 -> 4 | E55: 1 | F55: Nextel | G55: Tráfico Móvil Voz entrante desde LDI | H55: [min/año] | K55: =K37 -> 10000000 | M55: 498924.4426 | N55: 443809.8515 | O55: 446904.6526 | P55: 350047.4604 | Q55: 414190.1555 | R55: 379033.9106 | S55: 440330.9012 | T55: 336742.0963 | U55: 414749.5726 | V55: 387396.3563 | W55: 436866.9568 | X55: 400750.3392 | Y55: 429203.7826 | Z55: 434583.6706 | AA55: 292938.2952 | AB55: 410999.9173 | AC55: 488305.7212 | AD55: 399048.6788 | AE55: 378514.1089 | AF55: 386453.3903 | AG55: 343364.4666 | AH55: 381565.6933 | AI55: 356546.7829 | AJ55: 374176.8255 | AK55: 374551.9711
K57: Total nacional | M57: =INDEX(l.reg.nom,M$6) -> Amazonas | N57: Ancash | O57: Apurímac | P57: Arequipa | Q57: Ayacucho | R57: Cajamarca | S57: Callao | T57: Cusco | U57: Huancavelica | V57: Huánuco | W57: Ica | X57: Junín | Y57: La Libertad | Z57: Lambayeque | AA57: Lima | AB57: Loreto | AC57: Madre de Dios | AD57: Moquegua | AE57: Pasco | AF57: Piura | AG57: Puno | AH57: San Martín | AI57: Tacna | AJ57: Tumbes | AK57: Ucayali
D58: aux | E58: auxaemp | F58: Firma | G58: Tráfico originado EOP | H58: Unidad | K58: 2013 | M58: Año 0 | N58: Año 0 | O58: Año 0 | P58: Año 0 | Q58: Año 0 | R58: Año 0 | S58: Año 0 | T58: Año 0 | U58: Año 0 | V58: Año 0 | W58: Año 0 | X58: Año 0 | Y58: Año 0 | Z58: Año 0 | AA58: Año 0 | AB58: Año 0 | AC58: Año 0 | AD58: Año 0 | AE58: Año 0 | AF58: Año 0 | AG58: Año 0 | AH58: Año 0 | AI58: Año 0 | AJ58: Año 0 | AK58: Año 0
D59: 1 | E59: 1 | F59: Nextel | G59: LDI | H59: [min/año] | K59: =Dda_Mdo!I158 -> 10000000 | M59: =$K59*INDEX(p.dist.pob,M$6) -> 498924.4426 | N59: 443809.8515 | O59: 446904.6526 | P59: 350047.4604 | Q59: 414190.1555 | R59: 379033.9106 | S59: 440330.9012 | T59: 336742.0963 | U59: 414749.5726 | V59: 387396.3563 | W59: =$K59*INDEX(p.dist.pob,W$6) -> 436866.9568 | X59: 400750.3392 | Y59: 429203.7826 | Z59: 434583.6706 | AA59: 292938.2952 | AB59: 410999.9173 | AC59: 488305.7212 | AD59: 399048.6788 | AE59: 378514.1089 | AF59: 386453.3903 | AG59: 343364.4666 | AH59: 381565.6933 | AI59: 356546.7829 | AJ59: 374176.8255 | AK59: 374551.9711
D60: =+D59+1 -> 2 | E60: 1 | F60: Nextel | G60: LDN | H60: [min/año] | K60: =Dda_Mdo!I159 -> 1000000 | M60: 49892.44426 | N60: 44380.98515 | O60: 44690.46526 | P60: 35004.74604 | Q60: 41419.01555 | R60: 37903.39106 | S60: 44033.09012 | T60: 33674.20963 | U60: 41474.95726 | V60: 38739.63563 | W60: 43686.69568 | X60: 40075.03392 | Y60: 42920.37826 | Z60: 43458.36706 | AA60: 29293.82952 | AB60: 41099.99173 | AC60: 48830.57212 | AD60: 39904.86788 | AE60: 37851.41089 | AF60: 38645.33903 | AG60: 34336.44666 | AH60: 38156.56933 | AI60: 35654.67829 | AJ60: 37417.68255 | AK60: 37455.19711
D61: =+D60+1 -> 3 | E61: 1 | F61: Nextel | G61: Local | H61: [min/año] | K61: =Dda_Mdo!I160 -> 100000000 | M61: 4989244.426 | N61: 4438098.515 | O61: 4469046.526 | P61: 3500474.604 | Q61: 4141901.555 | R61: 3790339.106 | S61: 4403309.012 | T61: 3367420.963 | U61: 4147495.726 | V61: 3873963.563 | W61: 4368669.568 | X61: 4007503.392 | Y61: 4292037.826 | Z61: 4345836.706 | AA61: 2929382.952 | AB61: 4109999.173 | AC61: 4883057.212 | AD61: 3990486.788 | AE61: 3785141.089 | AF61: 3864533.903 | AG61: 3433644.666 | AH61: 3815656.933 | AI61: 3565467.829 | AJ61: 3741768.255 | AK61: 3745519.711
D63: aux | E63: auxaemp | F63: Firma | G63: porcentaje distribución osiptel
D64: 1 | E64: 1 | F64: Nextel | G64: Saliente a fijo | H64: [%] | K64: =INDEX(p.dist.traf.loc.sal,$D64+3*($E64-1),1) -> 0.25
D65: =+D64+1 -> 2 | E65: =+E64 -> 1 | F65: Nextel | G65: Saliente a otros móviles | H65: [%] | K65: =INDEX(p.dist.traf.loc.sal,$D65+3*($E65-1),1) -> 0.25
D66: =+D65+1 -> 3 | E66: =+E65 -> 1 | F66: Nextel | G66: on-net | H66: [%] | K66: =INDEX(p.dist.traf.loc.sal,$D66+3*($E66-1),1) -> 0.5
K67: =SUM(K64:K66)-1 -> 0
E68: 1 | F68: Nextel | G68: participación mercado | H68: [%] | K68: 0.2
E70: 1 | F70: Nextel | G70: total entrante móvil | K70: =K52 -> 500000000
E71: 2 | F71: Movistar | G71: total entrante móvil | K71: 500000000
E72: 3 | F72: Claro | G72: total entrante móvil | K72: 500000000
G73: Total | K73: =+SUM(K70:K72) -> 1500000000
K76: Total nacional | M76: =INDEX(l.reg.nom,M$6) -> Amazonas | N76: Ancash | O76: Apurímac | P76: Arequipa | Q76: Ayacucho | R76: Cajamarca | S76: Callao | T76: Cusco | U76: Huancavelica | V76: Huánuco | W76: Ica | X76: Junín | Y76: La Libertad | Z76: Lambayeque | AA76: Lima | AB76: Loreto | AC76: Madre de Dios | AD76: Moquegua | AE76: Pasco | AF76: Piura | AG76: Puno | AH76: San Martín | AI76: Tacna | AJ76: Tumbes | AK76: Ucayali
D77: aux | E77: auxaemp | F77: Firma | G77: Tráficos salientes separados para modelo EE | K77: 2013 | M77: Año 0 | N77: Año 0 | O77: Año 0 | P77: Año 0 | Q77: Año 0 | R77: Año 0 | S77: Año 0 | T77: Año 0 | U77: Año 0 | V77: Año 0 | W77: Año 0 | X77: Año 0 | Y77: Año 0 | Z77: Año 0 | AA77: Año 0 | AB77: Año 0 | AC77: Año 0 | AD77: Año 0 | AE77: Año 0 | AF77: Año 0 | AG77: Año 0 | AH77: Año 0 | AI77: Año 0 | AJ77: Año 0 | AK77: Año 0
D78: 1 | E78: 1 | F78: Nextel | G78: Tráfico Móvil Voz saliente a otras móviles | H78: [min/año] | K78: =K73*INDEX(K$68:K$68,$E78) -> 300000000 | M78: =$K78*INDEX(p.dist.pob,M$6) -> 14967733.28 | N78: 13314295.54 | O78: 13407139.58 | P78: 10501423.81 | Q78: 12425704.66 | R78: 11371017.32 | S78: 13209927.04 | T78: 10102262.89 | U78: 12442487.18 | V78: 11621890.69 | W78: =$K78*INDEX(p.dist.pob,W$6) -> 13106008.7 | X78: 12022510.18 | Y78: 12876113.48 | Z78: 13037510.12 | AA78: 8788148.856 | AB78: 12329997.52 | AC78: 14649171.64 | AD78: 11971460.36 | AE78: 11355423.27 | AF78: 11593601.71 | AG78: 10300934 | AH78: 11446970.8 | AI78: 10696403.49 | AJ78: 11225304.77 | AK78: 11236559.13
D79: =+D78+1 -> 2 | E79: =+E78 -> 1 | F79: Nextel | G79: Tráfico Móvil Voz saliente a redes fijas | H79: [min/año] | K79: =K64*K$61 -> 25000000 | M79: 1247311.106 | N79: 1109524.629 | O79: 1117261.632 | P79: 875118.6511 | Q79: 1035475.389 | R79: 947584.7766 | S79: 1100827.253 | T79: 841855.2409 | U79: 1036873.932 | V79: 968490.8907 | W79: 1092167.392 | X79: 1001875.848 | Y79: 1073009.456 | Z79: 1086459.177 | AA79: 732345.738 | AB79: 1027499.793 | AC79: 1220764.303 | AD79: 997621.6969 | AE79: 946285.2722 | AF79: 966133.4757 | AG79: 858411.1665 | AH79: 953914.2332 | AI79: 891366.9573 | AJ79: 935442.0638 | AK79: 936379.9278
D80: =+D79+1 -> 3 | E80: =+E79 -> 1 | F80: Nextel | G80: Tráfico Móvil Voz saliente a LDI | H80: [min/año] | K80: =K59 -> 10000000 | M80: 498924.4426 | N80: 443809.8515 | O80: 446904.6526 | P80: 350047.4604 | Q80: 414190.1555 | R80: 379033.9106 | S80: 440330.9012 | T80: 336742.0963 | U80: 414749.5726 | V80: 387396.3563 | W80: 436866.9568 | X80: 400750.3392 | Y80: 429203.7826 | Z80: 434583.6706 | AA80: 292938.2952 | AB80: 410999.9173 | AC80: 488305.7212 | AD80: 399048.6788 | AE80: 378514.1089 | AF80: 386453.3903 | AG80: 343364.4666 | AH80: 381565.6933 | AI80: 356546.7829 | AJ80: 374176.8255 | AK80: 374551.9711
K82: Total nacional | M82: =INDEX(l.reg.nom,M$6) -> Amazonas | N82: Ancash | O82: Apurímac | P82: Arequipa | Q82: Ayacucho | R82: Cajamarca | S82: Callao | T82: Cusco | U82: Huancavelica | V82: Huánuco | W82: Ica | X82: Junín | Y82: La Libertad | Z82: Lambayeque | AA82: Lima | AB82: Loreto | AC82: Madre de Dios | AD82: Moquegua | AE82: Pasco | AF82: Piura | AG82: Puno | AH82: San Martín | AI82: Tacna | AJ82: Tumbes | AK82: Ucayali
D83: aux | E83: auxaemp | F83: Firma | G83: Tráfico intrared para modelo EE | K83: 2013 | M83: Año 0 | N83: Año 0 | O83: Año 0 | P83: Año 0 | Q83: Año 0 | R83: Año 0 | S83: Año 0 | T83: Año 0 | U83: Año 0 | V83: Año 0 | W83: Año 0 | X83: Año 0 | Y83: Año 0 | Z83: Año 0 | AA83: Año 0 | AB83: Año 0 | AC83: Año 0 | AD83: Año 0 | AE83: Año 0 | AF83: Año 0 | AG83: Año 0 | AH83: Año 0 | AI83: Año 0 | AJ83: Año 0 | AK83: Año 0
D84: 1 | E84: 1 | F84: Nextel | G84: Tráfico on-net | H84: [min/año] | K84: ='Dda_%_TF'!F90 -> 5000000000 | M84: =$K84*INDEX(p.dist.pob,M$6) -> 249462221.3 | N84: 221904925.7 | O84: 223452326.3 | P84: 175023730.2 | Q84: 207095077.7 | R84: 189516955.3 | S84: 220165450.6 | T84: 168371048.2 | U84: 207374786.3 | V84: 193698178.1 | W84: 218433478.4 | X84: 200375169.6 | Y84: 214601891.3 | Z84: 217291835.3 | AA84: 146469147.6 | AB84: 205499958.6 | AC84: 244152860.6 | AD84: 199524339.4 | AE84: 189257054.4 | AF84: 193226695.1 | AG84: 171682233.3 | AH84: 190782846.6 | AI84: 178273391.5 | AJ84: 187088412.8 | AK84: 187275985.6
K86: Total nacional | M86: =INDEX(l.reg.nom,M$6) -> Amazonas | N86: Ancash | O86: Apurímac | P86: Arequipa | Q86: Ayacucho | R86: Cajamarca | S86: Callao | T86: Cusco | U86: Huancavelica | V86: Huánuco | W86: Ica | X86: Junín | Y86: La Libertad | Z86: Lambayeque | AA86: Lima | AB86: Loreto | AC86: Madre de Dios | AD86: Moquegua | AE86: Pasco | AF86: Piura | AG86: Puno | AH86: San Martín | AI86: Tacna | AJ86: Tumbes | AK86: Ucayali
D87: aux | E87: auxaemp | F87: Firma | G87: Tráfico SMS para modelo EE | K87: 2013 | M87: Año 0 | N87: Año 0 | O87: Año 0 | P87: Año 0 | Q87: Año 0 | R87: Año 0 | S87: Año 0 | T87: Año 0 | U87: Año 0 | V87: Año 0 | W87: Año 0 | X87: Año 0 | Y87: Año 0 | Z87: Año 0 | AA87: Año 0 | AB87: Año 0 | AC87: Año 0 | AD87: Año 0 | AE87: Año 0 | AF87: Año 0 | AG87: Año 0 | AH87: Año 0 | AI87: Año 0 | AJ87: Año 0 | AK87: Año 0
D88: 1 | E88: 1 | F88: Nextel | G88: SMS saliente a otras móviles | H88: [SMS/año] | K88: =INDEX(dda.sms,$D88+3*($E88-1),1)*12 -> 60000000 | M88: =$K88*INDEX(p.dist.pob,M$6) -> 2993546.655 | N88: 2662859.109 | O88: 2681427.916 | P88: 2100284.763 | Q88: 2485140.933 | R88: 2274203.464 | S88: 2641985.407 | T88: 2020452.578 | U88: 2488497.436 | V88: 2324378.138 | W88: =$K88*INDEX(p.dist.pob,W$6) -> 2621201.741 | X88: 2404502.035 | Y88: 2575222.695 | Z88: 2607502.024 | AA88: 1757629.771 | AB88: 2465999.504 | AC88: 2929834.327 | AD88: 2394292.073 | AE88: 2271084.653 | AF88: 2318720.342 | AG88: 2060186.8 | AH88: 2289394.16 | AI88: 2139280.698 | AJ88: 2245060.953 | AK88: 2247311.827
D89: =+D88+1 -> 2 | E89: =+E88 -> 1 | F89: Nextel | G89: SMS on-net | H89: [SMS/año] | K89: =INDEX(dda.sms,$D89+3*($E89-1),1)*12 -> 60000000 | M89: 2993546.655 | N89: 2662859.109 | O89: 2681427.916 | P89: 2100284.763 | Q89: 2485140.933 | R89: 2274203.464 | S89: 2641985.407 | T89: 2020452.578 | U89: 2488497.436 | V89: 2324378.138 | W89: 2621201.741 | X89: 2404502.035 | Y89: 2575222.695 | Z89: 2607502.024 | AA89: 1757629.771 | AB89: 2465999.504 | AC89: 2929834.327 | AD89: 2394292.073 | AE89: 2271084.653 | AF89: 2318720.342 | AG89: 2060186.8 | AH89: 2289394.16 | AI89: 2139280.698 | AJ89: 2245060.953 | AK89: 2247311.827
D90: =+D89+1 -> 3 | E90: =+E89 -> 1 | F90: Nextel | G90: SMS entrante desde otras móviles | H90: [SMS/año] | K90: =INDEX(dda.sms,$D90+3*($E90-1),1)*12 -> 24000000 | M90: 1197418.662 | N90: 1065143.644 | O90: 1072571.166 | P90: 840113.905 | Q90: 994056.3732 | R90: 909681.3855 | S90: 1056794.163 | T90: 808181.0312 | U90: 995398.9742 | V90: 929751.2551 | W90: 1048480.696 | X90: 961800.8141 | Y90: 1030089.078 | Z90: 1043000.809 | AA90: 703051.9085 | AB90: 986399.8015 | AC90: 1171933.731 | AD90: 957716.8291 | AE90: 908433.8614 | AF90: 927488.1367 | AG90: 824074.7199 | AH90: 915757.6639 | AI90: 855712.279 | AJ90: 898024.3812 | AK90: 898924.7307
K92: Total nacional | M92: =INDEX(l.reg.nom,M$6) -> Amazonas | N92: Ancash | O92: Apurímac | P92: Arequipa | Q92: Ayacucho | R92: Cajamarca | S92: Callao | T92: Cusco | U92: Huancavelica | V92: Huánuco | W92: Ica | X92: Junín | Y92: La Libertad | Z92: Lambayeque | AA92: Lima | AB92: Loreto | AC92: Madre de Dios | AD92: Moquegua | AE92: Pasco | AF92: Piura | AG92: Puno | AH92: San Martín | AI92: Tacna | AJ92: Tumbes | AK92: Ucayali
D93: aux | E93: auxaemp | F93: Firma | G93: Tráfico de datos móviles | K93: 2013 | M93: Año 0 | N93: Año 0 | O93: Año 0 | P93: Año 0 | Q93: Año 0 | R93: Año 0 | S93: Año 0 | T93: Año 0 | U93: Año 0 | V93: Año 0 | W93: Año 0 | X93: Año 0 | Y93: Año 0 | Z93: Año 0 | AA93: Año 0 | AB93: Año 0 | AC93: Año 0 | AD93: Año 0 | AE93: Año 0 | AF93: Año 0 | AG93: Año 0 | AH93: Año 0 | AI93: Año 0 | AJ93: Año 0 | AK93: Año 0
D94: 1 | E94: 1 | F94: Nextel | G94: Downlink | H94: [TeraByte/año] | K94: =INDEX(traf.datos3,$D94+2*($E94-1),1) -> 6857.142857 | M94: =$K94*INDEX(p.dist.pob,M$6) -> 342.1196178 | N94: 304.3267553 | O94: 306.4489047 | P94: 240.0325443 | Q94: 284.0161066 | R94: 259.9089673 | S94: 301.9411894 | T94: 230.9088661 | U94: 284.3997069 | V94: 265.6432157 | W94: =$K94*INDEX(p.dist.pob,W$6) -> 299.5659132 | X94: 274.8002326 | Y94: 294.3111652 | Z94: 298.0002313 | AA94: 200.8719739 | AB94: 281.8285147 | AC94: 334.8382088 | AD94: 273.6333797 | AE94: 259.5525318 | AF94: 264.9966105 | AG94: 235.44992 | AH94: 261.6450468 | AI94: 244.4892226 | AJ94: 256.5783946 | AK94: 256.8356373
D95: =+D94+1 -> 2 | E95: =+E94 -> 1 | F95: Nextel | G95: Uplink | H95: [TeraByte/año] | K95: =INDEX(traf.datos3,$D95+2*($E95-1),1) -> 34.28571429 | M95: 1.710598089 | N95: 1.521633777 | O95: 1.532244523 | P95: 1.200162721 | Q95: 1.420080533 | R95: 1.299544836 | S95: 1.509705947 | T95: 1.15454433 | U95: 1.421998535 | V95: 1.328216079 | W95: 1.497829566 | X95: 1.374001163 | Y95: 1.471555826 | Z95: 1.490001156 | AA95: 1.004359869 | AB95: 1.409142574 | AC95: 1.674191044 | AD95: 1.368166899 | AE95: 1.297762659 | AF95: 1.324983052 | AG95: 1.1772496 | AH95: 1.308225234 | AI95: 1.222446113 | AJ95: 1.282891973 | AK95: 1.284178187
K97: =K94*1024*1024/12/K26 -> 748.9828571
B101: Salida Tarifas
K103: Total nacional | M103: =INDEX(l.reg.nom,M$6) -> Amazonas | N103: Ancash | O103: Apurímac | P103: Arequipa | Q103: Ayacucho | R103: Cajamarca | S103: Callao | T103: Cusco | U103: Huancavelica | V103: Huánuco | W103: Ica | X103: Junín | Y103: La Libertad | Z103: Lambayeque | AA103: Lima | AB103: Loreto | AC103: Madre de Dios | AD103: Moquegua | AE103: Pasco | AF103: Piura | AG103: Puno | AH103: San Martín | AI103: Tacna | AJ103: Tumbes | AK103: Ucayali
F104: id | G104: Lista demandas a calculo tarifario | I104: control | K104: 2013 | M104: Año 0 | N104: Año 0 | O104: Año 0 | P104: Año 0 | Q104: Año 0 | R104: Año 0 | S104: Año 0 | T104: Año 0 | U104: Año 0 | V104: Año 0 | W104: Año 0 | X104: Año 0 | Y104: Año 0 | Z104: Año 0 | AA104: Año 0 | AB104: Año 0 | AC104: Año 0 | AD104: Año 0 | AE104: Año 0 | AF104: Año 0 | AG104: Año 0 | AH104: Año 0 | AI104: Año 0 | AJ104: Año 0 | AK104: Año 0
F105: 1 | G105: =INDEX(dda.serv.ee,$F105) -> Cliente Tipo 1 | H105: [abonado] | I105: =INDEX(sel.serv.ee,F105) -> 1 | K105: =K15*$I105 -> 100000 | M105: =M15*$I105 -> 4989.244426 | N105: 4438.098515 | O105: 4469.046526 | P105: 3500.474604 | Q105: 4141.901555 | R105: 3790.339106 | S105: 4403.309012 | T105: 3367.420963 | U105: 4147.495726 | V105: 3873.963563 | W105: 4368.669568 | X105: 4007.503392 | Y105: 4292.037826 | Z105: 4345.836706 | AA105: 2929.382952 | AB105: 4109.999173 | AC105: 4883.057212 | AD105: 3990.486788 | AE105: 3785.141089 | AF105: 3864.533903 | AG105: 3433.644666 | AH105: 3815.656933 | AI105: 3565.467829 | AJ105: 3741.768255 | AK105: 3745.519711
F106: =F105+1 -> 2 | G106: Cliente Tipo 2 | H106: [abonado] | I106: 1 | K106: =K16*$I106 -> 100000 | M106: =M16*$I106 -> 4989.244426 | N106: 4438.098515 | O106: 4469.046526 | P106: 3500.474604 | Q106: 4141.901555 | R106: 3790.339106 | S106: 4403.309012 | T106: 3367.420963 | U106: 4147.495726 | V106: 3873.963563 | W106: 4368.669568 | X106: 4007.503392 | Y106: 4292.037826 | Z106: 4345.836706 | AA106: 2929.382952 | AB106: 4109.999173 | AC106: 4883.057212 | AD106: 3990.486788 | AE106: 3785.141089 | AF106: 3864.533903 | AG106: 3433.644666 | AH106: 3815.656933 | AI106: 3565.467829 | AJ106: 3741.768255 | AK106: 3745.519711
F107: 3 | G107: Cliente Tipo 3 | H107: [abonado] | I107: 1 | K107: =K17*$I107 -> 100000 | M107: =M17*$I107 -> 4989.244426 | N107: 4438.098515 | O107: 4469.046526 | P107: 3500.474604 | Q107: 4141.901555 | R107: 3790.339106 | S107: 4403.309012 | T107: 3367.420963 | U107: 4147.495726 | V107: 3873.963563 | W107: 4368.669568 | X107: 4007.503392 | Y107: 4292.037826 | Z107: 4345.836706 | AA107: 2929.382952 | AB107: 4109.999173 | AC107: 4883.057212 | AD107: 3990.486788 | AE107: 3785.141089 | AF107: 3864.533903 | AG107: 3433.644666 | AH107: 3815.656933 | AI107: 3565.467829 | AJ107: 3741.768255 | AK107: 3745.519711
F108: 4 | G108: Tráfico Móvil Voz entrante desde otras móviles | H108: [minutos] | I108: 1 | K108: =K52*$I108 -> 500000000 | M108: =M52*$I108 -> 24946222.13 | N108: 22190492.57 | O108: 22345232.63 | P108: 17502373.02 | Q108: 20709507.77 | R108: 18951695.53 | S108: 22016545.06 | T108: 16837104.82 | U108: 20737478.63 | V108: 19369817.81 | W108: 21843347.84 | X108: 20037516.96 | Y108: 21460189.13 | Z108: 21729183.53 | AA108: 14646914.76 | AB108: 20549995.86 | AC108: 24415286.06 | AD108: 19952433.94 | AE108: 18925705.44 | AF108: 19322669.51 | AG108: 17168223.33 | AH108: 19078284.66 | AI108: 17827339.15 | AJ108: 18708841.28 | AK108: 18727598.56
F109: 5 | G109: Tráfico Móvil Voz entrante desde redes fijas | H109: [minutos] | I109: 1 | K109: =K53*$I109 -> 250000000 | M109: =M53*$I109 -> 12473111.06 | N109: 11095246.29 | O109: 11172616.32 | P109: 8751186.511 | Q109: 10354753.89 | R109: 9475847.766 | S109: 11008272.53 | T109: 8418552.409 | U109: 10368739.32 | V109: 9684908.907 | W109: 10921673.92 | X109: 10018758.48 | Y109: 10730094.56 | Z109: 10864591.77 | AA109: 7323457.38 | AB109: 10274997.93 | AC109: 12207643.03 | AD109: 9976216.969 | AE109: 9462852.722 | AF109: 9661334.757 | AG109: 8584111.665 | AH109: 9539142.332 | AI109: 8913669.573 | AJ109: 9354420.638 | AK109: 9363799.278
F110: 6 | G110: Tráfico Móvil Voz entrante desde públicos | H110: [minutos] | I110: 1 | K110: =K54*$I110 -> 250000000 | M110: =M54*$I110 -> 12473111.06 | N110: 11095246.29 | O110: 11172616.32 | P110: 8751186.511 | Q110: 10354753.89 | R110: 9475847.766 | S110: 11008272.53 | T110: 8418552.409 | U110: 10368739.32 | V110: 9684908.907 | W110: 10921673.92 | X110: 10018758.48 | Y110: 10730094.56 | Z110: 10864591.77 | AA110: 7323457.38 | AB110: 10274997.93 | AC110: 12207643.03 | AD110: 9976216.969 | AE110: 9462852.722 | AF110: 9661334.757 | AG110: 8584111.665 | AH110: 9539142.332 | AI110: 8913669.573 | AJ110: 9354420.638 | AK110: 9363799.278
F111: 7 | G111: Tráfico Móvil Voz entrante desde LDI | H111: [minutos] | I111: 1 | K111: =K55*$I111 -> 10000000 | M111: =M55*$I111 -> 498924.4426 | N111: 443809.8515 | O111: 446904.6526 | P111: 350047.4604 | Q111: 414190.1555 | R111: 379033.9106 | S111: 440330.9012 | T111: 336742.0963 | U111: 414749.5726 | V111: 387396.3563 | W111: 436866.9568 | X111: 400750.3392 | Y111: 429203.7826 | Z111: 434583.6706 | AA111: 292938.2952 | AB111: 410999.9173 | AC111: 488305.7212 | AD111: 399048.6788 | AE111: 378514.1089 | AF111: 386453.3903 | AG111: 343364.4666 | AH111: 381565.6933 | AI111: 356546.7829 | AJ111: 374176.8255 | AK111: 374551.9711
F112: 8 | G112: Tráfico on-net | H112: [minutos] | I112: 1 | K112: =K84*$I112 -> 5000000000 | M112: =M84*$I112 -> 249462221.3 | N112: =N84*$I112 -> 221904925.7 | O112: 223452326.3 | P112: 175023730.2 | Q112: 207095077.7 | R112: 189516955.3 | S112: 220165450.6 | T112: 168371048.2 | U112: 207374786.3 | V112: 193698178.1 | W112: 218433478.4 | X112: 200375169.6 | Y112: 214601891.3 | Z112: 217291835.3 | AA112: 146469147.6 | AB112: 205499958.6 | AC112: 244152860.6 | AD112: 199524339.4 | AE112: 189257054.4 | AF112: 193226695.1 | AG112: 171682233.3 | AH112: 190782846.6 | AI112: 178273391.5 | AJ112: 187088412.8 | AK112: 187275985.6
F113: 9 | G113: Tráfico Móvil Voz saliente a otras móviles | H113: [minutos] | I113: 1 | K113: =K78*$I113 -> 300000000 | M113: =M78*$I113 -> 14967733.28 | N113: =N78*$I113 -> 13314295.54 | O113: 13407139.58 | P113: 10501423.81 | Q113: 12425704.66 | R113: 11371017.32 | S113: 13209927.04 | T113: 10102262.89 | U113: 12442487.18 | V113: 11621890.69 | W113: 13106008.7 | X113: 12022510.18 | Y113: 12876113.48 | Z113: 13037510.12 | AA113: 8788148.856 | AB113: 12329997.52 | AC113: 14649171.64 | AD113: 11971460.36 | AE113: 11355423.27 | AF113: 11593601.71 | AG113: 10300934 | AH113: 11446970.8 | AI113: 10696403.49 | AJ113: 11225304.77 | AK113: 11236559.13
F114: 10 | G114: Tráfico Móvil Voz saliente a redes fijas | H114: [minutos] | I114: 1 | K114: =K79*$I114 -> 25000000 | M114: =M79*$I114 -> 1247311.106 | N114: 1109524.629 | O114: 1117261.632 | P114: 875118.6511 | Q114: 1035475.389 | R114: 947584.7766 | S114: 1100827.253 | T114: 841855.2409 | U114: 1036873.932 | V114: 968490.8907 | W114: 1092167.392 | X114: 1001875.848 | Y114: 1073009.456 | Z114: 1086459.177 | AA114: 732345.738 | AB114: 1027499.793 | AC114: 1220764.303 | AD114: 997621.6969 | AE114: 946285.2722 | AF114: 966133.4757 | AG114: 858411.1665 | AH114: 953914.2332 | AI114: 891366.9573 | AJ114: 935442.0638 | AK114: 936379.9278
F115: 11 | G115: Tráfico Móvil Voz saliente a LDI | H115: [minutos] | I115: 1 | K115: =K80*$I115 -> 10000000 | M115: 498924.4426 | N115: 443809.8515 | O115: 446904.6526 | P115: 350047.4604 | Q115: 414190.1555 | R115: 379033.9106 | S115: 440330.9012 | T115: 336742.0963 | U115: 414749.5726 | V115: 387396.3563 | W115: 436866.9568 | X115: 400750.3392 | Y115: 429203.7826 | Z115: 434583.6706 | AA115: 292938.2952 | AB115: 410999.9173 | AC115: 488305.7212 | AD115: 399048.6788 | AE115: 378514.1089 | AF115: 386453.3903 | AG115: 343364.4666 | AH115: 381565.6933 | AI115: 356546.7829 | AJ115: 374176.8255 | AK115: 374551.9711
F116: 12 | G116: libre | I116: 1
F117: 13 | G117: libre | I117: 1
F118: 14 | G118: SMS saliente a otras móviles | H118: [SMS] | I118: 1 | K118: =K88*$I118 -> 60000000 | M118: =M88*$I118 -> 2993546.655 | N118: =N88*$I118 -> 2662859.109 | O118: 2681427.916 | P118: 2100284.763 | Q118: 2485140.933 | R118: 2274203.464 | S118: 2641985.407 | T118: 2020452.578 | U118: 2488497.436 | V118: 2324378.138 | W118: 2621201.741 | X118: 2404502.035 | Y118: 2575222.695 | Z118: 2607502.024 | AA118: 1757629.771 | AB118: 2465999.504 | AC118: 2929834.327 | AD118: 2394292.073 | AE118: 2271084.653 | AF118: 2318720.342 | AG118: 2060186.8 | AH118: 2289394.16 | AI118: 2139280.698 | AJ118: 2245060.953 | AK118: 2247311.827
F119: 15 | G119: SMS on-net | H119: [SMS] | I119: 1 | K119: =K89*$I119 -> 60000000 | M119: =M89*$I119 -> 2993546.655 | N119: =N89*$I119 -> 2662859.109 | O119: 2681427.916 | P119: 2100284.763 | Q119: 2485140.933 | R119: 2274203.464 | S119: 2641985.407 | T119: 2020452.578 | U119: 2488497.436 | V119: 2324378.138 | W119: 2621201.741 | X119: 2404502.035 | Y119: 2575222.695 | Z119: 2607502.024 | AA119: 1757629.771 | AB119: 2465999.504 | AC119: 2929834.327 | AD119: 2394292.073 | AE119: 2271084.653 | AF119: 2318720.342 | AG119: 2060186.8 | AH119: 2289394.16 | AI119: 2139280.698 | AJ119: 2245060.953 | AK119: 2247311.827
F120: 16 | G120: SMS entrante desde otras móviles | H120: [SMS] | I120: 1 | K120: =K90*$I120 -> 24000000 | M120: =M90*$I120 -> 1197418.662 | N120: =N90*$I120 -> 1065143.644 | O120: 1072571.166 | P120: 840113.905 | Q120: 994056.3732 | R120: 909681.3855 | S120: 1056794.163 | T120: 808181.0312 | U120: 995398.9742 | V120: 929751.2551 | W120: 1048480.696 | X120: 961800.8141 | Y120: 1030089.078 | Z120: 1043000.809 | AA120: 703051.9085 | AB120: 986399.8015 | AC120: 1171933.731 | AD120: 957716.8291 | AE120: 908433.8614 | AF120: 927488.1367 | AG120: 824074.7199 | AH120: 915757.6639 | AI120: 855712.279 | AJ120: 898024.3812 | AK120: 898924.7307
F121: 17 | G121: libre | I121: 1
F122: 18 | G122: libre | I122: 1
F123: 19 | G123: libre | I123: 1
F124: 20 | G124: Conexiones Móvil Datos banda ancha e internet móvil | H124: [Conexión] | I124: 1 | K124: =K18*$I124 -> 800000 | M124: =M18*$I124 -> 39913.9554 | N124: 35504.78812 | O124: 35752.37221 | P124: 28003.79683 | Q124: 33135.21244 | R124: 30322.71285 | S124: 35226.4721 | T124: 26939.36771 | U124: 33179.96581 | V124: 30991.7085 | W124: 34949.35654 | X124: 32060.02714 | Y124: 34336.30261 | Z124: 34766.69365 | AA124: 23435.06362 | AB124: 32879.99338 | AC124: 39064.4577 | AD124: 31923.8943 | AE124: 30281.12871 | AF124: 30916.27122 | AG124: 27469.15733 | AH124: 30525.25546 | AI124: 28523.74263 | AJ124: 29934.14604 | AK124: 29964.15769
F125: 21 | G125: Tráfico Móvil Datos banda ancha e internet móvil Bajada | H125: [TByte] | I125: 1 | K125: =K94*$I125 -> 6857.142857 | M125: =M94*$I125 -> 342.1196178 | N125: =N94*$I125 -> 304.3267553 | O125: 306.4489047 | P125: 240.0325443 | Q125: 284.0161066 | R125: 259.9089673 | S125: 301.9411894 | T125: 230.9088661 | U125: 284.3997069 | V125: 265.6432157 | W125: 299.5659132 | X125: 274.8002326 | Y125: 294.3111652 | Z125: 298.0002313 | AA125: 200.8719739 | AB125: 281.8285147 | AC125: 334.8382088 | AD125: 273.6333797 | AE125: 259.5525318 | AF125: 264.9966105 | AG125: 235.44992 | AH125: 261.6450468 | AI125: 244.4892226 | AJ125: 256.5783946 | AK125: 256.8356373
F126: 22 | G126: Tráfico Móvil Datos banda ancha e internet móvil Subida | H126: [TByte] | I126: 1 | K126: =K95*$I126 -> 34.28571429 | M126: =M95*$I126 -> 1.710598089 | N126: =N95*$I126 -> 1.521633777 | O126: 1.532244523 | P126: 1.200162721 | Q126: 1.420080533 | R126: 1.299544836 | S126: 1.509705947 | T126: 1.15454433 | U126: 1.421998535 | V126: 1.328216079 | W126: 1.497829566 | X126: 1.374001163 | Y126: 1.471555826 | Z126: 1.490001156 | AA126: 1.004359869 | AB126: 1.409142574 | AC126: 1.674191044 | AD126: 1.368166899 | AE126: 1.297762659 | AF126: 1.324983052 | AG126: 1.1772496 | AH126: 1.308225234 | AI126: 1.222446113 | AJ126: 1.282891973 | AK126: 1.284178187
F127: 23 | G127: libre | I127: 1
F128: 24 | G128: libre | I128: 1
F129: 25 | G129: libre | I129: 1
F130: 26 | G130: libre | I130: 1
F131: 27 | G131: libre | I131: 1
F132: 28 | G132: libre | I132: 1
F133: 29 | G133: libre | I133: 1
F134: 30 | G134: libre | I134: 1
F135: 31 | G135: libre | I135: 1
F136: 32 | G136: libre | I136: 1
F137: 33 | G137: libre | I137: 1
F138: 34 | G138: libre | I138: 1
F139: 35 | G139: libre | I139: 1
F140: 36 | G140: libre | I140: 1
F141: 37 | G141: libre | I141: 1
F142: 38 | G142: libre | I142: 1
F143: 39 | G143: libre | I143: 1
F144: 40 | G144: libre | I144: 1
F145: 41 | G145: libre | I145: 1
F146: 42 | G146: libre | I146: 1
F147: 43 | G147: libre | I147: 1
F148: 44 | G148: libre | I148: 1
F149: 45 | G149: libre | I149: 1 | L149: dda_sal_tarifas | AL149: dda_sal_red
G154: MOU | H154: [min/abonado/mes] | K154: =SUM(K108:K117)*1000/SUM(K105:K106)/12 -> 2643750
G155: Datos/Abo | H155: [GByte/mes] | K155: =SUM(K125:K128)*1000/K124/12 -> 0.7178571429
C158: Distribución porcentual
G161: Fuente: INEI | K161: analyze and rectify it
F162: ID | G162: Departamento | K162: 2013 | M162: 2013
F163: 1 | G163: AMAZONAS | K163: 419404 | M163: =K163/K$189*(Cobertura!K52>0) -> 0.01376216631
F164: =F163+1 -> 2 | G164: ÁNCASH | K164: 1135962 | M164: =K164/K$189*(Cobertura!K53>0) -> 0.03727503306
F165: 3 | G165: APURÍMAC | K165: 454324 | M165: =K165/K$189*(Cobertura!K54>0) -> 0.01490801815
F166: 4 | G166: AREQUIPA | K166: 1259162 | M166: =K166/K$189*(Cobertura!K55>0) -> 0.04131767187
F167: 5 | G167: AYACUCHO | K167: 673609 | M167: =K167/K$189*(Cobertura!K56>0) -> 0.02210355429
F168: 6 | G168: CAJAMARCA | K168: 1519764 | M168: =K168/K$189*(Cobertura!K57>0) -> 0.04986896863
F169: 7 | G169: CALLAO | K169: 982800 | M169: =K169/K$189*(Cobertura!K58>0) -> 0.03224923236
F170: 8 | G170: CUSCO | K170: 1300609 | M170: =K170/K$189*(Cobertura!K59>0) -> 0.04267769826
F171: 9 | G171: HUANCAVELICA | K171: 487472 | M171: =K171/K$189*(Cobertura!K60>0) -> 0.01599572425
F172: 10 | G172: HUÁNUCO | K172: 847714 | M172: =K172/K$189*(Cobertura!K61>0) -> 0.02781657078
F173: 11 | G173: ICA | K173: 771507 | M173: =K173/K$189*(Cobertura!K62>0) -> 0.02531594272
F174: 12 | G174: JUNÍN | K174: 1331253 | M174: =K174/K$189*(Cobertura!K63>0) -> 0.04368323904
F175: 13 | G175: LA LIBERTAD | K175: 1814276 | M175: =K175/K$189*(Cobertura!K64>0) -> 0.05953297546
F176: 14 | G176: LAMBAYEQUE | K176: 1239882 | M176: =K176/K$189*(Cobertura!K65>0) -> 0.04068502515
F177: 15 | G177: LIMA | K177: 9540996 | M177: =K177/K$189*(Cobertura!K66>0) -> 0.3130746815
F178: 16 | G178: LORETO | K178: 1018160 | M178: =K178/K$189*(Cobertura!K67>0) -> 0.0334095222
F179: 17 | G179: MADRE DE DIOS | K179: 130876 | M179: =K179/K$189*(Cobertura!K68>0) -> 0.004294516213
F180: 18 | G180: MOQUEGUA | K180: 176736 | M180: =K180/K$189*(Cobertura!K69>0) -> 0.005799349135
F181: 19 | G181: PASCO | K181: 299807 | M181: =K181/K$189*(Cobertura!K70>0) -> 0.009837754991
F182: 20 | G182: PIURA | K182: 1814622 | M182: =K182/K$189*(Cobertura!K71>0) -> 0.05954432898
F183: 21 | G183: PUNO | K183: 1389684 | M183: =K183/K$189*(Cobertura!K72>0) -> 0.04560057206
F184: 22 | G184: SAN MARTÍN | K184: 818061 | M184: =K184/K$189*(Cobertura!K73>0) -> 0.0268435483
F185: 23 | G185: TACNA | K185: 333276 | M185: =K185/K$189*(Cobertura!K74>0) -> 0.01093599426
F186: 24 | G186: TUMBES | K186: 231480 | M186: =K186/K$189*(Cobertura!K75>0) -> 0.007595698317
F187: 25 | G187: UCAYALI | K187: 483708 | M187: =K187/K$189*(Cobertura!K76>0) -> 0
G189: Total | K189: =SUM(K163:K187) -> 30475144 | M189: =SUM(M163:M187) -> 0.9841277862
F192: id | G192: Departamento | K192: 2013
F193: 1 | G193: =INDEX(reg.nom,$F193) -> Amazonas | H193: 1 | K193: =INDEX(p.dist.dpto,$F193,$H193) -> 0.04989244426
F194: =F193+1 -> 2 | G194: Ancash | H194: 1 | K194: 0.04438098515
F195: 3 | G195: Apurímac | H195: 1 | K195: 0.04469046526
F196: 4 | G196: Arequipa | H196: 1 | K196: 0.03500474604
F197: 5 | G197: Ayacucho | H197: 1 | K197: 0.04141901555
F198: 6 | G198: Cajamarca | H198: 1 | K198: 0.03790339106
F199: 7 | G199: Callao | H199: 1 | K199: 0.04403309012
F200: 8 | G200: Cusco | H200: 1 | K200: 0.03367420963
F201: 9 | G201: Huancavelica | H201: 1 | K201: 0.04147495726
F202: 10 | G202: Huánuco | H202: 1 | K202: 0.03873963563
F203: 11 | G203: Ica | H203: 1 | K203: 0.04368669568
F204: 12 | G204: Junín | H204: 1 | K204: 0.04007503392
F205: 13 | G205: La Libertad | H205: 1 | K205: 0.04292037826
F206: 14 | G206: Lambayeque | H206: 1 | K206: 0.04345836706
F207: 15 | G207: Lima | H207: 1 | K207: 0.02929382952
F208: 16 | G208: Loreto | H208: 1 | K208: 0.04109999173
F209: 17 | G209: Madre de Dios | H209: 1 | K209: 0.04883057212
F210: 18 | G210: Moquegua | H210: 1 | K210: 0.03990486788
F211: 19 | G211: Pasco | H211: 1 | K211: 0.03785141089
F212: 20 | G212: Piura | H212: 1 | K212: 0.03864533903
F213: 21 | G213: Puno | H213: 1 | K213: 0.03433644666
F214: 22 | G214: San Martín | H214: 1 | K214: 0.03815656933
F215: 23 | G215: Tacna | H215: 1 | K215: 0.03565467829
F216: 24 | G216: Tumbes | H216: 1 | K216: 0.03741768255
F217: 25 | G217: Ucayali | H217: 1 | K217: 0.03745519711
G219: Total | K219: =SUM(K193:K217) -> 1
K220: p.dist.pob
B223: Distribución de la Población
K226: 2
F227: ID | G227: Departamento | K227: 2013
F228: 1 | G228: =INDEX(reg.nom,$F228) -> Amazonas | K228: =M163/M$189 -> 0.01398412533 | M228: 0.04
F229: =F228+1 -> 2 | G229: Ancash | K229: =M164/M$189 -> 0.0378762124 | M229: 0.04
F230: 3 | G230: Apurímac | K230: 0.01514845771 | M230: 0.04
F231: 4 | G231: Arequipa | K231: 0.04198405171 | M231: 0.04
F232: 5 | G232: Ayacucho | K232: 0.02246004493 | M232: 0.04
F233: 6 | G233: Cajamarca | K233: 0.05067326553 | M233: 0.04
F234: 7 | G234: Callao | K234: 0.03276935456 | M234: 0.04
F235: 8 | G235: Cusco | K235: 0.04336601288 | M235: 0.04
F236: 9 | G236: Huancavelica | K236: 0.01625370656 | M236: 0.04
F237: 10 | G237: Huánuco | K237: 0.02826520211 | M237: 0.04
F238: 11 | G238: Ica | K238: 0.02572424341 | M238: 0.04
F239: 12 | G239: Junín | K239: 0.04438777123 | M239: 0.04
F240: 13 | G240: La Libertad | K240: 0.06049313544 | M240: 0.04
F241: 14 | G241: Lambayeque | K241: 0.04134120153 | M241: 0.04
F242: 15 | G242: Lima | K242: 0.3181240138 | M242: 0.04
F243: 16 | G243: Loreto | K243: 0.03394835779 | M243: 0.04
F244: 17 | G244: Madre de Dios | K244: 0.004363779047 | M244: 0.04
... 8 more rows

Sheet Dda_Mdo
F2: ='Panel de Control'!$H$2 -> Modelo Dinámico de Cargo de Interconexión Móvil (Costos Históricos)
F3: Demanda de mercado
B7: Información histórica según OSIPTEL
U8: =E9 -> Cliente Tipo 2 | V8: =F9 -> Cliente Tipo 1 | W8: Cliente Tipo 3 | X8: =E9 -> Cliente Tipo 2 | Y8: =F9 -> Cliente Tipo 1 | Z8: Cliente Tipo 3 | AB8: iDEN | AC8: iDEN | AD8: iDEN | AE8: % 3G | AF8: % 3G | AG8: % 3G
E9: ='Panel de Control'!G107 -> Cliente Tipo 2 | F9: ='Panel de Control'!G106 -> Cliente Tipo 1 | G9: ='Panel de Control'!G108 -> Cliente Tipo 3 | I9: =E9 -> Cliente Tipo 2 | J9: =F9 -> Cliente Tipo 1 | K9: Cliente Tipo 3 | M9: Total | N9: =E9 -> Cliente Tipo 2 | O9: =F9 -> Cliente Tipo 1 | P9: Cliente Tipo 3
E10: Nextel | F10: Nextel | G10: Nextel | I10: Nextel | J10: Nextel | K10: Nextel | L10: Nextel | M10: Nextel | N10: Nextel | O10: Nextel | P10: Nextel | U10: Nextel | V10: Nextel | W10: Nextel | X10: Nextel | Y10: Nextel | Z10: Nextel | AB10: Nextel | AC10: Nextel | AD10: Nextel | AE10: Nextel | AF10: Nextel | AG10: Nextel
D11: fecha | E11: aboprenx | F11: aboposnx | G11: aboconnx | I11: Porcentaje | J11: Porcentaje | K11: Porcentaje | L11: Total | M11: Total | N11: Total | O11: Total | P11: Total | R11: iDEN (2G) | S11: 3G | U11: iDEN | V11: iDEN | W11: iDEN | X11: 3G | Y11: 3G | Z11: 3G | AB11: =E9 -> Cliente Tipo 2 | AC11: =F9 -> Cliente Tipo 1 | AD11: Cliente Tipo 3 | AE11: =E9 -> Cliente Tipo 2 | AF11: =F9 -> Cliente Tipo 1 | AG11: Cliente Tipo 3 | AI11: %2G | AJ11: 2013-01-01 | AK11: 2013-02-01 | AL11: 2013-03-01 | AM11: 2013-04-01 | AN11: 2013-05-01 | AO11: 2013-06-01 | AP11: 2013-07-01 | AQ11: 2013-08-01 | AR11: 2013-09-01 | AS11: 2013-10-01 | AT11: 2013-11-01 | AU11: 2013-12-01
C12: =+C11+1 -> 1 | D12: 2013-01-01 | E12: ='Dda_%_TF'!F26 -> 100000 | F12: ='Dda_%_TF'!E26 -> 100000 | G12: ='Dda_%_TF'!G26 -> 100000 | I12: =E12/$L12 -> 0.3333333333 | J12: =F12/$L12 -> 0.3333333333 | K12: =G12/$L12 -> 0.3333333333 | L12: =SUM(E12,F12,G12) -> 300000 | M12: =L12 -> 300000 | N12: =$M12*I12 -> 100000 | O12: =$M12*J12 -> 100000 | P12: =$M12*K12 -> 100000 | Q12: 2013-01-01 | R12: =RAND() -> 0.6821113147 | S12: =1-R12 -> 0.3178886853 | U12: =$R12*N12 -> 68211.13147 | V12: =$R12*O12 -> 68211.13147 | W12: =$R12*P12 -> 68211.13147 | X12: =$S12*N12 -> 31788.86853 | Y12: =$S12*O12 -> 31788.86853 | Z12: =$S12*P12 -> 31788.86853 | AA12: =U12/(U12+V12+W12) -> 0.3333333333 | AB12: =U12/SUM($U12,$V12,$W12) -> 0.3333333333 | AC12: =V12/SUM($U12,$V12,$W12) -> 0.3333333333 | AD12: =W12/SUM($U12,$V12,$W12) -> 0.3333333333 | AE12: =X12/SUM($X12+$Y12+$Z12) -> 0.3333333333 | AF12: =Y12/SUM($X12+$Y12+$Z12) -> 0.3333333333 | AG12: =Z12/SUM($X12+$Y12+$Z12) -> 0.3333333333 | AI12: ='Panel de Control'!G106 -> Cliente Tipo 1 | AJ12: =$AC$12 -> 0.3333333333 | AK12: =$AC$13 -> 0.3333333333 | AL12: =$AC$14 -> 0.3333333333 | AM12: =AC$15 -> 0.3333333333 | AN12: =AC$16 -> 0.3333333333 | AO12: =$AC$17 -> 0.3333333333 | AP12: =$AC$18 -> 0.3333333333 | AQ12: =$AC$19 -> 0.3333333333 | AR12: =$AC$20 -> 0.3333333333 | AS12: =$AC$21 -> 0.3333333333 | AT12: =$AC$22 -> 0.3333333333 | AU12: =$AC$23 -> 0.3333333333
C13: 2 | D13: 2013-02-01 | E13: ='Dda_%_TF'!F27 -> 100000 | F13: ='Dda_%_TF'!E27 -> 100000 | G13: ='Dda_%_TF'!G27 -> 100000 | I13: 0.3333333333 | J13: 0.3333333333 | K13: 0.3333333333 | L13: 300000 | M13: 300000 | N13: 100000 | O13: 100000 | P13: 100000 | Q13: 2013-02-01 | R13: =RAND() -> 0.8096271982 | S13: =1-R13 -> 0.1903728018 | U13: 80962.71982 | V13: 80962.71982 | W13: 80962.71982 | X13: 19037.28018 | Y13: 19037.28018 | Z13: 19037.28018 | AA13: 0.3333333333 | AB13: 0.3333333333 | AC13: 0.3333333333 | AD13: 0.3333333333 | AE13: 0.3333333333 | AF13: 0.3333333333 | AG13: 0.3333333333 | AI13: ='Panel de Control'!G107 -> Cliente Tipo 2 | AJ13: =$AE$12 -> 0.3333333333 | AK13: =$AE$13 -> 0.3333333333 | AL13: =$AE$14 -> 0.3333333333 | AM13: =AE$15 -> 0.3333333333 | AN13: =AE$16 -> 0.3333333333 | AO13: =$AE$17 -> 0.3333333333 | AP13: =$AE$18 -> 0.3333333333 | AQ13: =$AE$19 -> 0.3333333333 | AR13: =$AE$20 -> 0.3333333333 | AS13: =$AE$21 -> 0.3333333333 | AT13: =$AE$22 -> 0.3333333333 | AU13: =$AE$23 -> 0.3333333333
C14: 3 | D14: 2013-03-01 | E14: ='Dda_%_TF'!F28 -> 100000 | F14: ='Dda_%_TF'!E28 -> 100000 | G14: ='Dda_%_TF'!G28 -> 100000 | I14: 0.3333333333 | J14: 0.3333333333 | K14: 0.3333333333 | L14: 300000 | M14: 300000 | N14: 100000 | O14: 100000 | P14: 100000 | Q14: 2013-03-01 | R14: 0.01439167648 | S14: 0.9856083235 | U14: 1439.167648 | V14: 1439.167648 | W14: 1439.167648 | X14: 98560.83235 | Y14: 98560.83235 | Z14: 98560.83235 | AA14: 0.3333333333 | AB14: 0.3333333333 | AC14: 0.3333333333 | AD14: 0.3333333333 | AE14: 0.3333333333 | AF14: 0.3333333333 | AG14: 0.3333333333 | AI14: ='Panel de Control'!G108 -> Cliente Tipo 3 | AJ14: =$AD$12 -> 0.3333333333 | AK14: =$AD$13 -> 0.3333333333 | AL14: =$AD$14 -> 0.3333333333 | AM14: =AD$15 -> 0.3333333333 | AN14: =AD$16 -> 0.3333333333 | AO14: =$AD$17 -> 0.3333333333 | AP14: =$AD$18 -> 0.3333333333 | AQ14: =$AD$19 -> 0.3333333333 | AR14: =$AD$20 -> 0.3333333333 | AS14: =$AD$21 -> 0.3333333333 | AT14: =$AD$22 -> 0.3333333333 | AU14: =$AD$23 -> 0.3333333333
C15: 4 | D15: 2013-04-01 | E15: ='Dda_%_TF'!F29 -> 100000 | F15: ='Dda_%_TF'!E29 -> 100000 | G15: ='Dda_%_TF'!G29 -> 100000 | I15: 0.3333333333 | J15: 0.3333333333 | K15: 0.3333333333 | L15: 300000 | M15: 300000 | N15: 100000 | O15: 100000 | P15: 100000 | Q15: 2013-04-01 | R15: 0.3309001458 | S15: 0.6690998542 | U15: 33090.01458 | V15: 33090.01458 | W15: 33090.01458 | X15: 66909.98542 | Y15: 66909.98542 | Z15: 66909.98542 | AA15: 0.3333333333 | AB15: 0.3333333333 | AC15: 0.3333333333 | AD15: 0.3333333333 | AE15: 0.3333333333 | AF15: 0.3333333333 | AG15: 0.3333333333
C16: 5 | D16: 2013-05-01 | E16: ='Dda_%_TF'!F30 -> 100000 | F16: ='Dda_%_TF'!E30 -> 100000 | G16: ='Dda_%_TF'!G30 -> 100000 | I16: 0.3333333333 | J16: 0.3333333333 | K16: 0.3333333333 | L16: 300000 | M16: 300000 | N16: 100000 | O16: 100000 | P16: 100000 | Q16: 2013-05-01 | R16: 0.08837307682 | S16: 0.9116269232 | U16: 8837.307682 | V16: 8837.307682 | W16: 8837.307682 | X16: 91162.69232 | Y16: 91162.69232 | Z16: 91162.69232 | AA16: 0.3333333333 | AB16: 0.3333333333 | AC16: 0.3333333333 | AD16: 0.3333333333 | AE16: 0.3333333333 | AF16: 0.3333333333 | AG16: 0.3333333333
C17: 6 | D17: 2013-06-01 | E17: ='Dda_%_TF'!F31 -> 100000 | F17: ='Dda_%_TF'!E31 -> 100000 | G17: ='Dda_%_TF'!G31 -> 100000 | I17: 0.3333333333 | J17: 0.3333333333 | K17: 0.3333333333 | L17: 300000 | M17: 300000 | N17: 100000 | O17: 100000 | P17: 100000 | Q17: 2013-06-01 | R17: 0.6829350649 | S17: 0.3170649351 | U17: 68293.50649 | V17: 68293.50649 | W17: 68293.50649 | X17: 31706.49351 | Y17: 31706.49351 | Z17: 31706.49351 | AA17: 0.3333333333 | AB17: 0.3333333333 | AC17: 0.3333333333 | AD17: 0.3333333333 | AE17: 0.3333333333 | AF17: 0.3333333333 | AG17: 0.3333333333
C18: 7 | D18: 2013-07-01 | E18: ='Dda_%_TF'!F32 -> 100000 | F18: ='Dda_%_TF'!E32 -> 100000 | G18: ='Dda_%_TF'!G32 -> 100000 | I18: 0.3333333333 | J18: 0.3333333333 | K18: 0.3333333333 | L18: 300000 | M18: 300000 | N18: 100000 | O18: 100000 | P18: 100000 | Q18: 2013-07-01 | R18: 0.001535140454 | S18: 0.9984648595 | U18: 153.5140454 | V18: 153.5140454 | W18: 153.5140454 | X18: 99846.48595 | Y18: 99846.48595 | Z18: 99846.48595 | AA18: 0.3333333333 | AB18: 0.3333333333 | AC18: 0.3333333333 | AD18: 0.3333333333 | AE18: 0.3333333333 | AF18: 0.3333333333 | AG18: 0.3333333333
C19: 8 | D19: 2013-08-01 | E19: ='Dda_%_TF'!F33 -> 100000 | F19: ='Dda_%_TF'!E33 -> 100000 | G19: ='Dda_%_TF'!G33 -> 100000 | I19: 0.3333333333 | J19: 0.3333333333 | K19: 0.3333333333 | L19: 300000 | M19: 300000 | N19: 100000 | O19: 100000 | P19: 100000 | Q19: 2013-08-01 | R19: 0.2196390215 | S19: 0.7803609785 | U19: 21963.90215 | V19: 21963.90215 | W19: 21963.90215 | X19: 78036.09785 | Y19: 78036.09785 | Z19: 78036.09785 | AA19: 0.3333333333 | AB19: 0.3333333333 | AC19: 0.3333333333 | AD19: 0.3333333333 | AE19: 0.3333333333 | AF19: 0.3333333333 | AG19: 0.3333333333
C20: 9 | D20: 2013-09-01 | E20: ='Dda_%_TF'!F34 -> 100000 | F20: ='Dda_%_TF'!E34 -> 100000 | G20: ='Dda_%_TF'!G34 -> 100000 | I20: 0.3333333333 | J20: 0.3333333333 | K20: 0.3333333333 | L20: 300000 | M20: 300000 | N20: 100000 | O20: 100000 | P20: 100000 | Q20: 2013-09-01 | R20: 0.4085738206 | S20: 0.5914261794 | U20: 40857.38206 | V20: 40857.38206 | W20: 40857.38206 | X20: 59142.61794 | Y20: 59142.61794 | Z20: 59142.61794 | AA20: 0.3333333333 | AB20: 0.3333333333 | AC20: 0.3333333333 | AD20: 0.3333333333 | AE20: 0.3333333333 | AF20: 0.3333333333 | AG20: 0.3333333333
C21: 10 | D21: 2013-10-01 | E21: ='Dda_%_TF'!F35 -> 100000 | F21: ='Dda_%_TF'!E35 -> 100000 | G21: ='Dda_%_TF'!G35 -> 100000 | I21: 0.3333333333 | J21: 0.3333333333 | K21: 0.3333333333 | L21: 300000 | M21: 300000 | N21: 100000 | O21: 100000 | P21: 100000 | Q21: 2013-10-01 | R21: 0.4924839714 | S21: 0.5075160286 | U21: 49248.39714 | V21: 49248.39714 | W21: 49248.39714 | X21: 50751.60286 | Y21: 50751.60286 | Z21: 50751.60286 | AA21: 0.3333333333 | AB21: 0.3333333333 | AC21: 0.3333333333 | AD21: 0.3333333333 | AE21: 0.3333333333 | AF21: 0.3333333333 | AG21: 0.3333333333
C22: 11 | D22: 2013-11-01 | E22: ='Dda_%_TF'!F36 -> 100000 | F22: ='Dda_%_TF'!E36 -> 100000 | G22: ='Dda_%_TF'!G36 -> 100000 | I22: 0.3333333333 | J22: 0.3333333333 | K22: 0.3333333333 | L22: 300000 | M22: 300000 | N22: 100000 | O22: 100000 | P22: 100000 | Q22: 2013-11-01 | R22: 0.3731594839 | S22: 0.6268405161 | U22: 37315.94839 | V22: 37315.94839 | W22: 37315.94839 | X22: 62684.05161 | Y22: 62684.05161 | Z22: 62684.05161 | AA22: 0.3333333333 | AB22: 0.3333333333 | AC22: 0.3333333333 | AD22: 0.3333333333 | AE22: 0.3333333333 | AF22: 0.3333333333 | AG22: 0.3333333333
C23: 12 | D23: 2013-12-01 | E23: ='Dda_%_TF'!F37 -> 100000 | F23: ='Dda_%_TF'!E37 -> 100000 | G23: ='Dda_%_TF'!G37 -> 100000 | I23: 0.3333333333 | J23: 0.3333333333 | K23: 0.3333333333 | L23: 300000 | M23: 300000 | N23: 100000 | O23: 100000 | P23: 100000 | Q23: 2013-12-01 | R23: 0.8316904517 | S23: 0.1683095483 | U23: 83169.04517 | V23: 83169.04517 | W23: 83169.04517 | X23: 16830.95483 | Y23: 16830.95483 | Z23: 16830.95483 | AA23: 0.3333333333 | AB23: 0.3333333333 | AC23: 0.3333333333 | AD23: 0.3333333333 | AE23: 0.3333333333 | AF23: 0.3333333333 | AG23: 0.3333333333
B27: Resumen para opción según mercado y plan comercial
C29: Conexiones de banda ancha
D32: Total conexiones que trafican datos
I33: Total nacional
D34: Firma | E34: Líneas EOP 3G | I34: 2013 | J34: 2014 | K34: 2015 | L34: 2016 | M34: 2017 | N34: 2018
D35: Nextel | E35: Conexiones Móvil Datos banda ancha e internet móvil | I35: 800000
D37: Firma | E37: Líneas AVG 3G | I37: 2013 | J37: 2014 | K37: 2015 | L37: 2016 | M37: 2017 | N37: 2018
D38: Nextel | E38: Conexiones Móvil Datos banda ancha e internet móvil | I38: 800000
E41: año | I41: 2013 | J41: 2013 | K41: 2013 | L41: 2013 | M41: 2013 | N41: 2013 | O41: 2013 | P41: 2013 | Q41: 2013 | R41: 2013 | S41: 2013 | T41: 2013
E42: mes | I42: 1 | J42: 2 | K42: 3 | L42: 4 | M42: 5 | N42: 6 | O42: 7 | P42: 8 | Q42: 9 | R42: 10 | S42: 11 | T42: 12
E43: Downlink | F43: [Mbyte/mes] | I43: 200000000 | J43: 200000000 | K43: 200000000 | L43: 200000000 | M43: 200000000 | N43: 200000000 | O43: 200000000 | P43: 200000000 | Q43: 200000000 | R43: 200000000 | S43: 200000000 | T43: 200000000
E44: Uplink | F44: [Mbyte/mes] | I44: 1000000 | J44: 1000000 | K44: 1000000 | L44: 1000000 | M44: 1000000 | N44: 1000000 | O44: 1000000 | P44: 1000000 | Q44: 1000000 | R44: 1000000 | S44: 1000000 | T44: 1000000
E46: % tecnología | W46: =AI11 -> %2G | X46: 2013-01-01 | Y46: 2013-02-01 | Z46: 2013-03-01 | AA46: 2013-04-01 | AB46: 2013-05-01 | AC46: 2013-06-01 | AD46: 2013-07-01 | AE46: 2013-08-01 | AF46: 2013-09-01 | AG46: 2013-10-01 | AH46: 2013-11-01 | AI46: 2013-12-01 | AM46: 2013-01-01 | AN46: 2013-02-01 | AO46: 2013-03-01 | AP46: 2013-04-01 | AQ46: 2013-05-01 | AR46: 2013-06-01 | AS46: 2013-07-01 | AT46: 2013-08-01 | AU46: 2013-09-01 | AV46: 2013-10-01 | AW46: 2013-11-01 | AX46: 2013-12-01
D47: Nextel | E47: ='Panel de Control'!G106 -> Cliente Tipo 1 | I47: =I103 -> 0.3333333333 | J47: =I47-($I47-$T47)/11 -> 0.3333333333 | K47: =J47-($I47-$T47)/11 -> 0.3333333333 | L47: 0.3333333333 | M47: 0.3333333333 | N47: 0.3333333333 | O47: 0.3333333333 | P47: 0.3333333333 | Q47: 0.3333333333 | R47: 0.3333333333 | S47: 0.3333333333 | T47: =I103 -> 0.3333333333 | W47: Original Nextel | X47: =H103 -> 0 | Y47: =X47-($X47-$AI47)/11 -> 0.0303030303 | Z47: =Y47-($X47-$AI47)/11 -> 0.06060606061 | AA47: 0.09090909091 | AB47: 0.1212121212 | AC47: 0.1515151515 | AD47: 0.1818181818 | AE47: 0.2121212121 | AF47: 0.2424242424 | AG47: 0.2727272727 | AH47: 0.303030303 | AI47: =I103 -> 0.3333333333 | AL47: =AI12 -> Cliente Tipo 1 | AM47: 0.3333333333 | AN47: 0.3333333333 | AO47: 0.3333333333 | AP47: 0.3333333333 | AQ47: 0.3333333333 | AR47: 0.3333333333 | AS47: 0.3333333333 | AT47: 0.3333333333 | AU47: 0.3333333333 | AV47: 0.3333333333 | AW47: 0.3333333333 | AX47: 0.3333333333
D48: Nextel | E48: ='Panel de Control'!G107 -> Cliente Tipo 2 | I48: =I104 -> 0.3333333333 | J48: =I48-($I48-$T48)/11 -> 0.3333333333 | K48: 0.3333333333 | L48: 0.3333333333 | M48: 0.3333333333 | N48: 0.3333333333 | O48: 0.3333333333 | P48: 0.3333333333 | Q48: 0.3333333333 | R48: 0.3333333333 | S48: 0.3333333333 | T48: =I104 -> 0.3333333333 | X48: =H104 -> 0 | Y48: =X48-($X48-$AI48)/11 -> 0.0303030303 | Z48: 0.06060606061 | AA48: 0.09090909091 | AB48: 0.1212121212 | AC48: 0.1515151515 | AD48: 0.1818181818 | AE48: 0.2121212121 | AF48: 0.2424242424 | AG48: 0.2727272727 | AH48: 0.303030303 | AI48: =I104 -> 0.3333333333 | AL48: Cliente Tipo 2 | AM48: 0.3333333333 | AN48: 0.3333333333 | AO48: 0.3333333333 | AP48: 0.3333333333 | AQ48: 0.3333333333 | AR48: 0.3333333333 | AS48: 0.3333333333 | AT48: 0.3333333333 | AU48: 0.3333333333 | AV48: 0.3333333333 | AW48: 0.3333333333 | AX48: 0.3333333333
D49: Nextel | E49: ='Panel de Control'!G108 -> Cliente Tipo 3 | I49: =I105 -> 0.3333333333 | J49: =I49-($I49-$T49)/11 -> 0.3333333333 | K49: 0.3333333333 | L49: 0.3333333333 | M49: 0.3333333333 | N49: 0.3333333333 | O49: 0.3333333333 | P49: 0.3333333333 | Q49: 0.3333333333 | R49: 0.3333333333 | S49: 0.3333333333 | T49: =I105 -> 0.3333333333 | X49: =H105 -> 0 | Y49: =X49-($X49-$AI49)/11 -> 0.0303030303 | Z49: 0.06060606061 | AA49: 0.09090909091 | AB49: 0.1212121212 | AC49: 0.1515151515 | AD49: 0.1818181818 | AE49: 0.2121212121 | AF49: 0.2424242424 | AG49: 0.2727272727 | AH49: 0.303030303 | AI49: =I105 -> 0.3333333333 | AL49: Cliente Tipo 3 | AM49: 0.3333333333 | AN49: 0.3333333333 | AO49: 0.3333333333 | AP49: 0.3333333333 | AQ49: 0.3333333333 | AR49: 0.3333333333 | AS49: 0.3333333333 | AT49: 0.3333333333 | AU49: 0.3333333333 | AV49: 0.3333333333 | AW49: 0.3333333333 | AX49: 0.3333333333
E51: Líneas trafican datos | I51: 1 | J51: =I51+1 -> 2 | K51: =J51+1 -> 3 | L51: 4 | M51: 5 | N51: 6 | O51: 7 | P51: 8 | Q51: 9 | R51: 10 | S51: 11 | T51: 12
D52: =D82 -> Nextel | E52: =E47 -> Cliente Tipo 1 | I52: =SUM((I$41=YEAR($D$12:$D$23))*(I$42=MONTH($D$12:$D$23))*$O12:$O23)*(1-I47) -> 66666.66667 | J52: =SUM((J$41=YEAR($D$12:$D$23))*(J$42=MONTH($D$12:$D$23))*$O12:$O23)*(1-J47) -> 66666.66667 | K52: =SUM((K$41=YEAR($D$12:$D$23))*(K$42=MONTH($D$12:$D$23))*$O12:$O23)*(1-K47) -> 66666.66667 | L52: =SUM((L$41=YEAR($D$12:$D$23))*(L$42=MONTH($D$12:$D$23))*$O12:$O23)*(1-L47) -> 66666.66667 | M52: =SUM((M$41=YEAR($D$12:$D$23))*(M$42=MONTH($D$12:$D$23))*$O12:$O23)*(1-M47) -> 66666.66667 | N52: =SUM((N$41=YEAR($D$12:$D$23))*(N$42=MONTH($D$12:$D$23))*$O12:$O23)*(1-N47) -> 66666.66667 | O52: =SUM((O$41=YEAR($D$12:$D$23))*(O$42=MONTH($D$12:$D$23))*$O12:$O23)*(1-O47) -> 66666.66667 | P52: =SUM((P$41=YEAR($D$12:$D$23))*(P$42=MONTH($D$12:$D$23))*$O12:$O23)*(1-P47) -> 66666.66667 | Q52: =SUM((Q$41=YEAR($D$12:$D$23))*(Q$42=MONTH($D$12:$D$23))*$O12:$O23)*(1-Q47) -> 66666.66667 | R52: =SUM((R$41=YEAR($D$12:$D$23))*(R$42=MONTH($D$12:$D$23))*$O12:$O23)*(1-R47) -> 66666.66667 | S52: =SUM((S$41=YEAR($D$12:$D$23))*(S$42=MONTH($D$12:$D$23))*$O12:$O23)*(1-S47) -> 66666.66667 | T52: =SUM((T$41=YEAR($D$12:$D$23))*(T$42=MONTH($D$12:$D$23))*$O12:$O23)*(1-T47) -> 66666.66667 | W52: 266689.7411 | X52: 268329.6111 | Y52: 269001.122 | Z52: 73616.42488 | AA52: 70734.40381 | AB52: 69284.74721 | AC52: 67743.82661 | AD52: 65715.84445 | AE52: 63470.75004 | AF52: 61619.53183 | AG52: 58859.51632 | AH52: 57702.8652
D53: Nextel | E53: =E48 -> Cliente Tipo 2 | I53: =SUM((I$41=YEAR($D$12:$D$23))*(I$42=MONTH($D$12:$D$23))*$N12:$N23)*(1-I48) -> 66666.66667 | J53: =SUM((J$41=YEAR($D$12:$D$23))*(J$42=MONTH($D$12:$D$23))*$N12:$N23)*(1-J48) -> 66666.66667 | K53: =SUM((K$41=YEAR($D$12:$D$23))*(K$42=MONTH($D$12:$D$23))*$N12:$N23)*(1-K48) -> 66666.66667 | L53: =SUM((L$41=YEAR($D$12:$D$23))*(L$42=MONTH($D$12:$D$23))*$N12:$N23)*(1-L48) -> 66666.66667 | M53: =SUM((M$41=YEAR($D$12:$D$23))*(M$42=MONTH($D$12:$D$23))*$N12:$N23)*(1-M48) -> 66666.66667 | N53: =SUM((N$41=YEAR($D$12:$D$23))*(N$42=MONTH($D$12:$D$23))*$N12:$N23)*(1-N48) -> 66666.66667 | O53: =SUM((O$41=YEAR($D$12:$D$23))*(O$42=MONTH($D$12:$D$23))*$N12:$N23)*(1-O48) -> 66666.66667 | P53: =SUM((P$41=YEAR($D$12:$D$23))*(P$42=MONTH($D$12:$D$23))*$N12:$N23)*(1-P48) -> 66666.66667 | Q53: =SUM((Q$41=YEAR($D$12:$D$23))*(Q$42=MONTH($D$12:$D$23))*$N12:$N23)*(1-Q48) -> 66666.66667 | R53: =SUM((R$41=YEAR($D$12:$D$23))*(R$42=MONTH($D$12:$D$23))*$N12:$N23)*(1-R48) -> 66666.66667 | S53: =SUM((S$41=YEAR($D$12:$D$23))*(S$42=MONTH($D$12:$D$23))*$N12:$N23)*(1-S48) -> 66666.66667 | T53: =SUM((T$41=YEAR($D$12:$D$23))*(T$42=MONTH($D$12:$D$23))*$N12:$N23)*(1-T48) -> 66666.66667 | W53: 383531.502 | X53: 392817.6108 | Y53: 402709.2764 | Z53: 390279.0698 | AA53: 386583.7253 | AB53: 383697.1476 | AC53: 381570.4576 | AD53: 378825.0859 | AE53: 373455.6349 | AF53: 373207.6191 | AG53: 373826.7534 | AH53: 378403.278
D54: Nextel | E54: Cliente Tipo 3 | I54: =SUM((I$41=YEAR($D$12:$D$23))*(I$42=MONTH($D$12:$D$23))*$P12:$P23)*(1-I49) -> 66666.66667 | J54: =SUM((J$41=YEAR($D$12:$D$23))*(J$42=MONTH($D$12:$D$23))*$P12:$P23)*(1-J49) -> 66666.66667 | K54: =SUM((K$41=YEAR($D$12:$D$23))*(K$42=MONTH($D$12:$D$23))*$P12:$P23)*(1-K49) -> 66666.66667 | L54: =SUM((L$41=YEAR($D$12:$D$23))*(L$42=MONTH($D$12:$D$23))*$P12:$P23)*(1-L49) -> 66666.66667 | M54: =SUM((M$41=YEAR($D$12:$D$23))*(M$42=MONTH($D$12:$D$23))*$P12:$P23)*(1-M49) -> 66666.66667 | N54: =SUM((N$41=YEAR($D$12:$D$23))*(N$42=MONTH($D$12:$D$23))*$P12:$P23)*(1-N49) -> 66666.66667 | O54: =SUM((O$41=YEAR($D$12:$D$23))*(O$42=MONTH($D$12:$D$23))*$P12:$P23)*(1-O49) -> 66666.66667 | P54: =SUM((P$41=YEAR($D$12:$D$23))*(P$42=MONTH($D$12:$D$23))*$P12:$P23)*(1-P49) -> 66666.66667 | Q54: =SUM((Q$41=YEAR($D$12:$D$23))*(Q$42=MONTH($D$12:$D$23))*$P12:$P23)*(1-Q49) -> 66666.66667 | R54: =SUM((R$41=YEAR($D$12:$D$23))*(R$42=MONTH($D$12:$D$23))*$P12:$P23)*(1-R49) -> 66666.66667 | S54: =SUM((S$41=YEAR($D$12:$D$23))*(S$42=MONTH($D$12:$D$23))*$P12:$P23)*(1-S49) -> 66666.66667 | T54: =SUM((T$41=YEAR($D$12:$D$23))*(T$42=MONTH($D$12:$D$23))*$P12:$P23)*(1-T49) -> 66666.66667 | W54: 313568.2506 | X54: 305190.7371 | Y54: 413911.8275 | Z54: 407336.7879 | AA54: 401299.2047 | AB54: 395194.1461 | AC54: 388318.1074 | AD54: 382602.0592 | AE54: 378115.2372 | AF54: 374595.954 | AG54: 370345.0025 | AH54: 404794.7362
D55: =D85 -> Nextel | E55: Otros | I55: 80000 | J55: 80000 | K55: 80000 | L55: 80000 | M55: 80000 | N55: 80000 | O55: 80000 | P55: 80000 | Q55: 80000 | R55: 80000 | S55: 80000 | T55: 80000 | W55: 47335.67551 | X55: 47335.67551 | Y55: 47335.67551 | Z55: 47335.67551 | AA55: 47335.67551 | AB55: 47335.67551 | AC55: 47335.67551 | AD55: 47335.67551 | AE55: 47335.67551 | AF55: 47335.67551 | AG55: 47335.67551 | AH55: 47335.67551
E57: Total | I57: =SUM(I52:I55) -> 280000 | J57: =SUM(J52:J55) -> 280000 | K57: 280000 | L57: 280000 | M57: 280000 | N57: 280000 | O57: 280000 | P57: 280000 | Q57: 280000 | R57: 280000 | S57: 280000 | T57: 280000
I59: 2013 | J59: 2013 | K59: 2013 | L59: 2013 | M59: 2013 | N59: 2013 | O59: 2013 | P59: 2013 | Q59: 2013 | R59: 2013 | S59: 2013 | T59: 2013
I60: 1 | J60: 2 | K60: 3 | L60: 4 | M60: 5 | N60: 6 | O60: 7 | P60: 8 | Q60: 9 | R60: 10 | S60: 11 | T60: 12
E61: MOU DL de Datos | F61: [Mbyte/lin/mes] | I61: =I43/I$57 -> 714.2857143 | J61: =J43/J$57 -> 714.2857143 | K61: 714.2857143 | L61: 714.2857143 | M61: 714.2857143 | N61: 714.2857143 | O61: 714.2857143 | P61: 714.2857143 | Q61: 714.2857143 | R61: 714.2857143 | S61: 714.2857143 | T61: 714.2857143
E62: MOU UL de Datos | F62: [Mbyte/lin/mes] | I62: =I44/I$57 -> 3.571428571 | J62: =J44/J$57 -> 3.571428571 | K62: 3.571428571 | L62: 3.571428571 | M62: 3.571428571 | N62: 3.571428571 | O62: 3.571428571 | P62: 3.571428571 | Q62: 3.571428571 | R62: 3.571428571 | S62: 3.571428571 | T62: 3.571428571
D65: MOU de datos para Nextel según plan comercial, con lineas efectivamente traficando
E67: MOU de Datos | I67: 2013
D68: Nextel | E68: DL | F68: [Mbyte/lin/mes] | H68: MOU DL | I68: =AVERAGE(I61:T61) -> 714.2857143
D69: Nextel | E69: UL | F69: [Mbyte/lin/mes] | H69: MOU UL | I69: =AVERAGE(I62:T62) -> 3.571428571
D71: Tráfico total en TeraBytes/año
E73: Tráfico total de Datos | I73: 2013
D74: Nextel | E74: DL | F74: [TeraByte/año] | I74: =I68*I38*12/1000000 -> 6857.142857
D75: Nextel | E75: UL | F75: [TeraByte/año] | I75: =I69*I38*12/1000000 -> 34.28571429
C78: Total nacional separado por tipo cliente
I80: Total nacional
D81: Firma | E81: Líneas EOP | I81: 2013
D82: Nextel | E82: =E47 -> Cliente Tipo 1 | F82: [lin/año] | I82: =SUM((I$81=YEAR($D$12:$D$23))*(12=MONTH($D$12:$D$23))*$O12:$O23) -> 100000
D83: Nextel | E83: =E48 -> Cliente Tipo 2 | F83: [lin/año] | I83: =SUM((I$81=YEAR($D$12:$D$23))*(12=MONTH($D$12:$D$23))*$N12:$N23) -> 100000
D84: Nextel | E84: Cliente Tipo 3 | F84: [lin/año] | I84: =SUM((I$81=YEAR($D$12:$D$23))*(12=MONTH($D$12:$D$23))*$P12:$P23) -> 100000
D85: Nextel | E85: Conexiones Móvil Datos banda ancha e internet móvil | F85: [lin/año] | I85: =I35 -> 800000
G86: =I85/I87 -> 2.666666667
E87: Nextel | F87: [lin/año] | I87: =SUM(I82:I84) -> 300000
D89: Firma | E89: Líneas AVG | I89: 2013
D90: Nextel | E90: =E82 -> Cliente Tipo 1 | F90: [lin/año] | I90: =AVERAGE($O$12:$O$23) -> 100000
D91: Nextel | E91: =E83 -> Cliente Tipo 2 | F91: [lin/año] | I91: =AVERAGE($N$12:$N$23) -> 100000
D92: Nextel | E92: Cliente Tipo 3 | F92: [lin/año] | I92: =AVERAGE($P$12:$P$23) -> 100000
D93: Nextel | E93: Conexiones Móvil Datos banda ancha e internet móvil | F93: [lin/año] | I93: =$I$85 -> 800000
E95: Nextel | F95: [lin/año] | I95: =SUM(I90:I92) -> 300000
C97: Total nacional separado por tecnología
I101: Nacional
D102: Firma | E102: Proporción 2G del total del tipo | I102: 2013
D103: Nextel | E103: =E90 -> Cliente Tipo 1 | F103: [lin/año] | I103: =$AU12 -> 0.3333333333
D104: Nextel | E104: =E91 -> Cliente Tipo 2 | F104: [lin/año] | I104: =$AU13 -> 0.3333333333
D105: Nextel | E105: Cliente Tipo 3 | F105: [lin/año] | I105: =$AU14 -> 0.3333333333
D106: Nextel | E106: Conexiones Móvil Datos banda ancha e internet móvil | F106: [lin/año] | I106: 0.2
C108: Líneas 3G
I109: Total nacional
D110: Firma | E110: Líneas EOP 3G | I110: 2013
D111: Nextel | E111: =E103 -> Cliente Tipo 1 | F111: [lin/año] | H111: =E111&" 3G" -> Cliente Tipo 1 3G | I111: =$Y$23 -> 16830.95483
D112: Nextel | E112: =E104 -> Cliente Tipo 2 | F112: [lin/año] | H112: Cliente Tipo 2 3G | I112: =$X$23 -> 16830.95483
D113: Nextel | E113: Cliente Tipo 3 | F113: [lin/año] | H113: Cliente Tipo 3 3G | I113: =$Z$23 -> 16830.95483
D114: Nextel | E114: Conexiones Móvil Datos banda ancha e internet móvil | F114: [lin/año] | H114: Conexiones Móvil Datos banda ancha e internet móvil 3G | I114: 324782
H115: Fuente Reporte OSIPTEL
E116: Nextel | F116: [lin/año] | I116: =SUM(I111:I113) -> 50492.86448
D118: Firma | E118: Líneas AVG 3G | I118: 2013
D119: Nextel | E119: =E103 -> Cliente Tipo 1 | F119: [lin/año] | I119: =AVERAGE($Y$12:$Y$23) -> 58871.49695
D120: Nextel | E120: =E104 -> Cliente Tipo 2 | F120: [lin/año] | I120: =AVERAGE($X$12:$X$23) -> 58871.49695
D121: Nextel | E121: Cliente Tipo 3 | F121: [lin/año] | I121: =AVERAGE($Z$12:$Z$23) -> 58871.49695
D122: Nextel | E122: Conexiones Móvil Datos banda ancha e internet móvil | F122: [lin/año] | I122: =I114 -> 324782
E124: Nextel | F124: [lin/año] | I124: =SUM(I119:I121) -> 176614.4908
C126: Líneas 2G
I127: Total nacional
D128: Firma | E128: Líneas EOP 2G | I128: 2013
D129: Nextel | E129: =E119 -> Cliente Tipo 1 | F129: [lin/año] | H129: =E129&" 2G" -> Cliente Tipo 1 2G | I129: =$V$23 -> 83169.04517
D130: Nextel | E130: =E120 -> Cliente Tipo 2 | F130: [lin/año] | H130: Cliente Tipo 2 2G | I130: =$U$23 -> 83169.04517
D131: Nextel | E131: Cliente Tipo 3 | F131: [lin/año] | H131: Cliente Tipo 3 2G | I131: =$W$23 -> 83169.04517
D132: Nextel | E132: Conexiones Móvil Datos banda ancha e internet móvil | F132: [lin/año] | H132: Conexiones Móvil Datos banda ancha e internet móvil 2G | I132: 0
E134: Nextel | F134: [lin/año] | I134: =SUM(I129:I131) -> 249507.1355
D136: Firma | E136: Líneas AVG 2G | I136: 2013
D137: Nextel | E137: =E129 -> Cliente Tipo 1 | F137: [lin/año] | I137: =AVERAGE($V$12:$V$23) -> 41128.50305
D138: Nextel | E138: =E130 -> Cliente Tipo 2 | F138: [lin/año] | I138: =AVERAGE($U$12:$U$23) -> 41128.50305
D139: Nextel | E139: Cliente Tipo 3 | F139: [lin/año] | I139: =AVERAGE($W$12:$W$23) -> 41128.50305
D140: Nextel | E140: Conexiones Móvil Datos banda ancha e internet móvil | F140: [lin/año]
E142: Nextel | F142: [lin/año] | I142: =SUM(I137:I139) -> 123385.5092
B145: Tráfico voz
C147: Tráfico entrante EOP | I147: 2013
B148: 1 | C148: LDI | D148: Nextel | E148: [min/año] | I148: 10000000
B149: 1 | C149: LDN | D149: Nextel | E149: [min/año] | I149: 1000000000
B150: 1 | C150: Local | D150: Nextel | E150: [min/año] | I150: 1000000
B151: 1 | C151: Local Fijo-Móvil | D151: Nextel | E151: [min/año] | I151: 10000000
B152: 1 | C152: Local Móvil-Móvil | D152: Nextel | E152: [min/año] | I152: 10000000
B154: 1 | C154: Total entrante | D154: Nextel | E154: [min/año] | I154: =SUM(I148:I152) -> 1031000000
C157: Tráfico originado EOP | I157: 2013
B158: 1 | C158: LDI | D158: Nextel | E158: [min/año] | I158: 10000000
B159: =+B158 -> 1 | C159: LDN | D159: Nextel | E159: [min/año] | I159: 1000000
B160: =+B159 -> 1 | C160: Local | D160: Nextel | E160: [min/año] | I160: 100000000
B162: =+B160 -> 1 | C162: Total originado | D162: Nextel | E162: [min/año] | I162: =SUM(I158:I160) -> 111000000
B164: Tráfico SMS
C166: SMS originados | I166: 2013
C167: Nextel | I167: =I178+I179 -> 10000000
C169: Se asume misma distribución de la voz | I169: 1
I170: 2013
C171: Nextel | D171: Saliente a fijo | I171: 0.25
C172: Nextel | D172: Saliente a otros móviles | I172: 0.25
C173: Nextel | D173: on-net | I173: 0.5
C175: % Aux | I175: 2013
C176: Nextel | I176: 0.2
C178: Nextel | D178: SMS saliente a otras móviles | I178: 5000000
C179: Nextel | D179: SMS on-net | I179: 5000000
C180: Nextel | D180: SMS entrante desde otras móviles | I180: =I176*(I179+I178) -> 2000000

Sheet Dda_%_TF
F2: ='Panel de Control'!$H$2 -> Modelo Dinámico de Cargo de Interconexión Móvil (Costos Históricos)
F3: Porcentajes de distribución según datos OSIPTEL
C6: Distribución de tráfico local saliente
D8: Porcentaje por tipo tráfico en local saliente | G8: 2013
D9: Nextel | E9: Saliente a fijo | G9: 0.25
D10: Nextel | E10: Saliente a otros móviles | G10: 0.25
D11: Nextel | E11: on-net | G11: 0.5 | H11: p.dist.traf.loc.sal
C13: Distribución de tráfico local entrante
D15: Porcentaje por tipo tráfico en local saliente | G15: =G$8 -> 2013
D16: Nextel | E16: Desde fijo | G16: 0.25
D17: Nextel | E17: Desde móvil | G17: 0.5
D18: Nextel | E18: Desde público | G18: 0.25 | H18: p.dist.traf.loc.ent
C20: Distribución de tráfico por uso nacional
D22: Información OSIPTEL: Líneas en Servicio por Departamento y Empresa */** 1/. 2/.
E25: ='Panel de Control'!G106 -> Cliente Tipo 1 | F25: ='Panel de Control'!G107 -> Cliente Tipo 2 | G25: ='Panel de Control'!G108 -> Cliente Tipo 3 | H25: Total | J25: Resumen | K25: 2013-01-01 | L25: 2013-02-01 | M25: 2013-03-01 | N25: 2013-04-01 | O25: 2013-05-01 | P25: 2013-06-01 | Q25: 2013-07-01 | R25: 2013-08-01 | S25: 2013-09-01 | T25: 2013-10-01 | U25: 2013-11-01 | V25: 2013-12-01
D26: 2013-01-01 | E26: 100000 | F26: 100000 | G26: 100000 | H26: =SUM(E26:G26) -> 300000 | J26: ='Panel de Control'!G106 -> Cliente Tipo 1 | K26: 100000 | L26: 100000 | M26: 100000 | N26: 100000 | O26: 100000 | P26: 100000 | Q26: 100000 | R26: 100000 | S26: 100000 | T26: 100000 | U26: 100000 | V26: 100000
D27: 2013-02-01 | E27: 100000 | F27: 100000 | G27: 100000 | H27: 300000 | J27: ='Panel de Control'!G108 -> Cliente Tipo 3 | K27: 100000 | L27: 100000 | M27: 100000 | N27: 100000 | O27: 100000 | P27: 100000 | Q27: 100000 | R27: 100000 | S27: 100000 | T27: 100000 | U27: 100000 | V27: 100000
D28: 2013-03-01 | E28: 100000 | F28: 100000 | G28: 100000 | H28: 300000 | J28: ='Panel de Control'!G107 -> Cliente Tipo 2 | K28: 100000 | L28: 100000 | M28: 100000 | N28: 100000 | O28: 100000 | P28: 100000 | Q28: 100000 | R28: 100000 | S28: 100000 | T28: 100000 | U28: 100000 | V28: 100000
D29: 2013-04-01 | E29: 100000 | F29: 100000 | G29: 100000 | H29: 300000 | J29: Total | K29: =SUM(K26:K28) -> 300000 | L29: =SUM(L26:L28) -> 300000 | M29: 300000 | N29: 300000 | O29: 300000 | P29: 300000 | Q29: 300000 | R29: 300000 | S29: 300000 | T29: 300000 | U29: 300000 | V29: 300000
D30: 2013-05-01 | E30: 100000 | F30: 100000 | G30: 100000 | H30: 300000
D31: 2013-06-01 | E31: 100000 | F31: 100000 | G31: 100000 | H31: 300000
D32: 2013-07-01 | E32: 100000 | F32: 100000 | G32: 100000 | H32: 300000
D33: 2013-08-01 | E33: 100000 | F33: 100000 | G33: 100000 | H33: 300000
D34: 2013-09-01 | E34: 100000 | F34: 100000 | G34: 100000 | H34: 300000
D35: 2013-10-01 | E35: 100000 | F35: 100000 | G35: 100000 | H35: 300000
D36: 2013-11-01 | E36: 100000 | F36: 100000 | G36: 100000 | H36: 300000
D37: 2013-12-01 | E37: 100000 | F37: 100000 | G37: 100000 | H37: 300000
D38: Promedio | E38: =AVERAGE(E26:E37) -> 100000 | F38: =AVERAGE(F26:F37) -> 100000 | G38: 100000 | H38: 300000
D42: (*) Información a fin de período.
D43: (**) Las cifras podrían ser modificadas si las empresas informantes o el OSIPTEL detectan errores.
D44: 1/.A partir del año 2013, la información de Lima ya no considera el número de líneas de la región Callao; sin embargo, a partir de abril de 2013,Telefónica Móviles no reporta la informacion correspondiente al Callao, y lo reporta en Lima.
D45: 2/. "SIN LAC": Líneas en servicio a las que no se pudo asignar un código de área de localización (LAC), por lo que no es posible identificar su ubicación geográfica.
D46: 3/. A partir de Mayo 2013, la empresa América Móvil no considera para fines del reporte estadistico, las lineas prepago que no generaron tráfico en los últimos 3 meses.
D47: Fuente: Empresas operadoras.
B49: aux | D49: Nextel | E49: 2013-01-01 | F49: 2013-02-01 | G49: 2013-03-01 | H49: 2013-04-01 | I49: 2013-05-01 | J49: 2013-06-01 | K49: 2013-07-01 | L49: 2013-08-01 | M49: 2013-09-01 | N49: 2013-10-01 | O49: 2013-11-01 | P49: 2013-12-01 | Q49: Promedio | R49: % Lineas por Dpto
B50: Amazonas | C50: 1 | D50: Amazonas | E50: =RANDBETWEEN(10000, 100000) -> 96405 | F50: =RANDBETWEEN(10000, 100000) -> 92020 | G50: 93568 | H50: 64847 | I50: 67104 | J50: 94367 | K50: 90509 | L50: 84687 | M50: 64999 | N50: 35503 | O50: 13811 | P50: 33398 | Q50: =AVERAGE(E50:P50) -> 69268.16667 | R50: =Q50/$Q$77 -> 0.04989244426
B51: Ancash | C51: 2 | D51: Ancash | E51: =RANDBETWEEN(10000, 100000) -> 91193 | F51: 24440 | G51: 31590 | H51: 95310 | I51: 91716 | J51: 28674 | K51: 87947 | L51: 92394 | M51: 73206 | N51: 48458 | O51: 18332 | P51: 56136 | Q51: 61616.33333 | R51: =Q51/$Q$77 -> 0.04438098515
B52: Apurímac | C52: 3 | D52: Apurímac | E52: 24292 | F52: 45690 | G52: 68558 | H52: 68131 | I52: 79833 | J52: 81284 | K52: 79681 | L52: 64416 | M52: 47859 | N52: 53894 | O52: 85075 | P52: 45839 | Q52: 62046 | R52: 0.04469046526
B53: Arequipa | C53: 4 | D53: Arequipa | E53: 60617 | F53: 39083 | G53: 22929 | H53: 20037 | I53: 41006 | J53: 55744 | K53: 59413 | L53: 20543 | M53: 98965 | N53: 68685 | O53: 68895 | P53: 27269 | Q53: 48598.83333 | R53: 0.03500474604
B54: Ayacucho | C54: 5 | D54: Ayacucho | E54: 61488 | F54: 72601 | G54: 54302 | H54: 34299 | I54: 85088 | J54: 29002 | K54: 31781 | L54: 27142 | M54: 87013 | N54: 48113 | O54: 63814 | P54: 95406 | Q54: 57504.08333 | R54: 0.04141901555
B55: Cajamarca | C55: 6 | D55: Cajamarca | E55: 77110 | F55: 94018 | G55: 36063 | H55: 81885 | I55: 54936 | J55: 85326 | K55: 17404 | L55: 47144 | M55: 17998 | N55: 25922 | O55: 35358 | P55: 58314 | Q55: 52623.16667 | R55: 0.03790339106
B56: Callao | C56: 7 | D56: Callao | E56: 86553 | F56: 36776 | G56: 69993 | H56: 62029 | I56: 20795 | J56: 37006 | K56: 91725 | L56: 70912 | M56: 57373 | N56: 89825 | O56: 17431 | P56: 93182 | Q56: 61133.33333 | R56: 0.04403309012
B57: Cusco | C57: 8 | D57: Cusco | E57: 37690 | F57: 24416 | G57: 87491 | H57: 11620 | I57: 15045 | J57: 49741 | K57: 95046 | L57: 46951 | M57: 45615 | N57: 61360 | O57: 71291 | P57: 14753 | Q57: 46751.58333 | R57: 0.03367420963
B58: Huancavelica | C58: 9 | D58: Huancavelica | E58: 87283 | F58: 69835 | G58: 17297 | H58: 53595 | I58: 14593 | J58: 75637 | K58: 65797 | L58: 89134 | M58: 53655 | N58: 49735 | O58: 84521 | P58: 29899 | Q58: 57581.75 | R58: 0.04147495726
B59: Huánuco | C59: 10 | D59: Huánuco | E59: 63606 | F59: 64828 | G59: 50565 | H59: 96109 | I59: 37509 | J59: 23238 | K59: 48763 | L59: 74338 | M59: 28803 | N59: 45815 | O59: 34553 | P59: 77283 | Q59: 53784.16667 | R59: 0.03873963563
B60: Ica | C60: 11 | D60: Ica | E60: 71178 | F60: 69740 | G60: 42172 | H60: 58762 | I60: 85834 | J60: 71836 | K60: 37275 | L60: 67780 | M60: 30745 | N60: 72723 | O60: 50253 | P60: 69531 | Q60: 60652.41667 | R60: 0.04368669568
B61: Junín | C61: 12 | D61: Junín | E61: 17772 | F61: 51017 | G61: 95670 | H61: 88445 | I61: 73163 | J61: 25614 | K61: 86473 | L61: 20246 | M61: 62251 | N61: 58928 | O61: 17809 | P61: 70270 | Q61: 55638.16667 | R61: 0.04007503392
B62: La Libertad | C62: 13 | D62: La Libertad | E62: 56253 | F62: 72119 | G62: 70839 | H62: 23360 | I62: 78775 | J62: 57462 | K62: 59935 | L62: 10354 | M62: 70414 | N62: 89056 | O62: 75151 | P62: 51344 | Q62: 59588.5 | R62: 0.04292037826
B63: Lambayeque | C63: 14 | D63: Lambayeque | E63: 18415 | F63: 67828 | G63: 76568 | H63: 64526 | I63: 90709 | J63: 18190 | K63: 76637 | L63: 54398 | M63: 56487 | N63: 61341 | O63: 57466 | P63: 81460 | Q63: 60335.41667 | R63: 0.04345836706
B64: Lima | C64: 15 | D64: Lima | E64: 33601 | F64: 41145 | G64: 17091 | H64: 18111 | I64: 29389 | J64: 43476 | K64: 89919 | L64: 24268 | M64: 54399 | N64: 41073 | O64: 76196 | P64: 19373 | Q64: 40670.08333 | R64: 0.02929382952
B65: Loreto | C65: 16 | D65: Loreto | E65: 21083 | F65: 85674 | G65: 72506 | H65: 49512 | I65: 18191 | J65: 61164 | K65: 16220 | L65: 87286 | M65: 90412 | N65: 12310 | O65: 80709 | P65: 89667 | Q65: 57061.16667 | R65: 0.04109999173
B66: Madre de Dios | C66: 17 | D66: Madre de Dios | E66: 58815 | F66: 45701 | G66: 68304 | H66: 91905 | I66: 86610 | J66: 72680 | K66: 43864 | L66: 85275 | M66: 77559 | N66: 21629 | O66: 93049 | P66: 68136 | Q66: 67793.91667 | R66: 0.04883057212
B67: Moquegua | C67: 18 | D67: Moquegua | E67: 70626 | F67: 81458 | G67: 34455 | H67: 51545 | I67: 75085 | J67: 31772 | K67: 18528 | L67: 22716 | M67: 99883 | N67: 73071 | O67: 62500 | P67: 43184 | Q67: 55401.91667 | R67: 0.03990486788
B68: Pasco | C68: 19 | D68: Pasco | E68: 88409 | F68: 90000 | G68: 52627 | H68: 20339 | I68: 19078 | J68: 53400 | K68: 88184 | L68: 55860 | M68: 23709 | N68: 45917 | O68: 33678 | P68: 59411 | Q68: 52551 | R68: 0.03785141089
B69: Piura | C69: 20 | D69: Piura | E69: 50198 | F69: 78668 | G69: 55112 | H69: 58962 | I69: 91173 | J69: 16982 | K69: 18446 | L69: 20968 | M69: 30756 | N69: 83378 | O69: 50884 | P69: 88312 | Q69: 53653.25 | R69: 0.03864533903
B70: Puno | C70: 21 | D70: Puno | E70: 95723 | F70: 42028 | G70: 56402 | H70: 22415 | I70: 11090 | J70: 67024 | K70: 79323 | L70: 27075 | M70: 12349 | N70: 62550 | O70: 64864 | P70: 31209 | Q70: 47671 | R70: 0.03433644666
B71: San Martín | C71: 22 | D71: San Martín | E71: 83715 | F71: 49864 | G71: 76267 | H71: 44535 | I71: 17797 | J71: 84629 | K71: 43503 | L71: 44627 | M71: 41982 | N71: 56652 | O71: 20869 | P71: =RANDBETWEEN(10000, 100000) -> 71256 | Q71: 52974.66667 | R71: 0.03815656933
B72: Tacna | C72: 23 | D72: Tacna | E72: 83573 | F72: 45227 | G72: 71786 | H72: 30283 | I72: 21176 | J72: 94830 | K72: 72362 | L72: 70553 | M72: 15809 | N72: 32354 | O72: 15696 | P72: 40365 | Q72: 49501.16667 | R72: 0.03565467829
B73: Tumbes | C73: 24 | D73: Tumbes | E73: 31915 | F73: 40792 | G73: 24630 | H73: 50801 | I73: 78310 | J73: 44771 | K73: 76041 | L73: 82243 | M73: 87139 | N73: 22665 | O73: 41436 | P73: 42643 | Q73: 51948.83333 | R73: 0.03741768255
B74: Ucayali | C74: 25 | D74: Ucayali | E74: 26532 | F74: 12843 | G74: 63937 | H74: 25636 | I74: 92187 | J74: 52112 | K74: 58472 | L74: 82118 | M74: 32992 | N74: 72014 | O74: 55262 | P74: 49906 | Q74: 52000.91667 | R74: 0.03745519711 | S74: p.dist.dpto
B75: no aplica | C75: 26 | D75: Sin LAC | E75: 79249 | F75: 60030 | G75: 42884 | H75: 96566 | I75: 21707 | J75: 94378 | K75: 67604 | L75: 60441 | M75: 73436 | N75: 84723 | O75: 84991 | P75: 77904
Q77: =SUM(Q50:Q74) -> 1388349.833
C81: Información OSIPTEL
C83: Cuadro 2.14
C84: Tráfico Local Saliente por Escenario y Operador *
C85: Valores expresados en minutos 1/.
F87: 2013
D88: Nextel del Perú S.A. 4/. | E88: A fijo | F88: 10000000
E89: A móvil off-net | F89: 50000000
E90: A móvil on-net | F90: 5000000000
E91: Total Local | F91: =SUM(F88:F90) -> 5060000000
C94: Cuadro 2.15
C95: Tráfico Local Entrante por Escenario y Operador *
C96: Valores expresados en minutos
F98: 2013
D99: Nextel del Perú S.A. | E99: Desde fijo | F99: 10000000
E100: Desde móvil | F100: 2000000000
E101: Desde público | F101: 1000000
E102: Total Local | F102: 225749586.4
C103: (*) Información correspondiente al tráfico reportado durante cada año.
C104: (**) Las cifras podrían ser modificadas si las empresas informantes o el OSIPTEL detectan errores.
C105: 1/. Las empresas Telefónica Móviles y Nextel indican que el tráfico local entrante reportado se expresa en minutos tasados al segundo.
C106: 2/. En agosto de 2005, América Móvil adquirió el 100% de TIM Perú. Por lo tanto, el reporte de tráfico de TIM Perú es hasta el mes de septiembre de 2005 y el reporte de tráfico de América Móvil inicia en el mes de octubre de 2005.
C107: 3/. En marzo de 2004, Telefónica Móviles, división de telefonía celular de la operadora española Telefónica, firmó un acuerdo global para adquirir las operaciones de las filiales de BellSouth Internacional en Latinoamérica. En abril de 2005, se aprobó la ley que permite la fusión de Telefónica Móviles con la filial peruana de Bellsouth (Comunicaciones Móviles). Por lo tanto, el reporte de tráfico de BellSouth Perú es hasta el mes de marzo de 2005.
C108: 4/. En los reportes periódicos de los años 2005 y 2006, la empresa señala que las diferencias existentes entre los indicadores de tráfico local entrante mensual y trimestral corresponden a que el primero se expresa dependiendo de su tasación (tasación al minuto y al segundo), mientras que el segundo se expresa en minutos tasados al segundo.
C109: Fuente: Empresas operadoras.

Sheet Cobertura
H2: ='Panel de Control'!$H$2 -> Modelo Dinámico de Cargo de Interconexión Móvil (Costos Históricos)
H3: Cobertura Geográfica Red Móvil
A5: Zonas | I5: 0 | K5: 1 | L5: 2 | M5: 3 | N5: 4 | O5: 5 | P5: 6 | Q5: 7 | R5: 8 | S5: 9 | T5: 10 | U5: 11 | V5: 12 | W5: 13 | X5: 14 | Y5: 15 | Z5: 16 | AA5: 17 | AB5: 18 | AC5: 19 | AD5: 20 | AE5: 21 | AF5: 22 | AG5: 23 | AH5: 24 | AI5: 25
B8: Parámetros Geográficos
C10: Superficie y Longitud de Carreteras País
F12: ID | G12: Superficie y Longitud de Carreteras País
F13: 1 | G13: Superficie Total de Chile | J13: [km2] | K13: =K42 -> 1285215.6
F14: 2 | G14: Longitud Carreteras y Caminos Pavimentados | J14: [km] | K14: =N42 -> 17087.47
F16: ID | G16: Departamentos | K16: Superficie | N16: Carreteras | P16: Superficie Cobertura al 2013 | R16: Departamento | S16: Area (Km²)
F17: 1 | G17: =INDEX(l.reg.nom,F17,1) -> Amazonas | J17: [km2] | K17: 39249.13 | L17: Fuente: INEI | M17: [km] | N17: 473.84 | P17: =G17 -> Amazonas | Q17: =RANDBETWEEN(1,K17) -> 28407
F18: 2 | G18: Ancash | J18: [km2] | K18: 35914.81 | M18: [km] | N18: 1147.43 | P18: Ancash | Q18: =RANDBETWEEN(1,K18) -> 8765
F19: 3 | G19: Apurímac | J19: [km2] | K19: 20895.79 | M19: [km] | N19: 596.73 | P19: Apurímac | Q19: 8062
F20: 4 | G20: Arequipa | J20: [km2] | K20: 63345.39 | M20: [km] | N20: 1468.74 | P20: Arequipa | Q20: 57274
F21: 5 | G21: Ayacucho | J21: [km2] | K21: 43814.8 | M21: [km] | N21: 465.18 | P21: Ayacucho | Q21: 17443
F22: 6 | G22: Cajamarca | J22: [km2] | K22: 33317.54 | M22: [km] | N22: 973.52 | P22: Cajamarca | Q22: 11683
F23: 7 | G23: Callao | J23: [km2] | K23: 146.98 | M23: [km] | N23: 64.94 | P23: Callao | Q23: 49
F24: 8 | G24: Cusco | J24: [km2] | K24: 71986.5 | M24: [km] | N24: 1135.02 | P24: Cusco | Q24: 69261
F25: 9 | G25: Huancavelica | J25: [km2] | K25: 22131.47 | M25: [km] | N25: 512.84 | P25: Huancavelica | Q25: 794
F26: 10 | G26: Huánuco | J26: [km2] | K26: 36848.85 | M26: [km] | N26: 569.3 | P26: Huánuco | Q26: 33431
F27: 11 | G27: Ica | J27: [km2] | K27: 21327.83 | M27: [km] | N27: 620.55 | P27: Ica | Q27: 17710
F28: 12 | G28: Junín | J28: [km2] | K28: 44197.23 | M28: [km] | N28: 931.64 | P28: Junín | Q28: 8419
F29: 13 | G29: La Libertad | J29: [km2] | K29: 25499.9 | M29: [km] | N29: 633.36 | P29: La Libertad | Q29: 19507
F30: 14 | G30: Lambayeque | J30: [km2] | K30: 14231.3 | M30: [km] | N30: 622.52 | P30: Lambayeque | Q30: 2633
F31: 15 | G31: Lima | J31: [km2] | K31: 34801.59 | M31: [km] | N31: 1178.72 | P31: Lima | Q31: 17740
F32: 16 | G32: Loreto | J32: [km2] | K32: 368851.95 | M32: [km] | N32: 151.65 | P32: Loreto | Q32: 97475
F33: 17 | G33: Madre de Dios | J33: [km2] | K33: 85300.54 | M33: [km] | N33: 400.34 | P33: Madre de Dios | Q33: 71941
F34: 18 | G34: Moquegua | J34: [km2] | K34: 15733.97 | M34: [km] | N34: 509.6 | P34: Moquegua | Q34: 595
F35: 19 | G35: Pasco | J35: [km2] | K35: 25319.59 | M35: [km] | N35: 283.45 | P35: Pasco | Q35: 6428
F36: 20 | G36: Piura | J36: [km2] | K36: 35892.49 | M36: [km] | N36: 1180.69 | P36: Piura | Q36: 1346
F37: 21 | G37: Puno | J37: [km2] | K37: 71999 | M37: [km] | N37: 1421.11 | P37: Puno | Q37: 38185
F38: 22 | G38: San Martín | J38: [km2] | K38: 51253.31 | M38: [km] | N38: 773.34 | P38: San Martín | Q38: 4197
F39: 23 | G39: Tacna | J39: [km2] | K39: 16075.89 | M39: [km] | N39: 539.68 | P39: Tacna | Q39: 3315
F40: 24 | G40: Tumbes | J40: [km2] | K40: 4669.2 | M40: [km] | N40: 212.18 | P40: Tumbes | Q40: 3271
F41: 25 | G41: Ucayali | J41: [km2] | K41: 102410.55 | M41: [km] | N41: 221.1 | P41: Ucayali | Q41: 67880
G42: Total | J42: [km2] | K42: =SUM(K17:K41) -> 1285215.6 | M42: [km] | N42: =SUM(N17:N41) -> 17087.47 | P42: Total
G43: Fuente: Estudio de las Rutas de la Red Vial Nacional del Sistema Nacional de Carreteras (Sinac) ejecutado por la Dirección General de Caminos y Ferrocarriles, 2012: Carreteras pavimentadas Nacional y Departamental
C46: Distribución Geográfica Cobertura
K49: 1
F50: ID | G50: Departamentos | K50: Año 0
E51: Superficie
F52: 1 | G52: =INDEX(l.reg.nom,F52,1) -> Amazonas | K52: =Q17/K17 -> 0.7237612655
F53: 2 | G53: Ancash | K53: =Q18/K18 -> 0.2440497388
F54: 3 | G54: Apurímac | K54: 0.3858193445
F55: 4 | G55: Arequipa | K55: 0.9041541934
F56: 5 | G56: Ayacucho | K56: 0.3981074888
F57: 6 | G57: Cajamarca | K57: 0.3506561409
F58: 7 | G58: Callao | K58: 0.333378691
F59: 8 | G59: Cusco | K59: 0.9621387343
F60: 9 | G60: Huancavelica | K60: 0.0358765143
F61: 10 | G61: Huánuco | K61: 0.9072467662
F62: 11 | G62: Ica | K62: 0.8303704596
F63: 12 | G63: Junín | K63: 0.1904870509
F64: 13 | G64: La Libertad | K64: 0.7649833921
F65: 14 | G65: Lambayeque | K65: 0.1850147211
F66: 15 | G66: Lima | K66: 0.5097468248
F67: 16 | G67: Loreto | K67: 0.2642659202
F68: 17 | G68: Madre de Dios | K68: 0.8433827031
F69: 18 | G69: Moquegua | K69: 0.03781626633
F70: 19 | G70: Pasco | K70: 0.2538745691
F71: 20 | G71: Piura | K71: 0.0375008811
F72: 21 | G72: Puno | K72: 0.5303545883
F73: 22 | G73: San Martín | K73: 0.0818873942
F74: 23 | G74: Tacna | K74: 0.2062094229
F75: 24 | G75: Tumbes | K75: 0.7005482738
F76: 25 | G76: Ucayali | K76: =S41/K41 -> 0
E77: Carretera
F78: 1 | G78: =INDEX(l.reg.nom,F78,1) -> Amazonas | K78: =RAND() -> 0.5722559851
F79: 2 | G79: Ancash | K79: =RAND() -> 0.07991654455
F80: 3 | G80: Apurímac | K80: 0.3857928301
F81: 4 | G81: Arequipa | K81: 0.5348278698
F82: 5 | G82: Ayacucho | K82: 0.6558005416
F83: 6 | G83: Cajamarca | K83: 0.4159697876
F84: 7 | G84: Callao | K84: 0.5452821291
F85: 8 | G85: Cusco | K85: 0.4216361934
F86: 9 | G86: Huancavelica | K86: 0.005445099385
F87: 10 | G87: Huánuco | K87: 0.4639065972
F88: 11 | G88: Ica | K88: 0.721925639
F89: 12 | G89: Junín | K89: 0.8907155864
F90: 13 | G90: La Libertad | K90: 0.3900903459
F91: 14 | G91: Lambayeque | K91: 0.4514185998
F92: 15 | G92: Lima | K92: 0.1947997166
F93: 16 | G93: Loreto | K93: 0.08654114245
F94: 17 | G94: Madre de Dios | K94: 0.8894054885
F95: 18 | G95: Moquegua | K95: 0.05250561446
F96: 19 | G96: Pasco | K96: 0.3473882045
F97: 20 | G97: Piura | K97: 0.6894011661
F98: 21 | G98: Puno | K98: 0.1298251928
F99: 22 | G99: San Martín | K99: 0.6335503441
F100: 23 | G100: Tacna | K100: 0.1332147698
F101: 24 | G101: Tumbes | K101: 0.9908497903
F102: 25 | G102: Ucayali | K102: 0.7702262643
C109: Distribución Geográfica Cobertura
K112: 1 | L112: 2 | M112: 3 | N112: 4 | O112: 5 | P112: 6 | Q112: 7 | R112: 8 | S112: 9 | T112: 10 | U112: 11 | V112: 12
K113: Nextel | L113: Nextel | M113: Nextel | N113: Nextel | O113: Nextel | P113: Nextel | Q113: Nextel | R113: Nextel | S113: Nextel | T113: Nextel | U113: Nextel | V113: Nextel
F114: ID | G114: Departamentos | K114: =INDEX(l.geo.nom,K112) -> 3G Tipo 1 | L114: 3G Tipo 2 | M114: 3G Tipo 3 | N114: 3G Tipo 4 | O114: 2G Tipo 1 | P114: 2G Tipo 2 | Q114: 2G Tipo 3 | R114: 2G Tipo 4 | S114: libre | T114: libre | U114: libre | V114: Carreteras
F115: 1 | G115: =INDEX(l.reg.nom,F115,1) -> Amazonas | K115: =$K$141 -> 0.1 | L115: =$L$141 -> 0.1 | M115: =$M$141 -> 0.8 | N115: 0 | O115: 0 | P115: 0 | Q115: 0 | R115: 0 | S115: 0 | T115: 0 | U115: 0 | V115: 1 | X115: 1
F116: 2 | G116: Ancash | K116: 0.04109957847 | L116: 0.02122610892 | M116: 0.9376743126 | N116: 0 | O116: 0 | P116: 0 | Q116: 0 | R116: 0 | S116: 0 | T116: 0 | U116: 0 | V116: 1
F117: 3 | G117: Apurímac | K117: =$K$141 -> 0.1 | L117: =$L$141 -> 0.1 | M117: =$M$141 -> 0.8 | N117: 0 | O117: 0 | P117: 0 | Q117: 0 | R117: 0 | S117: 0 | T117: 0 | U117: 0 | V117: 1
F118: 4 | G118: Arequipa | K118: 0.06574510749 | L118: 0.0524695124 | M118: 0.8817853801 | N118: 0 | O118: 0 | P118: 0 | Q118: 0 | R118: 0 | S118: 0 | T118: 0 | U118: 0 | V118: 1
F119: 5 | G119: Ayacucho | K119: =$K$141 -> 0.1 | L119: =$L$141 -> 0.1 | M119: =$M$141 -> 0.8 | N119: 0 | O119: 0 | P119: 0 | Q119: 0 | R119: 0 | S119: 0 | T119: 0 | U119: 0 | V119: 1
F120: 6 | G120: Cajamarca | K120: 0.01268763325 | L120: 0 | M120: 0.9873123668 | N120: 0 | O120: 0 | P120: 0 | Q120: 0 | R120: 0 | S120: 0 | T120: 0 | U120: 0 | V120: 1
F121: 7 | G121: Callao | K121: 0.3778067939 | L121: 0.6221932061 | M121: 0 | N121: 0 | O121: 0 | P121: 0 | Q121: 0 | R121: 0 | S121: 0 | T121: 0 | U121: 0 | V121: 1
F122: 8 | G122: Cusco | K122: 0.01788160035 | L122: 0 | M122: 0.9821183996 | N122: 0 | O122: 0 | P122: 0 | Q122: 0 | R122: 0 | S122: 0 | T122: 0 | U122: 0 | V122: 1
F123: 9 | G123: Huancavelica | K123: =$K$141 -> 0.1 | L123: =$L$141 -> 0.1 | M123: =$M$141 -> 0.8 | N123: 0 | O123: 0 | P123: 0 | Q123: 0 | R123: 0 | S123: 0 | T123: 0 | U123: 0 | V123: 1
F124: 10 | G124: Huánuco | K124: =$K$141 -> 0.1 | L124: =$L$141 -> 0.1 | M124: =$M$141 -> 0.8 | N124: 0 | O124: 0 | P124: 0 | Q124: 0 | R124: 0 | S124: 0 | T124: 0 | U124: 0 | V124: 1
F125: 11 | G125: Ica | K125: 0.01340208591 | L125: 0.1131322185 | M125: 0.8734656955 | N125: 0 | O125: 0 | P125: 0 | Q125: 0 | R125: 0 | S125: 0 | T125: 0 | U125: 0 | V125: 1
F126: 12 | G126: Junín | K126: 0.02151311942 | L126: 0.0845569001 | M126: 0.8939299805 | N126: 0 | O126: 0 | P126: 0 | Q126: 0 | R126: 0 | S126: 0 | T126: 0 | U126: 0 | V126: 1
F127: 13 | G127: La Libertad | K127: 0.0373202085 | L127: 0.0191078327 | M127: 0.9435719588 | N127: 0 | O127: 0 | P127: 0 | Q127: 0 | R127: 0 | S127: 0 | T127: 0 | U127: 0 | V127: 1
F128: 14 | G128: Lambayeque | K128: 0.03158151061 | L128: 0.03461508354 | M128: 0.9338034058 | N128: 0 | O128: 0 | P128: 0 | Q128: 0 | R128: 0 | S128: 0 | T128: 0 | U128: 0 | V128: 1
F129: 15 | G129: Lima | K129: 0.1485563421 | L129: 0.1272239938 | M129: 0.7242196642 | N129: 0 | O129: 0 | P129: 0 | Q129: 0 | R129: 0 | S129: 0 | T129: 0 | U129: 0 | V129: 1
F130: 16 | G130: Loreto | K130: =$K$141 -> 0.1 | L130: =$L$141 -> 0.1 | M130: =$M$141 -> 0.8 | N130: 0 | O130: 0 | P130: 0 | Q130: 0 | R130: 0 | S130: 0 | T130: 0 | U130: 0 | V130: 1
F131: 17 | G131: Madre de Dios | K131: =$K$141 -> 0.1 | L131: =$L$141 -> 0.1 | M131: =$M$141 -> 0.8 | N131: 0 | O131: 0 | P131: 0 | Q131: 0 | R131: 0 | S131: 0 | T131: 0 | U131: 0 | V131: 1
F132: 18 | G132: Moquegua | K132: 0 | L132: 0.1258015101 | M132: 0.8741984899 | N132: 0 | O132: 0 | P132: 0 | Q132: 0 | R132: 0 | S132: 0 | T132: 0 | U132: 0 | V132: 1
F133: 19 | G133: Pasco | K133: =$K$141 -> 0.1 | L133: =$L$141 -> 0.1 | M133: =$M$141 -> 0.8 | N133: 0 | O133: 0 | P133: 0 | Q133: 0 | R133: 0 | S133: 0 | T133: 0 | U133: 0 | V133: 1
F134: 20 | G134: Piura | K134: 0.01865849337 | L134: 0.02835377684 | M134: 0.9529877298 | N134: 0 | O134: 0 | P134: 0 | Q134: 0 | R134: 0 | S134: 0 | T134: 0 | U134: 0 | V134: 1
F135: 21 | G135: Puno | K135: 0.01435781457 | L135: 0.01616163386 | M135: 0.9694805516 | N135: 0 | O135: 0 | P135: 0 | Q135: 0 | R135: 0 | S135: 0 | T135: 0 | U135: 0 | V135: 1
F136: 22 | G136: San Martín | K136: =$K$141 -> 0.1 | L136: =$L$141 -> 0.1 | M136: =$M$141 -> 0.8 | N136: 0 | O136: 0 | P136: 0 | Q136: 0 | R136: 0 | S136: 0 | T136: 0 | U136: 0 | V136: 1
F137: 23 | G137: Tacna | K137: 0.05484691682 | L137: 0.0973960528 | M137: 0.8477570304 | N137: 0 | O137: 0 | P137: 0 | Q137: 0 | R137: 0 | S137: 0 | T137: 0 | U137: 0 | V137: 1
F138: 24 | G138: Tumbes | K138: 0.01790829226 | L138: 0.03582379406 | M138: 0.9462679137 | N138: 0 | O138: 0 | P138: 0 | Q138: 0 | R138: 0 | S138: 0 | T138: 0 | U138: 0 | V138: 1
F139: 25 | G139: Ucayali | K139: =$K$141 -> 0.1 | L139: =$L$141 -> 0.1 | M139: =$M$141 -> 0.8 | N139: 0 | O139: 0 | P139: 0 | Q139: 0 | R139: 0 | S139: 0 | T139: 0 | U139: 0 | V139: 1
W140: cob.dist
G141: Nacional | K141: 0.1 | L141: 0.1 | M141: 0.8
C143: Tráfico 3G por Geotipo
F146: ID | G146: Geotipo | K146: Año 0
F147: 1 | G147: =INDEX(l.geo.nom,F147) -> 3G Tipo 1 | K147: 0.5
F148: 2 | G148: 3G Tipo 2 | K148: 0.3
F149: 3 | G149: 3G Tipo 3 | K149: 0.15
F150: 4 | G150: 3G Tipo 4 | K150: 1.121536714e-05
F151: 5 | G151: 2G Tipo 1 | K151: 0.1
F152: 6 | G152: 2G Tipo 2 | K152: 0.2
F153: 7 | G153: 2G Tipo 3 | K153: 0.3
F154: 8 | G154: 2G Tipo 4 | K154: 0.4
F155: 9 | G155: libre
F156: 10 | G156: libre
F157: 11 | G157: libre
F158: 12 | G158: Carreteras | K158: 0.05
L160: cob.traf
B163: Cobertura 3G por Geotipo
F165: ID | G165: Geotipo | I165: Año 0 | K165: =INDEX(l.reg.nom,K$5) -> Amazonas | L165: Ancash | M165: Apurímac | N165: Arequipa | O165: Ayacucho | P165: Cajamarca | Q165: Callao | R165: Cusco | S165: Huancavelica | T165: Huánuco | U165: Ica | V165: Junín | W165: La Libertad | X165: Lambayeque | Y165: Lima | Z165: Loreto | AA165: Madre de Dios | AB165: Moquegua | AC165: Pasco | AD165: Piura | AE165: Puno | AF165: San Martín | AG165: Tacna | AH165: Tumbes | AI165: Ucayali
F166: 1 | G166: =INDEX(l.geo.nom,F166) -> 3G Tipo 1 | H166: [km2] | I166: =SUM(K166,L166,M166,N166,O166,P166,Q166,R166,S166,T166,U166,V166,W166,X166,Y166,Z166,AA166,AB166,AC166,AD166,AE166,AF166,AG166,AH166,AI166) -> 37027.54463 | J166: [km2] | K166: =INDEX(cob.dist,K$5,$F166)*INDEX(cob.t.d,K$5)*INDEX(cob.s.d,K$5) -> 2840.7 | L166: 360.2378053 | M166: 806.2 | N166: 3765.485286 | O166: 1744.3 | P166: 148.2296192 | Q166: 18.5125329 | R166: 1238.497522 | S166: 79.4 | T166: 3343.1 | U166: =INDEX(cob.dist,U$5,$F166)*INDEX(cob.t.d,U$5)*INDEX(cob.s.d,U$5) -> 237.3509415 | V166: 181.1189524 | W166: 728.0053072 | X166: 83.15411744 | Y166: 2635.389508 | Z166: 9747.5 | AA166: 7194.1 | AB166: 0 | AC166: 642.8 | AD166: 25.11433207 | AE166: 548.2531495 | AF166: 419.7 | AG166: 181.8175293 | AH166: 58.57802399 | AI166: 0
F167: 2 | G167: 3G Tipo 2 | H167: [km2] | I167: 36645.95657 | J167: [km2] | K167: 2840.7 | L167: 186.0468447 | M167: 806.2 | N167: 3005.138853 | O167: 1744.3 | P167: 0 | Q167: 30.4874671 | R167: 0 | S167: 79.4 | T167: 3343.1 | U167: 2003.57159 | V167: 711.884542 | W167: 372.7364926 | X167: 91.14151496 | Y167: 2256.95365 | Z167: 9747.5 | AA167: 7194.1 | AB167: 74.85189852 | AC167: 642.8 | AD167: 38.16418363 | AE167: 617.1319891 | AF167: 419.7 | AG167: 322.867915 | AH167: 117.1796304 | AI167: 0
F168: 3 | G168: 3G Tipo 3 | H168: [km2] | I168: 454257.4988 | J168: [km2] | K168: 22725.6 | L168: 8218.71535 | M168: 6449.6 | N168: 50503.37586 | O168: 13954.4 | P168: 11534.77038 | Q168: 0 | R168: 68022.50248 | S168: 635.2 | T168: 26744.8 | U168: 15469.07747 | V168: 7525.996506 | W168: 18406.2582 | X168: 2458.704368 | Y168: 12847.65684 | Z168: 77980 | AA168: 57552.8 | AB168: 520.1481015 | AC168: 5142.4 | AD168: 1282.721484 | AE168: 37019.61486 | AF168: 3357.6 | AG168: 2810.314556 | AH168: 3095.242346 | AI168: 0
F169: 4 | G169: 3G Tipo 4 | H169: [km2] | I169: 0 | J169: [km2] | K169: 0 | L169: 0 | M169: 0 | N169: 0 | O169: 0 | P169: 0 | Q169: 0 | R169: 0 | S169: 0 | T169: 0 | U169: 0 | V169: 0 | W169: 0 | X169: 0 | Y169: 0 | Z169: 0 | AA169: 0 | AB169: 0 | AC169: 0 | AD169: 0 | AE169: 0 | AF169: 0 | AG169: 0 | AH169: 0 | AI169: 0
F170: 5 | G170: 2G Tipo 1 | H170: [km2] | I170: 0 | J170: [km2] | K170: 0 | L170: 0 | M170: 0 | N170: 0 | O170: 0 | P170: 0 | Q170: 0 | R170: 0 | S170: 0 | T170: 0 | U170: 0 | V170: 0 | W170: 0 | X170: 0 | Y170: 0 | Z170: 0 | AA170: 0 | AB170: 0 | AC170: 0 | AD170: 0 | AE170: 0 | AF170: 0 | AG170: 0 | AH170: 0 | AI170: 0
F171: 6 | G171: 2G Tipo 2 | H171: [km2] | I171: 0 | J171: [km2] | K171: 0 | L171: 0 | M171: 0 | N171: 0 | O171: 0 | P171: 0 | Q171: 0 | R171: 0 | S171: 0 | T171: 0 | U171: 0 | V171: 0 | W171: 0 | X171: 0 | Y171: 0 | Z171: 0 | AA171: 0 | AB171: 0 | AC171: 0 | AD171: 0 | AE171: 0 | AF171: 0 | AG171: 0 | AH171: 0 | AI171: 0
F172: 7 | G172: 2G Tipo 3 | H172: [km2] | I172: 0 | J172: [km2] | K172: 0 | L172: 0 | M172: 0 | N172: 0 | O172: 0 | P172: 0 | Q172: 0 | R172: 0 | S172: 0 | T172: 0 | U172: 0 | V172: 0 | W172: 0 | X172: 0 | Y172: 0 | Z172: 0 | AA172: 0 | AB172: 0 | AC172: 0 | AD172: 0 | AE172: 0 | AF172: 0 | AG172: 0 | AH172: 0 | AI172: 0
F173: 8 | G173: 2G Tipo 4 | H173: [km2] | I173: 0 | J173: [km2] | K173: 0 | L173: 0 | M173: 0 | N173: 0 | O173: 0 | P173: 0 | Q173: 0 | R173: 0 | S173: 0 | T173: 0 | U173: 0 | V173: 0 | W173: 0 | X173: 0 | Y173: 0 | Z173: 0 | AA173: 0 | AB173: 0 | AC173: 0 | AD173: 0 | AE173: 0 | AF173: 0 | AG173: 0 | AH173: 0 | AI173: 0
F174: 9 | G174: libre | H174: [km2] | I174: 0 | J174: [km2] | K174: 0 | L174: 0 | M174: 0 | N174: 0 | O174: 0 | P174: 0 | Q174: 0 | R174: 0 | S174: 0 | T174: 0 | U174: 0 | V174: 0 | W174: 0 | X174: 0 | Y174: 0 | Z174: 0 | AA174: 0 | AB174: 0 | AC174: 0 | AD174: 0 | AE174: 0 | AF174: 0 | AG174: 0 | AH174: 0 | AI174: 0
F175: 10 | G175: libre | H175: [km2] | I175: 0 | J175: [km2] | K175: 0 | L175: 0 | M175: 0 | N175: 0 | O175: 0 | P175: 0 | Q175: 0 | R175: 0 | S175: 0 | T175: 0 | U175: 0 | V175: 0 | W175: 0 | X175: 0 | Y175: 0 | Z175: 0 | AA175: 0 | AB175: 0 | AC175: 0 | AD175: 0 | AE175: 0 | AF175: 0 | AG175: 0 | AH175: 0 | AI175: 0
F176: 11 | G176: libre | H176: [km2] | I176: 0 | J176: [km2] | K176: 0 | L176: 0 | M176: 0 | N176: 0 | O176: 0 | P176: 0 | Q176: 0 | R176: 0 | S176: 0 | T176: 0 | U176: 0 | V176: 0 | W176: 0 | X176: 0 | Y176: 0 | Z176: 0 | AA176: 0 | AB176: 0 | AC176: 0 | AD176: 0 | AE176: 0 | AF176: 0 | AG176: 0 | AH176: 0 | AI176: 0
F177: 12 | G177: Carreteras | H177: [km] | I177: 7340.257013 | J177: [km] | K177: =INDEX(cob.dist,K$5,$F177)*INDEX(cob.t.c,K$5)*INDEX(cob.s.c,K$5) -> 271.157776 | L177: 91.69864072 | M177: 230.2141555 | N177: 785.5230855 | O177: 305.0652959 | P177: 404.9549076 | Q177: 35.41062146 | R177: 478.5655123 | S177: 2.792464769 | T177: 264.1020258 | U177: 447.9909553 | V177: 829.8262689 | W177: 247.0676215 | X177: 281.0171068 | Y177: 229.614322 | Z177: 13.12396425 | AA177: 356.0645933 | AB177: 26.75686113 | AC177: 98.46718657 | AD177: 813.9690627 | AE177: 184.4958798 | AF177: 489.9498231 | AG177: 71.89334698 | AH177: 210.2385085 | AI177: 170.297027
H179: [km2] | I179: =SUM(I166:I176) -> 527931
H180: [km] | I180: =I177 -> 7340.257013 | J180: %
B182: Tráfico 3G por Geotipo
F184: ID | G184: Geotipo | I184: Año 0 | K184: =INDEX(l.reg.nom,K$5) -> Amazonas | L184: Ancash | M184: Apurímac | N184: Arequipa | O184: Ayacucho | P184: Cajamarca | Q184: Callao | R184: Cusco | S184: Huancavelica | T184: Huánuco | U184: Ica | V184: Junín | W184: La Libertad | X184: Lambayeque | Y184: Lima | Z184: Loreto | AA184: Madre de Dios | AB184: Moquegua | AC184: Pasco | AD184: Piura | AE184: Puno | AF184: San Martín | AG184: Tacna | AH184: Tumbes | AI184: Ucayali
F185: 1 | G185: =INDEX(l.geo.nom,F185) -> 3G Tipo 1 | H185: [%] | I185: =AVERAGE(K185,L185,M185,N185,O185,P185,Q185,R185,S185,T185,U185,V185,W185,X185,Y185,Z185,AA185,AB185,AC185,AD185,AE185,AF185,AG185,AH185,AI185) -> 0.5 | K185: =INDEX(cob.traf,$F185) -> 0.5 | L185: 0.5 | M185: 0.5 | N185: 0.5 | O185: 0.5 | P185: 0.5 | Q185: 0.5 | R185: 0.5 | S185: 0.5 | T185: 0.5 | U185: =INDEX(cob.traf,$F185) -> 0.5 | V185: 0.5 | W185: 0.5 | X185: 0.5 | Y185: 0.5 | Z185: 0.5 | AA185: 0.5 | AB185: 0.5 | AC185: 0.5 | AD185: 0.5 | AE185: 0.5 | AF185: 0.5 | AG185: 0.5 | AH185: 0.5 | AI185: 0.5
F186: 2 | G186: 3G Tipo 2 | H186: [%] | I186: 0.3 | K186: 0.3 | L186: 0.3 | M186: 0.3 | N186: 0.3 | O186: 0.3 | P186: 0.3 | Q186: 0.3 | R186: 0.3 | S186: 0.3 | T186: 0.3 | U186: 0.3 | V186: 0.3 | W186: 0.3 | X186: 0.3 | Y186: 0.3 | Z186: 0.3 | AA186: 0.3 | AB186: 0.3 | AC186: 0.3 | AD186: 0.3 | AE186: 0.3 | AF186: 0.3 | AG186: 0.3 | AH186: 0.3 | AI186: 0.3
F187: 3 | G187: 3G Tipo 3 | H187: [%] | I187: 0.15 | K187: 0.15 | L187: 0.15 | M187: 0.15 | N187: 0.15 | O187: 0.15 | P187: 0.15 | Q187: 0.15 | R187: 0.15 | S187: 0.15 | T187: 0.15 | U187: 0.15 | V187: 0.15 | W187: 0.15 | X187: 0.15 | Y187: 0.15 | Z187: 0.15 | AA187: 0.15 | AB187: 0.15 | AC187: 0.15 | AD187: 0.15 | AE187: 0.15 | AF187: 0.15 | AG187: 0.15 | AH187: 0.15 | AI187: 0.15
F188: 4 | G188: 3G Tipo 4 | H188: [%] | I188: 1.121536714e-05 | K188: 1.121536714e-05 | L188: 1.121536714e-05 | M188: 1.121536714e-05 | N188: 1.121536714e-05 | O188: 1.121536714e-05 | P188: 1.121536714e-05 | Q188: 1.121536714e-05 | R188: 1.121536714e-05 | S188: 1.121536714e-05 | T188: 1.121536714e-05 | U188: 1.121536714e-05 | V188: 1.121536714e-05 | W188: 1.121536714e-05 | X188: 1.121536714e-05 | Y188: 1.121536714e-05 | Z188: 1.121536714e-05 | AA188: 1.121536714e-05 | AB188: 1.121536714e-05 | AC188: 1.121536714e-05 | AD188: 1.121536714e-05 | AE188: 1.121536714e-05 | AF188: 1.121536714e-05 | AG188: 1.121536714e-05 | AH188: 1.121536714e-05 | AI188: 1.121536714e-05
F189: 5 | G189: 2G Tipo 1 | H189: [%] | I189: 0.1 | K189: 0.1 | L189: 0.1 | M189: 0.1 | N189: 0.1 | O189: 0.1 | P189: 0.1 | Q189: 0.1 | R189: 0.1 | S189: 0.1 | T189: 0.1 | U189: 0.1 | V189: 0.1 | W189: 0.1 | X189: 0.1 | Y189: 0.1 | Z189: 0.1 | AA189: 0.1 | AB189: 0.1 | AC189: 0.1 | AD189: 0.1 | AE189: 0.1 | AF189: 0.1 | AG189: 0.1 | AH189: 0.1 | AI189: 0.1
F190: 6 | G190: 2G Tipo 2 | H190: [%] | I190: 0.2 | K190: 0.2 | L190: 0.2 | M190: 0.2 | N190: 0.2 | O190: 0.2 | P190: 0.2 | Q190: 0.2 | R190: 0.2 | S190: 0.2 | T190: 0.2 | U190: 0.2 | V190: 0.2 | W190: 0.2 | X190: 0.2 | Y190: 0.2 | Z190: 0.2 | AA190: 0.2 | AB190: 0.2 | AC190: 0.2 | AD190: 0.2 | AE190: 0.2 | AF190: 0.2 | AG190: 0.2 | AH190: 0.2 | AI190: 0.2
F191: 7 | G191: 2G Tipo 3 | H191: [%] | I191: 0.3 | K191: 0.3 | L191: 0.3 | M191: 0.3 | N191: 0.3 | O191: 0.3 | P191: 0.3 | Q191: 0.3 | R191: 0.3 | S191: 0.3 | T191: 0.3 | U191: 0.3 | V191: 0.3 | W191: 0.3 | X191: 0.3 | Y191: 0.3 | Z191: 0.3 | AA191: 0.3 | AB191: 0.3 | AC191: 0.3 | AD191: 0.3 | AE191: 0.3 | AF191: 0.3 | AG191: 0.3 | AH191: 0.3 | AI191: 0.3
F192: 8 | G192: 2G Tipo 4 | H192: [%] | I192: 0.4 | K192: 0.4 | L192: 0.4 | M192: 0.4 | N192: 0.4 | O192: 0.4 | P192: 0.4 | Q192: 0.4 | R192: 0.4 | S192: 0.4 | T192: 0.4 | U192: 0.4 | V192: 0.4 | W192: 0.4 | X192: 0.4 | Y192: 0.4 | Z192: 0.4 | AA192: 0.4 | AB192: 0.4 | AC192: 0.4 | AD192: 0.4 | AE192: 0.4 | AF192: 0.4 | AG192: 0.4 | AH192: 0.4 | AI192: 0.4
F193: 9 | G193: libre | H193: [%] | I193: 0 | K193: 0 | L193: 0 | M193: 0 | N193: 0 | O193: 0 | P193: 0 | Q193: 0 | R193: 0 | S193: 0 | T193: 0 | U193: 0 | V193: 0 | W193: 0 | X193: 0 | Y193: 0 | Z193: 0 | AA193: 0 | AB193: 0 | AC193: 0 | AD193: 0 | AE193: 0 | AF193: 0 | AG193: 0 | AH193: 0 | AI193: 0
F194: 10 | G194: libre | H194: [%] | I194: 0 | K194: 0 | L194: 0 | M194: 0 | N194: 0 | O194: 0 | P194: 0 | Q194: 0 | R194: 0 | S194: 0 | T194: 0 | U194: 0 | V194: 0 | W194: 0 | X194: 0 | Y194: 0 | Z194: 0 | AA194: 0 | AB194: 0 | AC194: 0 | AD194: 0 | AE194: 0 | AF194: 0 | AG194: 0 | AH194: 0 | AI194: 0
F195: 11 | G195: libre | H195: [%] | I195: 0 | K195: 0 | L195: 0 | M195: 0 | N195: 0 | O195: 0 | P195: 0 | Q195: 0 | R195: 0 | S195: 0 | T195: 0 | U195: 0 | V195: 0 | W195: 0 | X195: 0 | Y195: 0 | Z195: 0 | AA195: 0 | AB195: 0 | AC195: 0 | AD195: 0 | AE195: 0 | AF195: 0 | AG195: 0 | AH195: 0 | AI195: 0
F196: 12 | G196: Carreteras | H196: [%] | I196: 0.05 | K196: 0.05 | L196: 0.05 | M196: 0.05 | N196: 0.05 | O196: 0.05 | P196: 0.05 | Q196: 0.05 | R196: 0.05 | S196: 0.05 | T196: 0.05 | U196: 0.05 | V196: 0.05 | W196: 0.05 | X196: 0.05 | Y196: 0.05 | Z196: 0.05 | AA196: 0.05 | AB196: 0.05 | AC196: 0.05 | AD196: 0.05 | AE196: 0.05 | AF196: 0.05 | AG196: 0.05 | AH196: 0.05 | AI196: 0.05 | AJ196: e.geo.traf

Sheet Parametos.Red
H2: ='Panel de Control'!$H$2 -> Modelo Dinámico de Cargo de Interconexión Móvil (Costos Históricos)
H3: Parámetros de Red
A6: 1 | B6: Caracterización de la Demanda en Hora Cargada
F8: id | G8: Parámetro | I8: Valor
E9: Parámetros Generales de Red
F10: 1 | G10: Meses por año | H10: [meses] | I10: 12
F11: 2 | G11: Días cargados por mes | H11: [días] | I11: =p.dc/12 -> 22
F12: 3 | G12: Días cargados por año | H12: [días] | I12: 264
F13: 4 | G13: Porcentaje del tráfico diario en hora cargada del Sistema | H13: [%] | I13: 0.2
F14: 5 | G14: Porcentaje del Tráfico de Voz en la hora cargada de la red | H14: [%] | I14: 0.2
F15: 6 | G15: Porcentaje del Tráfico de Mensajería SMS en la hora cargada de la red | H15: [%] | I15: 0.2
F16: 7 | G16: Porcentaje del Tráfico de Mensajería MMS en la hora cargada de la red | H16: [%] | I16: 0.2
F17: 8 | G17: Porcentaje del Tráfico de Datos en la hora cargada de la red | H17: [%] | I17: 0.2
F18: 9 | G18: Porcentaje del Número de Usuarios de Datos Tipo 1 en la hora cargada de la red | H18: [%] | I18: 0.2
F19: 10 | G19: Porcentaje del Número de Usuarios de Datos Tipo 2 en la hora cargada de la red | H19: [%] | I19: 0.2
F20: 11 | G20: Porcentaje del Tráfico de Voz en la hora cargada de Voz | H20: [%] | I20: 0.2
F21: 12 | G21: Porcentaje del Tráfico de Mensajería SMS en la hora cargada de SMS | H21: [%] | I21: 0.2
F22: 13 | G22: Porcentaje del Tráfico de Mensajería MMS en la hora cargada de MMS | H22: [%] | I22: 0.2
F23: 14 | G23: Porcentaje del Tráfico de Datos en la hora cargada de Datos | H23: [%] | I23: 0.2
F24: 15 | G24: Porcentaje del Número de Usuarios de Datos Tipo 1 la hora cargada los Usuarios | H24: [%] | I24: 0.2
F25: 16 | G25: Porcentaje del Número de Usuarios de Datos Tipo 2 la hora cargada los Usuarios | H25: [%] | I25: 0.2
F26: 17 | G26: Factor de concentración de movilidad geográfica Voz | H26: [#] | I26: 5
F27: 18 | G27: Factor de concentración de movilidad geográfica Datos | H27: [#] | I27: 5
F28: 19 | G28: Minutos por hora | H28: [min] | I28: 60
F29: 20 | G29: Bit por Byte | H29: [bit/Byte] | I29: 8
E30: Parámetros de Tráfico de Voz
F31: 21 | G31: Velocidad voz 3G RAN | H31: [kbps] | I31: 30
F32: 22 | G32: Velocidad Video 3G | H32: [kbps] | I32: 30
E33: Parámetros SMS
F34: 23 | G34: Peso del SMS completo | H34: [kbyte] | I34: 0.5
F35: 24 | G35: Velocidad equivalente de 1 CE | H35: [kbps] | I35: 100
F36: 25 | G36: SMS equivalente en un minuto de llamada | H36: [SMS/min] | I36: =I35*1000/(I34*1024)*60/p.b2B -> 1464.84375
F37: 26 | G37: SMS a Erlang | H37: [Erlang/SMS] | I37: =1/I36/60 -> 1.137777778e-05
E38: Parámetros MMS
F39: 27 | G39: Peso del mensaje MMS completo | H39: [kbyte] | I39: 1000
F40: 28 | G40: Velocidad equivalente de 1 CE | H40: [bit/s] | I40: =64/3*1000 -> 21333.33333
F41: 29 | G41: MMS equivalente en un minuto de llamada | H41: [MMS/min] | I41: =I40/(I39*1024)*60/p.b2B -> 0.15625
F42: 30 | G42: MMS a Erlang | H42: [Erlang/MMS] | I42: =1/I41/60 -> 0.1066666667
F43: 31 | G43: MMS a Kbps en HC | H43: [Kbps/MMS] | I43: =I39*p.b2B*1024/1000/3600 -> 2.275555556
E44: Parámetros de PS
F45: 32 | G45: Proporción de PS en base al tráfico total DL | H45: [%] | I45: 0.01
F46: 33 | G46: Proporción de PS en base al tráfico total UL | H46: [%] | I46: 0.05
F47: 34 | G47: Proporción de PS Tipo 2 | H47: [%] | I47: 0.25
F48: 35 | G48: Proporción de PS Tipo 3 | H48: [%] | I48: 0.25
F49: 36 | G49: Proporción de PS Tipo 4 | H49: [%] | I49: 0.25
F50: 37 | G50: Proporción de PS Tipo 5 | H50: [%] | I50: 0.25
F51: 38 | G51: Velocidad equivalente de 1 CE, PS Tipo 2 | H51: [bit/s] | I51: =32/1.5*1000 -> 21333.33333
F52: 39 | G52: Velocidad equivalente de 1 CE, PS Tipo 3 | H52: [bit/s] | I52: =64/3*1000 -> 21333.33333
F53: 40 | G53: Velocidad equivalente de 1 CE, PS Tipo 4 | H53: [bit/s] | I53: =128/5*1000 -> 25600
F54: 41 | G54: Velocidad equivalente de 1 CE, PS Tipo 5 | H54: [bit/s] | I54: =384/10*1000 -> 38400
F55: 42 | G55: Kbyte equivalente en un minuto de llamada PS Tipo 2 | H55: [kbyte/min] | I55: =I51/(1*1024)*60/p.b2B -> 156.25
F56: 43 | G56: Kbyte equivalente en un minuto de llamada PS Tipo 3 | H56: [kbyte/min] | I56: =I52/(1*1024)*60/p.b2B -> 156.25
F57: 44 | G57: Kbyte equivalente en un minuto de llamada PS Tipo 4 | H57: [kbyte/min] | I57: =I53/(1*1024)*60/p.b2B -> 187.5
F58: 45 | G58: Kbyte equivalente en un minuto de llamada PS Tipo 5 | H58: [kbyte/min] | I58: =I54/(1*1024)*60/p.b2B -> 281.25
F59: 46 | G59: Kbyte a erlang en PS Tipo 2 | H59: [erlang/kbyte] | I59: =1/I55/60 -> 0.0001066666667
F60: 47 | G60: Kbyte a erlang en PS Tipo 3 | H60: [erlang/kbyte] | I60: =1/I56/60 -> 0.0001066666667
F61: 48 | G61: Kbyte a erlang en PS Tipo 4 | H61: [erlang/kbyte] | I61: =1/I57/60 -> 8.888888889e-05
F62: 49 | G62: Kbyte a erlang en PS Tipo 5 | H62: [erlang/kbyte] | I62: =1/I58/60 -> 5.925925926e-05
F63: 50 | G63: Kbyte a erlang mezclado PS | H63: [erlang/kbyte] | I63: =SUMPRODUCT(I47:I50,I59:I62) -> 9.037037037e-05
E64: Carga de Señalización a la salida del RNC para los Erlangs
F65: 51 | G65: Tipo 1 | I65: 0.3
F66: 52 | G66: PS Tipo 2 | I66: 0.1
F67: 53 | G67: PS Tipo 3 | I67: 0.1
F68: 54 | G68: PS Tipo 4 | I68: 0.1
F69: 55 | G69: PS Tipo 5 | I69: 0.1
F70: 56 | G70: PS Combinado | I70: =SUMPRODUCT(I66:I69,I47:I50) -> 0.1
E71: R99 Carga de Datos IP de Voz (Overhead)
F72: 57 | G72: Paquete: Tamaño de paquete | H72: [bytes] | I72: 2000
F73: 58 | G73: Paquete: Overhead de TCP | H73: [bytes] | I73: 50
F74: 59 | G74: Paquete: Overhead de IP | H74: [bytes] | I74: 50
F75: 60 | G75: SNDCP | H75: [bytes] | I75: 50
F76: 61 | G76: LLC: Carga | H76: [bytes] | I76: 500
F77: 62 | G77: LLC: Overhead | H77: [bytes] | I77: 5
F78: 63 | G78: RLC/MAC: Carga | H78: [bytes] | I78: 50
F79: 64 | G79: RLC/MAC: Overhead | H79: [bytes] | I79: 5
F80: 65 | G80: Carga Total | H80: [bytes] | I80: =(I72+SUM(I73:I74,I75,SUM(I72:I74,I75)*I77/I76))/(1-I79/I78) -> 2412.777778
F81: 66 | G81: Overhead Total | H81: [%] | I81: =(I80-I72)/I80 -> 0.1710798987
E82: Parámetros de Datos
F83: 67 | G83: Contextos PDP por Usuario de Datos Promedio | H83: [pdp/Mbps] | I83: 500
F84: 68 | G84: Contextos CDRs por Gbit de Datos Promedio | H84: [cdr/Gbit] | I84: 300
F85: 69 | G85: Sesiones Concurrentes por Usuario | H85: [ses/Mbps] | I85: 50
F87: 68
A90: 2 | B90: Caracterización de la Velocidad
C92: Distribución de Velocidad con Respecto al Promedio Por Zona
I94: HSDPA | J94: HSDPA | K94: HSUPA | L94: HSUPA
F95: ID | G95: Geotipo | I95: Razón de Velocidad | J95: Razón de Peak de Velocidad | K95: Razón de Velocidad | L95: Razón de Peak de Velocidad
F96: 1 | G96: =INDEX(l.geo.nom,F96) -> 3G Tipo 1 | I96: 0.8 | J96: 0.8 | K96: 0.8 | L96: 0.8
F97: 2 | G97: 3G Tipo 2 | I97: 0.8 | J97: 0.8 | K97: 0.8 | L97: 0.8
F98: 3 | G98: 3G Tipo 3 | I98: 0.8 | J98: 0.8 | K98: 0.8 | L98: 0.8
F99: 4 | G99: 3G Tipo 4 | I99: 0.8 | J99: 0.8 | K99: 0.8 | L99: 0.8
F100: 5 | G100: 2G Tipo 1
F101: 6 | G101: 2G Tipo 2
F102: 7 | G102: 2G Tipo 3
F103: 8 | G103: 2G Tipo 4
F104: 9 | G104: libre
F105: 10 | G105: libre
F106: 11 | G106: libre
F107: 12 | G107: Carreteras | I107: 0.8 | J107: 0.8 | K107: 0.8 | L107: 0.8
C114: Caracteristicas de HSDPA
G116: Tipos de Alta Velocidad | I116: Velocidad Teórica [kbps] | J116: Overhead y Señalización | K116: Canales A-DCH HSUPA | L116: Portadoras | M116: RRU Extra | N116: Codigos | O116: Señalización por Canal PS | P116: Factor de Conversión a Erlang | Q116: Velocidad [kbps]
G117: HSDPA Tipo 0 | I117: 0 | J117: 0 | K117: 0 | L117: 0 | M117: 0 | N117: 0 | O117: 0 | P117: =IF(I117=0,0,p.b2B*1024/(I117*1000*3600)) -> 0 | Q117: =I117*INDEX(erlg.tb.erl,MAX(MATCH(N117/3,INDEX(erlg.tb.ch,0,MATCH(p.ia.bloq.HSPA,erlg.tb.he,0)),1)-1,1),MATCH(p.ia.bloq.HSPA,erlg.tb.he,0))/INDEX(erlg.tb.erl,MAX(MATCH(N117/3,INDEX(erlg.tb.ch,0,MATCH(p.ia.bloq.R99,erlg.tb.he,0)),1)-1,1),MATCH(p.ia.bloq.R99,erlg.tb.he,0))*(1-J117) -> 0
G118: HSDPA Tipo 1 | I118: 10000 | J118: 0.25 | K118: 5 | L118: 1 | M118: 1 | N118: 10 | O118: 0.1 | P118: =IF(I118=0,0,p.b2B*1024/(I118*1000*3600)) -> 2.275555556e-07 | Q118: =I118*INDEX(erlg.tb.erl,MAX(MATCH(N118/3,INDEX(erlg.tb.ch,0,MATCH(p.ia.bloq.HSPA,erlg.tb.he,0)),1)-1,1),MATCH(p.ia.bloq.HSPA,erlg.tb.he,0))/INDEX(erlg.tb.erl,MAX(MATCH(N118/3,INDEX(erlg.tb.ch,0,MATCH(p.ia.bloq.R99,erlg.tb.he,0)),1)-1,1),MATCH(p.ia.bloq.R99,erlg.tb.he,0))*(1-J118) -> 5615.814121
G119: HSDPA Tipo 2 | I119: 20000 | J119: 0.25 | K119: 10 | L119: 2 | M119: 2 | N119: 20 | O119: 0.2 | P119: =IF(I119=0,0,p.b2B*1024/(I119*1000*3600)) -> 1.137777778e-07 | Q119: =I119*INDEX(erlg.tb.erl,MAX(MATCH(N119/3,INDEX(erlg.tb.ch,0,MATCH(p.ia.bloq.HSPA,erlg.tb.he,0)),1)-1,1),MATCH(p.ia.bloq.HSPA,erlg.tb.he,0))/INDEX(erlg.tb.erl,MAX(MATCH(N119/3,INDEX(erlg.tb.ch,0,MATCH(p.ia.bloq.R99,erlg.tb.he,0)),1)-1,1),MATCH(p.ia.bloq.R99,erlg.tb.he,0))*(1-J119) -> 11231.62824
G120: HSDPA Tipo 3 | I120: 30000 | J120: 0.25 | K120: 15 | L120: 3 | M120: 3 | N120: 30 | O120: 0.3 | P120: =IF(I120=0,0,p.b2B*1024/(I120*1000*3600)) -> 7.585185185e-08 | Q120: =I120*INDEX(erlg.tb.erl,MAX(MATCH(N120/3,INDEX(erlg.tb.ch,0,MATCH(p.ia.bloq.HSPA,erlg.tb.he,0)),1)-1,1),MATCH(p.ia.bloq.HSPA,erlg.tb.he,0))/INDEX(erlg.tb.erl,MAX(MATCH(N120/3,INDEX(erlg.tb.ch,0,MATCH(p.ia.bloq.R99,erlg.tb.he,0)),1)-1,1),MATCH(p.ia.bloq.R99,erlg.tb.he,0))*(1-J120) -> 16847.44236
G121: HSDPA Tipo 4 | I121: 40000 | J121: 0.25 | K121: 20 | L121: 4 | M121: 4 | N121: 40 | O121: 0.4 | P121: =IF(I121=0,0,p.b2B*1024/(I121*1000*3600)) -> 5.688888889e-08 | Q121: =I121*INDEX(erlg.tb.erl,MAX(MATCH(N121/3,INDEX(erlg.tb.ch,0,MATCH(p.ia.bloq.HSPA,erlg.tb.he,0)),1)-1,1),MATCH(p.ia.bloq.HSPA,erlg.tb.he,0))/INDEX(erlg.tb.erl,MAX(MATCH(N121/3,INDEX(erlg.tb.ch,0,MATCH(p.ia.bloq.R99,erlg.tb.he,0)),1)-1,1),MATCH(p.ia.bloq.R99,erlg.tb.he,0))*(1-J121) -> 15511.26675
C126: Caracteristicas de HSUPA
G129: Tipos de Alta Velocidad | I129: Velocidad Teórica [kbps] | J129: Overhead y Señalización | K129: Canales HSUPA | L129: RRU Extra | M129: Factor de Conversión a Erlang | N129: Velocidad [kbps]
G130: HSUPA Tipo 0 | I130: 0 | J130: 0 | K130: 0 | L130: 0 | M130: =IF(I130=0,0,p.b2B*1024/(I130*1000*3600)) -> 0 | N130: =I130*INDEX(erlg.tb.erl,MAX(MATCH(K130,INDEX(erlg.tb.ch,0,MATCH(p.ia.bloq.HSPA,erlg.tb.he,0)),1)-1,1),MATCH(p.ia.bloq.HSPA,erlg.tb.he,0))/INDEX(erlg.tb.erl,MAX(MATCH(K130,INDEX(erlg.tb.ch,0,MATCH(p.ia.bloq.R99,erlg.tb.he,0)),1)-1,1),MATCH(p.ia.bloq.R99,erlg.tb.he,0))*(1-J130) -> 0
G131: HSUPA Tipo 1 | I131: 1000 | J131: 0.1 | K131: 10 | L131: 1 | M131: =IF(I131=0,0,p.b2B*1024/(I131*1000*3600)) -> 2.275555556e-06 | N131: =I131*INDEX(erlg.tb.erl,MAX(MATCH(K131,INDEX(erlg.tb.ch,0,MATCH(p.ia.bloq.HSPA,erlg.tb.he,0)),1)-1,1),MATCH(p.ia.bloq.HSPA,erlg.tb.he,0))/INDEX(erlg.tb.erl,MAX(MATCH(K131,INDEX(erlg.tb.ch,0,MATCH(p.ia.bloq.R99,erlg.tb.he,0)),1)-1,1),MATCH(p.ia.bloq.R99,erlg.tb.he,0))*(1-J131) -> 673.8976945
G132: HSUPA Tipo 2 | I132: 2000 | J132: 0.2 | K132: 20 | L132: 2 | M132: =IF(I132=0,0,p.b2B*1024/(I132*1000*3600)) -> 1.137777778e-06 | N132: =I132*INDEX(erlg.tb.erl,MAX(MATCH(K132,INDEX(erlg.tb.ch,0,MATCH(p.ia.bloq.HSPA,erlg.tb.he,0)),1)-1,1),MATCH(p.ia.bloq.HSPA,erlg.tb.he,0))/INDEX(erlg.tb.erl,MAX(MATCH(K132,INDEX(erlg.tb.ch,0,MATCH(p.ia.bloq.R99,erlg.tb.he,0)),1)-1,1),MATCH(p.ia.bloq.R99,erlg.tb.he,0))*(1-J132) -> 1293.448938
G133: HSUPA Tipo 3 | I133: 3000 | J133: 0.3 | K133: 30 | L133: 3 | M133: =IF(I133=0,0,p.b2B*1024/(I133*1000*3600)) -> 7.585185185e-07 | N133: =I133*INDEX(erlg.tb.erl,MAX(MATCH(K133,INDEX(erlg.tb.ch,0,MATCH(p.ia.bloq.HSPA,erlg.tb.he,0)),1)-1,1),MATCH(p.ia.bloq.HSPA,erlg.tb.he,0))/INDEX(erlg.tb.erl,MAX(MATCH(K133,INDEX(erlg.tb.ch,0,MATCH(p.ia.bloq.R99,erlg.tb.he,0)),1)-1,1),MATCH(p.ia.bloq.R99,erlg.tb.he,0))*(1-J133) -> 1772.438604
G134: HSUPA Tipo 4 | I134: 4000 | J134: 0.4 | K134: 40 | L134: 4 | M134: =IF(I134=0,0,p.b2B*1024/(I134*1000*3600)) -> 5.688888889e-07 | N134: =I134*INDEX(erlg.tb.erl,MAX(MATCH(K134,INDEX(erlg.tb.ch,0,MATCH(p.ia.bloq.HSPA,erlg.tb.he,0)),1)-1,1),MATCH(p.ia.bloq.HSPA,erlg.tb.he,0))/INDEX(erlg.tb.erl,MAX(MATCH(K134,INDEX(erlg.tb.ch,0,MATCH(p.ia.bloq.R99,erlg.tb.he,0)),1)-1,1),MATCH(p.ia.bloq.R99,erlg.tb.he,0))*(1-J134) -> 2025.644118
A139: 3 | B139: Perfil de llamadas
F142: ID | G142: Tipo | I142: Radio Erlangs por Erlang | J142: Intentos de llamada al MSC por intento de llamada | K142: MHT | L142: Llamadas no producidas por el Comportamiento de los Usuarios | M142: Tiempo de Timbrado | N142: Tiempo de llamado por minuto de llamada exitosa | O142: Factor de Aumento por Tráfico Facturado
F143: 4 | G143: =INDEX(l.serv.nom,F143) -> Tráfico Móvil Voz entrante desde otras móviles | I143: =INDEX(p.ran.rf,$F143) -> 1 | J143: =INDEX(p.core.rf,$F143) -> 1 | K143: =RAND() -> 0.6573016101 | L143: =RAND() -> 0.376495228 | M143: =RAND() -> 0.6976309808 | N143: =1/(1-L143)/K143*M143 -> 1.702241918 | O143: =N143+1 -> 2.702241918
F144: 5 | G144: Tráfico Móvil Voz entrante desde redes fijas | I144: 1 | J144: 1 | K144: =K143 -> 0.6573016101 | L144: =L143 -> 0.376495228 | M144: =M143 -> 0.6976309808 | N144: 1.702241918 | O144: 2.702241918
F145: 6 | G145: Tráfico Móvil Voz entrante desde públicos | I145: 1 | J145: 1 | K145: 0.6573016101 | L145: 0.376495228 | M145: 0.6976309808 | N145: 1.702241918 | O145: 2.702241918
F146: 7 | G146: Tráfico Móvil Voz entrante desde LDI | I146: 1 | J146: 1 | K146: 0.6573016101 | L146: 0.376495228 | M146: 0.6976309808 | N146: 1.702241918 | O146: 2.702241918
F147: 8 | G147: Tráfico on-net | I147: 2 | J147: 1 | K147: 0.6573016101 | L147: 0.376495228 | M147: 0.6976309808 | N147: 1.702241918 | O147: 2.702241918
F148: 9 | G148: Tráfico Móvil Voz saliente a otras móviles | I148: 1 | J148: 1 | K148: 0.6573016101 | L148: 0.376495228 | M148: 0.6976309808 | N148: 1.702241918 | O148: 2.702241918
F149: 10 | G149: Tráfico Móvil Voz saliente a redes fijas | I149: 1 | J149: 1 | K149: 0.6573016101 | L149: 0.376495228 | M149: 0.6976309808 | N149: 1.702241918 | O149: 2.702241918
F150: 11 | G150: Tráfico Móvil Voz saliente a LDI | I150: 1 | J150: 1 | K150: 0.6573016101 | L150: 0.376495228 | M150: 0.6976309808 | N150: 1.702241918 | O150: 2.702241918
F151: 12 | G151: libre | I151: 0 | J151: 0 | K151: 0.6573016101 | L151: 0.376495228 | M151: 0.6976309808 | N151: 1.702241918 | O151: 2.702241918
F152: 13 | G152: libre | I152: 0 | J152: 0 | K152: 0.6573016101 | L152: 0.376495228 | M152: 0.6976309808 | N152: 1.702241918 | O152: 2.702241918
F153: 40 | G153: libre | I153: 0 | J153: 0 | K153: 0.6573016101 | L153: 0.376495228 | M153: 0.6976309808 | N153: 1.702241918 | O153: 2.702241918
F154: 40 | G154: libre | I154: 0 | J154: 0 | K154: 0.6573016101 | L154: 0.376495228 | M154: 0.6976309808 | N154: 1.702241918 | O154: 2.702241918
F155: 40 | G155: libre | I155: 0 | J155: 0 | K155: 0.6573016101 | L155: 0.376495228 | M155: 0.6976309808 | N155: 1.702241918 | O155: 2.702241918
F156: 40 | G156: libre | I156: 0 | J156: 0 | K156: 0.6573016101 | L156: 0.376495228 | M156: 0.6976309808 | N156: 1.702241918 | O156: 2.702241918
F157: 40 | G157: libre | I157: 0 | J157: 0 | K157: 0.6573016101 | L157: 0.376495228 | M157: 0.6976309808 | N157: 1.702241918 | O157: 2.702241918
F158: 40 | G158: libre | I158: 0 | J158: 0 | K158: 0.6573016101 | L158: 0.376495228 | M158: 0.6976309808 | N158: 1.702241918 | O158: 2.702241918
F159: 40 | G159: libre | I159: 0 | J159: 0 | K159: 0.6573016101 | L159: 0.376495228 | M159: 0.6976309808 | N159: 1.702241918 | O159: 2.702241918
F160: 40 | G160: libre | I160: 0 | J160: 0 | K160: 0.6573016101 | L160: 0.376495228 | M160: 0.6976309808 | N160: 1.702241918 | O160: 2.702241918
F161: 40 | G161: libre | I161: 0 | J161: 0 | K161: 0.6573016101 | L161: 0.376495228 | M161: 0.6976309808 | N161: 1.702241918 | O161: 2.702241918
F162: 40 | G162: libre | I162: 0 | J162: 0 | K162: 0.6573016101 | L162: 0.376495228 | M162: 0.6976309808 | N162: 1.702241918 | O162: 2.702241918
A166: 4 | B166: Factores de Ruteo
I169: Factores de Ruteo | M169: Transformaciónes a HC
F170: ID | G170: Tipo | I170: RAN | J170: CORE | K170: ITX | M170: RAN
F171: 1 | G171: =INDEX(l.serv.nom,F171) -> Cliente Tipo 1 | H171: =INDEX(l.serv.u,F171) -> [abonado]
F172: 2 | G172: Cliente Tipo 2 | H172: [abonado]
F173: 3 | G173: Cliente Tipo 3 | H173: [abonado]
F174: 4 | G174: Tráfico Móvil Voz entrante desde otras móviles | H174: [minutos] | I174: 1 | J174: 1 | K174: 1 | L174: [Mbps/min] | M174: =p.hc.v*p.fc.geo/(p.dc*p.min.h)*(1+p.data.ip.over)*p.vv.r/1024*O144 -> 5.85297776e-06
F175: 5 | G175: Tráfico Móvil Voz entrante desde redes fijas | H175: [minutos] | I175: 1 | J175: 1 | K175: 1 | L175: [Mbps/min] | M175: 5.85297776e-06
F176: 6 | G176: Tráfico Móvil Voz entrante desde públicos | H176: [minutos] | I176: 1 | J176: 1 | K176: 1 | L176: [Mbps/min] | M176: 5.85297776e-06
F177: 7 | G177: Tráfico Móvil Voz entrante desde LDI | H177: [minutos] | I177: 1 | J177: 1 | K177: 1 | L177: [Mbps/min] | M177: 5.85297776e-06
F178: 8 | G178: Tráfico on-net | H178: [minutos] | I178: 2 | J178: 1 | L178: [Mbps/min] | M178: 5.85297776e-06
F179: 9 | G179: Tráfico Móvil Voz saliente a otras móviles | H179: [minutos] | I179: 1 | J179: 1 | K179: 1 | L179: [Mbps/min] | M179: 5.85297776e-06
F180: 10 | G180: Tráfico Móvil Voz saliente a redes fijas | H180: [minutos] | I180: 1 | J180: 1 | K180: 1 | L180: [Mbps/min] | M180: 5.85297776e-06
F181: 11 | G181: Tráfico Móvil Voz saliente a LDI | H181: [minutos] | I181: 1 | J181: 1 | K181: 1 | L181: [Mbps/min] | M181: 5.85297776e-06
F182: 12 | G182: libre | H182: [-]
F183: 13 | G183: libre | H183: [-]
F184: 14 | G184: SMS saliente a otras móviles | H184: [SMS] | I184: 1 | J184: 1 | K184: 1 | L184: [Mbps/SMS] | M184: =p.hc.m*p.b2B*$I$34/(p.dc*1024*p.min.h*p.min.h) -> 8.220223064e-10
F185: 15 | G185: SMS on-net | H185: [SMS] | I185: 2 | J185: 1 | K185: 1 | L185: [Mbps/SMS] | M185: =p.hc.m*p.b2B*$I$34/(p.dc*1024*p.min.h*p.min.h) -> 8.220223064e-10
F186: 16 | G186: SMS entrante desde otras móviles | H186: [SMS] | I186: 1 | J186: 1 | K186: 1 | L186: [Mbps/SMS] | M186: =p.hc.m*p.b2B*$I$34/(p.dc*1024*p.min.h*p.min.h) -> 8.220223064e-10
F187: 17 | G187: libre | H187: [-]
F188: 18 | G188: libre | H188: [-]
F189: 19 | G189: libre | H189: [-]
F190: 20 | G190: Conexiones Móvil Datos banda ancha e internet móvil | H190: [Conexión]
F191: 21 | G191: Tráfico Móvil Datos banda ancha e internet móvil Bajada | H191: [TByte] | I191: 1 | J191: 1 | K191: 1 | L191: [Mbps/TByte] | M191: =p.hc.d/(p.dc*p.min.h*p.min.h)*p.b2B*(1+INDEX(p.hsdpa.l.head.geo,2))*1024*1024 -> 2.206599327
F192: 22 | G192: Tráfico Móvil Datos banda ancha e internet móvil Subida | H192: [TByte] | I192: 1 | J192: 1 | K192: 1 | L192: [Mbps/TByte] | M192: =p.hc.d/(p.dc*p.min.h*p.min.h)*p.b2B*(1+INDEX(p.hsdpa.l.head.geo,2))*1024*1024 -> 2.206599327
F193: 23 | G193: libre | H193: [-]
F194: 24 | G194: libre | H194: [-]
F195: 25 | G195: libre | H195: libre
F196: 26 | G196: libre | H196: libre
F197: 27 | G197: libre | H197: libre
F198: 28 | G198: libre | H198: libre
F199: 29 | G199: libre | H199: libre
F200: 30 | G200: libre | H200: libre
F201: 31 | G201: libre | H201: libre
F202: 32 | G202: libre | H202: libre
F203: 33 | G203: libre | H203: libre
F204: 34 | G204: libre | H204: libre
F205: 35 | G205: libre | H205: libre
F206: 36 | G206: libre | H206: libre
F207: 37 | G207: libre | H207: libre
F208: 38 | G208: libre | H208: libre
F209: 39 | G209: libre | H209: libre
F210: 40 | G210: libre | H210: libre
F211: 41 | G211: libre | H211: libre
F212: 42 | G212: libre | H212: libre
F213: 43 | G213: libre | H213: libre
F214: 44 | G214: libre | H214: libre
F215: 45 | G215: libre | H215: libre
A222: 5 | B222: Carga de las Estaciones Base
G225: Probabilidad de bloqueo en la interfaz aérea | I225: Erlang B 0.1%
G226: Probabilidad de bloqueo en la interfaz aérea HSPA | I226: Erlang C 2%/10%
G228: Soft Handhover | H228: [%] | I228: =RAND() -> 0.9430383008
G229: Retransmisión | H229: [%] | I229: =RAND() -> 0.09643578633
G232: Canales Mínimos de Señalización | H232: [CE] | I232: 100
G233: Canales Mínimos Incluyendo Señalización en el DL | H233: [CE] | I233: 1000
G234: Códigos mínimos activos de Software para HSDPA | H234: [codigos] | I234: 100000
G235: Canales Máximos Incluyendo Señalización | H235: [CE] | I235: =MIN(p.ce.UL,p.ce.DL) -> 500
G236: Canales Máximos Incluyendo Señalización UL | H236: [CE] | I236: 1000
G237: Canales Máximos Incluyendo Señalización DL | H237: [CE] | I237: 500
G238: Número máximo de Nucleos | H238: [WBBP] | I238: 3
G239: Número máximo de Usuarios Equivalentes por Nucleo | H239: [Usuarios] | I239: 200
A242: 6 | B242: Configuración de la Estaciones Base
G244: Sectores Mínimos | I244: 10
G245: Portadoras Mínimas por Sector | I245: 10
G246: RRU Mínimas por Sector | I246: 10
G248: Sectores Promedio por Sitio Macro | I248: 10
... 330 more rows

Sheet CU.Red
H2: ='Panel de Control'!$H$2 -> Modelo Dinámico de Cargo de Interconexión Móvil (Costos Históricos)
H3: Costos Unitarios de Red
B7: Nodos B Inversión
F9: Parámetros de Precio
G10: FCA a DDU | I10: [%] | J10: =RAND() -> 0.342062282
G11: Aduana | I11: [%] | J11: =RAND() -> 0.2634624596
G12: Transporte Local | I12: [%] | J12: 0.3813180128
C15: Nodo B: Hardware
J17: Node B WCDMA
G18: Item | J18: Node B Tipo 1 | K18: Node B Tipo 2 | L18: Node B Tipo 3
F19: Configuración Básica
G20: Sectores | I20: [#] | J20: 10 | K20: 10 | L20: 10
G21: Nucleos | I21: [#] | J21: 1 | K21: 2 | L21: 3
F22: Nodo B: Configuración
G23: Componente 1 | J23: 1 | K23: 1 | L23: 1
G24: Componente 2 | J24: 1 | K24: 1 | L24: 1
G25: Componente 3 | J25: 1 | K25: 1 | L25: 1
G26: Componente 4 | J26: =J$21 -> 1 | K26: =K$21 -> 2 | L26: 3
G27: Componente 5 | J27: 1 | K27: 1 | L27: 1
G28: Componente 6 | J28: 1 | K28: 1 | L28: 1
G29: Componente 7 | J29: =J$20*4 -> 40 | K29: =K$20*4 -> 40 | L29: 40
G30: Componente 8 | J30: =J$20 -> 10 | K30: =K$20 -> 10 | L30: 10
G31: Componente 9 | J31: 1 | K31: 1 | L31: 1
F32: Nodo B: Precios FCA
G33: =G23 -> Componente 1 | I33: [$US] | J33: 100000 | K33: =J33 -> 100000 | L33: 100000
G34: =G24 -> Componente 2 | I34: [$US] | J34: 100000 | K34: 100000 | L34: 100000
G35: Componente 3 | I35: [$US] | J35: 100000 | K35: 100000 | L35: 100000
G36: Componente 4 | I36: [$US] | J36: 100000 | K36: 100000 | L36: 100000
G37: Componente 5 | I37: [$US] | J37: 100000 | K37: 100000 | L37: 100000
G38: Componente 6 | I38: [$US] | J38: 100000 | K38: 100000 | L38: 100000
G39: Componente 7 | I39: [$US] | J39: 100000 | K39: 100000 | L39: 100000
G40: Componente 8 | I40: [$US] | J40: 100000 | K40: 100000 | L40: 100000
G41: Componente 9 | I41: [$US] | J41: 100000 | K41: 100000 | L41: 100000
F42: Nodo B: Precio Kit Nodo B
G43: Precio | I43: [$US] | J43: =SUMPRODUCT(J23:J31,J33:J41) -> 5700000 | K43: =SUMPRODUCT(K23:K31,K33:K41) -> 5800000 | L43: =SUMPRODUCT(L23:L31,L33:L41) -> 5900000
F44: Energía
G45: Componente 1 | J45: 1 | K45: =J45 -> 1 | L45: 1
G46: Componente 2 | J46: =J20 -> 10 | K46: =K20 -> 10 | L46: 10
G47: Componente 3 | J47: 2 | K47: 2 | L47: 2
G48: Componente 4 | J48: 1 | K48: 1 | L48: 1
G49: Componente 5 | J49: 1 | K49: 1 | L49: 1
G50: Componente 6 | J50: 1 | K50: 1 | L50: 1
G51: Componente 7 | J51: 1 | K51: =J51 -> 1 | L51: =K51 -> 1
G52: Componente 8 | J52: 1 | K52: 1 | L52: 1
G53: Componente 9 | J53: 1 | K53: 1 | L53: 1
G54: Componente 10 | J54: 1 | K54: 1 | L54: 1
G55: Componente 11 | J55: =J46*10 -> 100 | K55: =K46*10 -> 100 | L55: 100
G56: Componente 12 | J56: =J47*10 -> 20 | K56: =K47*10 -> 20 | L56: 20
G57: Componente 13 | J57: 1 | K57: 1 | L57: 1
F58: Energía Precios Unitarios
G59: =G45 -> Componente 1 | I59: [$US] | J59: 100000 | K59: =J59 -> 100000 | L59: 100000
G60: =G46 -> Componente 2 | I60: [$US] | J60: 100000 | K60: 100000 | L60: 100000
G61: Componente 3 | I61: [$US] | J61: 100000 | K61: 100000 | L61: 100000
G62: Componente 4 | I62: [$US] | J62: 100000 | K62: 100000 | L62: 100000
G63: Componente 5 | I63: [$US] | J63: 100000 | K63: 100000 | L63: 100000
G64: Componente 6 | I64: [$US] | J64: 100000 | K64: 100000 | L64: 100000
G65: Componente 7 | I65: [$US] | J65: 100000 | K65: 100000 | L65: 100000
G66: Componente 8 | I66: [$US] | J66: 100000 | K66: 100000 | L66: 100000
G67: Componente 9 | I67: [$US] | J67: 100000 | K67: 100000 | L67: 100000
G68: Componente 10 | I68: [$US] | J68: 100000 | K68: 100000 | L68: 100000
G69: Componente 11 | I69: [$US] | J69: 100000 | K69: 100000 | L69: 100000
G70: Componente 12 | I70: [$US] | J70: 100000 | K70: 100000 | L70: 100000
G71: Componente 13 | I71: [$US] | J71: 100000 | K71: 100000 | L71: 100000
F72: Nodo B: Precio Energía
G73: Precio | I73: [$US] | J73: =SUMPRODUCT(J45:J57,J59:J71) -> 14100000 | K73: =SUMPRODUCT(K45:K57,K59:K71) -> 14100000 | L73: =SUMPRODUCT(L45:L57,L59:L71) -> 14100000
F74: Radio/Antenas: Configuración
G75: Componente 1 | J75: =J20 -> 10 | K75: =K20 -> 10 | L75: =L20 -> 10
G76: Componente 2 | J76: 0 | K76: 0 | L76: 0
F77: Radio/Antenas: Configuración
G78: =G75 -> Componente 1 | I78: [$US] | J78: 500000 | K78: =J78 -> 500000 | L78: =K78 -> 500000
G79: =G76 -> Componente 2 | I79: [$US] | J79: 500000 | K79: 500000 | L79: 500000
F80: Radio/Antenas: Precio Unitario
G81: Precio | I81: [$US] | J81: =SUMPRODUCT(J75:J76,J78:J79) -> 5000000 | K81: =SUMPRODUCT(K75:K76,K78:K79) -> 5000000 | L81: 5000000
F82: Descuentos
G83: Promocion | I83: [$US] | J83: 0 | K83: 0 | L83: 0
F84: Precio de Nodo B + Energía + Antenas
G85: Valor Final | I85: [$US] | J85: =J43+J73+J81+J83 -> 24800000 | K85: =K43+K73+K81+K83 -> 24900000 | L85: 25000000
C89: Nodo B: HWAC
D91: Costos de Licencias por CE
G93: Tramo | J93: LB | K93: UB | M93: Precio DDP DL | N93: Precio DDP UL
G94: Licencias Tipo 1 | I94: [# CE] | J94: 0 | K94: 100 | L94: [per 16CE] | M94: 200 | N94: 200
G95: Licencias Tipo 2 | I95: [# CE] | J95: =K94 -> 100 | K95: 200 | L95: [per 16CE] | M95: 100 | N95: 100
G96: Licencias Tipo 3 | I96: [# CE] | J96: =K95 -> 200 | K96: 300 | L96: [per 16CE] | M96: 50 | N96: 50
G97: Licencias Tipo 4 | I97: [# CE] | J97: =K96 -> 300 | L97: [per 16CE] | M97: 25 | N97: 25
D100: Costos de Licencias Básicas
J102: Precio DDP
F103: Configuración Básica Obligatoria
G104: Modulo 1 | I104: [per Sector] | J104: 100
G105: Modulo 2 | I105: [per Sectorx4] | J105: 100
G106: Modulo 3 | I106: [per Code] | J106: 100
G107: Modulo 4 | I107: [per NodeB] | J107: 100
G108: Modulo 5 | I108: [per Sector] | J108: 100
G109: Modulo 6 | I109: [per cell] | J109: 100
G110: Modulo 7 | I110: [per cell] | J110: 100
G111: Modulo 8 | I111: [per cell] | J111: 100
G112: Modulo 9 | I112: [per cell] | J112: 100
G113: Modulo 10 | I113: [per Sectorx4] | J113: 100
F114: Configuración Variable
G115: Licencia 1 | I115: [per 20W/RRU] | J115: 100
G116: Licencia 2 | I116: [per Carrier] | J116: 100
D118: Cantidades de Configuración Básica
J120: Cantidades
G121: =G104 -> Modulo 1 | I121: [per Sector] | J121: =MAX(ranct.nodob.hd.sec) -> 10
G122: =G105 -> Modulo 2 | I122: [per Sectorx4] | J122: =MAX(ranct.nodob.hd.sec)*4 -> 40
G123: Modulo 3 | I123: [per Code] | J123: =p.cod.min -> 100000
G124: Modulo 4 | I124: [per NodeB] | J124: 30
G125: Modulo 5 | I125: [per Sector] | J125: =MAX(ranct.nodob.hd.sec) -> 10
G126: Modulo 6 | I126: [per cell] | J126: =MAX(ranct.nodob.hd.sec) -> 10
G127: Modulo 7 | I127: [per cell] | J127: =MAX(ranct.nodob.hd.sec) -> 10
G128: Modulo 8 | I128: [per cell] | J128: =MAX(ranct.nodob.hd.sec) -> 10
G129: Modulo 9 | I129: [per cell] | J129: =MAX(ranct.nodob.hd.sec) -> 10
G130: Modulo 10 | I130: [per Sectorx4] | J130: =MAX(ranct.nodob.hd.sec)*4 -> 40
I132: [per NodeB] | J132: =SUMPRODUCT($J$121:$J$130,$J$104:$J$113) -> 10017000
D135: Tabla de Licenciamiento
J137: 1 | K137: 2 | L137: 3 | M137: 4
E138: Aux | F138: ID | G138: CE | J138: =J94 -> 0 | K138: =J95 -> 100 | L138: =J96 -> 200 | M138: =J97 -> 300
E139: =MATCH(G139,$J$94:$J$97,1) -> 1 | F139: 1 | G139: =25*F139 -> 25 | I139: [# Licencias] | J139: =CEILING(IF($E139<J$137,0,IF($E139>J$137,N(K$138)-J$138,$G139-J$138))/p.mod.ce,1) -> 3 | K139: 0 | L139: 0 | M139: 0
E140: 1 | F140: 2 | G140: =25*F140 -> 50 | I140: [# Licencias] | J140: 5 | K140: 0 | L140: 0 | M140: 0
E141: 1 | F141: 3 | G141: 75 | I141: [# Licencias] | J141: 8 | K141: 0 | L141: 0 | M141: 0
E142: 2 | F142: 4 | G142: 100 | I142: [# Licencias] | J142: 10 | K142: 0 | L142: 0 | M142: 0
E143: 2 | F143: 5 | G143: 125 | I143: [# Licencias] | J143: 10 | K143: 3 | L143: 0 | M143: 0
E144: 2 | F144: 6 | G144: 150 | I144: [# Licencias] | J144: 10 | K144: 5 | L144: 0 | M144: 0
E145: 2 | F145: 7 | G145: 175 | I145: [# Licencias] | J145: 10 | K145: 8 | L145: 0 | M145: 0
E146: 3 | F146: 8 | G146: 200 | I146: [# Licencias] | J146: 10 | K146: 10 | L146: 0 | M146: 0
E147: 3 | F147: 9 | G147: 225 | I147: [# Licencias] | J147: 10 | K147: 10 | L147: 3 | M147: 0
E148: 3 | F148: 10 | G148: 250 | I148: [# Licencias] | J148: 10 | K148: 10 | L148: 5 | M148: 0
E149: 3 | F149: 11 | G149: 275 | I149: [# Licencias] | J149: 10 | K149: 10 | L149: 8 | M149: 0
E150: 4 | F150: 12 | G150: 300 | I150: [# Licencias] | J150: 10 | K150: 10 | L150: 10 | M150: 0
E151: 4 | F151: 13 | G151: 325 | I151: [# Licencias] | J151: 10 | K151: 10 | L151: 10 | M151: 3
E152: 4 | F152: 14 | G152: 350 | I152: [# Licencias] | J152: 10 | K152: 10 | L152: 10 | M152: 5
E153: 4 | F153: 15 | G153: 375 | I153: [# Licencias] | J153: 10 | K153: 10 | L153: 10 | M153: 8
E154: 4 | F154: 16 | G154: 400 | I154: [# Licencias] | J154: 10 | K154: 10 | L154: 10 | M154: 10
E155: 4 | F155: 17 | G155: 425 | I155: [# Licencias] | J155: 10 | K155: 10 | L155: 10 | M155: 13
E156: 4 | F156: 18 | G156: 450 | I156: [# Licencias] | J156: 10 | K156: 10 | L156: 10 | M156: 15
E157: 4 | F157: 19 | G157: 475 | I157: [# Licencias] | J157: 10 | K157: 10 | L157: 10 | M157: 18
E158: 4 | F158: 20 | G158: 500 | I158: [# Licencias] | J158: 10 | K158: 10 | L158: 10 | M158: 20
E159: 4 | F159: 21 | G159: 525 | I159: [# Licencias] | J159: =CEILING(IF($E159<J$137,0,IF($E159>J$137,N(K$138)-J$138,$G159-J$138))/p.mod.ce,1) -> 10 | K159: 10 | L159: 10 | M159: 23
E160: 4 | F160: 22 | G160: 550 | I160: [# Licencias] | J160: 10 | K160: 10 | L160: 10 | M160: 25
E161: 4 | F161: 23 | G161: 575 | I161: [# Licencias] | J161: 10 | K161: 10 | L161: 10 | M161: 28
E162: 4 | F162: 24 | G162: 600 | I162: [# Licencias] | J162: 10 | K162: 10 | L162: 10 | M162: 30
E163: 4 | F163: 25 | G163: 625 | I163: [# Licencias] | J163: 10 | K163: 10 | L163: 10 | M163: 33
E164: 4 | F164: 26 | G164: 650 | I164: [# Licencias] | J164: 10 | K164: 10 | L164: 10 | M164: 35
E165: 4 | F165: 27 | G165: 675 | I165: [# Licencias] | J165: 10 | K165: 10 | L165: 10 | M165: 38
E166: 4 | F166: 28 | G166: 700 | I166: [# Licencias] | J166: 10 | K166: 10 | L166: 10 | M166: 40
E167: 4 | F167: 29 | G167: 725 | I167: [# Licencias] | J167: 10 | K167: 10 | L167: 10 | M167: 43
E168: 4 | F168: 30 | G168: 750 | I168: [# Licencias] | J168: 10 | K168: 10 | L168: 10 | M168: 45
E169: 4 | F169: 31 | G169: 775 | I169: [# Licencias] | J169: 10 | K169: 10 | L169: 10 | M169: 48
E170: 4 | F170: 32 | G170: 800 | I170: [# Licencias] | J170: 10 | K170: 10 | L170: 10 | M170: 50
E171: =MATCH(G171,$J$94:$J$97,1) -> 4 | F171: 33 | G171: 825 | I171: [# Licencias] | J171: 10 | K171: 10 | L171: 10 | M171: 53
E172: 4 | F172: 34 | G172: 850 | I172: [# Licencias] | J172: 10 | K172: 10 | L172: 10 | M172: 55
E173: 4 | F173: 35 | G173: 875 | I173: [# Licencias] | J173: 10 | K173: 10 | L173: 10 | M173: 58
E174: 4 | F174: 36 | G174: 900 | I174: [# Licencias] | J174: 10 | K174: 10 | L174: 10 | M174: 60
E175: 4 | F175: 37 | G175: 925 | I175: [# Licencias] | J175: 10 | K175: 10 | L175: 10 | M175: 63
E176: 4 | F176: 38 | G176: 950 | I176: [# Licencias] | J176: 10 | K176: 10 | L176: 10 | M176: 65
E177: 4 | F177: 39 | G177: 975 | I177: [# Licencias] | J177: 10 | K177: 10 | L177: 10 | M177: 68
E178: 4 | F178: 40 | G178: 1000 | I178: [# Licencias] | J178: 10 | K178: 10 | L178: 10 | M178: 70
E179: 4 | F179: 41 | G179: 1025 | I179: [# Licencias] | J179: =CEILING(IF($E179<J$137,0,IF($E179>J$137,N(K$138)-J$138,$G179-J$138))/p.mod.ce,1) -> 10 | K179: 10 | L179: 10 | M179: 73
E180: 4 | F180: 42 | G180: 1050 | I180: [# Licencias] | J180: 10 | K180: 10 | L180: 10 | M180: 75
E181: 4 | F181: 43 | G181: 1075 | I181: [# Licencias] | J181: 10 | K181: 10 | L181: 10 | M181: 78
E182: 4 | F182: 44 | G182: 1100 | I182: [# Licencias] | J182: 10 | K182: 10 | L182: 10 | M182: 80
E183: 4 | F183: 45 | G183: 1125 | I183: [# Licencias] | J183: 10 | K183: 10 | L183: 10 | M183: 83
E184: 4 | F184: 46 | G184: 1150 | I184: [# Licencias] | J184: 10 | K184: 10 | L184: 10 | M184: 85
E185: 4 | F185: 47 | G185: 1175 | I185: [# Licencias] | J185: 10 | K185: 10 | L185: 10 | M185: 88
E186: 4 | F186: 48 | G186: 1200 | I186: [# Licencias] | J186: 10 | K186: 10 | L186: 10 | M186: 90
E187: 4 | F187: 49 | G187: 1225 | I187: [# Licencias] | J187: 10 | K187: 10 | L187: 10 | M187: 93
E188: 4 | F188: 50 | G188: 1250 | I188: [# Licencias] | J188: 10 | K188: 10 | L188: 10 | M188: 95
E189: 4 | F189: 51 | G189: 1275 | I189: [# Licencias] | J189: 10 | K189: 10 | L189: 10 | M189: 98
E190: 4 | F190: 52 | G190: 1300 | I190: [# Licencias] | J190: 10 | K190: 10 | L190: 10 | M190: 100
E191: 4 | F191: 53 | G191: 1325 | I191: [# Licencias] | J191: 10 | K191: 10 | L191: 10 | M191: 103
E192: 4 | F192: 54 | G192: 1350 | I192: [# Licencias] | J192: 10 | K192: 10 | L192: 10 | M192: 105
E193: 4 | F193: 55 | G193: 1375 | I193: [# Licencias] | J193: 10 | K193: 10 | L193: 10 | M193: 108
E194: 4 | F194: 56 | G194: 1400 | I194: [# Licencias] | J194: 10 | K194: 10 | L194: 10 | M194: 110
E195: 4 | F195: 57 | G195: 1425 | I195: [# Licencias] | J195: 10 | K195: 10 | L195: 10 | M195: 113
E196: 4 | F196: 58 | G196: 1450 | I196: [# Licencias] | J196: 10 | K196: 10 | L196: 10 | M196: 115
E197: 4 | F197: 59 | G197: 1475 | I197: [# Licencias] | J197: 10 | K197: 10 | L197: 10 | M197: 118
E198: 4 | F198: 60 | G198: 1500 | I198: [# Licencias] | J198: 10 | K198: 10 | L198: 10 | M198: 120
E199: 4 | F199: 61 | G199: 1525 | I199: [# Licencias] | J199: =CEILING(IF($E199<J$137,0,IF($E199>J$137,N(K$138)-J$138,$G199-J$138))/p.mod.ce,1) -> 10 | K199: 10 | L199: 10 | M199: 123
E200: 4 | F200: 62 | G200: 1550 | I200: [# Licencias] | J200: 10 | K200: 10 | L200: 10 | M200: 125
E201: 4 | F201: 63 | G201: 1575 | I201: [# Licencias] | J201: 10 | K201: 10 | L201: 10 | M201: 128
E202: 4 | F202: 64 | G202: 1600 | I202: [# Licencias] | J202: 10 | K202: 10 | L202: 10 | M202: 130
E203: =MATCH(G203,$J$94:$J$97,1) -> 4 | F203: 65 | G203: 1625 | I203: [# Licencias] | J203: 10 | K203: 10 | L203: 10 | M203: 133
E204: 4 | F204: 66 | G204: =25*F204 -> 1650 | I204: [# Licencias] | J204: 10 | K204: 10 | L204: 10 | M204: 135
E205: 4 | F205: 67 | G205: 1675 | I205: [# Licencias] | J205: 10 | K205: 10 | L205: 10 | M205: 138
E206: 4 | F206: 68 | G206: 1700 | I206: [# Licencias] | J206: 10 | K206: 10 | L206: 10 | M206: 140
E207: 4 | F207: 69 | G207: 1725 | I207: [# Licencias] | J207: 10 | K207: 10 | L207: 10 | M207: 143
E208: 4 | F208: 70 | G208: 1750 | I208: [# Licencias] | J208: 10 | K208: 10 | L208: 10 | M208: 145
E209: 4 | F209: 71 | G209: 1775 | I209: [# Licencias] | J209: 10 | K209: 10 | L209: 10 | M209: 148
E210: 4 | F210: 72 | G210: 1800 | I210: [# Licencias] | J210: 10 | K210: 10 | L210: 10 | M210: 150
E211: 4 | F211: 73 | G211: 1825 | I211: [# Licencias] | J211: 10 | K211: 10 | L211: 10 | M211: 153
E212: 4 | F212: 74 | G212: 1850 | I212: [# Licencias] | J212: 10 | K212: 10 | L212: 10 | M212: 155
E213: 4 | F213: 75 | G213: 1875 | I213: [# Licencias] | J213: 10 | K213: 10 | L213: 10 | M213: 158
E214: 4 | F214: 76 | G214: 1900 | I214: [# Licencias] | J214: 10 | K214: 10 | L214: 10 | M214: 160
E215: 4 | F215: 77 | G215: 1925 | I215: [# Licencias] | J215: 10 | K215: 10 | L215: 10 | M215: 163
E216: 4 | F216: 78 | G216: 1950 | I216: [# Licencias] | J216: 10 | K216: 10 | L216: 10 | M216: 165
E217: 4 | F217: 79 | G217: 1975 | I217: [# Licencias] | J217: 10 | K217: 10 | L217: 10 | M217: 168
E218: 4 | F218: 80 | G218: 2000 | I218: [# Licencias] | J218: 10 | K218: 10 | L218: 10 | M218: 170
E219: 4 | F219: 81 | G219: 2025 | I219: [# Licencias] | J219: =CEILING(IF($E219<J$137,0,IF($E219>J$137,N(K$138)-J$138,$G219-J$138))/p.mod.ce,1) -> 10 | K219: 10 | L219: 10 | M219: 173
E220: 4 | F220: 82 | G220: 2050 | I220: [# Licencias] | J220: 10 | K220: 10 | L220: 10 | M220: 175
E221: 4 | F221: 83 | G221: 2075 | I221: [# Licencias] | J221: 10 | K221: 10 | L221: 10 | M221: 178
E222: 4 | F222: 84 | G222: 2100 | I222: [# Licencias] | J222: 10 | K222: 10 | L222: 10 | M222: 180
... 657 more rows

Sheet Dda.Diseño
H2: ='Panel de Control'!$H$2 -> Modelo Dinámico de Cargo de Interconexión Móvil (Costos Históricos)
H3: Cálculos de Demanda
A6: Zonas | J6: 0 | L6: 1 | M6: 2 | N6: 3 | O6: 4 | P6: 5 | Q6: 6 | R6: 7 | S6: 8 | T6: 9 | U6: 10 | V6: 11 | W6: 12 | X6: 13 | Y6: 14 | Z6: 15 | AA6: 16 | AB6: 17 | AC6: 18 | AD6: 19 | AE6: 20 | AF6: 21 | AG6: 22 | AH6: 23 | AI6: 24 | AJ6: 25
A9: 1 | B9: Demanda Original
L11: =INDEX(l.reg.nom,L$6) -> Amazonas | M11: Ancash | N11: Apurímac | O11: Arequipa | P11: Ayacucho | Q11: Cajamarca | R11: Callao | S11: Cusco | T11: Huancavelica | U11: Huánuco | V11: Ica | W11: Junín | X11: La Libertad | Y11: Lambayeque | Z11: Lima | AA11: Loreto | AB11: Madre de Dios | AC11: Moquegua | AD11: Pasco | AE11: Piura | AF11: Puno | AG11: San Martín | AH11: Tacna | AI11: Tumbes | AJ11: Ucayali
F12: ID | G12: Tipo | J12: Año 0 | L12: Año 0 | M12: Año 0 | N12: Año 0 | O12: Año 0 | P12: Año 0 | Q12: Año 0 | R12: Año 0 | S12: Año 0 | T12: Año 0 | U12: Año 0 | V12: Año 0 | W12: Año 0 | X12: Año 0 | Y12: Año 0 | Z12: Año 0 | AA12: Año 0 | AB12: Año 0 | AC12: Año 0 | AD12: Año 0 | AE12: Año 0 | AF12: Año 0 | AG12: Año 0 | AH12: Año 0 | AI12: Año 0 | AJ12: Año 0
F13: 1 | G13: =INDEX(l.serv.nom,F13) -> Cliente Tipo 1 | I13: =INDEX(l.serv.u,F13) -> [abonado] | J13: =SUM(L13,M13,N13,O13,P13,Q13,R13,S13,T13,U13,V13,W13,X13,Y13,Z13,AA13,AB13,AC13,AD13,AE13,AF13,AG13,AH13,AI13,AJ13) -> 100000 | L13: =INDEX(dda_sal_red,$F13,L$6) -> 4989.244426 | M13: 4438.098515 | N13: 4469.046526 | O13: 3500.474604 | P13: 4141.901555 | Q13: 3790.339106 | R13: 4403.309012 | S13: 3367.420963 | T13: 4147.495726 | U13: 3873.963563 | V13: =INDEX(dda_sal_red,$F13,V$6) -> 4368.669568 | W13: 4007.503392 | X13: 4292.037826 | Y13: 4345.836706 | Z13: 2929.382952 | AA13: 4109.999173 | AB13: 4883.057212 | AC13: 3990.486788 | AD13: 3785.141089 | AE13: 3864.533903 | AF13: 3433.644666 | AG13: 3815.656933 | AH13: 3565.467829 | AI13: 3741.768255 | AJ13: 3745.519711
F14: 2 | G14: Cliente Tipo 2 | I14: [abonado] | J14: 100000 | L14: 4989.244426 | M14: 4438.098515 | N14: 4469.046526 | O14: 3500.474604 | P14: 4141.901555 | Q14: 3790.339106 | R14: 4403.309012 | S14: 3367.420963 | T14: 4147.495726 | U14: 3873.963563 | V14: 4368.669568 | W14: 4007.503392 | X14: 4292.037826 | Y14: 4345.836706 | Z14: 2929.382952 | AA14: 4109.999173 | AB14: 4883.057212 | AC14: 3990.486788 | AD14: 3785.141089 | AE14: 3864.533903 | AF14: 3433.644666 | AG14: 3815.656933 | AH14: 3565.467829 | AI14: 3741.768255 | AJ14: 3745.519711
F15: 3 | G15: Cliente Tipo 3 | I15: [abonado] | J15: 100000 | L15: 4989.244426 | M15: 4438.098515 | N15: 4469.046526 | O15: 3500.474604 | P15: 4141.901555 | Q15: 3790.339106 | R15: 4403.309012 | S15: 3367.420963 | T15: 4147.495726 | U15: 3873.963563 | V15: 4368.669568 | W15: 4007.503392 | X15: 4292.037826 | Y15: 4345.836706 | Z15: 2929.382952 | AA15: 4109.999173 | AB15: 4883.057212 | AC15: 3990.486788 | AD15: 3785.141089 | AE15: 3864.533903 | AF15: 3433.644666 | AG15: 3815.656933 | AH15: 3565.467829 | AI15: 3741.768255 | AJ15: 3745.519711
F16: 4 | G16: Tráfico Móvil Voz entrante desde otras móviles | I16: [minutos] | J16: 500000000 | L16: 24946222.13 | M16: 22190492.57 | N16: 22345232.63 | O16: 17502373.02 | P16: 20709507.77 | Q16: 18951695.53 | R16: 22016545.06 | S16: 16837104.82 | T16: 20737478.63 | U16: 19369817.81 | V16: 21843347.84 | W16: 20037516.96 | X16: 21460189.13 | Y16: 21729183.53 | Z16: 14646914.76 | AA16: 20549995.86 | AB16: 24415286.06 | AC16: 19952433.94 | AD16: 18925705.44 | AE16: 19322669.51 | AF16: 17168223.33 | AG16: 19078284.66 | AH16: 17827339.15 | AI16: 18708841.28 | AJ16: 18727598.56
F17: 5 | G17: Tráfico Móvil Voz entrante desde redes fijas | I17: [minutos] | J17: 250000000 | L17: 12473111.06 | M17: 11095246.29 | N17: 11172616.32 | O17: 8751186.511 | P17: 10354753.89 | Q17: 9475847.766 | R17: 11008272.53 | S17: 8418552.409 | T17: 10368739.32 | U17: 9684908.907 | V17: 10921673.92 | W17: 10018758.48 | X17: 10730094.56 | Y17: 10864591.77 | Z17: 7323457.38 | AA17: 10274997.93 | AB17: 12207643.03 | AC17: 9976216.969 | AD17: 9462852.722 | AE17: 9661334.757 | AF17: 8584111.665 | AG17: 9539142.332 | AH17: 8913669.573 | AI17: 9354420.638 | AJ17: 9363799.278
F18: 6 | G18: Tráfico Móvil Voz entrante desde públicos | I18: [minutos] | J18: 250000000 | L18: 12473111.06 | M18: 11095246.29 | N18: 11172616.32 | O18: 8751186.511 | P18: 10354753.89 | Q18: 9475847.766 | R18: 11008272.53 | S18: 8418552.409 | T18: 10368739.32 | U18: 9684908.907 | V18: 10921673.92 | W18: 10018758.48 | X18: 10730094.56 | Y18: 10864591.77 | Z18: 7323457.38 | AA18: 10274997.93 | AB18: 12207643.03 | AC18: 9976216.969 | AD18: 9462852.722 | AE18: 9661334.757 | AF18: 8584111.665 | AG18: 9539142.332 | AH18: 8913669.573 | AI18: 9354420.638 | AJ18: 9363799.278
F19: 7 | G19: Tráfico Móvil Voz entrante desde LDI | I19: [minutos] | J19: 10000000 | L19: 498924.4426 | M19: 443809.8515 | N19: 446904.6526 | O19: 350047.4604 | P19: 414190.1555 | Q19: 379033.9106 | R19: 440330.9012 | S19: 336742.0963 | T19: 414749.5726 | U19: 387396.3563 | V19: 436866.9568 | W19: 400750.3392 | X19: 429203.7826 | Y19: 434583.6706 | Z19: 292938.2952 | AA19: 410999.9173 | AB19: 488305.7212 | AC19: 399048.6788 | AD19: 378514.1089 | AE19: 386453.3903 | AF19: 343364.4666 | AG19: 381565.6933 | AH19: 356546.7829 | AI19: 374176.8255 | AJ19: 374551.9711
F20: 8 | G20: Tráfico on-net | I20: [minutos] | J20: 5000000000 | L20: 249462221.3 | M20: 221904925.7 | N20: 223452326.3 | O20: 175023730.2 | P20: 207095077.7 | Q20: 189516955.3 | R20: 220165450.6 | S20: 168371048.2 | T20: 207374786.3 | U20: 193698178.1 | V20: 218433478.4 | W20: 200375169.6 | X20: 214601891.3 | Y20: 217291835.3 | Z20: 146469147.6 | AA20: 205499958.6 | AB20: 244152860.6 | AC20: 199524339.4 | AD20: 189257054.4 | AE20: 193226695.1 | AF20: 171682233.3 | AG20: 190782846.6 | AH20: 178273391.5 | AI20: 187088412.8 | AJ20: 187275985.6
F21: 9 | G21: Tráfico Móvil Voz saliente a otras móviles | I21: [minutos] | J21: 300000000 | L21: 14967733.28 | M21: 13314295.54 | N21: 13407139.58 | O21: 10501423.81 | P21: 12425704.66 | Q21: 11371017.32 | R21: 13209927.04 | S21: 10102262.89 | T21: 12442487.18 | U21: 11621890.69 | V21: 13106008.7 | W21: 12022510.18 | X21: 12876113.48 | Y21: 13037510.12 | Z21: 8788148.856 | AA21: 12329997.52 | AB21: 14649171.64 | AC21: 11971460.36 | AD21: 11355423.27 | AE21: 11593601.71 | AF21: 10300934 | AG21: 11446970.8 | AH21: 10696403.49 | AI21: 11225304.77 | AJ21: 11236559.13
F22: 10 | G22: Tráfico Móvil Voz saliente a redes fijas | I22: [minutos] | J22: 25000000 | L22: 1247311.106 | M22: 1109524.629 | N22: 1117261.632 | O22: 875118.6511 | P22: 1035475.389 | Q22: 947584.7766 | R22: 1100827.253 | S22: 841855.2409 | T22: 1036873.932 | U22: 968490.8907 | V22: 1092167.392 | W22: 1001875.848 | X22: 1073009.456 | Y22: 1086459.177 | Z22: 732345.738 | AA22: 1027499.793 | AB22: 1220764.303 | AC22: 997621.6969 | AD22: 946285.2722 | AE22: 966133.4757 | AF22: 858411.1665 | AG22: 953914.2332 | AH22: 891366.9573 | AI22: 935442.0638 | AJ22: 936379.9278
F23: 11 | G23: Tráfico Móvil Voz saliente a LDI | I23: [minutos] | J23: 10000000 | L23: =INDEX(dda_sal_red,$F23,L$6) -> 498924.4426 | M23: 443809.8515 | N23: 446904.6526 | O23: 350047.4604 | P23: 414190.1555 | Q23: 379033.9106 | R23: 440330.9012 | S23: 336742.0963 | T23: 414749.5726 | U23: 387396.3563 | V23: =INDEX(dda_sal_red,$F23,V$6) -> 436866.9568 | W23: 400750.3392 | X23: 429203.7826 | Y23: 434583.6706 | Z23: 292938.2952 | AA23: 410999.9173 | AB23: 488305.7212 | AC23: 399048.6788 | AD23: 378514.1089 | AE23: 386453.3903 | AF23: 343364.4666 | AG23: 381565.6933 | AH23: 356546.7829 | AI23: 374176.8255 | AJ23: 374551.9711
F24: 12 | G24: libre | I24: [-] | J24: 0 | L24: 0 | M24: 0 | N24: 0 | O24: 0 | P24: 0 | Q24: 0 | R24: 0 | S24: 0 | T24: 0 | U24: 0 | V24: 0 | W24: 0 | X24: 0 | Y24: 0 | Z24: 0 | AA24: 0 | AB24: 0 | AC24: 0 | AD24: 0 | AE24: 0 | AF24: 0 | AG24: 0 | AH24: 0 | AI24: 0 | AJ24: 0
F25: 13 | G25: libre | I25: [-] | J25: 0 | L25: 0 | M25: 0 | N25: 0 | O25: 0 | P25: 0 | Q25: 0 | R25: 0 | S25: 0 | T25: 0 | U25: 0 | V25: 0 | W25: 0 | X25: 0 | Y25: 0 | Z25: 0 | AA25: 0 | AB25: 0 | AC25: 0 | AD25: 0 | AE25: 0 | AF25: 0 | AG25: 0 | AH25: 0 | AI25: 0 | AJ25: 0
F26: 14 | G26: SMS saliente a otras móviles | I26: [SMS] | J26: 60000000 | L26: 2993546.655 | M26: 2662859.109 | N26: 2681427.916 | O26: 2100284.763 | P26: 2485140.933 | Q26: 2274203.464 | R26: 2641985.407 | S26: 2020452.578 | T26: 2488497.436 | U26: 2324378.138 | V26: 2621201.741 | W26: 2404502.035 | X26: 2575222.695 | Y26: 2607502.024 | Z26: 1757629.771 | AA26: 2465999.504 | AB26: 2929834.327 | AC26: 2394292.073 | AD26: 2271084.653 | AE26: 2318720.342 | AF26: 2060186.8 | AG26: 2289394.16 | AH26: 2139280.698 | AI26: 2245060.953 | AJ26: 2247311.827
F27: 15 | G27: SMS on-net | I27: [SMS] | J27: 60000000 | L27: 2993546.655 | M27: 2662859.109 | N27: 2681427.916 | O27: 2100284.763 | P27: 2485140.933 | Q27: 2274203.464 | R27: 2641985.407 | S27: 2020452.578 | T27: 2488497.436 | U27: 2324378.138 | V27: 2621201.741 | W27: 2404502.035 | X27: 2575222.695 | Y27: 2607502.024 | Z27: 1757629.771 | AA27: 2465999.504 | AB27: 2929834.327 | AC27: 2394292.073 | AD27: 2271084.653 | AE27: 2318720.342 | AF27: 2060186.8 | AG27: 2289394.16 | AH27: 2139280.698 | AI27: 2245060.953 | AJ27: 2247311.827
F28: 16 | G28: SMS entrante desde otras móviles | I28: [SMS] | J28: 24000000 | L28: 1197418.662 | M28: 1065143.644 | N28: 1072571.166 | O28: 840113.905 | P28: 994056.3732 | Q28: 909681.3855 | R28: 1056794.163 | S28: 808181.0312 | T28: 995398.9742 | U28: 929751.2551 | V28: 1048480.696 | W28: 961800.8141 | X28: 1030089.078 | Y28: 1043000.809 | Z28: 703051.9085 | AA28: 986399.8015 | AB28: 1171933.731 | AC28: 957716.8291 | AD28: 908433.8614 | AE28: 927488.1367 | AF28: 824074.7199 | AG28: 915757.6639 | AH28: 855712.279 | AI28: 898024.3812 | AJ28: 898924.7307
F29: 17 | G29: libre | I29: [-] | J29: 0 | L29: 0 | M29: 0 | N29: 0 | O29: 0 | P29: 0 | Q29: 0 | R29: 0 | S29: 0 | T29: 0 | U29: 0 | V29: 0 | W29: 0 | X29: 0 | Y29: 0 | Z29: 0 | AA29: 0 | AB29: 0 | AC29: 0 | AD29: 0 | AE29: 0 | AF29: 0 | AG29: 0 | AH29: 0 | AI29: 0 | AJ29: 0
F30: 18 | G30: libre | I30: [-] | J30: 0 | L30: 0 | M30: 0 | N30: 0 | O30: 0 | P30: 0 | Q30: 0 | R30: 0 | S30: 0 | T30: 0 | U30: 0 | V30: 0 | W30: 0 | X30: 0 | Y30: 0 | Z30: 0 | AA30: 0 | AB30: 0 | AC30: 0 | AD30: 0 | AE30: 0 | AF30: 0 | AG30: 0 | AH30: 0 | AI30: 0 | AJ30: 0
F31: 19 | G31: libre | I31: [-] | J31: 0 | L31: 0 | M31: 0 | N31: 0 | O31: 0 | P31: 0 | Q31: 0 | R31: 0 | S31: 0 | T31: 0 | U31: 0 | V31: 0 | W31: 0 | X31: 0 | Y31: 0 | Z31: 0 | AA31: 0 | AB31: 0 | AC31: 0 | AD31: 0 | AE31: 0 | AF31: 0 | AG31: 0 | AH31: 0 | AI31: 0 | AJ31: 0
F32: 20 | G32: Conexiones Móvil Datos banda ancha e internet móvil | I32: [Conexión] | J32: 800000 | L32: 39913.9554 | M32: 35504.78812 | N32: 35752.37221 | O32: 28003.79683 | P32: 33135.21244 | Q32: 30322.71285 | R32: 35226.4721 | S32: 26939.36771 | T32: 33179.96581 | U32: 30991.7085 | V32: 34949.35654 | W32: 32060.02714 | X32: 34336.30261 | Y32: 34766.69365 | Z32: 23435.06362 | AA32: 32879.99338 | AB32: 39064.4577 | AC32: 31923.8943 | AD32: 30281.12871 | AE32: 30916.27122 | AF32: 27469.15733 | AG32: 30525.25546 | AH32: 28523.74263 | AI32: 29934.14604 | AJ32: 29964.15769
F33: 21 | G33: Tráfico Móvil Datos banda ancha e internet móvil Bajada | I33: [TByte] | J33: 6857.142857 | L33: =INDEX(dda_sal_red,$F33,L$6) -> 342.1196178 | M33: 304.3267553 | N33: 306.4489047 | O33: 240.0325443 | P33: 284.0161066 | Q33: 259.9089673 | R33: 301.9411894 | S33: 230.9088661 | T33: 284.3997069 | U33: 265.6432157 | V33: =INDEX(dda_sal_red,$F33,V$6) -> 299.5659132 | W33: 274.8002326 | X33: 294.3111652 | Y33: 298.0002313 | Z33: 200.8719739 | AA33: 281.8285147 | AB33: 334.8382088 | AC33: 273.6333797 | AD33: 259.5525318 | AE33: 264.9966105 | AF33: 235.44992 | AG33: 261.6450468 | AH33: 244.4892226 | AI33: 256.5783946 | AJ33: 256.8356373
F34: 22 | G34: Tráfico Móvil Datos banda ancha e internet móvil Subida | I34: [TByte] | J34: 34.28571429 | L34: 1.710598089 | M34: 1.521633777 | N34: 1.532244523 | O34: 1.200162721 | P34: 1.420080533 | Q34: 1.299544836 | R34: 1.509705947 | S34: 1.15454433 | T34: 1.421998535 | U34: 1.328216079 | V34: 1.497829566 | W34: 1.374001163 | X34: 1.471555826 | Y34: 1.490001156 | Z34: 1.004359869 | AA34: 1.409142574 | AB34: 1.674191044 | AC34: 1.368166899 | AD34: 1.297762659 | AE34: 1.324983052 | AF34: 1.1772496 | AG34: 1.308225234 | AH34: 1.222446113 | AI34: 1.282891973 | AJ34: 1.284178187
F35: 23 | G35: libre | I35: [-] | J35: 0 | L35: 0 | M35: 0 | N35: 0 | O35: 0 | P35: 0 | Q35: 0 | R35: 0 | S35: 0 | T35: 0 | U35: 0 | V35: 0 | W35: 0 | X35: 0 | Y35: 0 | Z35: 0 | AA35: 0 | AB35: 0 | AC35: 0 | AD35: 0 | AE35: 0 | AF35: 0 | AG35: 0 | AH35: 0 | AI35: 0 | AJ35: 0
F36: 24 | G36: libre | I36: [-] | J36: 0 | L36: 0 | M36: 0 | N36: 0 | O36: 0 | P36: 0 | Q36: 0 | R36: 0 | S36: 0 | T36: 0 | U36: 0 | V36: 0 | W36: 0 | X36: 0 | Y36: 0 | Z36: 0 | AA36: 0 | AB36: 0 | AC36: 0 | AD36: 0 | AE36: 0 | AF36: 0 | AG36: 0 | AH36: 0 | AI36: 0 | AJ36: 0
F37: 25 | G37: libre | I37: libre | J37: 0 | L37: 0 | M37: 0 | N37: 0 | O37: 0 | P37: 0 | Q37: 0 | R37: 0 | S37: 0 | T37: 0 | U37: 0 | V37: 0 | W37: 0 | X37: 0 | Y37: 0 | Z37: 0 | AA37: 0 | AB37: 0 | AC37: 0 | AD37: 0 | AE37: 0 | AF37: 0 | AG37: 0 | AH37: 0 | AI37: 0 | AJ37: 0
F38: 26 | G38: libre | I38: libre | J38: 0 | L38: 0 | M38: 0 | N38: 0 | O38: 0 | P38: 0 | Q38: 0 | R38: 0 | S38: 0 | T38: 0 | U38: 0 | V38: 0 | W38: 0 | X38: 0 | Y38: 0 | Z38: 0 | AA38: 0 | AB38: 0 | AC38: 0 | AD38: 0 | AE38: 0 | AF38: 0 | AG38: 0 | AH38: 0 | AI38: 0 | AJ38: 0
F39: 27 | G39: libre | I39: libre | J39: 0 | L39: 0 | M39: 0 | N39: 0 | O39: 0 | P39: 0 | Q39: 0 | R39: 0 | S39: 0 | T39: 0 | U39: 0 | V39: 0 | W39: 0 | X39: 0 | Y39: 0 | Z39: 0 | AA39: 0 | AB39: 0 | AC39: 0 | AD39: 0 | AE39: 0 | AF39: 0 | AG39: 0 | AH39: 0 | AI39: 0 | AJ39: 0
F40: 28 | G40: libre | I40: libre | J40: 0 | L40: 0 | M40: 0 | N40: 0 | O40: 0 | P40: 0 | Q40: 0 | R40: 0 | S40: 0 | T40: 0 | U40: 0 | V40: 0 | W40: 0 | X40: 0 | Y40: 0 | Z40: 0 | AA40: 0 | AB40: 0 | AC40: 0 | AD40: 0 | AE40: 0 | AF40: 0 | AG40: 0 | AH40: 0 | AI40: 0 | AJ40: 0
F41: 29 | G41: libre | I41: libre | J41: 0 | L41: 0 | M41: 0 | N41: 0 | O41: 0 | P41: 0 | Q41: 0 | R41: 0 | S41: 0 | T41: 0 | U41: 0 | V41: 0 | W41: 0 | X41: 0 | Y41: 0 | Z41: 0 | AA41: 0 | AB41: 0 | AC41: 0 | AD41: 0 | AE41: 0 | AF41: 0 | AG41: 0 | AH41: 0 | AI41: 0 | AJ41: 0
F42: 30 | G42: libre | I42: libre | J42: 0 | L42: 0 | M42: 0 | N42: 0 | O42: 0 | P42: 0 | Q42: 0 | R42: 0 | S42: 0 | T42: 0 | U42: 0 | V42: 0 | W42: 0 | X42: 0 | Y42: 0 | Z42: 0 | AA42: 0 | AB42: 0 | AC42: 0 | AD42: 0 | AE42: 0 | AF42: 0 | AG42: 0 | AH42: 0 | AI42: 0 | AJ42: 0
F43: 31 | G43: libre | I43: libre | J43: 0 | L43: =INDEX(dda_sal_red,$F43,L$6) -> 0 | M43: 0 | N43: 0 | O43: 0 | P43: 0 | Q43: 0 | R43: 0 | S43: 0 | T43: 0 | U43: 0 | V43: =INDEX(dda_sal_red,$F43,V$6) -> 0 | W43: 0 | X43: 0 | Y43: 0 | Z43: 0 | AA43: 0 | AB43: 0 | AC43: 0 | AD43: 0 | AE43: 0 | AF43: 0 | AG43: 0 | AH43: 0 | AI43: 0 | AJ43: 0
F44: 32 | G44: libre | I44: libre | J44: 0 | L44: 0 | M44: 0 | N44: 0 | O44: 0 | P44: 0 | Q44: 0 | R44: 0 | S44: 0 | T44: 0 | U44: 0 | V44: 0 | W44: 0 | X44: 0 | Y44: 0 | Z44: 0 | AA44: 0 | AB44: 0 | AC44: 0 | AD44: 0 | AE44: 0 | AF44: 0 | AG44: 0 | AH44: 0 | AI44: 0 | AJ44: 0
F45: 33 | G45: =INDEX(l.serv.nom,F45) -> libre | I45: =INDEX(l.serv.u,F45) -> libre | J45: 0 | L45: 0 | M45: 0 | N45: 0 | O45: 0 | P45: 0 | Q45: 0 | R45: 0 | S45: 0 | T45: 0 | U45: 0 | V45: 0 | W45: 0 | X45: 0 | Y45: 0 | Z45: 0 | AA45: 0 | AB45: 0 | AC45: 0 | AD45: 0 | AE45: 0 | AF45: 0 | AG45: 0 | AH45: 0 | AI45: 0 | AJ45: 0
F46: 34 | G46: libre | I46: libre | J46: 0 | L46: 0 | M46: 0 | N46: 0 | O46: 0 | P46: 0 | Q46: 0 | R46: 0 | S46: 0 | T46: 0 | U46: 0 | V46: 0 | W46: 0 | X46: 0 | Y46: 0 | Z46: 0 | AA46: 0 | AB46: 0 | AC46: 0 | AD46: 0 | AE46: 0 | AF46: 0 | AG46: 0 | AH46: 0 | AI46: 0 | AJ46: 0
F47: 35 | G47: libre | I47: libre | J47: 0 | L47: 0 | M47: 0 | N47: 0 | O47: 0 | P47: 0 | Q47: 0 | R47: 0 | S47: 0 | T47: 0 | U47: 0 | V47: 0 | W47: 0 | X47: 0 | Y47: 0 | Z47: 0 | AA47: 0 | AB47: 0 | AC47: 0 | AD47: 0 | AE47: 0 | AF47: 0 | AG47: 0 | AH47: 0 | AI47: 0 | AJ47: 0
F48: 36 | G48: libre | I48: libre | J48: 0 | L48: 0 | M48: 0 | N48: 0 | O48: 0 | P48: 0 | Q48: 0 | R48: 0 | S48: 0 | T48: 0 | U48: 0 | V48: 0 | W48: 0 | X48: 0 | Y48: 0 | Z48: 0 | AA48: 0 | AB48: 0 | AC48: 0 | AD48: 0 | AE48: 0 | AF48: 0 | AG48: 0 | AH48: 0 | AI48: 0 | AJ48: 0
F49: 37 | G49: libre | I49: libre | J49: 0 | L49: 0 | M49: 0 | N49: 0 | O49: 0 | P49: 0 | Q49: 0 | R49: 0 | S49: 0 | T49: 0 | U49: 0 | V49: 0 | W49: 0 | X49: 0 | Y49: 0 | Z49: 0 | AA49: 0 | AB49: 0 | AC49: 0 | AD49: 0 | AE49: 0 | AF49: 0 | AG49: 0 | AH49: 0 | AI49: 0 | AJ49: 0
F50: 38 | G50: libre | I50: libre | J50: 0 | L50: 0 | M50: 0 | N50: 0 | O50: 0 | P50: 0 | Q50: 0 | R50: 0 | S50: 0 | T50: 0 | U50: 0 | V50: 0 | W50: 0 | X50: 0 | Y50: 0 | Z50: 0 | AA50: 0 | AB50: 0 | AC50: 0 | AD50: 0 | AE50: 0 | AF50: 0 | AG50: 0 | AH50: 0 | AI50: 0 | AJ50: 0
F51: 39 | G51: libre | I51: libre | J51: 0 | L51: 0 | M51: 0 | N51: 0 | O51: 0 | P51: 0 | Q51: 0 | R51: 0 | S51: 0 | T51: 0 | U51: 0 | V51: 0 | W51: 0 | X51: 0 | Y51: 0 | Z51: 0 | AA51: 0 | AB51: 0 | AC51: 0 | AD51: 0 | AE51: 0 | AF51: 0 | AG51: 0 | AH51: 0 | AI51: 0 | AJ51: 0
F52: 40 | G52: libre | I52: libre | J52: 0 | L52: 0 | M52: 0 | N52: 0 | O52: 0 | P52: 0 | Q52: 0 | R52: 0 | S52: 0 | T52: 0 | U52: 0 | V52: 0 | W52: 0 | X52: 0 | Y52: 0 | Z52: 0 | AA52: 0 | AB52: 0 | AC52: 0 | AD52: 0 | AE52: 0 | AF52: 0 | AG52: 0 | AH52: 0 | AI52: 0 | AJ52: 0
F53: 41 | G53: libre | I53: libre | J53: 0 | L53: 0 | M53: 0 | N53: 0 | O53: 0 | P53: 0 | Q53: 0 | R53: 0 | S53: 0 | T53: 0 | U53: 0 | V53: 0 | W53: 0 | X53: 0 | Y53: 0 | Z53: 0 | AA53: 0 | AB53: 0 | AC53: 0 | AD53: 0 | AE53: 0 | AF53: 0 | AG53: 0 | AH53: 0 | AI53: 0 | AJ53: 0
F54: 42 | G54: libre | I54: libre | J54: 0 | L54: 0 | M54: 0 | N54: 0 | O54: 0 | P54: 0 | Q54: 0 | R54: 0 | S54: 0 | T54: 0 | U54: 0 | V54: 0 | W54: 0 | X54: 0 | Y54: 0 | Z54: 0 | AA54: 0 | AB54: 0 | AC54: 0 | AD54: 0 | AE54: 0 | AF54: 0 | AG54: 0 | AH54: 0 | AI54: 0 | AJ54: 0
F55: 43 | G55: libre | I55: libre | J55: 0 | L55: 0 | M55: 0 | N55: 0 | O55: 0 | P55: 0 | Q55: 0 | R55: 0 | S55: 0 | T55: 0 | U55: 0 | V55: 0 | W55: 0 | X55: 0 | Y55: 0 | Z55: 0 | AA55: 0 | AB55: 0 | AC55: 0 | AD55: 0 | AE55: 0 | AF55: 0 | AG55: 0 | AH55: 0 | AI55: 0 | AJ55: 0
F56: 44 | G56: libre | I56: libre | J56: 0 | L56: 0 | M56: 0 | N56: 0 | O56: 0 | P56: 0 | Q56: 0 | R56: 0 | S56: 0 | T56: 0 | U56: 0 | V56: 0 | W56: 0 | X56: 0 | Y56: 0 | Z56: 0 | AA56: 0 | AB56: 0 | AC56: 0 | AD56: 0 | AE56: 0 | AF56: 0 | AG56: 0 | AH56: 0 | AI56: 0 | AJ56: 0
F57: 45 | G57: libre | I57: libre | J57: 0 | L57: 0 | M57: 0 | N57: 0 | O57: 0 | P57: 0 | Q57: 0 | R57: 0 | S57: 0 | T57: 0 | U57: 0 | V57: 0 | W57: 0 | X57: 0 | Y57: 0 | Z57: 0 | AA57: 0 | AB57: 0 | AC57: 0 | AD57: 0 | AE57: 0 | AF57: 0 | AG57: 0 | AH57: 0 | AI57: 0 | AJ57: 0
A61: 2 | B61: Cálculos para la Voz
L63: =INDEX(l.reg.nom,L$6) -> Amazonas | M63: Ancash | N63: Apurímac | O63: Arequipa | P63: Ayacucho | Q63: Cajamarca | R63: Callao | S63: Cusco | T63: Huancavelica | U63: Huánuco | V63: Ica | W63: Junín | X63: La Libertad | Y63: Lambayeque | Z63: Lima | AA63: Loreto | AB63: Madre de Dios | AC63: Moquegua | AD63: Pasco | AE63: Piura | AF63: Puno | AG63: San Martín | AH63: Tacna | AI63: Tumbes | AJ63: Ucayali
F64: ID | G64: Tipo | J64: Año 0 | L64: Año 0 | M64: Año 0 | N64: Año 0 | O64: Año 0 | P64: Año 0 | Q64: Año 0 | R64: Año 0 | S64: Año 0 | T64: Año 0 | U64: Año 0 | V64: Año 0 | W64: Año 0 | X64: Año 0 | Y64: Año 0 | Z64: Año 0 | AA64: Año 0 | AB64: Año 0 | AC64: Año 0 | AD64: Año 0 | AE64: Año 0 | AF64: Año 0 | AG64: Año 0 | AH64: Año 0 | AI64: Año 0 | AJ64: Año 0
E65: Erlangs en la Hora Cargada del Sistema
F66: 4 | G66: =INDEX(l.serv.nom,F66) -> Tráfico Móvil Voz entrante desde otras móviles | I66: [erlangs] | J66: =SUM(L66,M66,N66,O66,P66,Q66,R66,S66,T66,U66,V66,W66,X66,Y66,Z66,AA66,AB66,AC66,AD66,AE66,AF66,AG66,AH66,AI66,AJ66) -> 31565.65657 | L66: =INDEX(L$13:L$57,$F66)*p.hc.v*p.fc.geo/(p.dc*p.min.h) -> 1574.887761 | M66: 1400.914935 | N66: =INDEX(N$13:N$57,$F66)*p.hc.v*p.fc.geo/(p.dc*p.min.h) -> 1410.683878 | O66: 1104.947792 | P66: =INDEX(P$13:P$57,$F66)*p.hc.v*p.fc.geo/(p.dc*p.min.h) -> 1307.41842 | Q66: =INDEX(Q$13:Q$57,$F66)*p.hc.v*p.fc.geo/(p.dc*p.min.h) -> 1196.445425 | R66: 1389.9334 | S66: =INDEX(S$13:S$57,$F66)*p.hc.v*p.fc.geo/(p.dc*p.min.h) -> 1062.948536 | T66: 1309.184257 | U66: =INDEX(U$13:U$57,$F66)*p.hc.v*p.fc.geo/(p.dc*p.min.h) -> 1222.842034 | V66: =INDEX(V$13:V$57,$F66)*p.hc.v*p.fc.geo/(p.dc*p.min.h) -> 1378.999232 | W66: 1264.994758 | X66: =INDEX(X$13:X$57,$F66)*p.hc.v*p.fc.geo/(p.dc*p.min.h) -> 1354.80992 | Y66: 1371.79189 | Z66: =INDEX(Z$13:Z$57,$F66)*p.hc.v*p.fc.geo/(p.dc*p.min.h) -> 924.6789622 | AA66: =INDEX(AA$13:AA$57,$F66)*p.hc.v*p.fc.geo/(p.dc*p.min.h) -> 1297.348224 | AB66: 1541.369069 | AC66: =INDEX(AC$13:AC$57,$F66)*p.hc.v*p.fc.geo/(p.dc*p.min.h) -> 1259.623355 | AD66: 1194.804637 | AE66: =INDEX(AE$13:AE$57,$F66)*p.hc.v*p.fc.geo/(p.dc*p.min.h) -> 1219.8655 | AF66: =INDEX(AF$13:AF$57,$F66)*p.hc.v*p.fc.geo/(p.dc*p.min.h) -> 1083.852483 | AG66: 1204.437163 | AH66: =INDEX(AH$13:AH$57,$F66)*p.hc.v*p.fc.geo/(p.dc*p.min.h) -> 1125.46333 | AI66: 1181.113717 | AJ66: =INDEX(AJ$13:AJ$57,$F66)*p.hc.v*p.fc.geo/(p.dc*p.min.h) -> 1182.297889
F67: 5 | G67: Tráfico Móvil Voz entrante desde redes fijas | I67: [erlangs] | J67: 15782.82828 | L67: 787.4438803 | M67: 700.4574676 | N67: 705.3419391 | O67: 552.4738959 | P67: 653.70921 | Q67: 598.2227125 | R67: 694.9667002 | S67: 531.4742682 | T67: 654.5921285 | U67: 611.4210168 | V67: 689.4996162 | W67: 632.4973788 | X67: 677.4049599 | Y67: 685.8959448 | Z67: 462.3394811 | AA67: 648.6741119 | AB67: 770.6845347 | AC67: 629.8116774 | AD67: 597.4023183 | AE67: 609.9327498 | AF67: 541.9262415 | AG67: 602.2185816 | AH67: 562.731665 | AI67: 590.5568584 | AJ67: 591.1489443
F68: 6 | G68: Tráfico Móvil Voz entrante desde públicos | I68: [erlangs] | J68: 15782.82828 | L68: 787.4438803 | M68: 700.4574676 | N68: 705.3419391 | O68: 552.4738959 | P68: 653.70921 | Q68: 598.2227125 | R68: 694.9667002 | S68: 531.4742682 | T68: 654.5921285 | U68: 611.4210168 | V68: 689.4996162 | W68: 632.4973788 | X68: 677.4049599 | Y68: 685.8959448 | Z68: 462.3394811 | AA68: 648.6741119 | AB68: 770.6845347 | AC68: 629.8116774 | AD68: 597.4023183 | AE68: 609.9327498 | AF68: 541.9262415 | AG68: 602.2185816 | AH68: 562.731665 | AI68: 590.5568584 | AJ68: 591.1489443
F69: 7 | G69: Tráfico Móvil Voz entrante desde LDI | I69: [erlangs] | J69: 631.3131313 | L69: 31.49775521 | M69: 28.0182987 | N69: 28.21367757 | O69: 22.09895583 | P69: 26.1483684 | Q69: 23.9289085 | R69: 27.79866801 | S69: 21.25897073 | T69: 26.18368514 | U69: 24.45684067 | V69: 27.57998465 | W69: 25.29989515 | X69: 27.09619839 | Y69: 27.43583779 | Z69: 18.49357924 | AA69: 25.94696448 | AB69: 30.82738139 | AC69: 25.19246709 | AD69: 23.89609273 | AE69: 24.39730999 | AF69: 21.67704966 | AG69: 24.08874326 | AH69: 22.5092666 | AI69: 23.62227434 | AJ69: 23.64595777
F70: 8 | G70: Tráfico on-net | I70: [erlangs] | J70: 315656.5657 | L70: 15748.87761 | M70: 14009.14935 | N70: 14106.83878 | O70: 11049.47792 | P70: 13074.1842 | Q70: 11964.45425 | R70: 13899.334 | S70: 10629.48536 | T70: 13091.84257 | U70: 12228.42034 | V70: 13789.99232 | W70: 12649.94758 | X70: 13548.0992 | Y70: 13717.9189 | Z70: 9246.789622 | AA70: 12973.48224 | AB70: 15413.69069 | AC70: 12596.23355 | AD70: 11948.04637 | AE70: 12198.655 | AF70: 10838.52483 | AG70: 12044.37163 | AH70: 11254.6333 | AI70: 11811.13717 | AJ70: 11822.97889
F71: 9 | G71: Tráfico Móvil Voz saliente a otras móviles | I71: [erlangs] | J71: 18939.39394 | L71: 944.9326564 | M71: 840.5489611 | N71: 846.410327 | O71: 662.968675 | P71: 784.4510521 | Q71: 717.867255 | R71: 833.9600402 | S71: 637.7691219 | T71: 785.5105542 | U71: 733.7052202 | V71: 827.3995394 | W71: 758.9968546 | X71: 812.8859518 | Y71: 823.0751337 | Z71: 554.8073773 | AA71: 778.4089343 | AB71: 924.8214417 | AC71: 755.7740128 | AD71: 716.882782 | AE71: 731.9192998 | AF71: 650.3114898 | AG71: 722.6622979 | AH71: 675.277998 | AI71: 708.6682301 | AJ71: 709.3787332
F72: 10 | G72: Tráfico Móvil Voz saliente a redes fijas | I72: [erlangs] | J72: 1578.282828 | L72: 78.74438803 | M72: 70.04574676 | N72: 70.53419391 | O72: 55.24738959 | P72: 65.370921 | Q72: 59.82227125 | R72: 69.49667002 | S72: 53.14742682 | T72: 65.45921285 | U72: 61.14210168 | V72: 68.94996162 | W72: 63.24973788 | X72: 67.74049599 | Y72: 68.58959448 | Z72: 46.23394811 | AA72: 64.86741119 | AB72: 77.06845347 | AC72: 62.98116774 | AD72: 59.74023183 | AE72: 60.99327498 | AF72: 54.19262415 | AG72: 60.22185816 | AH72: 56.2731665 | AI72: 59.05568584 | AJ72: 59.11489443
F73: 11 | G73: Tráfico Móvil Voz saliente a LDI | I73: [erlangs] | J73: 631.3131313 | L73: 31.49775521 | M73: 28.0182987 | N73: 28.21367757 | O73: 22.09895583 | P73: 26.1483684 | Q73: 23.9289085 | R73: 27.79866801 | S73: 21.25897073 | T73: 26.18368514 | U73: 24.45684067 | V73: 27.57998465 | W73: 25.29989515 | X73: 27.09619839 | Y73: 27.43583779 | Z73: 18.49357924 | AA73: 25.94696448 | AB73: 30.82738139 | AC73: 25.19246709 | AD73: 23.89609273 | AE73: 24.39730999 | AF73: 21.67704966 | AG73: 24.08874326 | AH73: 22.5092666 | AI73: 23.62227434 | AJ73: 23.64595777
F74: 12 | G74: libre | I74: [erlangs] | J74: 0 | L74: 0 | M74: 0 | N74: 0 | O74: 0 | P74: 0 | Q74: 0 | R74: 0 | S74: 0 | T74: 0 | U74: 0 | V74: 0 | W74: 0 | X74: 0 | Y74: 0 | Z74: 0 | AA74: 0 | AB74: 0 | AC74: 0 | AD74: 0 | AE74: 0 | AF74: 0 | AG74: 0 | AH74: 0 | AI74: 0 | AJ74: 0
F75: 13 | G75: libre | I75: [erlangs] | J75: 0 | L75: 0 | M75: 0 | N75: 0 | O75: 0 | P75: 0 | Q75: 0 | R75: 0 | S75: 0 | T75: 0 | U75: 0 | V75: 0 | W75: 0 | X75: 0 | Y75: 0 | Z75: 0 | AA75: 0 | AB75: 0 | AC75: 0 | AD75: 0 | AE75: 0 | AF75: 0 | AG75: 0 | AH75: 0 | AI75: 0 | AJ75: 0
F76: 40 | G76: libre | I76: [erlangs] | J76: 0 | L76: =INDEX(L$13:L$57,$F76)*p.hc.v*p.fc.geo/(p.dc*p.min.h) -> 0 | M76: 0 | N76: =INDEX(N$13:N$57,$F76)*p.hc.v*p.fc.geo/(p.dc*p.min.h) -> 0 | O76: 0 | P76: =INDEX(P$13:P$57,$F76)*p.hc.v*p.fc.geo/(p.dc*p.min.h) -> 0 | Q76: =INDEX(Q$13:Q$57,$F76)*p.hc.v*p.fc.geo/(p.dc*p.min.h) -> 0 | R76: 0 | S76: =INDEX(S$13:S$57,$F76)*p.hc.v*p.fc.geo/(p.dc*p.min.h) -> 0 | T76: 0 | U76: =INDEX(U$13:U$57,$F76)*p.hc.v*p.fc.geo/(p.dc*p.min.h) -> 0 | V76: =INDEX(V$13:V$57,$F76)*p.hc.v*p.fc.geo/(p.dc*p.min.h) -> 0 | W76: 0 | X76: =INDEX(X$13:X$57,$F76)*p.hc.v*p.fc.geo/(p.dc*p.min.h) -> 0 | Y76: 0 | Z76: =INDEX(Z$13:Z$57,$F76)*p.hc.v*p.fc.geo/(p.dc*p.min.h) -> 0 | AA76: =INDEX(AA$13:AA$57,$F76)*p.hc.v*p.fc.geo/(p.dc*p.min.h) -> 0 | AB76: 0 | AC76: =INDEX(AC$13:AC$57,$F76)*p.hc.v*p.fc.geo/(p.dc*p.min.h) -> 0 | AD76: 0 | AE76: =INDEX(AE$13:AE$57,$F76)*p.hc.v*p.fc.geo/(p.dc*p.min.h) -> 0 | AF76: =INDEX(AF$13:AF$57,$F76)*p.hc.v*p.fc.geo/(p.dc*p.min.h) -> 0 | AG76: 0 | AH76: =INDEX(AH$13:AH$57,$F76)*p.hc.v*p.fc.geo/(p.dc*p.min.h) -> 0 | AI76: 0 | AJ76: =INDEX(AJ$13:AJ$57,$F76)*p.hc.v*p.fc.geo/(p.dc*p.min.h) -> 0
F77: 40 | G77: libre | I77: [erlangs] | J77: 0 | L77: 0 | M77: 0 | N77: 0 | O77: 0 | P77: 0 | Q77: 0 | R77: 0 | S77: 0 | T77: 0 | U77: 0 | V77: 0 | W77: 0 | X77: 0 | Y77: 0 | Z77: 0 | AA77: 0 | AB77: 0 | AC77: 0 | AD77: 0 | AE77: 0 | AF77: 0 | AG77: 0 | AH77: 0 | AI77: 0 | AJ77: 0
F78: 40 | G78: libre | I78: [erlangs] | J78: 0 | L78: 0 | M78: 0 | N78: 0 | O78: 0 | P78: 0 | Q78: 0 | R78: 0 | S78: 0 | T78: 0 | U78: 0 | V78: 0 | W78: 0 | X78: 0 | Y78: 0 | Z78: 0 | AA78: 0 | AB78: 0 | AC78: 0 | AD78: 0 | AE78: 0 | AF78: 0 | AG78: 0 | AH78: 0 | AI78: 0 | AJ78: 0
F79: 40 | G79: libre | I79: [erlangs] | J79: 0 | L79: 0 | M79: 0 | N79: 0 | O79: 0 | P79: 0 | Q79: 0 | R79: 0 | S79: 0 | T79: 0 | U79: 0 | V79: 0 | W79: 0 | X79: 0 | Y79: 0 | Z79: 0 | AA79: 0 | AB79: 0 | AC79: 0 | AD79: 0 | AE79: 0 | AF79: 0 | AG79: 0 | AH79: 0 | AI79: 0 | AJ79: 0
F80: 40 | G80: libre | I80: [erlangs] | J80: 0 | L80: 0 | M80: 0 | N80: 0 | O80: 0 | P80: 0 | Q80: 0 | R80: 0 | S80: 0 | T80: 0 | U80: 0 | V80: 0 | W80: 0 | X80: 0 | Y80: 0 | Z80: 0 | AA80: 0 | AB80: 0 | AC80: 0 | AD80: 0 | AE80: 0 | AF80: 0 | AG80: 0 | AH80: 0 | AI80: 0 | AJ80: 0
F81: 40 | G81: libre | I81: [erlangs] | J81: 0 | L81: 0 | M81: 0 | N81: 0 | O81: 0 | P81: 0 | Q81: 0 | R81: 0 | S81: 0 | T81: 0 | U81: 0 | V81: 0 | W81: 0 | X81: 0 | Y81: 0 | Z81: 0 | AA81: 0 | AB81: 0 | AC81: 0 | AD81: 0 | AE81: 0 | AF81: 0 | AG81: 0 | AH81: 0 | AI81: 0 | AJ81: 0
F82: 40 | G82: libre | I82: [erlangs] | J82: 0 | L82: 0 | M82: 0 | N82: 0 | O82: 0 | P82: 0 | Q82: 0 | R82: 0 | S82: 0 | T82: 0 | U82: 0 | V82: 0 | W82: 0 | X82: 0 | Y82: 0 | Z82: 0 | AA82: 0 | AB82: 0 | AC82: 0 | AD82: 0 | AE82: 0 | AF82: 0 | AG82: 0 | AH82: 0 | AI82: 0 | AJ82: 0
F83: 40 | G83: libre | I83: [erlangs] | J83: 0 | L83: 0 | M83: 0 | N83: 0 | O83: 0 | P83: 0 | Q83: 0 | R83: 0 | S83: 0 | T83: 0 | U83: 0 | V83: 0 | W83: 0 | X83: 0 | Y83: 0 | Z83: 0 | AA83: 0 | AB83: 0 | AC83: 0 | AD83: 0 | AE83: 0 | AF83: 0 | AG83: 0 | AH83: 0 | AI83: 0 | AJ83: 0
F84: 40 | G84: libre | I84: [erlangs] | J84: 0 | L84: 0 | M84: 0 | N84: 0 | O84: 0 | P84: 0 | Q84: 0 | R84: 0 | S84: 0 | T84: 0 | U84: 0 | V84: 0 | W84: 0 | X84: 0 | Y84: 0 | Z84: 0 | AA84: 0 | AB84: 0 | AC84: 0 | AD84: 0 | AE84: 0 | AF84: 0 | AG84: 0 | AH84: 0 | AI84: 0 | AJ84: 0
F85: 40 | G85: libre | I85: [erlangs] | J85: 0 | L85: 0 | M85: 0 | N85: 0 | O85: 0 | P85: 0 | Q85: 0 | R85: 0 | S85: 0 | T85: 0 | U85: 0 | V85: 0 | W85: 0 | X85: 0 | Y85: 0 | Z85: 0 | AA85: 0 | AB85: 0 | AC85: 0 | AD85: 0 | AE85: 0 | AF85: 0 | AG85: 0 | AH85: 0 | AI85: 0 | AJ85: 0
E86: Erlangs en Radio en la Hora Cargada incluyendo tiempo de timbrado, en R99
E87: 1 | F87: 4 | G87: =INDEX(l.serv.nom,F87) -> Tráfico Móvil Voz entrante desde otras móviles | I87: [HC erlangs] | J87: =SUM(L87,M87,N87,O87,P87,Q87,R87,S87,T87,U87,V87,W87,X87,Y87,Z87,AA87,AB87,AC87,AD87,AE87,AF87,AG87,AH87,AI87,AJ87) -> 85298.04034 | L87: =INDEX(p.ran.rf.voz,$E87)*INDEX(p.traf.nf,$E87)*L66 -> 4255.727723 | M87: 3785.611062 | N87: 3812.009109 | O87: 2985.83624 | P87: 3532.960859 | Q87: 3233.08498 | R87: =INDEX(p.ran.rf.voz,$E87)*INDEX(p.traf.nf,$E87)*R66 -> 3755.936298 | S87: 2872.344092 | T87: 3537.732578 | U87: 3304.415003 | V87: 3726.389531 | W87: =INDEX(p.ran.rf.voz,$E87)*INDEX(p.traf.nf,$E87)*W66 -> 3418.32186 | X87: 3661.024156 | Y87: 3706.913547 | Z87: =INDEX(p.ran.rf.voz,$E87)*INDEX(p.traf.nf,$E87)*Z66 -> 2498.706252 | AA87: 3505.748753 | AB87: 4165.152111 | AC87: 3403.80703 | AD87: 3228.651173 | AE87: 3296.371688 | AF87: 2928.831613 | AG87: 3254.68059 | AH87: 3041.274188 | AI87: 3191.654996 | AJ87: 3194.854914
E88: 2 | F88: 5 | G88: Tráfico Móvil Voz entrante desde redes fijas | I88: [HC erlangs] | J88: 42649.02017 | L88: =INDEX(p.ran.rf.voz,$E88)*INDEX(p.traf.nf,$E88)*L67 -> 2127.863861 | M88: 1892.805531 | N88: 1906.004555 | O88: 1492.91812 | P88: 1766.48043 | Q88: 1616.54249 | R88: =INDEX(p.ran.rf.voz,$E88)*INDEX(p.traf.nf,$E88)*R67 -> 1877.968149 | S88: 1436.172046 | T88: 1768.866289 | U88: 1652.207501 | V88: 1863.194765 | W88: =INDEX(p.ran.rf.voz,$E88)*INDEX(p.traf.nf,$E88)*W67 -> 1709.16093 | X88: 1830.512078 | Y88: 1853.456773 | Z88: =INDEX(p.ran.rf.voz,$E88)*INDEX(p.traf.nf,$E88)*Z67 -> 1249.353126 | AA88: 1752.874376 | AB88: 2082.576055 | AC88: 1701.903515 | AD88: 1614.325587 | AE88: 1648.185844 | AF88: 1464.415806 | AG88: 1627.340295 | AH88: 1520.637094 | AI88: 1595.827498 | AJ88: 1597.427457
E89: 3 | F89: 6 | G89: Tráfico Móvil Voz entrante desde públicos | I89: [HC erlangs] | J89: 42649.02017 | L89: =INDEX(p.ran.rf.voz,$E89)*INDEX(p.traf.nf,$E89)*L68 -> 2127.863861 | M89: 1892.805531 | N89: 1906.004555 | O89: 1492.91812 | P89: 1766.48043 | Q89: 1616.54249 | R89: =INDEX(p.ran.rf.voz,$E89)*INDEX(p.traf.nf,$E89)*R68 -> 1877.968149 | S89: 1436.172046 | T89: 1768.866289 | U89: 1652.207501 | V89: 1863.194765 | W89: =INDEX(p.ran.rf.voz,$E89)*INDEX(p.traf.nf,$E89)*W68 -> 1709.16093 | X89: 1830.512078 | Y89: 1853.456773 | Z89: =INDEX(p.ran.rf.voz,$E89)*INDEX(p.traf.nf,$E89)*Z68 -> 1249.353126 | AA89: 1752.874376 | AB89: 2082.576055 | AC89: 1701.903515 | AD89: 1614.325587 | AE89: 1648.185844 | AF89: 1464.415806 | AG89: 1627.340295 | AH89: 1520.637094 | AI89: 1595.827498 | AJ89: 1597.427457
E90: 4 | F90: 7 | G90: Tráfico Móvil Voz entrante desde LDI | I90: [HC erlangs] | J90: 1705.960807 | L90: =INDEX(p.ran.rf.voz,$E90)*INDEX(p.traf.nf,$E90)*L69 -> 85.11455446 | M90: 75.71222123 | N90: 76.24018218 | O90: 59.7167248 | P90: 70.65921719 | Q90: 64.6616996 | R90: =INDEX(p.ran.rf.voz,$E90)*INDEX(p.traf.nf,$E90)*R69 -> 75.11872596 | S90: 57.44688184 | T90: 70.75465155 | U90: 66.08830005 | V90: 74.52779061 | W90: =INDEX(p.ran.rf.voz,$E90)*INDEX(p.traf.nf,$E90)*W69 -> 68.36643721 | X90: 73.22048312 | Y90: 74.13827094 | Z90: =INDEX(p.ran.rf.voz,$E90)*INDEX(p.traf.nf,$E90)*Z69 -> 49.97412505 | AA90: 70.11497505 | AB90: 83.30304222 | AC90: 68.0761406 | AD90: 64.57302346 | AE90: 65.92743375 | AF90: 58.57663225 | AG90: 65.0936118 | AH90: 60.82548375 | AI90: 63.83309992 | AJ90: 63.89709829
E91: 5 | F91: 8 | G91: Tráfico on-net | I91: [HC erlangs] | J91: 1705960.807 | L91: =INDEX(p.ran.rf.voz,$E91)*INDEX(p.traf.nf,$E91)*L70 -> 85114.55446 | M91: 75712.22123 | N91: 76240.18218 | O91: 59716.7248 | P91: 70659.21719 | Q91: 64661.6996 | R91: =INDEX(p.ran.rf.voz,$E91)*INDEX(p.traf.nf,$E91)*R70 -> 75118.72596 | S91: 57446.88184 | T91: 70754.65155 | U91: 66088.30005 | V91: 74527.79061 | W91: =INDEX(p.ran.rf.voz,$E91)*INDEX(p.traf.nf,$E91)*W70 -> 68366.43721 | X91: 73220.48312 | Y91: 74138.27094 | Z91: =INDEX(p.ran.rf.voz,$E91)*INDEX(p.traf.nf,$E91)*Z70 -> 49974.12505 | AA91: 70114.97505 | AB91: 83303.04222 | AC91: 68076.1406 | AD91: 64573.02346 | AE91: 65927.43375 | AF91: 58576.63225 | AG91: 65093.6118 | AH91: 60825.48375 | AI91: 63833.09992 | AJ91: 63897.09829
E92: 6 | F92: 9 | G92: Tráfico Móvil Voz saliente a otras móviles | I92: [HC erlangs] | J92: 51178.82421 | L92: =INDEX(p.ran.rf.voz,$E92)*INDEX(p.traf.nf,$E92)*L71 -> 2553.436634 | M92: 2271.366637 | N92: 2287.205465 | O92: 1791.501744 | P92: 2119.776516 | Q92: 1939.850988 | R92: =INDEX(p.ran.rf.voz,$E92)*INDEX(p.traf.nf,$E92)*R71 -> 2253.561779 | S92: 1723.406455 | T92: 2122.639547 | U92: 1982.649002 | V92: 2235.833718 | W92: =INDEX(p.ran.rf.voz,$E92)*INDEX(p.traf.nf,$E92)*W71 -> 2050.993116 | X92: 2196.614494 | Y92: 2224.148128 | Z92: =INDEX(p.ran.rf.voz,$E92)*INDEX(p.traf.nf,$E92)*Z71 -> 1499.223751 | AA92: 2103.449252 | AB92: 2499.091267 | AC92: 2042.284218 | AD92: 1937.190704 | AE92: 1977.823013 | AF92: 1757.298968 | AG92: 1952.808354 | AH92: 1824.764513 | AI92: 1914.992997 | AJ92: 1916.912949
E93: 7 | F93: 10 | G93: Tráfico Móvil Voz saliente a redes fijas | I93: [HC erlangs] | J93: 4264.902017 | L93: =INDEX(p.ran.rf.voz,$E93)*INDEX(p.traf.nf,$E93)*L72 -> 212.7863861 | M93: 189.2805531 | N93: 190.6004555 | O93: 149.291812 | P93: 176.648043 | Q93: 161.654249 | R93: =INDEX(p.ran.rf.voz,$E93)*INDEX(p.traf.nf,$E93)*R72 -> 187.7968149 | S93: 143.6172046 | T93: 176.8866289 | U93: 165.2207501 | V93: 186.3194765 | W93: =INDEX(p.ran.rf.voz,$E93)*INDEX(p.traf.nf,$E93)*W72 -> 170.916093 | X93: 183.0512078 | Y93: 185.3456773 | Z93: =INDEX(p.ran.rf.voz,$E93)*INDEX(p.traf.nf,$E93)*Z72 -> 124.9353126 | AA93: 175.2874376 | AB93: 208.2576055 | AC93: 170.1903515 | AD93: 161.4325587 | AE93: 164.8185844 | AF93: 146.4415806 | AG93: 162.7340295 | AH93: 152.0637094 | AI93: 159.5827498 | AJ93: 159.7427457
E94: 8 | F94: 11 | G94: Tráfico Móvil Voz saliente a LDI | I94: [HC erlangs] | J94: 1705.960807 | L94: =INDEX(p.ran.rf.voz,$E94)*INDEX(p.traf.nf,$E94)*L73 -> 85.11455446 | M94: 75.71222123 | N94: 76.24018218 | O94: 59.7167248 | P94: 70.65921719 | Q94: 64.6616996 | R94: =INDEX(p.ran.rf.voz,$E94)*INDEX(p.traf.nf,$E94)*R73 -> 75.11872596 | S94: 57.44688184 | T94: 70.75465155 | U94: 66.08830005 | V94: 74.52779061 | W94: =INDEX(p.ran.rf.voz,$E94)*INDEX(p.traf.nf,$E94)*W73 -> 68.36643721 | X94: 73.22048312 | Y94: 74.13827094 | Z94: =INDEX(p.ran.rf.voz,$E94)*INDEX(p.traf.nf,$E94)*Z73 -> 49.97412505 | AA94: 70.11497505 | AB94: 83.30304222 | AC94: 68.0761406 | AD94: 64.57302346 | AE94: 65.92743375 | AF94: 58.57663225 | AG94: 65.0936118 | AH94: 60.82548375 | AI94: 63.83309992 | AJ94: 63.89709829
E95: 9 | F95: 12 | G95: libre | I95: [HC erlangs] | J95: 0 | L95: =INDEX(p.ran.rf.voz,$E95)*INDEX(p.traf.nf,$E95)*L74 -> 0 | M95: 0 | N95: 0 | O95: 0 | P95: 0 | Q95: 0 | R95: =INDEX(p.ran.rf.voz,$E95)*INDEX(p.traf.nf,$E95)*R74 -> 0 | S95: 0 | T95: 0 | U95: 0 | V95: 0 | W95: =INDEX(p.ran.rf.voz,$E95)*INDEX(p.traf.nf,$E95)*W74 -> 0 | X95: 0 | Y95: 0 | Z95: =INDEX(p.ran.rf.voz,$E95)*INDEX(p.traf.nf,$E95)*Z74 -> 0 | AA95: 0 | AB95: 0 | AC95: 0 | AD95: 0 | AE95: 0 | AF95: 0 | AG95: 0 | AH95: 0 | AI95: 0 | AJ95: 0
E96: 10 | F96: 13 | G96: libre | I96: [HC erlangs] | J96: 0 | L96: =INDEX(p.ran.rf.voz,$E96)*INDEX(p.traf.nf,$E96)*L75 -> 0 | M96: 0 | N96: 0 | O96: 0 | P96: 0 | Q96: 0 | R96: =INDEX(p.ran.rf.voz,$E96)*INDEX(p.traf.nf,$E96)*R75 -> 0 | S96: 0 | T96: 0 | U96: 0 | V96: 0 | W96: =INDEX(p.ran.rf.voz,$E96)*INDEX(p.traf.nf,$E96)*W75 -> 0 | X96: 0 | Y96: 0 | Z96: =INDEX(p.ran.rf.voz,$E96)*INDEX(p.traf.nf,$E96)*Z75 -> 0 | AA96: 0 | AB96: 0 | AC96: 0 | AD96: 0 | AE96: 0 | AF96: 0 | AG96: 0 | AH96: 0 | AI96: 0 | AJ96: 0
E97: 11 | F97: 40 | G97: libre | I97: [HC erlangs] | J97: 0 | L97: =INDEX(p.ran.rf.voz,$E97)*INDEX(p.traf.nf,$E97)*L76 -> 0 | M97: 0 | N97: 0 | O97: 0 | P97: 0 | Q97: 0 | R97: =INDEX(p.ran.rf.voz,$E97)*INDEX(p.traf.nf,$E97)*R76 -> 0 | S97: 0 | T97: 0 | U97: 0 | V97: 0 | W97: =INDEX(p.ran.rf.voz,$E97)*INDEX(p.traf.nf,$E97)*W76 -> 0 | X97: 0 | Y97: 0 | Z97: =INDEX(p.ran.rf.voz,$E97)*INDEX(p.traf.nf,$E97)*Z76 -> 0 | AA97: 0 | AB97: 0 | AC97: 0 | AD97: 0 | AE97: 0 | AF97: 0 | AG97: 0 | AH97: 0 | AI97: 0 | AJ97: 0
E98: 12 | F98: 40 | G98: libre | I98: [HC erlangs] | J98: 0 | L98: =INDEX(p.ran.rf.voz,$E98)*INDEX(p.traf.nf,$E98)*L77 -> 0 | M98: 0 | N98: 0 | O98: 0 | P98: 0 | Q98: 0 | R98: =INDEX(p.ran.rf.voz,$E98)*INDEX(p.traf.nf,$E98)*R77 -> 0 | S98: 0 | T98: 0 | U98: 0 | V98: 0 | W98: =INDEX(p.ran.rf.voz,$E98)*INDEX(p.traf.nf,$E98)*W77 -> 0 | X98: 0 | Y98: 0 | Z98: =INDEX(p.ran.rf.voz,$E98)*INDEX(p.traf.nf,$E98)*Z77 -> 0 | AA98: 0 | AB98: 0 | AC98: 0 | AD98: 0 | AE98: 0 | AF98: 0 | AG98: 0 | AH98: 0 | AI98: 0 | AJ98: 0
E99: 13 | F99: 40 | G99: libre | I99: [HC erlangs] | J99: 0 | L99: =INDEX(p.ran.rf.voz,$E99)*INDEX(p.traf.nf,$E99)*L78 -> 0 | M99: 0 | N99: 0 | O99: 0 | P99: 0 | Q99: 0 | R99: =INDEX(p.ran.rf.voz,$E99)*INDEX(p.traf.nf,$E99)*R78 -> 0 | S99: 0 | T99: 0 | U99: 0 | V99: 0 | W99: =INDEX(p.ran.rf.voz,$E99)*INDEX(p.traf.nf,$E99)*W78 -> 0 | X99: 0 | Y99: 0 | Z99: =INDEX(p.ran.rf.voz,$E99)*INDEX(p.traf.nf,$E99)*Z78 -> 0 | AA99: 0 | AB99: 0 | AC99: 0 | AD99: 0 | AE99: 0 | AF99: 0 | AG99: 0 | AH99: 0 | AI99: 0 | AJ99: 0
E100: 14 | F100: 40 | G100: libre | I100: [HC erlangs] | J100: 0 | L100: =INDEX(p.ran.rf.voz,$E100)*INDEX(p.traf.nf,$E100)*L79 -> 0 | M100: 0 | N100: 0 | O100: 0 | P100: 0 | Q100: 0 | R100: =INDEX(p.ran.rf.voz,$E100)*INDEX(p.traf.nf,$E100)*R79 -> 0 | S100: 0 | T100: 0 | U100: 0 | V100: 0 | W100: =INDEX(p.ran.rf.voz,$E100)*INDEX(p.traf.nf,$E100)*W79 -> 0 | X100: 0 | Y100: 0 | Z100: =INDEX(p.ran.rf.voz,$E100)*INDEX(p.traf.nf,$E100)*Z79 -> 0 | AA100: 0 | AB100: 0 | AC100: 0 | AD100: 0 | AE100: 0 | AF100: 0 | AG100: 0 | AH100: 0 | AI100: 0 | AJ100: 0
E101: 15 | F101: 40 | G101: libre | I101: [HC erlangs] | J101: 0 | L101: =INDEX(p.ran.rf.voz,$E101)*INDEX(p.traf.nf,$E101)*L80 -> 0 | M101: 0 | N101: 0 | O101: 0 | P101: 0 | Q101: 0 | R101: =INDEX(p.ran.rf.voz,$E101)*INDEX(p.traf.nf,$E101)*R80 -> 0 | S101: 0 | T101: 0 | U101: 0 | V101: 0 | W101: =INDEX(p.ran.rf.voz,$E101)*INDEX(p.traf.nf,$E101)*W80 -> 0 | X101: 0 | Y101: 0 | Z101: =INDEX(p.ran.rf.voz,$E101)*INDEX(p.traf.nf,$E101)*Z80 -> 0 | AA101: 0 | AB101: 0 | AC101: 0 | AD101: 0 | AE101: 0 | AF101: 0 | AG101: 0 | AH101: 0 | AI101: 0 | AJ101: 0
E102: 16 | F102: 40 | G102: libre | I102: [HC erlangs] | J102: 0 | L102: =INDEX(p.ran.rf.voz,$E102)*INDEX(p.traf.nf,$E102)*L81 -> 0 | M102: 0 | N102: 0 | O102: 0 | P102: 0 | Q102: 0 | R102: =INDEX(p.ran.rf.voz,$E102)*INDEX(p.traf.nf,$E102)*R81 -> 0 | S102: 0 | T102: 0 | U102: 0 | V102: 0 | W102: =INDEX(p.ran.rf.voz,$E102)*INDEX(p.traf.nf,$E102)*W81 -> 0 | X102: 0 | Y102: 0 | Z102: =INDEX(p.ran.rf.voz,$E102)*INDEX(p.traf.nf,$E102)*Z81 -> 0 | AA102: 0 | AB102: 0 | AC102: 0 | AD102: 0 | AE102: 0 | AF102: 0 | AG102: 0 | AH102: 0 | AI102: 0 | AJ102: 0
E103: 17 | F103: 40 | G103: libre | I103: [HC erlangs] | J103: 0 | L103: =INDEX(p.ran.rf.voz,$E103)*INDEX(p.traf.nf,$E103)*L82 -> 0 | M103: 0 | N103: 0 | O103: 0 | P103: 0 | Q103: 0 | R103: =INDEX(p.ran.rf.voz,$E103)*INDEX(p.traf.nf,$E103)*R82 -> 0 | S103: 0 | T103: 0 | U103: 0 | V103: 0 | W103: =INDEX(p.ran.rf.voz,$E103)*INDEX(p.traf.nf,$E103)*W82 -> 0 | X103: 0 | Y103: 0 | Z103: =INDEX(p.ran.rf.voz,$E103)*INDEX(p.traf.nf,$E103)*Z82 -> 0 | AA103: 0 | AB103: 0 | AC103: 0 | AD103: 0 | AE103: 0 | AF103: 0 | AG103: 0 | AH103: 0 | AI103: 0 | AJ103: 0
E104: 18 | F104: 40 | G104: libre | I104: [HC erlangs] | J104: 0 | L104: =INDEX(p.ran.rf.voz,$E104)*INDEX(p.traf.nf,$E104)*L83 -> 0 | M104: 0 | N104: 0 | O104: 0 | P104: 0 | Q104: 0 | R104: =INDEX(p.ran.rf.voz,$E104)*INDEX(p.traf.nf,$E104)*R83 -> 0 | S104: 0 | T104: 0 | U104: 0 | V104: 0 | W104: =INDEX(p.ran.rf.voz,$E104)*INDEX(p.traf.nf,$E104)*W83 -> 0 | X104: 0 | Y104: 0 | Z104: =INDEX(p.ran.rf.voz,$E104)*INDEX(p.traf.nf,$E104)*Z83 -> 0 | AA104: 0 | AB104: 0 | AC104: 0 | AD104: 0 | AE104: 0 | AF104: 0 | AG104: 0 | AH104: 0 | AI104: 0 | AJ104: 0
E105: 19 | F105: 40 | G105: libre | I105: [HC erlangs] | J105: 0 | L105: =INDEX(p.ran.rf.voz,$E105)*INDEX(p.traf.nf,$E105)*L84 -> 0 | M105: 0 | N105: 0 | O105: 0 | P105: 0 | Q105: 0 | R105: =INDEX(p.ran.rf.voz,$E105)*INDEX(p.traf.nf,$E105)*R84 -> 0 | S105: 0 | T105: 0 | U105: 0 | V105: 0 | W105: =INDEX(p.ran.rf.voz,$E105)*INDEX(p.traf.nf,$E105)*W84 -> 0 | X105: 0 | Y105: 0 | Z105: =INDEX(p.ran.rf.voz,$E105)*INDEX(p.traf.nf,$E105)*Z84 -> 0 | AA105: 0 | AB105: 0 | AC105: 0 | AD105: 0 | AE105: 0 | AF105: 0 | AG105: 0 | AH105: 0 | AI105: 0 | AJ105: 0
E106: 20 | F106: 40 | G106: libre | I106: [HC erlangs] | J106: 0 | L106: =INDEX(p.ran.rf.voz,$E106)*INDEX(p.traf.nf,$E106)*L85 -> 0 | M106: 0 | N106: 0 | O106: 0 | P106: 0 | Q106: 0 | R106: =INDEX(p.ran.rf.voz,$E106)*INDEX(p.traf.nf,$E106)*R85 -> 0 | S106: 0 | T106: 0 | U106: 0 | V106: 0 | W106: =INDEX(p.ran.rf.voz,$E106)*INDEX(p.traf.nf,$E106)*W85 -> 0 | X106: 0 | Y106: 0 | Z106: =INDEX(p.ran.rf.voz,$E106)*INDEX(p.traf.nf,$E106)*Z85 -> 0 | AA106: 0 | AB106: 0 | AC106: 0 | AD106: 0 | AE106: 0 | AF106: 0 | AG106: 0 | AH106: 0 | AI106: 0 | AJ106: 0
E107: BHCA para el diseño de los RNC
E108: 1 | F108: 4 | G108: =INDEX(l.serv.nom,F108) -> Tráfico Móvil Voz entrante desde otras móviles | I108: [# BHCA] | J108: =SUM(L108,M108,N108,O108,P108,Q108,R108,S108,T108,U108,V108,W108,X108,Y108,Z108,AA108,AB108,AC108,AD108,AE108,AF108,AG108,AH108,AI108,AJ108) -> 77021.21215 | L108: =INDEX(L$13:L$57,$F66)*p.hc.v*p.fc.geo/(p.dc*p.min.h)/(INDEX(p.mht,$E108)*(1-INDEX(p.usu.drop,$E108))) -> 3842.776534 | M108: =INDEX(M$13:M$57,$F66)*p.hc.v*p.fc.geo/(p.dc*p.min.h)/(INDEX(p.mht,$E108)*(1-INDEX(p.usu.drop,$E108))) -> 3418.277273 | N108: 3442.113806 | O108: 2696.107971 | P108: 3190.142784 | Q108: 2919.365125 | R108: =INDEX(R$13:R$57,$F66)*p.hc.v*p.fc.geo/(p.dc*p.min.h)/(INDEX(p.mht,$E108)*(1-INDEX(p.usu.drop,$E108))) -> 3391.481976 | S108: 2593.628444 | T108: 3194.451482 | U108: 2983.773694 | V108: 3364.802256 | W108: =INDEX(W$13:W$57,$F66)*p.hc.v*p.fc.geo/(p.dc*p.min.h)/(INDEX(p.mht,$E108)*(1-INDEX(p.usu.drop,$E108))) -> 3086.62769 | X108: 3305.779559 | Y108: 3347.216109 | Z108: 2256.246258 | AA108: 3165.571182 | AB108: =INDEX(AB$13:AB$57,$F66)*p.hc.v*p.fc.geo/(p.dc*p.min.h)/(INDEX(p.mht,$E108)*(1-INDEX(p.usu.drop,$E108))) -> 3760.989855 | AC108: 3073.521295 | AD108: 2915.361548 | AE108: 2976.510856 | AF108: 2644.634743 | AG108: 2938.865221 | AH108: =INDEX(AH$13:AH$57,$F66)*p.hc.v*p.fc.geo/(p.dc*p.min.h)/(INDEX(p.mht,$E108)*(1-INDEX(p.usu.drop,$E108))) -> 2746.166541 | AI108: 2881.955266 | AJ108: 2884.844683
E109: 2 | F109: 5 | G109: Tráfico Móvil Voz entrante desde redes fijas | I109: [# BHCA] | J109: 38510.60608 | L109: =INDEX(L$13:L$57,$F67)*p.hc.v*p.fc.geo/(p.dc*p.min.h)/(INDEX(p.mht,$E109)*(1-INDEX(p.usu.drop,$E109))) -> 1921.388267 | M109: 1709.138636 | N109: 1721.056903 | O109: 1348.053986 | P109: 1595.071392 | Q109: 1459.682562 | R109: =INDEX(R$13:R$57,$F67)*p.hc.v*p.fc.geo/(p.dc*p.min.h)/(INDEX(p.mht,$E109)*(1-INDEX(p.usu.drop,$E109))) -> 1695.740988 | S109: 1296.814222 | T109: 1597.225741 | U109: 1491.886847 | V109: 1682.401128 | W109: =INDEX(W$13:W$57,$F67)*p.hc.v*p.fc.geo/(p.dc*p.min.h)/(INDEX(p.mht,$E109)*(1-INDEX(p.usu.drop,$E109))) -> 1543.313845 | X109: 1652.88978 | Y109: 1673.608055 | Z109: 1128.123129 | AA109: 1582.785591 | AB109: =INDEX(AB$13:AB$57,$F67)*p.hc.v*p.fc.geo/(p.dc*p.min.h)/(INDEX(p.mht,$E109)*(1-INDEX(p.usu.drop,$E109))) -> 1880.494927 | AC109: 1536.760647 | AD109: 1457.680774 | AE109: 1488.255428 | AF109: 1322.317371 | AG109: 1469.432611 | AH109: =INDEX(AH$13:AH$57,$F67)*p.hc.v*p.fc.geo/(p.dc*p.min.h)/(INDEX(p.mht,$E109)*(1-INDEX(p.usu.drop,$E109))) -> 1373.083271 | AI109: 1440.977633 | AJ109: 1442.422341
E110: 3 | F110: 6 | G110: Tráfico Móvil Voz entrante desde públicos | I110: [# BHCA] | J110: 38510.60608 | L110: =INDEX(L$13:L$57,$F68)*p.hc.v*p.fc.geo/(p.dc*p.min.h)/(INDEX(p.mht,$E110)*(1-INDEX(p.usu.drop,$E110))) -> 1921.388267 | M110: 1709.138636 | N110: 1721.056903 | O110: 1348.053986 | P110: 1595.071392 | Q110: 1459.682562 | R110: =INDEX(R$13:R$57,$F68)*p.hc.v*p.fc.geo/(p.dc*p.min.h)/(INDEX(p.mht,$E110)*(1-INDEX(p.usu.drop,$E110))) -> 1695.740988 | S110: 1296.814222 | T110: 1597.225741 | U110: 1491.886847 | V110: 1682.401128 | W110: =INDEX(W$13:W$57,$F68)*p.hc.v*p.fc.geo/(p.dc*p.min.h)/(INDEX(p.mht,$E110)*(1-INDEX(p.usu.drop,$E110))) -> 1543.313845 | X110: 1652.88978 | Y110: 1673.608055 | Z110: 1128.123129 | AA110: 1582.785591 | AB110: =INDEX(AB$13:AB$57,$F68)*p.hc.v*p.fc.geo/(p.dc*p.min.h)/(INDEX(p.mht,$E110)*(1-INDEX(p.usu.drop,$E110))) -> 1880.494927 | AC110: 1536.760647 | AD110: 1457.680774 | AE110: 1488.255428 | AF110: 1322.317371 | AG110: 1469.432611 | AH110: =INDEX(AH$13:AH$57,$F68)*p.hc.v*p.fc.geo/(p.dc*p.min.h)/(INDEX(p.mht,$E110)*(1-INDEX(p.usu.drop,$E110))) -> 1373.083271 | AI110: 1440.977633 | AJ110: 1442.422341
E111: 4 | F111: 7 | G111: Tráfico Móvil Voz entrante desde LDI | I111: [# BHCA] | J111: 1540.424243 | L111: =INDEX(L$13:L$57,$F69)*p.hc.v*p.fc.geo/(p.dc*p.min.h)/(INDEX(p.mht,$E111)*(1-INDEX(p.usu.drop,$E111))) -> 76.85553068 | M111: 68.36554545 | N111: 68.84227613 | O111: 53.92215943 | P111: 63.80285568 | Q111: 58.38730249 | R111: =INDEX(R$13:R$57,$F69)*p.hc.v*p.fc.geo/(p.dc*p.min.h)/(INDEX(p.mht,$E111)*(1-INDEX(p.usu.drop,$E111))) -> 67.82963952 | S111: 51.87256889 | T111: 63.88902964 | U111: 59.67547389 | V111: 67.29604513 | W111: =INDEX(W$13:W$57,$F69)*p.hc.v*p.fc.geo/(p.dc*p.min.h)/(INDEX(p.mht,$E111)*(1-INDEX(p.usu.drop,$E111))) -> 61.7325538 | X111: 66.11559119 | Y111: 66.94432219 | Z111: 45.12492517 | AA111: 63.31142365 | AB111: =INDEX(AB$13:AB$57,$F69)*p.hc.v*p.fc.geo/(p.dc*p.min.h)/(INDEX(p.mht,$E111)*(1-INDEX(p.usu.drop,$E111))) -> 75.2197971 | AC111: 61.4704259 | AD111: 58.30723097 | AE111: 59.53021712 | AF111: 52.89269486 | AG111: 58.77730443 | AH111: =INDEX(AH$13:AH$57,$F69)*p.hc.v*p.fc.geo/(p.dc*p.min.h)/(INDEX(p.mht,$E111)*(1-INDEX(p.usu.drop,$E111))) -> 54.92333082 | AI111: 57.63910532 | AJ111: 57.69689366
E112: 5 | F112: 8 | G112: Tráfico on-net | I112: [# BHCA] | J112: 770212.1215 | L112: =INDEX(L$13:L$57,$F70)*p.hc.v*p.fc.geo/(p.dc*p.min.h)/(INDEX(p.mht,$E112)*(1-INDEX(p.usu.drop,$E112))) -> 38427.76534 | M112: 34182.77273 | N112: 34421.13806 | O112: 26961.07971 | P112: 31901.42784 | Q112: 29193.65125 | R112: =INDEX(R$13:R$57,$F70)*p.hc.v*p.fc.geo/(p.dc*p.min.h)/(INDEX(p.mht,$E112)*(1-INDEX(p.usu.drop,$E112))) -> 33914.81976 | S112: 25936.28444 | T112: 31944.51482 | U112: 29837.73694 | V112: 33648.02256 | W112: =INDEX(W$13:W$57,$F70)*p.hc.v*p.fc.geo/(p.dc*p.min.h)/(INDEX(p.mht,$E112)*(1-INDEX(p.usu.drop,$E112))) -> 30866.2769 | X112: 33057.79559 | Y112: 33472.16109 | Z112: 22562.46258 | AA112: 31655.71182 | AB112: =INDEX(AB$13:AB$57,$F70)*p.hc.v*p.fc.geo/(p.dc*p.min.h)/(INDEX(p.mht,$E112)*(1-INDEX(p.usu.drop,$E112))) -> 37609.89855 | AC112: 30735.21295 | AD112: 29153.61548 | AE112: 29765.10856 | AF112: 26446.34743 | AG112: 29388.65221 | AH112: =INDEX(AH$13:AH$57,$F70)*p.hc.v*p.fc.geo/(p.dc*p.min.h)/(INDEX(p.mht,$E112)*(1-INDEX(p.usu.drop,$E112))) -> 27461.66541 | AI112: 28819.55266 | AJ112: 28848.44683
E113: 6 | F113: 9 | G113: Tráfico Móvil Voz saliente a otras móviles | I113: [# BHCA] | J113: 46212.72729 | L113: =INDEX(L$13:L$57,$F71)*p.hc.v*p.fc.geo/(p.dc*p.min.h)/(INDEX(p.mht,$E113)*(1-INDEX(p.usu.drop,$E113))) -> 2305.66592 | M113: 2050.966364 | N113: 2065.268284 | O113: 1617.664783 | P113: 1914.08567 | Q113: 1751.619075 | R113: =INDEX(R$13:R$57,$F71)*p.hc.v*p.fc.geo/(p.dc*p.min.h)/(INDEX(p.mht,$E113)*(1-INDEX(p.usu.drop,$E113))) -> 2034.889186 | S113: 1556.177067 | T113: 1916.670889 | U113: 1790.264217 | V113: 2018.881354 | W113: =INDEX(W$13:W$57,$F71)*p.hc.v*p.fc.geo/(p.dc*p.min.h)/(INDEX(p.mht,$E113)*(1-INDEX(p.usu.drop,$E113))) -> 1851.976614 | X113: 1983.467736 | Y113: 2008.329666 | Z113: 1353.747755 | AA113: 1899.342709 | AB113: =INDEX(AB$13:AB$57,$F71)*p.hc.v*p.fc.geo/(p.dc*p.min.h)/(INDEX(p.mht,$E113)*(1-INDEX(p.usu.drop,$E113))) -> 2256.593913 | AC113: 1844.112777 | AD113: 1749.216929 | AE113: 1785.906514 | AF113: 1586.780846 | AG113: 1763.319133 | AH113: =INDEX(AH$13:AH$57,$F71)*p.hc.v*p.fc.geo/(p.dc*p.min.h)/(INDEX(p.mht,$E113)*(1-INDEX(p.usu.drop,$E113))) -> 1647.699925 | AI113: 1729.17316 | AJ113: 1730.90681
E114: 7 | F114: 10 | G114: Tráfico Móvil Voz saliente a redes fijas | I114: [# BHCA] | J114: 3851.060608 | L114: =INDEX(L$13:L$57,$F72)*p.hc.v*p.fc.geo/(p.dc*p.min.h)/(INDEX(p.mht,$E114)*(1-INDEX(p.usu.drop,$E114))) -> 192.1388267 | M114: 170.9138636 | N114: 172.1056903 | O114: 134.8053986 | P114: 159.5071392 | Q114: 145.9682562 | R114: =INDEX(R$13:R$57,$F72)*p.hc.v*p.fc.geo/(p.dc*p.min.h)/(INDEX(p.mht,$E114)*(1-INDEX(p.usu.drop,$E114))) -> 169.5740988 | S114: 129.6814222 | T114: 159.7225741 | U114: 149.1886847 | V114: 168.2401128 | W114: =INDEX(W$13:W$57,$F72)*p.hc.v*p.fc.geo/(p.dc*p.min.h)/(INDEX(p.mht,$E114)*(1-INDEX(p.usu.drop,$E114))) -> 154.3313845 | X114: 165.288978 | Y114: 167.3608055 | Z114: 112.8123129 | AA114: 158.2785591 | AB114: =INDEX(AB$13:AB$57,$F72)*p.hc.v*p.fc.geo/(p.dc*p.min.h)/(INDEX(p.mht,$E114)*(1-INDEX(p.usu.drop,$E114))) -> 188.0494927 | AC114: 153.6760647 | AD114: 145.7680774 | AE114: 148.8255428 | AF114: 132.2317371 | AG114: 146.9432611 | AH114: =INDEX(AH$13:AH$57,$F72)*p.hc.v*p.fc.geo/(p.dc*p.min.h)/(INDEX(p.mht,$E114)*(1-INDEX(p.usu.drop,$E114))) -> 137.3083271 | AI114: 144.0977633 | AJ114: 144.2422341
E115: 8 | F115: 11 | G115: Tráfico Móvil Voz saliente a LDI | I115: [# BHCA] | J115: 1540.424243 | L115: =INDEX(L$13:L$57,$F73)*p.hc.v*p.fc.geo/(p.dc*p.min.h)/(INDEX(p.mht,$E115)*(1-INDEX(p.usu.drop,$E115))) -> 76.85553068 | M115: 68.36554545 | N115: 68.84227613 | O115: 53.92215943 | P115: 63.80285568 | Q115: 58.38730249 | R115: =INDEX(R$13:R$57,$F73)*p.hc.v*p.fc.geo/(p.dc*p.min.h)/(INDEX(p.mht,$E115)*(1-INDEX(p.usu.drop,$E115))) -> 67.82963952 | S115: 51.87256889 | T115: 63.88902964 | U115: 59.67547389 | V115: 67.29604513 | W115: =INDEX(W$13:W$57,$F73)*p.hc.v*p.fc.geo/(p.dc*p.min.h)/(INDEX(p.mht,$E115)*(1-INDEX(p.usu.drop,$E115))) -> 61.7325538 | X115: 66.11559119 | Y115: 66.94432219 | Z115: 45.12492517 | AA115: 63.31142365 | AB115: =INDEX(AB$13:AB$57,$F73)*p.hc.v*p.fc.geo/(p.dc*p.min.h)/(INDEX(p.mht,$E115)*(1-INDEX(p.usu.drop,$E115))) -> 75.2197971 | AC115: 61.4704259 | AD115: 58.30723097 | AE115: 59.53021712 | AF115: 52.89269486 | AG115: 58.77730443 | AH115: =INDEX(AH$13:AH$57,$F73)*p.hc.v*p.fc.geo/(p.dc*p.min.h)/(INDEX(p.mht,$E115)*(1-INDEX(p.usu.drop,$E115))) -> 54.92333082 | AI115: 57.63910532 | AJ115: 57.69689366
E116: 9 | F116: 12 | G116: libre | I116: [# BHCA] | J116: 0 | L116: =INDEX(L$13:L$57,$F74)*p.hc.v*p.fc.geo/(p.dc*p.min.h)/(INDEX(p.mht,$E116)*(1-INDEX(p.usu.drop,$E116))) -> 0 | M116: 0 | N116: 0 | O116: 0 | P116: 0 | Q116: 0 | R116: =INDEX(R$13:R$57,$F74)*p.hc.v*p.fc.geo/(p.dc*p.min.h)/(INDEX(p.mht,$E116)*(1-INDEX(p.usu.drop,$E116))) -> 0 | S116: 0 | T116: 0 | U116: 0 | V116: 0 | W116: =INDEX(W$13:W$57,$F74)*p.hc.v*p.fc.geo/(p.dc*p.min.h)/(INDEX(p.mht,$E116)*(1-INDEX(p.usu.drop,$E116))) -> 0 | X116: 0 | Y116: 0 | Z116: 0 | AA116: 0 | AB116: =INDEX(AB$13:AB$57,$F74)*p.hc.v*p.fc.geo/(p.dc*p.min.h)/(INDEX(p.mht,$E116)*(1-INDEX(p.usu.drop,$E116))) -> 0 | AC116: 0 | AD116: 0 | AE116: 0 | AF116: 0 | AG116: 0 | AH116: =INDEX(AH$13:AH$57,$F74)*p.hc.v*p.fc.geo/(p.dc*p.min.h)/(INDEX(p.mht,$E116)*(1-INDEX(p.usu.drop,$E116))) -> 0 | AI116: 0 | AJ116: 0
E117: 10 | F117: 13 | G117: libre | I117: [# BHCA] | J117: 0 | L117: =INDEX(L$13:L$57,$F75)*p.hc.v*p.fc.geo/(p.dc*p.min.h)/(INDEX(p.mht,$E117)*(1-INDEX(p.usu.drop,$E117))) -> 0 | M117: 0 | N117: 0 | O117: 0 | P117: 0 | Q117: 0 | R117: =INDEX(R$13:R$57,$F75)*p.hc.v*p.fc.geo/(p.dc*p.min.h)/(INDEX(p.mht,$E117)*(1-INDEX(p.usu.drop,$E117))) -> 0 | S117: 0 | T117: 0 | U117: 0 | V117: 0 | W117: =INDEX(W$13:W$57,$F75)*p.hc.v*p.fc.geo/(p.dc*p.min.h)/(INDEX(p.mht,$E117)*(1-INDEX(p.usu.drop,$E117))) -> 0 | X117: 0 | Y117: 0 | Z117: 0 | AA117: 0 | AB117: =INDEX(AB$13:AB$57,$F75)*p.hc.v*p.fc.geo/(p.dc*p.min.h)/(INDEX(p.mht,$E117)*(1-INDEX(p.usu.drop,$E117))) -> 0 | AC117: 0 | AD117: 0 | AE117: 0 | AF117: 0 | AG117: 0 | AH117: =INDEX(AH$13:AH$57,$F75)*p.hc.v*p.fc.geo/(p.dc*p.min.h)/(INDEX(p.mht,$E117)*(1-INDEX(p.usu.drop,$E117))) -> 0 | AI117: 0 | AJ117: 0
E118: 11 | F118: 40 | G118: libre | I118: [# BHCA] | J118: 0 | L118: =INDEX(L$13:L$57,$F76)*p.hc.v*p.fc.geo/(p.dc*p.min.h)/(INDEX(p.mht,$E118)*(1-INDEX(p.usu.drop,$E118))) -> 0 | M118: 0 | N118: 0 | O118: 0 | P118: 0 | Q118: 0 | R118: =INDEX(R$13:R$57,$F76)*p.hc.v*p.fc.geo/(p.dc*p.min.h)/(INDEX(p.mht,$E118)*(1-INDEX(p.usu.drop,$E118))) -> 0 | S118: 0 | T118: 0 | U118: 0 | V118: 0 | W118: =INDEX(W$13:W$57,$F76)*p.hc.v*p.fc.geo/(p.dc*p.min.h)/(INDEX(p.mht,$E118)*(1-INDEX(p.usu.drop,$E118))) -> 0 | X118: 0 | Y118: 0 | Z118: 0 | AA118: 0 | AB118: =INDEX(AB$13:AB$57,$F76)*p.hc.v*p.fc.geo/(p.dc*p.min.h)/(INDEX(p.mht,$E118)*(1-INDEX(p.usu.drop,$E118))) -> 0 | AC118: 0 | AD118: 0 | AE118: 0 | AF118: 0 | AG118: 0 | AH118: =INDEX(AH$13:AH$57,$F76)*p.hc.v*p.fc.geo/(p.dc*p.min.h)/(INDEX(p.mht,$E118)*(1-INDEX(p.usu.drop,$E118))) -> 0 | AI118: 0 | AJ118: 0
E119: 12 | F119: 40 | G119: libre | I119: [# BHCA] | J119: 0 | L119: =INDEX(L$13:L$57,$F77)*p.hc.v*p.fc.geo/(p.dc*p.min.h)/(INDEX(p.mht,$E119)*(1-INDEX(p.usu.drop,$E119))) -> 0 | M119: 0 | N119: 0 | O119: 0 | P119: 0 | Q119: 0 | R119: =INDEX(R$13:R$57,$F77)*p.hc.v*p.fc.geo/(p.dc*p.min.h)/(INDEX(p.mht,$E119)*(1-INDEX(p.usu.drop,$E119))) -> 0 | S119: 0 | T119: 0 | U119: 0 | V119: 0 | W119: =INDEX(W$13:W$57,$F77)*p.hc.v*p.fc.geo/(p.dc*p.min.h)/(INDEX(p.mht,$E119)*(1-INDEX(p.usu.drop,$E119))) -> 0 | X119: 0 | Y119: 0 | Z119: 0 | AA119: 0 | AB119: =INDEX(AB$13:AB$57,$F77)*p.hc.v*p.fc.geo/(p.dc*p.min.h)/(INDEX(p.mht,$E119)*(1-INDEX(p.usu.drop,$E119))) -> 0 | AC119: 0 | AD119: 0 | AE119: 0 | AF119: 0 | AG119: 0 | AH119: =INDEX(AH$13:AH$57,$F77)*p.hc.v*p.fc.geo/(p.dc*p.min.h)/(INDEX(p.mht,$E119)*(1-INDEX(p.usu.drop,$E119))) -> 0 | AI119: 0 | AJ119: 0
E120: 13 | F120: 40 | G120: libre | I120: [# BHCA] | J120: 0 | L120: =INDEX(L$13:L$57,$F78)*p.hc.v*p.fc.geo/(p.dc*p.min.h)/(INDEX(p.mht,$E120)*(1-INDEX(p.usu.drop,$E120))) -> 0 | M120: 0 | N120: 0 | O120: 0 | P120: 0 | Q120: 0 | R120: =INDEX(R$13:R$57,$F78)*p.hc.v*p.fc.geo/(p.dc*p.min.h)/(INDEX(p.mht,$E120)*(1-INDEX(p.usu.drop,$E120))) -> 0 | S120: 0 | T120: 0 | U120: 0 | V120: 0 | W120: =INDEX(W$13:W$57,$F78)*p.hc.v*p.fc.geo/(p.dc*p.min.h)/(INDEX(p.mht,$E120)*(1-INDEX(p.usu.drop,$E120))) -> 0 | X120: 0 | Y120: 0 | Z120: 0 | AA120: 0 | AB120: =INDEX(AB$13:AB$57,$F78)*p.hc.v*p.fc.geo/(p.dc*p.min.h)/(INDEX(p.mht,$E120)*(1-INDEX(p.usu.drop,$E120))) -> 0 | AC120: 0 | AD120: 0 | AE120: 0 | AF120: 0 | AG120: 0 | AH120: =INDEX(AH$13:AH$57,$F78)*p.hc.v*p.fc.geo/(p.dc*p.min.h)/(INDEX(p.mht,$E120)*(1-INDEX(p.usu.drop,$E120))) -> 0 | AI120: 0 | AJ120: 0
E121: 14 | F121: 40 | G121: libre | I121: [# BHCA] | J121: 0 | L121: =INDEX(L$13:L$57,$F79)*p.hc.v*p.fc.geo/(p.dc*p.min.h)/(INDEX(p.mht,$E121)*(1-INDEX(p.usu.drop,$E121))) -> 0 | M121: 0 | N121: 0 | O121: 0 | P121: 0 | Q121: 0 | R121: =INDEX(R$13:R$57,$F79)*p.hc.v*p.fc.geo/(p.dc*p.min.h)/(INDEX(p.mht,$E121)*(1-INDEX(p.usu.drop,$E121))) -> 0 | S121: 0 | T121: 0 | U121: 0 | V121: 0 | W121: =INDEX(W$13:W$57,$F79)*p.hc.v*p.fc.geo/(p.dc*p.min.h)/(INDEX(p.mht,$E121)*(1-INDEX(p.usu.drop,$E121))) -> 0 | X121: 0 | Y121: 0 | Z121: 0 | AA121: 0 | AB121: =INDEX(AB$13:AB$57,$F79)*p.hc.v*p.fc.geo/(p.dc*p.min.h)/(INDEX(p.mht,$E121)*(1-INDEX(p.usu.drop,$E121))) -> 0 | AC121: 0 | AD121: 0 | AE121: 0 | AF121: 0 | AG121: 0 | AH121: =INDEX(AH$13:AH$57,$F79)*p.hc.v*p.fc.geo/(p.dc*p.min.h)/(INDEX(p.mht,$E121)*(1-INDEX(p.usu.drop,$E121))) -> 0 | AI121: 0 | AJ121: 0
E122: 15 | F122: 40 | G122: libre | I122: [# BHCA] | J122: 0 | L122: =INDEX(L$13:L$57,$F80)*p.hc.v*p.fc.geo/(p.dc*p.min.h)/(INDEX(p.mht,$E122)*(1-INDEX(p.usu.drop,$E122))) -> 0 | M122: 0 | N122: 0 | O122: 0 | P122: 0 | Q122: 0 | R122: =INDEX(R$13:R$57,$F80)*p.hc.v*p.fc.geo/(p.dc*p.min.h)/(INDEX(p.mht,$E122)*(1-INDEX(p.usu.drop,$E122))) -> 0 | S122: 0 | T122: 0 | U122: 0 | V122: 0 | W122: =INDEX(W$13:W$57,$F80)*p.hc.v*p.fc.geo/(p.dc*p.min.h)/(INDEX(p.mht,$E122)*(1-INDEX(p.usu.drop,$E122))) -> 0 | X122: 0 | Y122: 0 | Z122: 0 | AA122: 0 | AB122: =INDEX(AB$13:AB$57,$F80)*p.hc.v*p.fc.geo/(p.dc*p.min.h)/(INDEX(p.mht,$E122)*(1-INDEX(p.usu.drop,$E122))) -> 0 | AC122: 0 | AD122: 0 | AE122: 0 | AF122: 0 | AG122: 0 | AH122: =INDEX(AH$13:AH$57,$F80)*p.hc.v*p.fc.geo/(p.dc*p.min.h)/(INDEX(p.mht,$E122)*(1-INDEX(p.usu.drop,$E122))) -> 0 | AI122: 0 | AJ122: 0
E123: 16 | F123: 40 | G123: libre | I123: [# BHCA] | J123: 0 | L123: =INDEX(L$13:L$57,$F81)*p.hc.v*p.fc.geo/(p.dc*p.min.h)/(INDEX(p.mht,$E123)*(1-INDEX(p.usu.drop,$E123))) -> 0 | M123: 0 | N123: 0 | O123: 0 | P123: 0 | Q123: 0 | R123: =INDEX(R$13:R$57,$F81)*p.hc.v*p.fc.geo/(p.dc*p.min.h)/(INDEX(p.mht,$E123)*(1-INDEX(p.usu.drop,$E123))) -> 0 | S123: 0 | T123: 0 | U123: 0 | V123: 0 | W123: =INDEX(W$13:W$57,$F81)*p.hc.v*p.fc.geo/(p.dc*p.min.h)/(INDEX(p.mht,$E123)*(1-INDEX(p.usu.drop,$E123))) -> 0 | X123: 0 | Y123: 0 | Z123: 0 | AA123: 0 | AB123: =INDEX(AB$13:AB$57,$F81)*p.hc.v*p.fc.geo/(p.dc*p.min.h)/(INDEX(p.mht,$E123)*(1-INDEX(p.usu.drop,$E123))) -> 0 | AC123: 0 | AD123: 0 | AE123: 0 | AF123: 0 | AG123: 0 | AH123: =INDEX(AH$13:AH$57,$F81)*p.hc.v*p.fc.geo/(p.dc*p.min.h)/(INDEX(p.mht,$E123)*(1-INDEX(p.usu.drop,$E123))) -> 0 | AI123: 0 | AJ123: 0
E124: 17 | F124: 40 | G124: libre | I124: [# BHCA] | J124: 0 | L124: =INDEX(L$13:L$57,$F82)*p.hc.v*p.fc.geo/(p.dc*p.min.h)/(INDEX(p.mht,$E124)*(1-INDEX(p.usu.drop,$E124))) -> 0 | M124: 0 | N124: 0 | O124: 0 | P124: 0 | Q124: 0 | R124: =INDEX(R$13:R$57,$F82)*p.hc.v*p.fc.geo/(p.dc*p.min.h)/(INDEX(p.mht,$E124)*(1-INDEX(p.usu.drop,$E124))) -> 0 | S124: 0 | T124: 0 | U124: 0 | V124: 0 | W124: =INDEX(W$13:W$57,$F82)*p.hc.v*p.fc.geo/(p.dc*p.min.h)/(INDEX(p.mht,$E124)*(1-INDEX(p.usu.drop,$E124))) -> 0 | X124: 0 | Y124: 0 | Z124: 0 | AA124: 0 | AB124: =INDEX(AB$13:AB$57,$F82)*p.hc.v*p.fc.geo/(p.dc*p.min.h)/(INDEX(p.mht,$E124)*(1-INDEX(p.usu.drop,$E124))) -> 0 | AC124: 0 | AD124: 0 | AE124: 0 | AF124: 0 | AG124: 0 | AH124: =INDEX(AH$13:AH$57,$F82)*p.hc.v*p.fc.geo/(p.dc*p.min.h)/(INDEX(p.mht,$E124)*(1-INDEX(p.usu.drop,$E124))) -> 0 | AI124: 0 | AJ124: 0
E125: 18 | F125: 40 | G125: libre | I125: [# BHCA] | J125: 0 | L125: =INDEX(L$13:L$57,$F83)*p.hc.v*p.fc.geo/(p.dc*p.min.h)/(INDEX(p.mht,$E125)*(1-INDEX(p.usu.drop,$E125))) -> 0 | M125: 0 | N125: 0 | O125: 0 | P125: 0 | Q125: 0 | R125: =INDEX(R$13:R$57,$F83)*p.hc.v*p.fc.geo/(p.dc*p.min.h)/(INDEX(p.mht,$E125)*(1-INDEX(p.usu.drop,$E125))) -> 0 | S125: 0 | T125: 0 | U125: 0 | V125: 0 | W125: =INDEX(W$13:W$57,$F83)*p.hc.v*p.fc.geo/(p.dc*p.min.h)/(INDEX(p.mht,$E125)*(1-INDEX(p.usu.drop,$E125))) -> 0 | X125: 0 | Y125: 0 | Z125: 0 | AA125: 0 | AB125: =INDEX(AB$13:AB$57,$F83)*p.hc.v*p.fc.geo/(p.dc*p.min.h)/(INDEX(p.mht,$E125)*(1-INDEX(p.usu.drop,$E125))) -> 0 | AC125: 0 | AD125: 0 | AE125: 0 | AF125: 0 | AG125: 0 | AH125: =INDEX(AH$13:AH$57,$F83)*p.hc.v*p.fc.geo/(p.dc*p.min.h)/(INDEX(p.mht,$E125)*(1-INDEX(p.usu.drop,$E125))) -> 0 | AI125: 0 | AJ125: 0
E126: 19 | F126: 40 | G126: libre | I126: [# BHCA] | J126: 0 | L126: =INDEX(L$13:L$57,$F84)*p.hc.v*p.fc.geo/(p.dc*p.min.h)/(INDEX(p.mht,$E126)*(1-INDEX(p.usu.drop,$E126))) -> 0 | M126: 0 | N126: 0 | O126: 0 | P126: 0 | Q126: 0 | R126: =INDEX(R$13:R$57,$F84)*p.hc.v*p.fc.geo/(p.dc*p.min.h)/(INDEX(p.mht,$E126)*(1-INDEX(p.usu.drop,$E126))) -> 0 | S126: 0 | T126: 0 | U126: 0 | V126: 0 | W126: =INDEX(W$13:W$57,$F84)*p.hc.v*p.fc.geo/(p.dc*p.min.h)/(INDEX(p.mht,$E126)*(1-INDEX(p.usu.drop,$E126))) -> 0 | X126: 0 | Y126: 0 | Z126: 0 | AA126: 0 | AB126: =INDEX(AB$13:AB$57,$F84)*p.hc.v*p.fc.geo/(p.dc*p.min.h)/(INDEX(p.mht,$E126)*(1-INDEX(p.usu.drop,$E126))) -> 0 | AC126: 0 | AD126: 0 | AE126: 0 | AF126: 0 | AG126: 0 | AH126: =INDEX(AH$13:AH$57,$F84)*p.hc.v*p.fc.geo/(p.dc*p.min.h)/(INDEX(p.mht,$E126)*(1-INDEX(p.usu.drop,$E126))) -> 0 | AI126: 0 | AJ126: 0
E127: 20 | F127: 40 | G127: libre | I127: [# BHCA] | J127: 0 | L127: =INDEX(L$13:L$57,$F85)*p.hc.v*p.fc.geo/(p.dc*p.min.h)/(INDEX(p.mht,$E127)*(1-INDEX(p.usu.drop,$E127))) -> 0 | M127: 0 | N127: 0 | O127: 0 | P127: 0 | Q127: 0 | R127: =INDEX(R$13:R$57,$F85)*p.hc.v*p.fc.geo/(p.dc*p.min.h)/(INDEX(p.mht,$E127)*(1-INDEX(p.usu.drop,$E127))) -> 0 | S127: 0 | T127: 0 | U127: 0 | V127: 0 | W127: =INDEX(W$13:W$57,$F85)*p.hc.v*p.fc.geo/(p.dc*p.min.h)/(INDEX(p.mht,$E127)*(1-INDEX(p.usu.drop,$E127))) -> 0 | X127: 0 | Y127: 0 | Z127: 0 | AA127: 0 | AB127: =INDEX(AB$13:AB$57,$F85)*p.hc.v*p.fc.geo/(p.dc*p.min.h)/(INDEX(p.mht,$E127)*(1-INDEX(p.usu.drop,$E127))) -> 0 | AC127: 0 | AD127: 0 | AE127: 0 | AF127: 0 | AG127: 0 | AH127: =INDEX(AH$13:AH$57,$F85)*p.hc.v*p.fc.geo/(p.dc*p.min.h)/(INDEX(p.mht,$E127)*(1-INDEX(p.usu.drop,$E127))) -> 0 | AI127: 0 | AJ127: 0
E128: Erlangs en la Hora Cargada del Sistema para el Núcleo
E129: 1 | F129: 4 | G129: =INDEX(l.serv.nom,F129) -> Tráfico Móvil Voz entrante desde otras móviles | I129: [erlangs] | J129: =SUM(L129,M129,N129,O129,P129,Q129,R129,S129,T129,U129,V129,W129,X129,Y129,Z129,AA129,AB129,AC129,AD129,AE129,AF129,AG129,AH129,AI129,AJ129) -> 17059.60807 | L129: =INDEX(L$13:L$57,$F129)*p.hc.v.v/(p.dc*p.min.h)*INDEX(p.traf.nf,$E129) -> 851.1455446 | M129: 757.1222123 | N129: =INDEX(N$13:N$57,$F129)*p.hc.v.v/(p.dc*p.min.h)*INDEX(p.traf.nf,$E129) -> 762.4018218 | O129: 597.167248 | P129: =INDEX(P$13:P$57,$F129)*p.hc.v.v/(p.dc*p.min.h)*INDEX(p.traf.nf,$E129) -> 706.5921719 | Q129: =INDEX(Q$13:Q$57,$F129)*p.hc.v.v/(p.dc*p.min.h)*INDEX(p.traf.nf,$E129) -> 646.616996 | R129: 751.1872596 | S129: =INDEX(S$13:S$57,$F129)*p.hc.v.v/(p.dc*p.min.h)*INDEX(p.traf.nf,$E129) -> 574.4688184 | T129: 707.5465155 | U129: =INDEX(U$13:U$57,$F129)*p.hc.v.v/(p.dc*p.min.h)*INDEX(p.traf.nf,$E129) -> 660.8830005 | V129: =INDEX(V$13:V$57,$F129)*p.hc.v.v/(p.dc*p.min.h)*INDEX(p.traf.nf,$E129) -> 745.2779061 | W129: 683.6643721 | X129: =INDEX(X$13:X$57,$F129)*p.hc.v.v/(p.dc*p.min.h)*INDEX(p.traf.nf,$E129) -> 732.2048312 | Y129: 741.3827094 | Z129: =INDEX(Z$13:Z$57,$F129)*p.hc.v.v/(p.dc*p.min.h)*INDEX(p.traf.nf,$E129) -> 499.7412505 | AA129: =INDEX(AA$13:AA$57,$F129)*p.hc.v.v/(p.dc*p.min.h)*INDEX(p.traf.nf,$E129) -> 701.1497505 | AB129: 833.0304222 | AC129: =INDEX(AC$13:AC$57,$F129)*p.hc.v.v/(p.dc*p.min.h)*INDEX(p.traf.nf,$E129) -> 680.761406 | AD129: 645.7302346 | AE129: =INDEX(AE$13:AE$57,$F129)*p.hc.v.v/(p.dc*p.min.h)*INDEX(p.traf.nf,$E129) -> 659.2743375 | AF129: =INDEX(AF$13:AF$57,$F129)*p.hc.v.v/(p.dc*p.min.h)*INDEX(p.traf.nf,$E129) -> 585.7663225 | AG129: 650.936118 | AH129: =INDEX(AH$13:AH$57,$F129)*p.hc.v.v/(p.dc*p.min.h)*INDEX(p.traf.nf,$E129) -> 608.2548375 | AI129: 638.3309992 | AJ129: =INDEX(AJ$13:AJ$57,$F129)*p.hc.v.v/(p.dc*p.min.h)*INDEX(p.traf.nf,$E129) -> 638.9709829
E130: 2 | F130: 5 | G130: Tráfico Móvil Voz entrante desde redes fijas | I130: [erlangs] | J130: 8529.804034 | L130: 425.5727723 | M130: 378.5611062 | N130: 381.2009109 | O130: 298.583624 | P130: 353.2960859 | Q130: 323.308498 | R130: 375.5936298 | S130: 287.2344092 | T130: 353.7732578 | U130: 330.4415003 | V130: 372.6389531 | W130: 341.832186 | X130: 366.1024156 | Y130: 370.6913547 | Z130: 249.8706252 | AA130: 350.5748753 | AB130: 416.5152111 | AC130: 340.380703 | AD130: 322.8651173 | AE130: 329.6371688 | AF130: 292.8831613 | AG130: 325.468059 | AH130: 304.1274188 | AI130: 319.1654996 | AJ130: 319.4854914
E131: 3 | F131: 6 | G131: Tráfico Móvil Voz entrante desde públicos | I131: [erlangs] | J131: 8529.804034 | L131: 425.5727723 | M131: 378.5611062 | N131: 381.2009109 | O131: 298.583624 | P131: 353.2960859 | Q131: 323.308498 | R131: 375.5936298 | S131: 287.2344092 | T131: 353.7732578 | U131: 330.4415003 | V131: 372.6389531 | W131: 341.832186 | X131: 366.1024156 | Y131: 370.6913547 | Z131: 249.8706252 | AA131: 350.5748753 | AB131: 416.5152111 | AC131: 340.380703 | AD131: 322.8651173 | AE131: 329.6371688 | AF131: 292.8831613 | AG131: 325.468059 | AH131: 304.1274188 | AI131: 319.1654996 | AJ131: 319.4854914
E132: 4 | F132: 7 | G132: Tráfico Móvil Voz entrante desde LDI | I132: [erlangs] | J132: 341.1921614 | L132: 17.02291089 | M132: 15.14244425 | N132: 15.24803644 | O132: 11.94334496 | P132: 14.13184344 | Q132: 12.93233992 | R132: 15.02374519 | S132: 11.48937637 | T132: 14.15093031 | U132: 13.21766001 | V132: 14.90555812 | W132: 13.67328744 | X132: 14.64409662 | Y132: 14.82765419 | Z132: 9.994825009 | AA132: 14.02299501 | AB132: 16.66060844 | AC132: 13.61522812 | AD132: 12.91460469 | AE132: 13.18548675 | AF132: 11.71532645 | AG132: 13.01872236 | AH132: 12.16509675 | AI132: 12.76661998 | AJ132: 12.77941966
E133: 5 | F133: 8 | G133: Tráfico on-net | I133: [erlangs] | J133: 170596.0807 | L133: 8511.455446 | M133: 7571.222123 | N133: 7624.018218 | O133: 5971.67248 | P133: 7065.921719 | Q133: 6466.16996 | R133: 7511.872596 | S133: 5744.688184 | T133: 7075.465155 | U133: 6608.830005 | V133: 7452.779061 | W133: 6836.643721 | X133: 7322.048312 | Y133: 7413.827094 | Z133: 4997.412505 | AA133: 7011.497505 | AB133: 8330.304222 | AC133: 6807.61406 | AD133: 6457.302346 | AE133: 6592.743375 | AF133: 5857.663225 | AG133: 6509.36118 | AH133: 6082.548375 | AI133: 6383.309992 | AJ133: 6389.709829
E134: 6 | F134: 9 | G134: Tráfico Móvil Voz saliente a otras móviles | I134: [erlangs] | J134: 10235.76484 | L134: 510.6873268 | M134: 454.2733274 | N134: 457.4410931 | O134: 358.3003488 | P134: 423.9553031 | Q134: 387.9701976 | R134: 450.7123557 | S134: 344.681291 | T134: 424.5279093 | U134: 396.5298003 | V134: 447.1667437 | W134: 410.1986232 | X134: 439.3228987 | Y134: 444.8296256 | Z134: 299.8447503 | AA134: 420.6898503 | AB134: 499.8182533 | AC134: 408.4568436 | AD134: 387.4381408 | AE134: 395.5646025 | AF134: 351.4597935 | AG134: 390.5616708 | AH134: 364.9529025 | AI134: 382.9985995 | AJ134: 383.3825897
E135: 7 | F135: 10 | G135: Tráfico Móvil Voz saliente a redes fijas | I135: [erlangs] | J135: 852.9804034 | L135: 42.55727723 | M135: 37.85611062 | N135: 38.12009109 | O135: 29.8583624 | P135: 35.32960859 | Q135: 32.3308498 | R135: 37.55936298 | S135: 28.72344092 | T135: 35.37732578 | U135: 33.04415003 | V135: 37.26389531 | W135: 34.1832186 | X135: 36.61024156 | Y135: 37.06913547 | Z135: 24.98706252 | AA135: 35.05748753 | AB135: 41.65152111 | AC135: 34.0380703 | AD135: 32.28651173 | AE135: 32.96371688 | AF135: 29.28831613 | AG135: 32.5468059 | AH135: 30.41274188 | AI135: 31.91654996 | AJ135: 31.94854914
E136: 8 | F136: 11 | G136: Tráfico Móvil Voz saliente a LDI | I136: [erlangs] | J136: 341.1921614 | L136: 17.02291089 | M136: 15.14244425 | N136: 15.24803644 | O136: 11.94334496 | P136: 14.13184344 | Q136: 12.93233992 | R136: 15.02374519 | S136: 11.48937637 | T136: 14.15093031 | U136: 13.21766001 | V136: 14.90555812 | W136: 13.67328744 | X136: 14.64409662 | Y136: 14.82765419 | Z136: 9.994825009 | AA136: 14.02299501 | AB136: 16.66060844 | AC136: 13.61522812 | AD136: 12.91460469 | AE136: 13.18548675 | AF136: 11.71532645 | AG136: 13.01872236 | AH136: 12.16509675 | AI136: 12.76661998 | AJ136: 12.77941966
E137: 9 | F137: 12 | G137: libre | I137: [erlangs] | J137: 0 | L137: 0 | M137: 0 | N137: 0 | O137: 0 | P137: 0 | Q137: 0 | R137: 0 | S137: 0 | T137: 0 | U137: 0 | V137: 0 | W137: 0 | X137: 0 | Y137: 0 | Z137: 0 | AA137: 0 | AB137: 0 | AC137: 0 | AD137: 0 | AE137: 0 | AF137: 0 | AG137: 0 | AH137: 0 | AI137: 0 | AJ137: 0
E138: 10 | F138: 13 | G138: libre | I138: [erlangs] | J138: 0 | L138: 0 | M138: 0 | N138: 0 | O138: 0 | P138: 0 | Q138: 0 | R138: 0 | S138: 0 | T138: 0 | U138: 0 | V138: 0 | W138: 0 | X138: 0 | Y138: 0 | Z138: 0 | AA138: 0 | AB138: 0 | AC138: 0 | AD138: 0 | AE138: 0 | AF138: 0 | AG138: 0 | AH138: 0 | AI138: 0 | AJ138: 0
E139: 11 | F139: 40 | G139: libre | I139: [erlangs] | J139: 0 | L139: =INDEX(L$13:L$57,$F139)*p.hc.v.v/(p.dc*p.min.h)*INDEX(p.traf.nf,$E139) -> 0 | M139: 0 | N139: =INDEX(N$13:N$57,$F139)*p.hc.v.v/(p.dc*p.min.h)*INDEX(p.traf.nf,$E139) -> 0 | O139: 0 | P139: =INDEX(P$13:P$57,$F139)*p.hc.v.v/(p.dc*p.min.h)*INDEX(p.traf.nf,$E139) -> 0 | Q139: =INDEX(Q$13:Q$57,$F139)*p.hc.v.v/(p.dc*p.min.h)*INDEX(p.traf.nf,$E139) -> 0 | R139: 0 | S139: =INDEX(S$13:S$57,$F139)*p.hc.v.v/(p.dc*p.min.h)*INDEX(p.traf.nf,$E139) -> 0 | T139: 0 | U139: =INDEX(U$13:U$57,$F139)*p.hc.v.v/(p.dc*p.min.h)*INDEX(p.traf.nf,$E139) -> 0 | V139: =INDEX(V$13:V$57,$F139)*p.hc.v.v/(p.dc*p.min.h)*INDEX(p.traf.nf,$E139) -> 0 | W139: 0 | X139: =INDEX(X$13:X$57,$F139)*p.hc.v.v/(p.dc*p.min.h)*INDEX(p.traf.nf,$E139) -> 0 | Y139: 0 | Z139: =INDEX(Z$13:Z$57,$F139)*p.hc.v.v/(p.dc*p.min.h)*INDEX(p.traf.nf,$E139) -> 0 | AA139: =INDEX(AA$13:AA$57,$F139)*p.hc.v.v/(p.dc*p.min.h)*INDEX(p.traf.nf,$E139) -> 0 | AB139: 0 | AC139: =INDEX(AC$13:AC$57,$F139)*p.hc.v.v/(p.dc*p.min.h)*INDEX(p.traf.nf,$E139) -> 0 | AD139: 0 | AE139: =INDEX(AE$13:AE$57,$F139)*p.hc.v.v/(p.dc*p.min.h)*INDEX(p.traf.nf,$E139) -> 0 | AF139: =INDEX(AF$13:AF$57,$F139)*p.hc.v.v/(p.dc*p.min.h)*INDEX(p.traf.nf,$E139) -> 0 | AG139: 0 | AH139: =INDEX(AH$13:AH$57,$F139)*p.hc.v.v/(p.dc*p.min.h)*INDEX(p.traf.nf,$E139) -> 0 | AI139: 0 | AJ139: =INDEX(AJ$13:AJ$57,$F139)*p.hc.v.v/(p.dc*p.min.h)*INDEX(p.traf.nf,$E139) -> 0
E140: 12 | F140: 40 | G140: libre | I140: [erlangs] | J140: 0 | L140: 0 | M140: 0 | N140: 0 | O140: 0 | P140: 0 | Q140: 0 | R140: 0 | S140: 0 | T140: 0 | U140: 0 | V140: 0 | W140: 0 | X140: 0 | Y140: 0 | Z140: 0 | AA140: 0 | AB140: 0 | AC140: 0 | AD140: 0 | AE140: 0 | AF140: 0 | AG140: 0 | AH140: 0 | AI140: 0 | AJ140: 0
E141: 13 | F141: 40 | G141: libre | I141: [erlangs] | J141: 0 | L141: 0 | M141: 0 | N141: 0 | O141: 0 | P141: 0 | Q141: 0 | R141: 0 | S141: 0 | T141: 0 | U141: 0 | V141: 0 | W141: 0 | X141: 0 | Y141: 0 | Z141: 0 | AA141: 0 | AB141: 0 | AC141: 0 | AD141: 0 | AE141: 0 | AF141: 0 | AG141: 0 | AH141: 0 | AI141: 0 | AJ141: 0
E142: 14 | F142: 40 | G142: libre | I142: [erlangs] | J142: 0 | L142: 0 | M142: 0 | N142: 0 | O142: 0 | P142: 0 | Q142: 0 | R142: 0 | S142: 0 | T142: 0 | U142: 0 | V142: 0 | W142: 0 | X142: 0 | Y142: 0 | Z142: 0 | AA142: 0 | AB142: 0 | AC142: 0 | AD142: 0 | AE142: 0 | AF142: 0 | AG142: 0 | AH142: 0 | AI142: 0 | AJ142: 0
E143: 15 | F143: 40 | G143: libre | I143: [erlangs] | J143: 0 | L143: 0 | M143: 0 | N143: 0 | O143: 0 | P143: 0 | Q143: 0 | R143: 0 | S143: 0 | T143: 0 | U143: 0 | V143: 0 | W143: 0 | X143: 0 | Y143: 0 | Z143: 0 | AA143: 0 | AB143: 0 | AC143: 0 | AD143: 0 | AE143: 0 | AF143: 0 | AG143: 0 | AH143: 0 | AI143: 0 | AJ143: 0
E144: 16 | F144: 40 | G144: libre | I144: [erlangs] | J144: 0 | L144: 0 | M144: 0 | N144: 0 | O144: 0 | P144: 0 | Q144: 0 | R144: 0 | S144: 0 | T144: 0 | U144: 0 | V144: 0 | W144: 0 | X144: 0 | Y144: 0 | Z144: 0 | AA144: 0 | AB144: 0 | AC144: 0 | AD144: 0 | AE144: 0 | AF144: 0 | AG144: 0 | AH144: 0 | AI144: 0 | AJ144: 0
E145: 17 | F145: 40 | G145: libre | I145: [erlangs] | J145: 0 | L145: 0 | M145: 0 | N145: 0 | O145: 0 | P145: 0 | Q145: 0 | R145: 0 | S145: 0 | T145: 0 | U145: 0 | V145: 0 | W145: 0 | X145: 0 | Y145: 0 | Z145: 0 | AA145: 0 | AB145: 0 | AC145: 0 | AD145: 0 | AE145: 0 | AF145: 0 | AG145: 0 | AH145: 0 | AI145: 0 | AJ145: 0
E146: 18 | F146: 40 | G146: libre | I146: [erlangs] | J146: 0 | L146: 0 | M146: 0 | N146: 0 | O146: 0 | P146: 0 | Q146: 0 | R146: 0 | S146: 0 | T146: 0 | U146: 0 | V146: 0 | W146: 0 | X146: 0 | Y146: 0 | Z146: 0 | AA146: 0 | AB146: 0 | AC146: 0 | AD146: 0 | AE146: 0 | AF146: 0 | AG146: 0 | AH146: 0 | AI146: 0 | AJ146: 0
E147: 19 | F147: 40 | G147: libre | I147: [erlangs] | J147: 0 | L147: 0 | M147: 0 | N147: 0 | O147: 0 | P147: 0 | Q147: 0 | R147: 0 | S147: 0 | T147: 0 | U147: 0 | V147: 0 | W147: 0 | X147: 0 | Y147: 0 | Z147: 0 | AA147: 0 | AB147: 0 | AC147: 0 | AD147: 0 | AE147: 0 | AF147: 0 | AG147: 0 | AH147: 0 | AI147: 0 | AJ147: 0
E148: 20 | F148: 40 | G148: libre | I148: [erlangs] | J148: 0 | L148: 0 | M148: 0 | N148: 0 | O148: 0 | P148: 0 | Q148: 0 | R148: 0 | S148: 0 | T148: 0 | U148: 0 | V148: 0 | W148: 0 | X148: 0 | Y148: 0 | Z148: 0 | AA148: 0 | AB148: 0 | AC148: 0 | AD148: 0 | AE148: 0 | AF148: 0 | AG148: 0 | AH148: 0 | AI148: 0 | AJ148: 0
E149: BHCA para el diseño del MSCS
E150: 1 | F150: 3 | G150: =INDEX(l.serv.nom,F150) -> Cliente Tipo 3 | I150: [# BHCA] | J150: =SUM(L150,M150,N150,O150,P150,Q150,R150,S150,T150,U150,V150,W150,X150,Y150,Z150,AA150,AB150,AC150,AD150,AE150,AF150,AG150,AH150,AI150,AJ150) -> 924254.5458 | L150: =INDEX(L$13:L$57,$F66)*p.hc.v.v/p.dc/(INDEX(p.mht,$E150)*(1-INDEX(p.usu.drop,$E150))) -> 46113.31841 | M150: 41019.32727 | N150: 41305.36568 | O150: 32353.29566 | P150: 38281.71341 | Q150: 35032.38149 | R150: =INDEX(R$13:R$57,$F66)*p.hc.v.v/p.dc/(INDEX(p.mht,$E150)*(1-INDEX(p.usu.drop,$E150))) -> 40697.78371 | S150: 31123.54133 | T150: 38333.41779 | U150: 35805.28433 | V150: 40377.62708 | W150: =INDEX(W$13:W$57,$F66)*p.hc.v.v/p.dc/(INDEX(p.mht,$E150)*(1-INDEX(p.usu.drop,$E150))) -> 37039.53228 | X150: 39669.35471 | Y150: 40166.59331 | Z150: 27074.9551 | AA150: 37986.85419 | AB150: =INDEX(AB$13:AB$57,$F66)*p.hc.v.v/p.dc/(INDEX(p.mht,$E150)*(1-INDEX(p.usu.drop,$E150))) -> 45131.87826 | AC150: 36882.25554 | AD150: 34984.33858 | AE150: 35718.13027 | AF150: 31735.61692 | AG150: 35266.38266 | AH150: =INDEX(AH$13:AH$57,$F66)*p.hc.v.v/p.dc/(INDEX(p.mht,$E150)*(1-INDEX(p.usu.drop,$E150))) -> 32953.99849 | AI150: 34583.46319 | AJ150: 34618.1362
E151: 2 | F151: 4 | G151: Tráfico Móvil Voz entrante desde otras móviles | I151: [# BHCA] | J151: 462127.2729 | L151: =INDEX(L$13:L$57,$F67)*p.hc.v.v/p.dc/(INDEX(p.mht,$E151)*(1-INDEX(p.usu.drop,$E151))) -> 23056.6592 | M151: 20509.66364 | N151: 20652.68284 | O151: 16176.64783 | P151: 19140.8567 | Q151: 17516.19075 | R151: =INDEX(R$13:R$57,$F67)*p.hc.v.v/p.dc/(INDEX(p.mht,$E151)*(1-INDEX(p.usu.drop,$E151))) -> 20348.89186 | S151: 15561.77067 | T151: 19166.70889 | U151: 17902.64217 | V151: 20188.81354 | W151: =INDEX(W$13:W$57,$F67)*p.hc.v.v/p.dc/(INDEX(p.mht,$E151)*(1-INDEX(p.usu.drop,$E151))) -> 18519.76614 | X151: 19834.67736 | Y151: 20083.29666 | Z151: 13537.47755 | AA151: 18993.42709 | AB151: =INDEX(AB$13:AB$57,$F67)*p.hc.v.v/p.dc/(INDEX(p.mht,$E151)*(1-INDEX(p.usu.drop,$E151))) -> 22565.93913 | AC151: 18441.12777 | AD151: 17492.16929 | AE151: 17859.06514 | AF151: 15867.80846 | AG151: 17633.19133 | AH151: =INDEX(AH$13:AH$57,$F67)*p.hc.v.v/p.dc/(INDEX(p.mht,$E151)*(1-INDEX(p.usu.drop,$E151))) -> 16476.99925 | AI151: 17291.7316 | AJ151: 17309.0681
E152: 3 | F152: 5 | G152: Tráfico Móvil Voz entrante desde redes fijas | I152: [# BHCA] | J152: 462127.2729 | L152: =INDEX(L$13:L$57,$F68)*p.hc.v.v/p.dc/(INDEX(p.mht,$E152)*(1-INDEX(p.usu.drop,$E152))) -> 23056.6592 | M152: 20509.66364 | N152: 20652.68284 | O152: 16176.64783 | P152: 19140.8567 | Q152: 17516.19075 | R152: =INDEX(R$13:R$57,$F68)*p.hc.v.v/p.dc/(INDEX(p.mht,$E152)*(1-INDEX(p.usu.drop,$E152))) -> 20348.89186 | S152: 15561.77067 | T152: 19166.70889 | U152: 17902.64217 | V152: 20188.81354 | W152: =INDEX(W$13:W$57,$F68)*p.hc.v.v/p.dc/(INDEX(p.mht,$E152)*(1-INDEX(p.usu.drop,$E152))) -> 18519.76614 | X152: 19834.67736 | Y152: 20083.29666 | Z152: 13537.47755 | AA152: 18993.42709 | AB152: =INDEX(AB$13:AB$57,$F68)*p.hc.v.v/p.dc/(INDEX(p.mht,$E152)*(1-INDEX(p.usu.drop,$E152))) -> 22565.93913 | AC152: 18441.12777 | AD152: 17492.16929 | AE152: 17859.06514 | AF152: 15867.80846 | AG152: 17633.19133 | AH152: =INDEX(AH$13:AH$57,$F68)*p.hc.v.v/p.dc/(INDEX(p.mht,$E152)*(1-INDEX(p.usu.drop,$E152))) -> 16476.99925 | AI152: 17291.7316 | AJ152: 17309.0681
E153: 4 | F153: 6 | G153: Tráfico Móvil Voz entrante desde públicos | I153: [# BHCA] | J153: 18485.09092 | L153: =INDEX(L$13:L$57,$F69)*p.hc.v.v/p.dc/(INDEX(p.mht,$E153)*(1-INDEX(p.usu.drop,$E153))) -> 922.2663681 | M153: 820.3865454 | N153: 826.1073135 | O153: 647.0659131 | P153: 765.6342681 | Q153: 700.6476299 | R153: =INDEX(R$13:R$57,$F69)*p.hc.v.v/p.dc/(INDEX(p.mht,$E153)*(1-INDEX(p.usu.drop,$E153))) -> 813.9556743 | S153: 622.4708266 | T153: 766.6683557 | U153: 716.1056867 | V153: 807.5525415 | W153: =INDEX(W$13:W$57,$F69)*p.hc.v.v/p.dc/(INDEX(p.mht,$E153)*(1-INDEX(p.usu.drop,$E153))) -> 740.7906456 | X153: 793.3870943 | Y153: 803.3318662 | Z153: 541.499102 | AA153: 759.7370838 | AB153: =INDEX(AB$13:AB$57,$F69)*p.hc.v.v/p.dc/(INDEX(p.mht,$E153)*(1-INDEX(p.usu.drop,$E153))) -> 902.6375652 | AC153: 737.6451107 | AD153: 699.6867716 | AE153: 714.3626055 | AF153: 634.7123383 | AG153: 705.3276531 | AH153: =INDEX(AH$13:AH$57,$F69)*p.hc.v.v/p.dc/(INDEX(p.mht,$E153)*(1-INDEX(p.usu.drop,$E153))) -> 659.0799699 | AI153: 691.6692639 | AJ153: 692.3627239
E154: 5 | F154: 7 | G154: Tráfico Móvil Voz entrante desde LDI | I154: [# BHCA] | J154: 9242545.458 | L154: =INDEX(L$13:L$57,$F70)*p.hc.v.v/p.dc/(INDEX(p.mht,$E154)*(1-INDEX(p.usu.drop,$E154))) -> 461133.1841 | M154: 410193.2727 | N154: 413053.6568 | O154: 323532.9566 | P154: 382817.1341 | Q154: 350323.8149 | R154: =INDEX(R$13:R$57,$F70)*p.hc.v.v/p.dc/(INDEX(p.mht,$E154)*(1-INDEX(p.usu.drop,$E154))) -> 406977.8371 | S154: 311235.4133 | T154: 383334.1779 | U154: 358052.8433 | V154: 403776.2708 | W154: =INDEX(W$13:W$57,$F70)*p.hc.v.v/p.dc/(INDEX(p.mht,$E154)*(1-INDEX(p.usu.drop,$E154))) -> 370395.3228 | X154: 396693.5471 | Y154: 401665.9331 | Z154: 270749.551 | AA154: 379868.5419 | AB154: =INDEX(AB$13:AB$57,$F70)*p.hc.v.v/p.dc/(INDEX(p.mht,$E154)*(1-INDEX(p.usu.drop,$E154))) -> 451318.7826 | AC154: 368822.5554 | AD154: 349843.3858 | AE154: 357181.3027 | AF154: 317356.1692 | AG154: 352663.8266 | AH154: =INDEX(AH$13:AH$57,$F70)*p.hc.v.v/p.dc/(INDEX(p.mht,$E154)*(1-INDEX(p.usu.drop,$E154))) -> 329539.9849 | AI154: 345834.6319 | AJ154: 346181.362
E155: 6 | F155: 8 | G155: Tráfico on-net | I155: [# BHCA] | J155: 554552.7275 | L155: =INDEX(L$13:L$57,$F71)*p.hc.v.v/p.dc/(INDEX(p.mht,$E155)*(1-INDEX(p.usu.drop,$E155))) -> 27667.99104 | M155: 24611.59636 | N155: 24783.21941 | O155: 19411.97739 | P155: 22969.02804 | Q155: 21019.4289 | R155: =INDEX(R$13:R$57,$F71)*p.hc.v.v/p.dc/(INDEX(p.mht,$E155)*(1-INDEX(p.usu.drop,$E155))) -> 24418.67023 | S155: 18674.1248 | T155: 23000.05067 | U155: 21483.1706 | V155: 24226.57625 | W155: =INDEX(W$13:W$57,$F71)*p.hc.v.v/p.dc/(INDEX(p.mht,$E155)*(1-INDEX(p.usu.drop,$E155))) -> 22223.71937 | X155: 23801.61283 | Y155: 24099.95599 | Z155: 16244.97306 | AA155: 22792.11251 | AB155: =INDEX(AB$13:AB$57,$F71)*p.hc.v.v/p.dc/(INDEX(p.mht,$E155)*(1-INDEX(p.usu.drop,$E155))) -> 27079.12696 | AC155: 22129.35332 | AD155: 20990.60315 | AE155: 21430.87816 | AF155: 19041.37015 | AG155: 21159.82959 | AH155: =INDEX(AH$13:AH$57,$F71)*p.hc.v.v/p.dc/(INDEX(p.mht,$E155)*(1-INDEX(p.usu.drop,$E155))) -> 19772.3991 | AI155: 20750.07792 | AJ155: 20770.88172
E156: 7 | F156: 9 | G156: Tráfico Móvil Voz saliente a otras móviles | I156: [# BHCA] | J156: 46212.72729 | L156: =INDEX(L$13:L$57,$F72)*p.hc.v.v/p.dc/(INDEX(p.mht,$E156)*(1-INDEX(p.usu.drop,$E156))) -> 2305.66592 | M156: 2050.966364 | N156: 2065.268284 | O156: 1617.664783 | P156: 1914.08567 | Q156: 1751.619075 | R156: =INDEX(R$13:R$57,$F72)*p.hc.v.v/p.dc/(INDEX(p.mht,$E156)*(1-INDEX(p.usu.drop,$E156))) -> 2034.889186 | S156: 1556.177067 | T156: 1916.670889 | U156: 1790.264217 | V156: 2018.881354 | W156: =INDEX(W$13:W$57,$F72)*p.hc.v.v/p.dc/(INDEX(p.mht,$E156)*(1-INDEX(p.usu.drop,$E156))) -> 1851.976614 | X156: 1983.467736 | Y156: 2008.329666 | Z156: 1353.747755 | AA156: 1899.342709 | AB156: =INDEX(AB$13:AB$57,$F72)*p.hc.v.v/p.dc/(INDEX(p.mht,$E156)*(1-INDEX(p.usu.drop,$E156))) -> 2256.593913 | AC156: 1844.112777 | AD156: 1749.216929 | AE156: 1785.906514 | AF156: 1586.780846 | AG156: 1763.319133 | AH156: =INDEX(AH$13:AH$57,$F72)*p.hc.v.v/p.dc/(INDEX(p.mht,$E156)*(1-INDEX(p.usu.drop,$E156))) -> 1647.699925 | AI156: 1729.17316 | AJ156: 1730.90681
E157: 8 | F157: 10 | G157: Tráfico Móvil Voz saliente a redes fijas | I157: [# BHCA] | J157: 18485.09092 | L157: =INDEX(L$13:L$57,$F73)*p.hc.v.v/p.dc/(INDEX(p.mht,$E157)*(1-INDEX(p.usu.drop,$E157))) -> 922.2663681 | M157: 820.3865454 | N157: 826.1073135 | O157: 647.0659131 | P157: 765.6342681 | Q157: 700.6476299 | R157: =INDEX(R$13:R$57,$F73)*p.hc.v.v/p.dc/(INDEX(p.mht,$E157)*(1-INDEX(p.usu.drop,$E157))) -> 813.9556743 | S157: 622.4708266 | T157: 766.6683557 | U157: 716.1056867 | V157: 807.5525415 | W157: =INDEX(W$13:W$57,$F73)*p.hc.v.v/p.dc/(INDEX(p.mht,$E157)*(1-INDEX(p.usu.drop,$E157))) -> 740.7906456 | X157: 793.3870943 | Y157: 803.3318662 | Z157: 541.499102 | AA157: 759.7370838 | AB157: =INDEX(AB$13:AB$57,$F73)*p.hc.v.v/p.dc/(INDEX(p.mht,$E157)*(1-INDEX(p.usu.drop,$E157))) -> 902.6375652 | AC157: 737.6451107 | AD157: 699.6867716 | AE157: 714.3626055 | AF157: 634.7123383 | AG157: 705.3276531 | AH157: =INDEX(AH$13:AH$57,$F73)*p.hc.v.v/p.dc/(INDEX(p.mht,$E157)*(1-INDEX(p.usu.drop,$E157))) -> 659.0799699 | AI157: 691.6692639 | AJ157: 692.3627239
E158: 9 | F158: 11 | G158: Tráfico Móvil Voz saliente a LDI | I158: [# BHCA] | J158: 0 | L158: =INDEX(L$13:L$57,$F74)*p.hc.v.v/p.dc/(INDEX(p.mht,$E158)*(1-INDEX(p.usu.drop,$E158))) -> 0 | M158: 0 | N158: 0 | O158: 0 | P158: 0 | Q158: 0 | R158: =INDEX(R$13:R$57,$F74)*p.hc.v.v/p.dc/(INDEX(p.mht,$E158)*(1-INDEX(p.usu.drop,$E158))) -> 0 | S158: 0 | T158: 0 | U158: 0 | V158: 0 | W158: =INDEX(W$13:W$57,$F74)*p.hc.v.v/p.dc/(INDEX(p.mht,$E158)*(1-INDEX(p.usu.drop,$E158))) -> 0 | X158: 0 | Y158: 0 | Z158: 0 | AA158: 0 | AB158: =INDEX(AB$13:AB$57,$F74)*p.hc.v.v/p.dc/(INDEX(p.mht,$E158)*(1-INDEX(p.usu.drop,$E158))) -> 0 | AC158: 0 | AD158: 0 | AE158: 0 | AF158: 0 | AG158: 0 | AH158: =INDEX(AH$13:AH$57,$F74)*p.hc.v.v/p.dc/(INDEX(p.mht,$E158)*(1-INDEX(p.usu.drop,$E158))) -> 0 | AI158: 0 | AJ158: 0
E159: 10 | F159: 12 | G159: libre | I159: [# BHCA] | J159: 0 | L159: =INDEX(L$13:L$57,$F75)*p.hc.v.v/p.dc/(INDEX(p.mht,$E159)*(1-INDEX(p.usu.drop,$E159))) -> 0 | M159: 0 | N159: 0 | O159: 0 | P159: 0 | Q159: 0 | R159: =INDEX(R$13:R$57,$F75)*p.hc.v.v/p.dc/(INDEX(p.mht,$E159)*(1-INDEX(p.usu.drop,$E159))) -> 0 | S159: 0 | T159: 0 | U159: 0 | V159: 0 | W159: =INDEX(W$13:W$57,$F75)*p.hc.v.v/p.dc/(INDEX(p.mht,$E159)*(1-INDEX(p.usu.drop,$E159))) -> 0 | X159: 0 | Y159: 0 | Z159: 0 | AA159: 0 | AB159: =INDEX(AB$13:AB$57,$F75)*p.hc.v.v/p.dc/(INDEX(p.mht,$E159)*(1-INDEX(p.usu.drop,$E159))) -> 0 | AC159: 0 | AD159: 0 | AE159: 0 | AF159: 0 | AG159: 0 | AH159: =INDEX(AH$13:AH$57,$F75)*p.hc.v.v/p.dc/(INDEX(p.mht,$E159)*(1-INDEX(p.usu.drop,$E159))) -> 0 | AI159: 0 | AJ159: 0
E160: 11 | F160: 13 | G160: libre | I160: [# BHCA] | J160: 0 | L160: =INDEX(L$13:L$57,$F76)*p.hc.v.v/p.dc/(INDEX(p.mht,$E160)*(1-INDEX(p.usu.drop,$E160))) -> 0 | M160: 0 | N160: 0 | O160: 0 | P160: 0 | Q160: 0 | R160: =INDEX(R$13:R$57,$F76)*p.hc.v.v/p.dc/(INDEX(p.mht,$E160)*(1-INDEX(p.usu.drop,$E160))) -> 0 | S160: 0 | T160: 0 | U160: 0 | V160: 0 | W160: =INDEX(W$13:W$57,$F76)*p.hc.v.v/p.dc/(INDEX(p.mht,$E160)*(1-INDEX(p.usu.drop,$E160))) -> 0 | X160: 0 | Y160: 0 | Z160: 0 | AA160: 0 | AB160: =INDEX(AB$13:AB$57,$F76)*p.hc.v.v/p.dc/(INDEX(p.mht,$E160)*(1-INDEX(p.usu.drop,$E160))) -> 0 | AC160: 0 | AD160: 0 | AE160: 0 | AF160: 0 | AG160: 0 | AH160: =INDEX(AH$13:AH$57,$F76)*p.hc.v.v/p.dc/(INDEX(p.mht,$E160)*(1-INDEX(p.usu.drop,$E160))) -> 0 | AI160: 0 | AJ160: 0
E161: 12 | F161: 40 | G161: libre | I161: [# BHCA] | J161: 0 | L161: =INDEX(L$13:L$57,$F77)*p.hc.v.v/p.dc/(INDEX(p.mht,$E161)*(1-INDEX(p.usu.drop,$E161))) -> 0 | M161: 0 | N161: 0 | O161: 0 | P161: 0 | Q161: 0 | R161: =INDEX(R$13:R$57,$F77)*p.hc.v.v/p.dc/(INDEX(p.mht,$E161)*(1-INDEX(p.usu.drop,$E161))) -> 0 | S161: 0 | T161: 0 | U161: 0 | V161: 0 | W161: =INDEX(W$13:W$57,$F77)*p.hc.v.v/p.dc/(INDEX(p.mht,$E161)*(1-INDEX(p.usu.drop,$E161))) -> 0 | X161: 0 | Y161: 0 | Z161: 0 | AA161: 0 | AB161: =INDEX(AB$13:AB$57,$F77)*p.hc.v.v/p.dc/(INDEX(p.mht,$E161)*(1-INDEX(p.usu.drop,$E161))) -> 0 | AC161: 0 | AD161: 0 | AE161: 0 | AF161: 0 | AG161: 0 | AH161: =INDEX(AH$13:AH$57,$F77)*p.hc.v.v/p.dc/(INDEX(p.mht,$E161)*(1-INDEX(p.usu.drop,$E161))) -> 0 | AI161: 0 | AJ161: 0
E162: 13 | F162: 40 | G162: libre | I162: [# BHCA] | J162: 0 | L162: =INDEX(L$13:L$57,$F78)*p.hc.v.v/p.dc/(INDEX(p.mht,$E162)*(1-INDEX(p.usu.drop,$E162))) -> 0 | M162: 0 | N162: 0 | O162: 0 | P162: 0 | Q162: 0 | R162: =INDEX(R$13:R$57,$F78)*p.hc.v.v/p.dc/(INDEX(p.mht,$E162)*(1-INDEX(p.usu.drop,$E162))) -> 0 | S162: 0 | T162: 0 | U162: 0 | V162: 0 | W162: =INDEX(W$13:W$57,$F78)*p.hc.v.v/p.dc/(INDEX(p.mht,$E162)*(1-INDEX(p.usu.drop,$E162))) -> 0 | X162: 0 | Y162: 0 | Z162: 0 | AA162: 0 | AB162: =INDEX(AB$13:AB$57,$F78)*p.hc.v.v/p.dc/(INDEX(p.mht,$E162)*(1-INDEX(p.usu.drop,$E162))) -> 0 | AC162: 0 | AD162: 0 | AE162: 0 | AF162: 0 | AG162: 0 | AH162: =INDEX(AH$13:AH$57,$F78)*p.hc.v.v/p.dc/(INDEX(p.mht,$E162)*(1-INDEX(p.usu.drop,$E162))) -> 0 | AI162: 0 | AJ162: 0
E163: 14 | F163: 40 | G163: libre | I163: [# BHCA] | J163: 0 | L163: =INDEX(L$13:L$57,$F79)*p.hc.v.v/p.dc/(INDEX(p.mht,$E163)*(1-INDEX(p.usu.drop,$E163))) -> 0 | M163: 0 | N163: 0 | O163: 0 | P163: 0 | Q163: 0 | R163: =INDEX(R$13:R$57,$F79)*p.hc.v.v/p.dc/(INDEX(p.mht,$E163)*(1-INDEX(p.usu.drop,$E163))) -> 0 | S163: 0 | T163: 0 | U163: 0 | V163: 0 | W163: =INDEX(W$13:W$57,$F79)*p.hc.v.v/p.dc/(INDEX(p.mht,$E163)*(1-INDEX(p.usu.drop,$E163))) -> 0 | X163: 0 | Y163: 0 | Z163: 0 | AA163: 0 | AB163: =INDEX(AB$13:AB$57,$F79)*p.hc.v.v/p.dc/(INDEX(p.mht,$E163)*(1-INDEX(p.usu.drop,$E163))) -> 0 | AC163: 0 | AD163: 0 | AE163: 0 | AF163: 0 | AG163: 0 | AH163: =INDEX(AH$13:AH$57,$F79)*p.hc.v.v/p.dc/(INDEX(p.mht,$E163)*(1-INDEX(p.usu.drop,$E163))) -> 0 | AI163: 0 | AJ163: 0
E164: 15 | F164: 40 | G164: libre | I164: [# BHCA] | J164: 0 | L164: =INDEX(L$13:L$57,$F80)*p.hc.v.v/p.dc/(INDEX(p.mht,$E164)*(1-INDEX(p.usu.drop,$E164))) -> 0 | M164: 0 | N164: 0 | O164: 0 | P164: 0 | Q164: 0 | R164: =INDEX(R$13:R$57,$F80)*p.hc.v.v/p.dc/(INDEX(p.mht,$E164)*(1-INDEX(p.usu.drop,$E164))) -> 0 | S164: 0 | T164: 0 | U164: 0 | V164: 0 | W164: =INDEX(W$13:W$57,$F80)*p.hc.v.v/p.dc/(INDEX(p.mht,$E164)*(1-INDEX(p.usu.drop,$E164))) -> 0 | X164: 0 | Y164: 0 | Z164: 0 | AA164: 0 | AB164: =INDEX(AB$13:AB$57,$F80)*p.hc.v.v/p.dc/(INDEX(p.mht,$E164)*(1-INDEX(p.usu.drop,$E164))) -> 0 | AC164: 0 | AD164: 0 | AE164: 0 | AF164: 0 | AG164: 0 | AH164: =INDEX(AH$13:AH$57,$F80)*p.hc.v.v/p.dc/(INDEX(p.mht,$E164)*(1-INDEX(p.usu.drop,$E164))) -> 0 | AI164: 0 | AJ164: 0
E165: 16 | F165: 40 | G165: libre | I165: [# BHCA] | J165: 0 | L165: =INDEX(L$13:L$57,$F81)*p.hc.v.v/p.dc/(INDEX(p.mht,$E165)*(1-INDEX(p.usu.drop,$E165))) -> 0 | M165: 0 | N165: 0 | O165: 0 | P165: 0 | Q165: 0 | R165: =INDEX(R$13:R$57,$F81)*p.hc.v.v/p.dc/(INDEX(p.mht,$E165)*(1-INDEX(p.usu.drop,$E165))) -> 0 | S165: 0 | T165: 0 | U165: 0 | V165: 0 | W165: =INDEX(W$13:W$57,$F81)*p.hc.v.v/p.dc/(INDEX(p.mht,$E165)*(1-INDEX(p.usu.drop,$E165))) -> 0 | X165: 0 | Y165: 0 | Z165: 0 | AA165: 0 | AB165: =INDEX(AB$13:AB$57,$F81)*p.hc.v.v/p.dc/(INDEX(p.mht,$E165)*(1-INDEX(p.usu.drop,$E165))) -> 0 | AC165: 0 | AD165: 0 | AE165: 0 | AF165: 0 | AG165: 0 | AH165: =INDEX(AH$13:AH$57,$F81)*p.hc.v.v/p.dc/(INDEX(p.mht,$E165)*(1-INDEX(p.usu.drop,$E165))) -> 0 | AI165: 0 | AJ165: 0
E166: 17 | F166: 40 | G166: libre | I166: [# BHCA] | J166: 0 | L166: =INDEX(L$13:L$57,$F82)*p.hc.v.v/p.dc/(INDEX(p.mht,$E166)*(1-INDEX(p.usu.drop,$E166))) -> 0 | M166: 0 | N166: 0 | O166: 0 | P166: 0 | Q166: 0 | R166: =INDEX(R$13:R$57,$F82)*p.hc.v.v/p.dc/(INDEX(p.mht,$E166)*(1-INDEX(p.usu.drop,$E166))) -> 0 | S166: 0 | T166: 0 | U166: 0 | V166: 0 | W166: =INDEX(W$13:W$57,$F82)*p.hc.v.v/p.dc/(INDEX(p.mht,$E166)*(1-INDEX(p.usu.drop,$E166))) -> 0 | X166: 0 | Y166: 0 | Z166: 0 | AA166: 0 | AB166: =INDEX(AB$13:AB$57,$F82)*p.hc.v.v/p.dc/(INDEX(p.mht,$E166)*(1-INDEX(p.usu.drop,$E166))) -> 0 | AC166: 0 | AD166: 0 | AE166: 0 | AF166: 0 | AG166: 0 | AH166: =INDEX(AH$13:AH$57,$F82)*p.hc.v.v/p.dc/(INDEX(p.mht,$E166)*(1-INDEX(p.usu.drop,$E166))) -> 0 | AI166: 0 | AJ166: 0
E167: 18 | F167: 40 | G167: libre | I167: [# BHCA] | J167: 0 | L167: =INDEX(L$13:L$57,$F83)*p.hc.v.v/p.dc/(INDEX(p.mht,$E167)*(1-INDEX(p.usu.drop,$E167))) -> 0 | M167: 0 | N167: 0 | O167: 0 | P167: 0 | Q167: 0 | R167: =INDEX(R$13:R$57,$F83)*p.hc.v.v/p.dc/(INDEX(p.mht,$E167)*(1-INDEX(p.usu.drop,$E167))) -> 0 | S167: 0 | T167: 0 | U167: 0 | V167: 0 | W167: =INDEX(W$13:W$57,$F83)*p.hc.v.v/p.dc/(INDEX(p.mht,$E167)*(1-INDEX(p.usu.drop,$E167))) -> 0 | X167: 0 | Y167: 0 | Z167: 0 | AA167: 0 | AB167: =INDEX(AB$13:AB$57,$F83)*p.hc.v.v/p.dc/(INDEX(p.mht,$E167)*(1-INDEX(p.usu.drop,$E167))) -> 0 | AC167: 0 | AD167: 0 | AE167: 0 | AF167: 0 | AG167: 0 | AH167: =INDEX(AH$13:AH$57,$F83)*p.hc.v.v/p.dc/(INDEX(p.mht,$E167)*(1-INDEX(p.usu.drop,$E167))) -> 0 | AI167: 0 | AJ167: 0
E168: 19 | F168: 40 | G168: libre | I168: [# BHCA] | J168: 0 | L168: =INDEX(L$13:L$57,$F84)*p.hc.v.v/p.dc/(INDEX(p.mht,$E168)*(1-INDEX(p.usu.drop,$E168))) -> 0 | M168: 0 | N168: 0 | O168: 0 | P168: 0 | Q168: 0 | R168: =INDEX(R$13:R$57,$F84)*p.hc.v.v/p.dc/(INDEX(p.mht,$E168)*(1-INDEX(p.usu.drop,$E168))) -> 0 | S168: 0 | T168: 0 | U168: 0 | V168: 0 | W168: =INDEX(W$13:W$57,$F84)*p.hc.v.v/p.dc/(INDEX(p.mht,$E168)*(1-INDEX(p.usu.drop,$E168))) -> 0 | X168: 0 | Y168: 0 | Z168: 0 | AA168: 0 | AB168: =INDEX(AB$13:AB$57,$F84)*p.hc.v.v/p.dc/(INDEX(p.mht,$E168)*(1-INDEX(p.usu.drop,$E168))) -> 0 | AC168: 0 | AD168: 0 | AE168: 0 | AF168: 0 | AG168: 0 | AH168: =INDEX(AH$13:AH$57,$F84)*p.hc.v.v/p.dc/(INDEX(p.mht,$E168)*(1-INDEX(p.usu.drop,$E168))) -> 0 | AI168: 0 | AJ168: 0
E169: 20 | F169: 40 | G169: libre | I169: [# BHCA] | J169: 0 | L169: =INDEX(L$13:L$57,$F85)*p.hc.v.v/p.dc/(INDEX(p.mht,$E169)*(1-INDEX(p.usu.drop,$E169))) -> 0 | M169: 0 | N169: 0 | O169: 0 | P169: 0 | Q169: 0 | R169: =INDEX(R$13:R$57,$F85)*p.hc.v.v/p.dc/(INDEX(p.mht,$E169)*(1-INDEX(p.usu.drop,$E169))) -> 0 | S169: 0 | T169: 0 | U169: 0 | V169: 0 | W169: =INDEX(W$13:W$57,$F85)*p.hc.v.v/p.dc/(INDEX(p.mht,$E169)*(1-INDEX(p.usu.drop,$E169))) -> 0 | X169: 0 | Y169: 0 | Z169: 0 | AA169: 0 | AB169: =INDEX(AB$13:AB$57,$F85)*p.hc.v.v/p.dc/(INDEX(p.mht,$E169)*(1-INDEX(p.usu.drop,$E169))) -> 0 | AC169: 0 | AD169: 0 | AE169: 0 | AF169: 0 | AG169: 0 | AH169: =INDEX(AH$13:AH$57,$F85)*p.hc.v.v/p.dc/(INDEX(p.mht,$E169)*(1-INDEX(p.usu.drop,$E169))) -> 0 | AI169: 0 | AJ169: 0
G171: Erlangs de Voz en la Hora Cargada sin Overhead | I171: [HC erlangs] | J171: =SUM(L171,M171,N171,O171,P171,Q171,R171,S171,T171,U171,V171,W171,X171,Y171,Z171,AA171,AB171,AC171,AD171,AE171,AF171,AG171,AH171,AI171,AJ171) -> 1935412.535 | L171: =SUM(L87:L106) -> 96562.46203 | M171: 85895.51499 | N171: 86494.48668 | O171: 67748.62429 | P171: 80162.8819 | Q171: 73358.6982 | R171: =SUM(R87:R106) -> 85222.1946 | S171: 65173.48745 | T171: 80271.15219 | U171: 74977.17641 | V171: 84551.77845 | W171: =SUM(W87:W106) -> 77561.72301 | X171: 83068.6381 | Y171: 84109.86838 | Z171: =SUM(Z87:Z106) -> 56695.64487 | AA171: 79545.4392 | AB171: 94507.3014 | AC171: 77232.38151 | AD171: 73258.09512 | AE171: 74794.67359 | AF171: 66455.18929 | AG171: 73848.70259 | AH171: 69006.51132 | AI171: 72418.65186 | AJ171: 72491.25801 | AK171: dda.dis.ran.voz
G172: BHCA para el diseño de los RNC | I172: [# BHCA] | J172: =SUM(L172,M172,N172,O172,P172,Q172,R172,S172,T172,U172,V172,W172,X172,Y172,Z172,AA172,AB172,AC172,AD172,AE172,AF172,AG172,AH172,AI172,AJ172) -> 977399.1822 | L172: =SUM(L108:L127) -> 48764.83422 | M172: 43377.93859 | N172: 43680.4242 | O172: 34213.61016 | P172: 40482.91193 | Q172: 37046.74343 | R172: =SUM(R108:R127) -> 43037.90628 | S172: 32913.14496 | T172: 40537.58931 | U172: 37864.08818 | V172: 42699.34063 | W172: =SUM(W108:W127) -> 39169.30538 | X172: 41950.34261 | Y172: 42476.17243 | Z172: =SUM(Z108:Z127) -> 28631.76502 | AA172: 40171.09831 | AB172: 47726.96126 | AC172: 39002.98523 | AD172: 36995.93805 | AE172: 37771.92276 | AF172: 33560.41489 | AG172: 37294.19966 | AH172: 34848.85341 | AI172: 36572.01233 | AJ172: 36608.67903 | AK172: dda.dis.ran.bhca.rnc
G173: Erlangs de Voz en la Hora Cargada de Voz sin Overhead | I173: [HC erlangs] | J173: =SUM(L173,M173,N173,O173,P173,Q173,R173,S173,T173,U173,V173,W173,X173,Y173,Z173,AA173,AB173,AC173,AD173,AE173,AF173,AG173,AH173,AI173,AJ173) -> 216486.4264 | L173: =SUM(L129:L148) -> 10801.03696 | M173: =SUM(M129:M148) -> 9607.880875 | N173: 9674.879119 | O173: 7578.052377 | P173: 8966.654661 | Q173: 8205.56968 | R173: 9532.566324 | S173: 7290.009305 | T173: 8978.765282 | U173: 8386.605277 | V173: 9457.576629 | W173: =SUM(W129:W148) -> 8675.700881 | X173: 9291.679308 | Y173: 9408.146582 | Z173: =SUM(Z129:Z148) -> 6341.716468 | AA173: 8897.590334 | AB173: 10571.15606 | AC173: 8638.862242 | AD173: 8194.316677 | AE173: 8366.191343 | AF173: 7433.374633 | AG173: 8260.379337 | AH173: 7718.753888 | AI173: 8100.420379 | AJ173: 8108.541772 | AK173: dda.dis.core.voz
G174: BHCA para el diseño del MSCS | I174: [# BHCA] | J174: =SUM(L174,M174,N174,O174,P174,Q174,R174,S174,T174,U174,V174,W174,X174,Y174,Z174,AA174,AB174,AC174,AD174,AE174,AF174,AG174,AH174,AI174,AJ174) -> 11728790.19 | L174: =SUM(L150:L169) -> 585178.0106 | M174: =SUM(M150:M169) -> 520535.2631 | N174: 524165.0904 | O174: 410563.3219 | P174: 485794.9431 | Q174: 444560.9212 | R174: 516454.8753 | S174: 394957.7395 | T174: 486451.0717 | U174: 454369.0582 | V174: 512392.0876 | W174: =SUM(W150:W169) -> 470031.6646 | X174: 503404.1113 | Y174: 509714.0691 | Z174: =SUM(Z150:Z169) -> 343581.1802 | AA174: 482053.1797 | AB174: 572723.5351 | AC174: 468035.8228 | AD174: 443951.2566 | AE174: 453263.0732 | AF174: 402724.9787 | AG174: 447530.3959 | AH174: 418186.2409 | AI174: 438864.1479 | AJ174: 439304.1483 | AK174: dda.dis.ran.bhca.core
A177: 3 | B177: Cálculos para Datos
C179: SMS
L181: =INDEX(l.reg.nom,L$6) -> Amazonas | M181: Ancash | N181: Apurímac | O181: Arequipa | P181: Ayacucho | Q181: Cajamarca | R181: Callao | S181: Cusco | T181: Huancavelica | U181: Huánuco | V181: Ica | W181: Junín | X181: La Libertad | Y181: Lambayeque | Z181: Lima | AA181: Loreto | AB181: Madre de Dios | AC181: Moquegua | AD181: Pasco | AE181: Piura | AF181: Puno | AG181: San Martín | AH181: Tacna | AI181: Tumbes | AJ181: Ucayali
F182: ID | G182: Tipo | J182: Año 0 | L182: Año 0 | M182: Año 0 | N182: Año 0 | O182: Año 0 | P182: Año 0 | Q182: Año 0 | R182: Año 0 | S182: Año 0 | T182: Año 0 | U182: Año 0 | V182: Año 0 | W182: Año 0 | X182: Año 0 | Y182: Año 0 | Z182: Año 0 | AA182: Año 0 | AB182: Año 0 | AC182: Año 0 | AD182: Año 0 | AE182: Año 0 | AF182: Año 0 | AG182: Año 0 | AH182: Año 0 | AI182: Año 0 | AJ182: Año 0
E183: SMS en la hora Cargada del Sistema
F184: 14 | G184: =INDEX(l.serv.nom,F184) -> SMS saliente a otras móviles | I184: [SMS] | J184: =SUM(L184,M184,N184,O184,P184,Q184,R184,S184,T184,U184,V184,W184,X184,Y184,Z184,AA184,AB184,AC184,AD184,AE184,AF184,AG184,AH184,AI184,AJ184) -> 227272.7273 | L184: =INDEX(L$13:L$57,$F184)*p.hc.m*p.fc.geo/p.dc -> 11339.19188 | M184: 10086.58753 | N184: =INDEX(N$13:N$57,$F184)*p.hc.m*p.fc.geo/p.dc -> 10156.92392 | O184: 7955.6241 | P184: =INDEX(P$13:P$57,$F184)*p.hc.m*p.fc.geo/p.dc -> 9413.412625 | Q184: =INDEX(Q$13:Q$57,$F184)*p.hc.m*p.fc.geo/p.dc -> 8614.40706 | R184: 10007.52048 | S184: =INDEX(S$13:S$57,$F184)*p.hc.m*p.fc.geo/p.dc -> 7653.229462 | T184: 9426.12665 | U184: =INDEX(U$13:U$57,$F184)*p.hc.m*p.fc.geo/p.dc -> 8804.462643 | V184: =INDEX(V$13:V$57,$F184)*p.hc.m*p.fc.geo/p.dc -> 9928.794473 | W184: 9107.962255 | X184: =INDEX(X$13:X$57,$F184)*p.hc.m*p.fc.geo/p.dc -> 9754.631422 | Y184: 9876.901605 | Z184: =INDEX(Z$13:Z$57,$F184)*p.hc.m*p.fc.geo/p.dc -> 6657.688528 | AA184: 9340.907211 | AB184: 11097.8573 | AC184: 9069.288154 | AD184: 8602.593384 | AE184: 8783.031597 | AF184: 7803.737878 | AG184: =INDEX(AG$13:AG$57,$F184)*p.hc.m*p.fc.geo/p.dc -> 8671.947574 | AH184: 8103.335976 | AI184: 8504.018762 | AJ184: =INDEX(AJ$13:AJ$57,$F184)*p.hc.m*p.fc.geo/p.dc -> 8512.544798
F185: 15 | G185: SMS on-net | I185: [SMS] | J185: =SUM(L185,M185,N185,O185,P185,Q185,R185,S185,T185,U185,V185,W185,X185,Y185,Z185,AA185,AB185,AC185,AD185,AE185,AF185,AG185,AH185,AI185,AJ185) -> 227272.7273 | L185: 11339.19188 | M185: 10086.58753 | N185: 10156.92392 | O185: 7955.6241 | P185: 9413.412625 | Q185: 8614.40706 | R185: 10007.52048 | S185: 7653.229462 | T185: 9426.12665 | U185: 8804.462643 | V185: 9928.794473 | W185: 9107.962255 | X185: 9754.631422 | Y185: 9876.901605 | Z185: 6657.688528 | AA185: 9340.907211 | AB185: 11097.8573 | AC185: 9069.288154 | AD185: 8602.593384 | AE185: 8783.031597 | AF185: 7803.737878 | AG185: 8671.947574 | AH185: 8103.335976 | AI185: 8504.018762 | AJ185: 8512.544798
F186: 16 | G186: SMS entrante desde otras móviles | I186: [SMS] | J186: =SUM(L186,M186,N186,O186,P186,Q186,R186,S186,T186,U186,V186,W186,X186,Y186,Z186,AA186,AB186,AC186,AD186,AE186,AF186,AG186,AH186,AI186,AJ186) -> 90909.09091 | L186: 4535.67675 | M186: 4034.635013 | N186: 4062.769569 | O186: 3182.24964 | P186: 3765.36505 | Q186: 3445.762824 | R186: 4003.008193 | S186: 3061.291785 | T186: 3770.45066 | U186: 3521.785057 | V186: 3971.517789 | W186: 3643.184902 | X186: 3901.852569 | Y186: 3950.760642 | Z186: 2663.075411 | AA186: 3736.362884 | AB186: 4439.14292 | AC186: 3627.715262 | AD186: 3441.037354 | AE186: 3513.212639 | AF186: 3121.495151 | AG186: 3468.77903 | AH186: 3241.33439 | AI186: 3401.607505 | AJ186: 3405.017919
F187: 40 | G187: libre | I187: [SMS] | J187: =SUM(L187,M187,N187,O187,P187,Q187,R187,S187,T187,U187,V187,W187,X187,Y187,Z187,AA187,AB187,AC187,AD187,AE187,AF187,AG187,AH187,AI187,AJ187) -> 0 | L187: 0 | M187: 0 | N187: 0 | O187: 0 | P187: 0 | Q187: 0 | R187: 0 | S187: 0 | T187: 0 | U187: 0 | V187: 0 | W187: 0 | X187: 0 | Y187: 0 | Z187: 0 | AA187: 0 | AB187: 0 | AC187: 0 | AD187: 0 | AE187: 0 | AF187: 0 | AG187: 0 | AH187: 0 | AI187: 0 | AJ187: 0
F188: 40 | G188: libre | I188: [SMS] | J188: =SUM(L188,M188,N188,O188,P188,Q188,R188,S188,T188,U188,V188,W188,X188,Y188,Z188,AA188,AB188,AC188,AD188,AE188,AF188,AG188,AH188,AI188,AJ188) -> 0 | L188: 0 | M188: 0 | N188: 0 | O188: 0 | P188: 0 | Q188: 0 | R188: 0 | S188: 0 | T188: 0 | U188: 0 | V188: 0 | W188: 0 | X188: 0 | Y188: 0 | Z188: 0 | AA188: 0 | AB188: 0 | AC188: 0 | AD188: 0 | AE188: 0 | AF188: 0 | AG188: 0 | AH188: 0 | AI188: 0 | AJ188: 0
E189: SMS equivalentes en canal CS
F190: 14 | G190: =INDEX(l.serv.nom,F190) -> SMS saliente a otras móviles | I190: [HC erlangs] | J190: =SUM(L190,M190,N190,O190,P190,Q190,R190,S190,T190,U190,V190,W190,X190,Y190,Z190,AA190,AB190,AC190,AD190,AE190,AF190,AG190,AH190,AI190,AJ190) -> 2.585858586 | L190: =L184*p.sms_erlang*INDEX(p.ran.rf,$F190) -> 0.1290148053 | M190: 0.1147629515 | N190: 0.1155632233 | O190: 0.0905173231 | P190: 0.107103717 | Q190: 0.09801280922 | R190: =R184*p.sms_erlang*INDEX(p.ran.rf,$F190) -> 0.1138633442 | S190: 0.0870767441 | T190: 0.1072483743 | U190: 0.1001752194 | V190: 0.1129676171 | W190: =W184*p.sms_erlang*INDEX(p.ran.rf,$F190) -> 0.1036283705 | X190: 0.1109860286 | Y190: 0.1123771916 | Z190: 0.07574970058 | AA190: 0.1062787665 | AB190: =AB184*p.sms_erlang*INDEX(p.ran.rf,$F190) -> 0.1262689542 | AC190: 0.1031883452 | AD190: 0.09787839584 | AE190: 0.09993138173 | AF190: 0.08878919541 | AG190: 0.0986674924 | AH190: =AH184*p.sms_erlang*INDEX(p.ran.rf,$F190) -> 0.09219795599 | AI190: 0.09675683569 | AJ190: 0.09685384303
F191: 15 | G191: SMS on-net | I191: [HC erlangs] | J191: =SUM(L191,M191,N191,O191,P191,Q191,R191,S191,T191,U191,V191,W191,X191,Y191,Z191,AA191,AB191,AC191,AD191,AE191,AF191,AG191,AH191,AI191,AJ191) -> 5.171717172 | L191: =L185*p.sms_erlang*INDEX(p.ran.rf,$F191) -> 0.2580296107 | M191: 0.229525903 | N191: 0.2311264466 | O191: 0.1810346462 | P191: 0.2142074339 | Q191: 0.1960256184 | R191: =R185*p.sms_erlang*INDEX(p.ran.rf,$F191) -> 0.2277266883 | S191: 0.1741534882 | T191: 0.2144967487 | U191: 0.2003504388 | V191: 0.2259352342 | W191: =W185*p.sms_erlang*INDEX(p.ran.rf,$F191) -> 0.2072567411 | X191: 0.2219720572 | Y191: 0.2247543832 | Z191: 0.1514994012 | AA191: 0.212557533 | AB191: =AB185*p.sms_erlang*INDEX(p.ran.rf,$F191) -> 0.2525379083 | AC191: 0.2063766904 | AD191: 0.1957567917 | AE191: 0.1998627635 | AF191: 0.1775783908 | AG191: 0.1973349848 | AH191: =AH185*p.sms_erlang*INDEX(p.ran.rf,$F191) -> 0.184395912 | AI191: 0.1935136714 | AJ191: 0.1937076861
F192: 16 | G192: SMS entrante desde otras móviles | I192: [HC erlangs] | J192: =SUM(L192,M192,N192,O192,P192,Q192,R192,S192,T192,U192,V192,W192,X192,Y192,Z192,AA192,AB192,AC192,AD192,AE192,AF192,AG192,AH192,AI192,AJ192) -> 1.034343434 | L192: =L186*p.sms_erlang*INDEX(p.ran.rf,$F192) -> 0.05160592214 | M192: 0.0459051806 | N192: 0.04622528932 | O192: 0.03620692924 | P192: 0.04284148679 | Q192: 0.03920512369 | R192: =R186*p.sms_erlang*INDEX(p.ran.rf,$F192) -> 0.04554533766 | S192: 0.03483069764 | T192: 0.04289934973 | U192: 0.04007008776 | V192: 0.04518704685 | W192: =W186*p.sms_erlang*INDEX(p.ran.rf,$F192) -> 0.04145134822 | X192: 0.04439441145 | Y192: 0.04495087664 | Z192: 0.03029988023 | AA192: 0.0425115066 | AB192: =AB186*p.sms_erlang*INDEX(p.ran.rf,$F192) -> 0.05050758167 | AC192: 0.04127533809 | AD192: 0.03915135833 | AE192: 0.03997255269 | AF192: 0.03551567816 | AG192: 0.03946699696 | AH192: =AH186*p.sms_erlang*INDEX(p.ran.rf,$F192) -> 0.0368791824 | AI192: 0.03870273427 | AJ192: 0.03874153721
F193: 40 | G193: libre | I193: [HC erlangs] | J193: =SUM(L193,M193,N193,O193,P193,Q193,R193,S193,T193,U193,V193,W193,X193,Y193,Z193,AA193,AB193,AC193,AD193,AE193,AF193,AG193,AH193,AI193,AJ193) -> 0 | L193: =L187*p.sms_erlang*INDEX(p.ran.rf,$F193) -> 0 | M193: 0 | N193: 0 | O193: 0 | P193: 0 | Q193: 0 | R193: =R187*p.sms_erlang*INDEX(p.ran.rf,$F193) -> 0 | S193: 0 | T193: 0 | U193: 0 | V193: 0 | W193: =W187*p.sms_erlang*INDEX(p.ran.rf,$F193) -> 0 | X193: 0 | Y193: 0 | Z193: 0 | AA193: 0 | AB193: =AB187*p.sms_erlang*INDEX(p.ran.rf,$F193) -> 0 | AC193: 0 | AD193: 0 | AE193: 0 | AF193: 0 | AG193: 0 | AH193: =AH187*p.sms_erlang*INDEX(p.ran.rf,$F193) -> 0 | AI193: 0 | AJ193: 0
F194: 40 | G194: libre | I194: [HC erlangs] | J194: =SUM(L194,M194,N194,O194,P194,Q194,R194,S194,T194,U194,V194,W194,X194,Y194,Z194,AA194,AB194,AC194,AD194,AE194,AF194,AG194,AH194,AI194,AJ194) -> 0 | L194: =L188*p.sms_erlang*INDEX(p.ran.rf,$F194) -> 0 | M194: 0 | N194: 0 | O194: 0 | P194: 0 | Q194: 0 | R194: =R188*p.sms_erlang*INDEX(p.ran.rf,$F194) -> 0 | S194: 0 | T194: 0 | U194: 0 | V194: 0 | W194: =W188*p.sms_erlang*INDEX(p.ran.rf,$F194) -> 0 | X194: 0 | Y194: 0 | Z194: 0 | AA194: 0 | AB194: =AB188*p.sms_erlang*INDEX(p.ran.rf,$F194) -> 0 | AC194: 0 | AD194: 0 | AE194: 0 | AF194: 0 | AG194: 0 | AH194: =AH188*p.sms_erlang*INDEX(p.ran.rf,$F194) -> 0 | AI194: 0 | AJ194: 0
E195: SMS para el diseño de elementos del núcleo
F196: 14 | G196: =INDEX(l.serv.nom,F196) -> SMS saliente a otras móviles | I196: [SMS] | J196: =SUM(L196,M196,N196,O196,P196,Q196,R196,S196,T196,U196,V196,W196,X196,Y196,Z196,AA196,AB196,AC196,AD196,AE196,AF196,AG196,AH196,AI196,AJ196) -> 45454.54545 | L196: =INDEX(L$13:L$57,$F196)*p.hc.m.m/p.dc -> 2267.838375 | M196: 2017.317507 | N196: =INDEX(N$13:N$57,$F196)*p.hc.m.m/p.dc -> 2031.384785 | O196: 1591.12482 | P196: =INDEX(P$13:P$57,$F196)*p.hc.m.m/p.dc -> 1882.682525 | Q196: =INDEX(Q$13:Q$57,$F196)*p.hc.m.m/p.dc -> 1722.881412 | R196: 2001.504096 | S196: =INDEX(S$13:S$57,$F196)*p.hc.m.m/p.dc -> 1530.645892 | T196: 1885.22533 | U196: =INDEX(U$13:U$57,$F196)*p.hc.m.m/p.dc -> 1760.892529 | V196: =INDEX(V$13:V$57,$F196)*p.hc.m.m/p.dc -> 1985.758895 | W196: 1821.592451 | X196: =INDEX(X$13:X$57,$F196)*p.hc.m.m/p.dc -> 1950.926284 | Y196: 1975.380321 | Z196: =INDEX(Z$13:Z$57,$F196)*p.hc.m.m/p.dc -> 1331.537706 | AA196: 1868.181442 | AB196: 2219.57146 | AC196: 1813.857631 | AD196: 1720.518677 | AE196: 1756.606319 | AF196: 1560.747576 | AG196: =INDEX(AG$13:AG$57,$F196)*p.hc.m.m/p.dc -> 1734.389515 | AH196: 1620.667195 | AI196: 1700.803752 | AJ196: =INDEX(AJ$13:AJ$57,$F196)*p.hc.m.m/p.dc -> 1702.50896
F197: 15 | G197: SMS on-net | I197: [SMS] | J197: =SUM(L197,M197,N197,O197,P197,Q197,R197,S197,T197,U197,V197,W197,X197,Y197,Z197,AA197,AB197,AC197,AD197,AE197,AF197,AG197,AH197,AI197,AJ197) -> 45454.54545 | L197: 2267.838375 | M197: 2017.317507 | N197: 2031.384785 | O197: 1591.12482 | P197: 1882.682525 | Q197: 1722.881412 | R197: 2001.504096 | S197: 1530.645892 | T197: 1885.22533 | U197: 1760.892529 | V197: 1985.758895 | W197: 1821.592451 | X197: 1950.926284 | Y197: 1975.380321 | Z197: 1331.537706 | AA197: 1868.181442 | AB197: 2219.57146 | AC197: 1813.857631 | AD197: 1720.518677 | AE197: 1756.606319 | AF197: 1560.747576 | AG197: 1734.389515 | AH197: 1620.667195 | AI197: 1700.803752 | AJ197: 1702.50896
F198: 16 | G198: SMS entrante desde otras móviles | I198: [SMS] | J198: =SUM(L198,M198,N198,O198,P198,Q198,R198,S198,T198,U198,V198,W198,X198,Y198,Z198,AA198,AB198,AC198,AD198,AE198,AF198,AG198,AH198,AI198,AJ198) -> 18181.81818 | L198: 907.1353501 | M198: 806.9270027 | N198: 812.5539139 | O198: 636.449928 | P198: 753.07301 | Q198: 689.1525648 | R198: 800.6016386 | S198: 612.258357 | T198: 754.090132 | U198: 704.3570114 | V198: 794.3035578 | W198: 728.6369804 | X198: 780.3705138 | Y198: 790.1521284 | Z198: 532.6150822 | AA198: 747.2725769 | AB198: 887.828584 | AC198: 725.5430523 | AD198: 688.2074707 | AE198: 702.6425278 | AF198: 624.2990302 | AG198: 693.755806 | AH198: 648.2668781 | AI198: 680.3215009 | AJ198: 681.0035838
F199: 40 | G199: libre | I199: [SMS] | J199: =SUM(L199,M199,N199,O199,P199,Q199,R199,S199,T199,U199,V199,W199,X199,Y199,Z199,AA199,AB199,AC199,AD199,AE199,AF199,AG199,AH199,AI199,AJ199) -> 0 | L199: 0 | M199: 0 | N199: 0 | O199: 0 | P199: 0 | Q199: 0 | R199: 0 | S199: 0 | T199: 0 | U199: 0 | V199: 0 | W199: 0 | X199: 0 | Y199: 0 | Z199: 0 | AA199: 0 | AB199: 0 | AC199: 0 | AD199: 0 | AE199: 0 | AF199: 0 | AG199: 0 | AH199: 0 | AI199: 0 | AJ199: 0
F200: 40 | G200: libre | I200: [SMS] | J200: =SUM(L200,M200,N200,O200,P200,Q200,R200,S200,T200,U200,V200,W200,X200,Y200,Z200,AA200,AB200,AC200,AD200,AE200,AF200,AG200,AH200,AI200,AJ200) -> 0 | L200: 0 | M200: 0 | N200: 0 | O200: 0 | P200: 0 | Q200: 0 | R200: 0 | S200: 0 | T200: 0 | U200: 0 | V200: 0 | W200: 0 | X200: 0 | Y200: 0 | Z200: 0 | AA200: 0 | AB200: 0 | AC200: 0 | AD200: 0 | AE200: 0 | AF200: 0 | AG200: 0 | AH200: 0 | AI200: 0 | AJ200: 0
G202: Erlangs de SMS en la Hora Cargada | I202: [HC erlangs] | J202: =SUM(L202,M202,N202,O202,P202,Q202,R202,S202,T202,U202,V202,W202,X202,Y202,Z202,AA202,AB202,AC202,AD202,AE202,AF202,AG202,AH202,AI202,AJ202) -> 8.791919192 | L202: =SUM(L190:L194) -> 0.4386503382 | M202: =SUM(M190:M194) -> 0.3901940351 | N202: 0.3929149592 | O202: 0.3077588985 | P202: 0.3641526377 | Q202: 0.3332435513 | R202: 0.3871353701 | S202: 0.29606093 | T202: 0.3646444727 | U202: 0.340595746 | V202: 0.3840898982 | W202: =SUM(W190:W194) -> 0.3523364599 | X202: 0.3773524973 | Y202: 0.3820824514 | Z202: =SUM(Z190:Z194) -> 0.257548982 | AA202: 0.3613478061 | AB202: 0.4293144442 | AC202: 0.3508403737 | AD202: 0.3327865458 | AE202: 0.3397666979 | AF202: 0.3018832644 | AG202: 0.3354694742 | AH202: 0.3134730504 | AI202: 0.3289732413 | AJ202: 0.3293030663 | AK202: dda.dis.ran.sms
G203: Erlangs de SMS en la Hora Cargada de SMS | I203: [HC erlangs] | J203: =SUM(L203,M203,N203,O203,P203,Q203,R203,S203,T203,U203,V203,W203,X203,Y203,Z203,AA203,AB203,AC203,AD203,AE203,AF203,AG203,AH203,AI203,AJ203) -> 1.241212121 | L203: =SUM(L196:L200)*p.sms_erlang -> 0.06192710657 | M203: 0.05508621672 | N203: 0.05547034719 | O203: 0.04344831509 | P203: 0.05140978415 | Q203: 0.04704614842 | R203: =SUM(R196:R200)*p.sms_erlang -> 0.0546544052 | S203: 0.04179683717 | T203: 0.05147921968 | U203: 0.04808410531 | V203: 0.05422445621 | W203: =SUM(W196:W200)*p.sms_erlang -> 0.04974161786 | X203: 0.05327329374 | Y203: 0.05394105196 | Z203: =SUM(Z196:Z200)*p.sms_erlang -> 0.03635985628 | AA203: 0.05101380792 | AB203: 0.060609098 | AC203: 0.0495304057 | AD203: 0.04698163 | AE203: 0.04796706323 | AF203: 0.0426188138 | AG203: 0.04736039635 | AH203: 0.04425501888 | AI203: 0.04644328113 | AJ203: 0.04648984466 | AK203: dda.dis.core.sms
C205: MMS
L207: =INDEX(l.reg.nom,L$6) -> Amazonas | M207: Ancash | N207: Apurímac | O207: Arequipa | P207: Ayacucho | Q207: Cajamarca | R207: Callao | S207: Cusco | T207: Huancavelica | U207: Huánuco | V207: Ica | W207: Junín | X207: La Libertad | Y207: Lambayeque | Z207: Lima | AA207: Loreto | AB207: Madre de Dios | AC207: Moquegua | AD207: Pasco | AE207: Piura | AF207: Puno | AG207: San Martín | AH207: Tacna | AI207: Tumbes | AJ207: Ucayali
F208: ID | G208: Tipo | J208: Año 0 | L208: Año 0 | M208: Año 0 | N208: Año 0 | O208: Año 0 | P208: Año 0 | Q208: Año 0 | R208: Año 0 | S208: Año 0 | T208: Año 0 | U208: Año 0 | V208: Año 0 | W208: Año 0 | X208: Año 0 | Y208: Año 0 | Z208: Año 0 | AA208: Año 0 | AB208: Año 0 | AC208: Año 0 | AD208: Año 0 | AE208: Año 0 | AF208: Año 0 | AG208: Año 0 | AH208: Año 0 | AI208: Año 0 | AJ208: Año 0
E209: MMS en la hora Cargada de Radio
F210: 17 | G210: =INDEX(l.serv.nom,F210) -> libre | I210: [MMS] | J210: =SUM(L210,M210,N210,O210,P210,Q210,R210,S210,T210,U210,V210,W210,X210,Y210,Z210,AA210,AB210,AC210,AD210,AE210,AF210,AG210,AH210,AI210,AJ210) -> 0 | L210: =INDEX(L$13:L$57,$F210)*p.hc.mm*p.fc.geo/p.dc -> 0 | M210: 0 | N210: =INDEX(N$13:N$57,$F210)*p.hc.mm*p.fc.geo/p.dc -> 0 | O210: 0 | P210: =INDEX(P$13:P$57,$F210)*p.hc.mm*p.fc.geo/p.dc -> 0 | Q210: =INDEX(Q$13:Q$57,$F210)*p.hc.mm*p.fc.geo/p.dc -> 0 | R210: 0 | S210: =INDEX(S$13:S$57,$F210)*p.hc.mm*p.fc.geo/p.dc -> 0 | T210: 0 | U210: =INDEX(U$13:U$57,$F210)*p.hc.mm*p.fc.geo/p.dc -> 0 | V210: =INDEX(V$13:V$57,$F210)*p.hc.mm*p.fc.geo/p.dc -> 0 | W210: 0 | X210: =INDEX(X$13:X$57,$F210)*p.hc.mm*p.fc.geo/p.dc -> 0 | Y210: 0 | Z210: =INDEX(Z$13:Z$57,$F210)*p.hc.mm*p.fc.geo/p.dc -> 0 | AA210: 0 | AB210: 0 | AC210: 0 | AD210: 0 | AE210: 0 | AF210: 0 | AG210: =INDEX(AG$13:AG$57,$F210)*p.hc.mm*p.fc.geo/p.dc -> 0 | AH210: 0 | AI210: 0 | AJ210: =INDEX(AJ$13:AJ$57,$F210)*p.hc.mm*p.fc.geo/p.dc -> 0
F211: 18 | G211: libre | I211: [MMS] | J211: =SUM(L211,M211,N211,O211,P211,Q211,R211,S211,T211,U211,V211,W211,X211,Y211,Z211,AA211,AB211,AC211,AD211,AE211,AF211,AG211,AH211,AI211,AJ211) -> 0 | L211: 0 | M211: 0 | N211: 0 | O211: 0 | P211: 0 | Q211: 0 | R211: 0 | S211: 0 | T211: 0 | U211: 0 | V211: 0 | W211: 0 | X211: 0 | Y211: 0 | Z211: 0 | AA211: 0 | AB211: 0 | AC211: 0 | AD211: 0 | AE211: 0 | AF211: 0 | AG211: 0 | AH211: 0 | AI211: 0 | AJ211: 0
F212: 19 | G212: libre | I212: [MMS] | J212: =SUM(L212,M212,N212,O212,P212,Q212,R212,S212,T212,U212,V212,W212,X212,Y212,Z212,AA212,AB212,AC212,AD212,AE212,AF212,AG212,AH212,AI212,AJ212) -> 0 | L212: 0 | M212: 0 | N212: 0 | O212: 0 | P212: 0 | Q212: 0 | R212: 0 | S212: 0 | T212: 0 | U212: 0 | V212: 0 | W212: 0 | X212: 0 | Y212: 0 | Z212: 0 | AA212: 0 | AB212: 0 | AC212: 0 | AD212: 0 | AE212: 0 | AF212: 0 | AG212: 0 | AH212: 0 | AI212: 0 | AJ212: 0
F213: 40 | G213: libre | I213: [MMS] | J213: =SUM(L213,M213,N213,O213,P213,Q213,R213,S213,T213,U213,V213,W213,X213,Y213,Z213,AA213,AB213,AC213,AD213,AE213,AF213,AG213,AH213,AI213,AJ213) -> 0 | L213: 0 | M213: 0 | N213: 0 | O213: 0 | P213: 0 | Q213: 0 | R213: 0 | S213: 0 | T213: 0 | U213: 0 | V213: 0 | W213: 0 | X213: 0 | Y213: 0 | Z213: 0 | AA213: 0 | AB213: 0 | AC213: 0 | AD213: 0 | AE213: 0 | AF213: 0 | AG213: 0 | AH213: 0 | AI213: 0 | AJ213: 0
F214: 40 | G214: libre | I214: [MMS] | J214: =SUM(L214,M214,N214,O214,P214,Q214,R214,S214,T214,U214,V214,W214,X214,Y214,Z214,AA214,AB214,AC214,AD214,AE214,AF214,AG214,AH214,AI214,AJ214) -> 0 | L214: 0 | M214: 0 | N214: 0 | O214: 0 | P214: 0 | Q214: 0 | R214: 0 | S214: 0 | T214: 0 | U214: 0 | V214: 0 | W214: 0 | X214: 0 | Y214: 0 | Z214: 0 | AA214: 0 | AB214: 0 | AC214: 0 | AD214: 0 | AE214: 0 | AF214: 0 | AG214: 0 | AH214: 0 | AI214: 0 | AJ214: 0
E215: MMS equivalentes en canal PS
F216: 17 | G216: =INDEX(l.serv.nom,F216) -> libre | I216: [HC erlangs] | J216: =SUM(L216,M216,N216,O216,P216,Q216,R216,S216,T216,U216,V216,W216,X216,Y216,Z216,AA216,AB216,AC216,AD216,AE216,AF216,AG216,AH216,AI216,AJ216) -> 0 | L216: =L210*p.mms_erlang -> 0 | M216: 0 | N216: 0 | O216: 0 | P216: 0 | Q216: 0 | R216: =R210*p.mms_erlang -> 0 | S216: 0 | T216: 0 | U216: 0 | V216: 0 | W216: =W210*p.mms_erlang -> 0 | X216: 0 | Y216: 0 | Z216: =Z210*p.mms_erlang -> 0 | AA216: 0 | AB216: 0 | AC216: 0 | AD216: 0 | AE216: 0 | AF216: 0 | AG216: 0 | AH216: 0 | AI216: 0 | AJ216: 0
F217: 18 | G217: libre | I217: [HC erlangs] | J217: =SUM(L217,M217,N217,O217,P217,Q217,R217,S217,T217,U217,V217,W217,X217,Y217,Z217,AA217,AB217,AC217,AD217,AE217,AF217,AG217,AH217,AI217,AJ217) -> 0 | L217: =L211*p.mms_erlang -> 0 | M217: 0 | N217: 0 | O217: 0 | P217: 0 | Q217: 0 | R217: =R211*p.mms_erlang -> 0 | S217: 0 | T217: 0 | U217: 0 | V217: 0 | W217: =W211*p.mms_erlang -> 0 | X217: 0 | Y217: 0 | Z217: =Z211*p.mms_erlang -> 0 | AA217: 0 | AB217: 0 | AC217: 0 | AD217: 0 | AE217: 0 | AF217: 0 | AG217: 0 | AH217: 0 | AI217: 0 | AJ217: 0
F218: 19 | G218: libre | I218: [HC erlangs] | J218: =SUM(L218,M218,N218,O218,P218,Q218,R218,S218,T218,U218,V218,W218,X218,Y218,Z218,AA218,AB218,AC218,AD218,AE218,AF218,AG218,AH218,AI218,AJ218) -> 0 | L218: =L212*p.mms_erlang -> 0 | M218: 0 | N218: 0 | O218: 0 | P218: 0 | Q218: 0 | R218: =R212*p.mms_erlang -> 0 | S218: 0 | T218: 0 | U218: 0 | V218: 0 | W218: =W212*p.mms_erlang -> 0 | X218: 0 | Y218: 0 | Z218: =Z212*p.mms_erlang -> 0 | AA218: 0 | AB218: 0 | AC218: 0 | AD218: 0 | AE218: 0 | AF218: 0 | AG218: 0 | AH218: 0 | AI218: 0 | AJ218: 0
... 324 more rows

Sheet UTRAN
H2: ='Panel de Control'!$H$2 -> Modelo Dinámico de Cargo de Interconexión Móvil (Costos Históricos)
H3: Diseño de UTRAN: UMTS Terrestrial Radio Access Network
A6: Zonas | J6: 0 | L6: 1 | M6: 2 | N6: 3 | O6: 4 | P6: 5 | Q6: 6 | R6: 7 | S6: 8 | T6: 9 | U6: 10 | V6: 11 | W6: 12 | X6: 13 | Y6: 14 | Z6: 15 | AA6: 16 | AB6: 17 | AC6: 18 | AD6: 19 | AE6: 20 | AF6: 21 | AG6: 22 | AH6: 23 | AI6: 24 | AJ6: 25
A9: 1 | B9: Diseño de la Red de Acceso de Cobertura
L11: =INDEX(l.reg.nom,L$6) -> Amazonas | M11: Ancash | N11: Apurímac | O11: Arequipa | P11: Ayacucho | Q11: Cajamarca | R11: Callao | S11: Cusco | T11: Huancavelica | U11: Huánuco | V11: Ica | W11: Junín | X11: La Libertad | Y11: Lambayeque | Z11: Lima | AA11: Loreto | AB11: Madre de Dios | AC11: Moquegua | AD11: Pasco | AE11: Piura | AF11: Puno | AG11: San Martín | AH11: Tacna | AI11: Tumbes | AJ11: Ucayali
F12: ID | G12: Geotipo | J12: Año 0 | L12: Año 0 | M12: Año 0 | N12: Año 0 | O12: Año 0 | P12: Año 0 | Q12: Año 0 | R12: Año 0 | S12: Año 0 | T12: Año 0 | U12: Año 0 | V12: Año 0 | W12: Año 0 | X12: Año 0 | Y12: Año 0 | Z12: Año 0 | AA12: Año 0 | AB12: Año 0 | AC12: Año 0 | AD12: Año 0 | AE12: Año 0 | AF12: Año 0 | AG12: Año 0 | AH12: Año 0 | AI12: Año 0 | AJ12: Año 0
E13: Área a Cubrir
F14: 1 | G14: =INDEX(l.geo.nom,F14) -> 3G Tipo 1 | I14: [km2] | J14: =SUM(L14,M14,N14,O14,P14,Q14,R14,S14,T14,U14,V14,W14,X14,Y14,Z14,AA14,AB14,AC14,AD14,AE14,AF14,AG14,AH14,AI14,AJ14) -> 37027.54463 | L14: =INDEX(e.cober,$F14,L$6) -> 2840.7 | M14: 360.2378053 | N14: 806.2 | O14: 3765.485286 | P14: 1744.3 | Q14: 148.2296192 | R14: 18.5125329 | S14: 1238.497522 | T14: 79.4 | U14: 3343.1 | V14: =INDEX(e.cober,$F14,V$6) -> 237.3509415 | W14: 181.1189524 | X14: 728.0053072 | Y14: 83.15411744 | Z14: 2635.389508 | AA14: 9747.5 | AB14: 7194.1 | AC14: 0 | AD14: 642.8 | AE14: 25.11433207 | AF14: 548.2531495 | AG14: 419.7 | AH14: 181.8175293 | AI14: 58.57802399 | AJ14: 0
F15: 2 | G15: 3G Tipo 2 | I15: [km2] | J15: 36645.95657 | L15: 2840.7 | M15: 186.0468447 | N15: 806.2 | O15: 3005.138853 | P15: 1744.3 | Q15: 0 | R15: 30.4874671 | S15: 0 | T15: 79.4 | U15: 3343.1 | V15: 2003.57159 | W15: 711.884542 | X15: 372.7364926 | Y15: 91.14151496 | Z15: 2256.95365 | AA15: 9747.5 | AB15: 7194.1 | AC15: 74.85189852 | AD15: 642.8 | AE15: 38.16418363 | AF15: 617.1319891 | AG15: 419.7 | AH15: 322.867915 | AI15: 117.1796304 | AJ15: 0
F16: 3 | G16: 3G Tipo 3 | I16: [km2] | J16: 454257.4988 | L16: 22725.6 | M16: 8218.71535 | N16: 6449.6 | O16: 50503.37586 | P16: 13954.4 | Q16: 11534.77038 | R16: 0 | S16: 68022.50248 | T16: 635.2 | U16: 26744.8 | V16: 15469.07747 | W16: 7525.996506 | X16: 18406.2582 | Y16: 2458.704368 | Z16: 12847.65684 | AA16: 77980 | AB16: 57552.8 | AC16: 520.1481015 | AD16: 5142.4 | AE16: 1282.721484 | AF16: 37019.61486 | AG16: 3357.6 | AH16: 2810.314556 | AI16: 3095.242346 | AJ16: 0
F17: 4 | G17: 3G Tipo 4 | I17: [km2] | J17: 0 | L17: 0 | M17: 0 | N17: 0 | O17: 0 | P17: 0 | Q17: 0 | R17: 0 | S17: 0 | T17: 0 | U17: 0 | V17: 0 | W17: 0 | X17: 0 | Y17: 0 | Z17: 0 | AA17: 0 | AB17: 0 | AC17: 0 | AD17: 0 | AE17: 0 | AF17: 0 | AG17: 0 | AH17: 0 | AI17: 0 | AJ17: 0
F18: 5 | G18: 2G Tipo 1 | I18: [km2] | J18: 0 | L18: 0 | M18: 0 | N18: 0 | O18: 0 | P18: 0 | Q18: 0 | R18: 0 | S18: 0 | T18: 0 | U18: 0 | V18: 0 | W18: 0 | X18: 0 | Y18: 0 | Z18: 0 | AA18: 0 | AB18: 0 | AC18: 0 | AD18: 0 | AE18: 0 | AF18: 0 | AG18: 0 | AH18: 0 | AI18: 0 | AJ18: 0
F19: 6 | G19: 2G Tipo 2 | I19: [km2] | J19: 0 | L19: 0 | M19: 0 | N19: 0 | O19: 0 | P19: 0 | Q19: 0 | R19: 0 | S19: 0 | T19: 0 | U19: 0 | V19: 0 | W19: 0 | X19: 0 | Y19: 0 | Z19: 0 | AA19: 0 | AB19: 0 | AC19: 0 | AD19: 0 | AE19: 0 | AF19: 0 | AG19: 0 | AH19: 0 | AI19: 0 | AJ19: 0
F20: 7 | G20: 2G Tipo 3 | I20: [km2] | J20: 0 | L20: 0 | M20: 0 | N20: 0 | O20: 0 | P20: 0 | Q20: 0 | R20: 0 | S20: 0 | T20: 0 | U20: 0 | V20: 0 | W20: 0 | X20: 0 | Y20: 0 | Z20: 0 | AA20: 0 | AB20: 0 | AC20: 0 | AD20: 0 | AE20: 0 | AF20: 0 | AG20: 0 | AH20: 0 | AI20: 0 | AJ20: 0
F21: 8 | G21: 2G Tipo 4 | I21: [km2] | J21: 0 | L21: 0 | M21: 0 | N21: 0 | O21: 0 | P21: 0 | Q21: 0 | R21: 0 | S21: 0 | T21: 0 | U21: 0 | V21: 0 | W21: 0 | X21: 0 | Y21: 0 | Z21: 0 | AA21: 0 | AB21: 0 | AC21: 0 | AD21: 0 | AE21: 0 | AF21: 0 | AG21: 0 | AH21: 0 | AI21: 0 | AJ21: 0
F22: 9 | G22: libre | I22: [km2] | J22: 0 | L22: 0 | M22: 0 | N22: 0 | O22: 0 | P22: 0 | Q22: 0 | R22: 0 | S22: 0 | T22: 0 | U22: 0 | V22: 0 | W22: 0 | X22: 0 | Y22: 0 | Z22: 0 | AA22: 0 | AB22: 0 | AC22: 0 | AD22: 0 | AE22: 0 | AF22: 0 | AG22: 0 | AH22: 0 | AI22: 0 | AJ22: 0
F23: 10 | G23: libre | I23: [km2] | J23: 0 | L23: 0 | M23: 0 | N23: 0 | O23: 0 | P23: 0 | Q23: 0 | R23: 0 | S23: 0 | T23: 0 | U23: 0 | V23: 0 | W23: 0 | X23: 0 | Y23: 0 | Z23: 0 | AA23: 0 | AB23: 0 | AC23: 0 | AD23: 0 | AE23: 0 | AF23: 0 | AG23: 0 | AH23: 0 | AI23: 0 | AJ23: 0
F24: 11 | G24: libre | I24: [km2] | J24: 0 | L24: 0 | M24: 0 | N24: 0 | O24: 0 | P24: 0 | Q24: 0 | R24: 0 | S24: 0 | T24: 0 | U24: 0 | V24: 0 | W24: 0 | X24: 0 | Y24: 0 | Z24: 0 | AA24: 0 | AB24: 0 | AC24: 0 | AD24: 0 | AE24: 0 | AF24: 0 | AG24: 0 | AH24: 0 | AI24: 0 | AJ24: 0
F25: 12 | G25: Carreteras | I25: [km] | J25: 7340.257013 | L25: 271.157776 | M25: 91.69864072 | N25: 230.2141555 | O25: 785.5230855 | P25: 305.0652959 | Q25: 404.9549076 | R25: 35.41062146 | S25: 478.5655123 | T25: 2.792464769 | U25: 264.1020258 | V25: 447.9909553 | W25: 829.8262689 | X25: 247.0676215 | Y25: 281.0171068 | Z25: 229.614322 | AA25: 13.12396425 | AB25: 356.0645933 | AC25: 26.75686113 | AD25: 98.46718657 | AE25: 813.9690627 | AF25: 184.4958798 | AG25: 489.9498231 | AH25: 71.89334698 | AI25: 210.2385085 | AJ25: 170.297027
E26: Sitios de Cobertura
F27: 1 | G27: =INDEX(l.geo.nom,F27) -> 3G Tipo 1 | I27: [Sitios] | J27: =SUM(L27,M27,N27,O27,P27,Q27,R27,S27,T27,U27,V27,W27,X27,Y27,Z27,AA27,AB27,AC27,AD27,AE27,AF27,AG27,AH27,AI27,AJ27) -> 31 | L27: =IF(L14=0,0,CEILING(L14/INDEX(p.area.cob,$F27),1)) -> 2 | M27: 1 | N27: 1 | O27: 2 | P27: 1 | Q27: 1 | R27: =IF(R14=0,0,CEILING(R14/INDEX(p.area.cob,$F27),1)) -> 1 | S27: 1 | T27: 1 | U27: 2 | V27: 1 | W27: =IF(W14=0,0,CEILING(W14/INDEX(p.area.cob,$F27),1)) -> 1 | X27: 1 | Y27: 1 | Z27: =IF(Z14=0,0,CEILING(Z14/INDEX(p.area.cob,$F27),1)) -> 1 | AA27: 4 | AB27: 3 | AC27: 0 | AD27: 1 | AE27: 1 | AF27: 1 | AG27: 1 | AH27: 1 | AI27: 1 | AJ27: 0
F28: 2 | G28: 3G Tipo 2 | I28: [Sitios] | J28: 22 | L28: =IF(L15=0,0,CEILING(L15/INDEX(p.area.cob,$F28),1)) -> 1 | M28: 1 | N28: 1 | O28: 1 | P28: 1 | Q28: 0 | R28: =IF(R15=0,0,CEILING(R15/INDEX(p.area.cob,$F28),1)) -> 1 | S28: 0 | T28: 1 | U28: 1 | V28: 1 | W28: =IF(W15=0,0,CEILING(W15/INDEX(p.area.cob,$F28),1)) -> 1 | X28: 1 | Y28: 1 | Z28: =IF(Z15=0,0,CEILING(Z15/INDEX(p.area.cob,$F28),1)) -> 1 | AA28: 1 | AB28: 1 | AC28: 1 | AD28: 1 | AE28: 1 | AF28: 1 | AG28: 1 | AH28: 1 | AI28: 1 | AJ28: 0
F29: 3 | G29: 3G Tipo 3 | I29: [Sitios] | J29: 34 | L29: =IF(L16=0,0,CEILING(L16/INDEX(p.area.cob,$F29),1)) -> 1 | M29: 1 | N29: 1 | O29: 3 | P29: 1 | Q29: 1 | R29: =IF(R16=0,0,CEILING(R16/INDEX(p.area.cob,$F29),1)) -> 0 | S29: 3 | T29: 1 | U29: 2 | V29: 1 | W29: =IF(W16=0,0,CEILING(W16/INDEX(p.area.cob,$F29),1)) -> 1 | X29: 1 | Y29: 1 | Z29: =IF(Z16=0,0,CEILING(Z16/INDEX(p.area.cob,$F29),1)) -> 1 | AA29: 4 | AB29: 3 | AC29: 1 | AD29: 1 | AE29: 1 | AF29: 2 | AG29: 1 | AH29: 1 | AI29: 1 | AJ29: 0
F30: 4 | G30: 3G Tipo 4 | I30: [Sitios] | J30: 0 | L30: =IF(L17=0,0,CEILING(L17/INDEX(p.area.cob,$F30),1)) -> 0 | M30: 0 | N30: 0 | O30: 0 | P30: 0 | Q30: 0 | R30: =IF(R17=0,0,CEILING(R17/INDEX(p.area.cob,$F30),1)) -> 0 | S30: 0 | T30: 0 | U30: 0 | V30: 0 | W30: =IF(W17=0,0,CEILING(W17/INDEX(p.area.cob,$F30),1)) -> 0 | X30: 0 | Y30: 0 | Z30: =IF(Z17=0,0,CEILING(Z17/INDEX(p.area.cob,$F30),1)) -> 0 | AA30: 0 | AB30: 0 | AC30: 0 | AD30: 0 | AE30: 0 | AF30: 0 | AG30: 0 | AH30: 0 | AI30: 0 | AJ30: 0
F31: 5 | G31: 2G Tipo 1 | I31: [Sitios] | J31: 0 | L31: =IF(L18=0,0,CEILING(L18/INDEX(p.area.cob,$F31),1)) -> 0 | M31: 0 | N31: 0 | O31: 0 | P31: 0 | Q31: 0 | R31: =IF(R18=0,0,CEILING(R18/INDEX(p.area.cob,$F31),1)) -> 0 | S31: 0 | T31: 0 | U31: 0 | V31: 0 | W31: =IF(W18=0,0,CEILING(W18/INDEX(p.area.cob,$F31),1)) -> 0 | X31: 0 | Y31: 0 | Z31: =IF(Z18=0,0,CEILING(Z18/INDEX(p.area.cob,$F31),1)) -> 0 | AA31: 0 | AB31: 0 | AC31: 0 | AD31: 0 | AE31: 0 | AF31: 0 | AG31: 0 | AH31: 0 | AI31: 0 | AJ31: 0
F32: 6 | G32: 2G Tipo 2 | I32: [Sitios] | J32: 0 | L32: =IF(L19=0,0,CEILING(L19/INDEX(p.area.cob,$F32),1)) -> 0 | M32: 0 | N32: 0 | O32: 0 | P32: 0 | Q32: 0 | R32: =IF(R19=0,0,CEILING(R19/INDEX(p.area.cob,$F32),1)) -> 0 | S32: 0 | T32: 0 | U32: 0 | V32: 0 | W32: =IF(W19=0,0,CEILING(W19/INDEX(p.area.cob,$F32),1)) -> 0 | X32: 0 | Y32: 0 | Z32: =IF(Z19=0,0,CEILING(Z19/INDEX(p.area.cob,$F32),1)) -> 0 | AA32: 0 | AB32: 0 | AC32: 0 | AD32: 0 | AE32: 0 | AF32: 0 | AG32: 0 | AH32: 0 | AI32: 0 | AJ32: 0
F33: 7 | G33: 2G Tipo 3 | I33: [Sitios] | J33: 0 | L33: =IF(L20=0,0,CEILING(L20/INDEX(p.area.cob,$F33),1)) -> 0 | M33: 0 | N33: 0 | O33: 0 | P33: 0 | Q33: 0 | R33: =IF(R20=0,0,CEILING(R20/INDEX(p.area.cob,$F33),1)) -> 0 | S33: 0 | T33: 0 | U33: 0 | V33: 0 | W33: =IF(W20=0,0,CEILING(W20/INDEX(p.area.cob,$F33),1)) -> 0 | X33: 0 | Y33: 0 | Z33: =IF(Z20=0,0,CEILING(Z20/INDEX(p.area.cob,$F33),1)) -> 0 | AA33: 0 | AB33: 0 | AC33: 0 | AD33: 0 | AE33: 0 | AF33: 0 | AG33: 0 | AH33: 0 | AI33: 0 | AJ33: 0
F34: 8 | G34: 2G Tipo 4 | I34: [Sitios] | J34: 0 | L34: =IF(L21=0,0,CEILING(L21/INDEX(p.area.cob,$F34),1)) -> 0 | M34: 0 | N34: 0 | O34: 0 | P34: 0 | Q34: 0 | R34: =IF(R21=0,0,CEILING(R21/INDEX(p.area.cob,$F34),1)) -> 0 | S34: 0 | T34: 0 | U34: 0 | V34: 0 | W34: =IF(W21=0,0,CEILING(W21/INDEX(p.area.cob,$F34),1)) -> 0 | X34: 0 | Y34: 0 | Z34: =IF(Z21=0,0,CEILING(Z21/INDEX(p.area.cob,$F34),1)) -> 0 | AA34: 0 | AB34: 0 | AC34: 0 | AD34: 0 | AE34: 0 | AF34: 0 | AG34: 0 | AH34: 0 | AI34: 0 | AJ34: 0
F35: 9 | G35: libre | I35: [Sitios] | J35: 0 | L35: =IF(L22=0,0,CEILING(L22/INDEX(p.area.cob,$F35),1)) -> 0 | M35: 0 | N35: 0 | O35: 0 | P35: 0 | Q35: 0 | R35: =IF(R22=0,0,CEILING(R22/INDEX(p.area.cob,$F35),1)) -> 0 | S35: 0 | T35: 0 | U35: 0 | V35: 0 | W35: =IF(W22=0,0,CEILING(W22/INDEX(p.area.cob,$F35),1)) -> 0 | X35: 0 | Y35: 0 | Z35: =IF(Z22=0,0,CEILING(Z22/INDEX(p.area.cob,$F35),1)) -> 0 | AA35: 0 | AB35: 0 | AC35: 0 | AD35: 0 | AE35: 0 | AF35: 0 | AG35: 0 | AH35: 0 | AI35: 0 | AJ35: 0
F36: 10 | G36: libre | I36: [Sitios] | J36: 0 | L36: =IF(L23=0,0,CEILING(L23/INDEX(p.area.cob,$F36),1)) -> 0 | M36: 0 | N36: 0 | O36: 0 | P36: 0 | Q36: 0 | R36: =IF(R23=0,0,CEILING(R23/INDEX(p.area.cob,$F36),1)) -> 0 | S36: 0 | T36: 0 | U36: 0 | V36: 0 | W36: =IF(W23=0,0,CEILING(W23/INDEX(p.area.cob,$F36),1)) -> 0 | X36: 0 | Y36: 0 | Z36: =IF(Z23=0,0,CEILING(Z23/INDEX(p.area.cob,$F36),1)) -> 0 | AA36: 0 | AB36: 0 | AC36: 0 | AD36: 0 | AE36: 0 | AF36: 0 | AG36: 0 | AH36: 0 | AI36: 0 | AJ36: 0
F37: 11 | G37: libre | I37: [Sitios] | J37: 0 | L37: =IF(L24=0,0,CEILING(L24/INDEX(p.area.cob,$F37),1)) -> 0 | M37: 0 | N37: 0 | O37: 0 | P37: 0 | Q37: 0 | R37: =IF(R24=0,0,CEILING(R24/INDEX(p.area.cob,$F37),1)) -> 0 | S37: 0 | T37: 0 | U37: 0 | V37: 0 | W37: =IF(W24=0,0,CEILING(W24/INDEX(p.area.cob,$F37),1)) -> 0 | X37: 0 | Y37: 0 | Z37: =IF(Z24=0,0,CEILING(Z24/INDEX(p.area.cob,$F37),1)) -> 0 | AA37: 0 | AB37: 0 | AC37: 0 | AD37: 0 | AE37: 0 | AF37: 0 | AG37: 0 | AH37: 0 | AI37: 0 | AJ37: 0
F38: 12 | G38: Carreteras | I38: [Sitios] | J38: 30 | L38: =IF(L25=0,0,CEILING(L25/INDEX(p.area.cob,$F38),1)) -> 1 | M38: 1 | N38: 1 | O38: 2 | P38: 1 | Q38: 1 | R38: =IF(R25=0,0,CEILING(R25/INDEX(p.area.cob,$F38),1)) -> 1 | S38: 2 | T38: 1 | U38: 1 | V38: 1 | W38: =IF(W25=0,0,CEILING(W25/INDEX(p.area.cob,$F38),1)) -> 2 | X38: 1 | Y38: 1 | Z38: =IF(Z25=0,0,CEILING(Z25/INDEX(p.area.cob,$F38),1)) -> 1 | AA38: 1 | AB38: 1 | AC38: 1 | AD38: 1 | AE38: 2 | AF38: 1 | AG38: 2 | AH38: 1 | AI38: 1 | AJ38: 1
E39: Sectores de Cobertura | H39: Sectores
F40: 1 | G40: =INDEX(l.geo.nom,F40) -> 3G Tipo 1 | H40: =INDEX(p.nodoB.sec,F40) -> 10 | I40: [Sectores] | J40: =SUM(L40,M40,N40,O40,P40,Q40,R40,S40,T40,U40,V40,W40,X40,Y40,Z40,AA40,AB40,AC40,AD40,AE40,AF40,AG40,AH40,AI40,AJ40) -> 310 | L40: =L27*$H40 -> 20 | M40: 10 | N40: 10 | O40: 20 | P40: 10 | Q40: 10 | R40: =R27*$H40 -> 10 | S40: 10 | T40: 10 | U40: 20 | V40: 10 | W40: =W27*$H40 -> 10 | X40: 10 | Y40: 10 | Z40: =Z27*$H40 -> 10 | AA40: 40 | AB40: 30 | AC40: 0 | AD40: 10 | AE40: 10 | AF40: 10 | AG40: 10 | AH40: 10 | AI40: 10 | AJ40: 0
F41: 2 | G41: 3G Tipo 2 | H41: 10 | I41: [Sectores] | J41: 220 | L41: =L28*$H41 -> 10 | M41: 10 | N41: 10 | O41: 10 | P41: 10 | Q41: 0 | R41: =R28*$H41 -> 10 | S41: 0 | T41: 10 | U41: 10 | V41: 10 | W41: =W28*$H41 -> 10 | X41: 10 | Y41: 10 | Z41: =Z28*$H41 -> 10 | AA41: 10 | AB41: 10 | AC41: 10 | AD41: 10 | AE41: 10 | AF41: 10 | AG41: 10 | AH41: 10 | AI41: 10 | AJ41: 0
F42: 3 | G42: 3G Tipo 3 | H42: 10 | I42: [Sectores] | J42: 340 | L42: =L29*$H42 -> 10 | M42: 10 | N42: 10 | O42: 30 | P42: 10 | Q42: 10 | R42: =R29*$H42 -> 0 | S42: 30 | T42: 10 | U42: 20 | V42: 10 | W42: =W29*$H42 -> 10 | X42: 10 | Y42: 10 | Z42: =Z29*$H42 -> 10 | AA42: 40 | AB42: 30 | AC42: 10 | AD42: 10 | AE42: 10 | AF42: 20 | AG42: 10 | AH42: 10 | AI42: 10 | AJ42: 0
F43: 4 | G43: 3G Tipo 4 | H43: 10 | I43: [Sectores] | J43: 0 | L43: =L30*$H43 -> 0 | M43: 0 | N43: 0 | O43: 0 | P43: 0 | Q43: 0 | R43: =R30*$H43 -> 0 | S43: 0 | T43: 0 | U43: 0 | V43: 0 | W43: =W30*$H43 -> 0 | X43: 0 | Y43: 0 | Z43: =Z30*$H43 -> 0 | AA43: 0 | AB43: 0 | AC43: 0 | AD43: 0 | AE43: 0 | AF43: 0 | AG43: 0 | AH43: 0 | AI43: 0 | AJ43: 0
F44: 5 | G44: 2G Tipo 1 | H44: 10 | I44: [Sectores] | J44: 0 | L44: =L31*$H44 -> 0 | M44: 0 | N44: 0 | O44: 0 | P44: 0 | Q44: 0 | R44: =R31*$H44 -> 0 | S44: 0 | T44: 0 | U44: 0 | V44: 0 | W44: =W31*$H44 -> 0 | X44: 0 | Y44: 0 | Z44: =Z31*$H44 -> 0 | AA44: 0 | AB44: 0 | AC44: 0 | AD44: 0 | AE44: 0 | AF44: 0 | AG44: 0 | AH44: 0 | AI44: 0 | AJ44: 0
F45: 6 | G45: 2G Tipo 2 | H45: 10 | I45: [Sectores] | J45: 0 | L45: =L32*$H45 -> 0 | M45: 0 | N45: 0 | O45: 0 | P45: 0 | Q45: 0 | R45: =R32*$H45 -> 0 | S45: 0 | T45: 0 | U45: 0 | V45: 0 | W45: =W32*$H45 -> 0 | X45: 0 | Y45: 0 | Z45: =Z32*$H45 -> 0 | AA45: 0 | AB45: 0 | AC45: 0 | AD45: 0 | AE45: 0 | AF45: 0 | AG45: 0 | AH45: 0 | AI45: 0 | AJ45: 0
F46: 7 | G46: 2G Tipo 3 | H46: 10 | I46: [Sectores] | J46: 0 | L46: =L33*$H46 -> 0 | M46: 0 | N46: 0 | O46: 0 | P46: 0 | Q46: 0 | R46: =R33*$H46 -> 0 | S46: 0 | T46: 0 | U46: 0 | V46: 0 | W46: =W33*$H46 -> 0 | X46: 0 | Y46: 0 | Z46: =Z33*$H46 -> 0 | AA46: 0 | AB46: 0 | AC46: 0 | AD46: 0 | AE46: 0 | AF46: 0 | AG46: 0 | AH46: 0 | AI46: 0 | AJ46: 0
F47: 8 | G47: 2G Tipo 4 | H47: 10 | I47: [Sectores] | J47: 0 | L47: =L34*$H47 -> 0 | M47: 0 | N47: 0 | O47: 0 | P47: 0 | Q47: 0 | R47: =R34*$H47 -> 0 | S47: 0 | T47: 0 | U47: 0 | V47: 0 | W47: =W34*$H47 -> 0 | X47: 0 | Y47: 0 | Z47: =Z34*$H47 -> 0 | AA47: 0 | AB47: 0 | AC47: 0 | AD47: 0 | AE47: 0 | AF47: 0 | AG47: 0 | AH47: 0 | AI47: 0 | AJ47: 0
F48: 9 | G48: libre | H48: 10 | I48: [Sectores] | J48: 0 | L48: =L35*$H48 -> 0 | M48: 0 | N48: 0 | O48: 0 | P48: 0 | Q48: 0 | R48: =R35*$H48 -> 0 | S48: 0 | T48: 0 | U48: 0 | V48: 0 | W48: =W35*$H48 -> 0 | X48: 0 | Y48: 0 | Z48: =Z35*$H48 -> 0 | AA48: 0 | AB48: 0 | AC48: 0 | AD48: 0 | AE48: 0 | AF48: 0 | AG48: 0 | AH48: 0 | AI48: 0 | AJ48: 0
F49: 10 | G49: libre | H49: 10 | I49: [Sectores] | J49: 0 | L49: =L36*$H49 -> 0 | M49: 0 | N49: 0 | O49: 0 | P49: 0 | Q49: 0 | R49: =R36*$H49 -> 0 | S49: 0 | T49: 0 | U49: 0 | V49: 0 | W49: =W36*$H49 -> 0 | X49: 0 | Y49: 0 | Z49: =Z36*$H49 -> 0 | AA49: 0 | AB49: 0 | AC49: 0 | AD49: 0 | AE49: 0 | AF49: 0 | AG49: 0 | AH49: 0 | AI49: 0 | AJ49: 0
F50: 11 | G50: libre | H50: 10 | I50: [Sectores] | J50: 0 | L50: =L37*$H50 -> 0 | M50: 0 | N50: 0 | O50: 0 | P50: 0 | Q50: 0 | R50: =R37*$H50 -> 0 | S50: 0 | T50: 0 | U50: 0 | V50: 0 | W50: =W37*$H50 -> 0 | X50: 0 | Y50: 0 | Z50: =Z37*$H50 -> 0 | AA50: 0 | AB50: 0 | AC50: 0 | AD50: 0 | AE50: 0 | AF50: 0 | AG50: 0 | AH50: 0 | AI50: 0 | AJ50: 0
F51: 12 | G51: Carreteras | H51: 10 | I51: [Sectores] | J51: 300 | L51: =L38*$H51 -> 10 | M51: 10 | N51: 10 | O51: 20 | P51: 10 | Q51: 10 | R51: =R38*$H51 -> 10 | S51: 20 | T51: 10 | U51: 10 | V51: 10 | W51: =W38*$H51 -> 20 | X51: 10 | Y51: 10 | Z51: =Z38*$H51 -> 10 | AA51: 10 | AB51: 10 | AC51: 10 | AD51: 10 | AE51: 20 | AF51: 10 | AG51: 20 | AH51: 10 | AI51: 10 | AJ51: 10
A54: 2 | B54: Diseño de la Red de Acceso de Tráfico
C56: Sitios Capacidad de Hardware por R99
L58: =INDEX(l.reg.nom,L$6) -> Amazonas | M58: Ancash | N58: Apurímac | O58: Arequipa | P58: Ayacucho | Q58: Cajamarca | R58: Callao | S58: Cusco | T58: Huancavelica | U58: Huánuco | V58: Ica | W58: Junín | X58: La Libertad | Y58: Lambayeque | Z58: Lima | AA58: Loreto | AB58: Madre de Dios | AC58: Moquegua | AD58: Pasco | AE58: Piura | AF58: Puno | AG58: San Martín | AH58: Tacna | AI58: Tumbes | AJ58: Ucayali
F59: ID | G59: Geotipo | J59: Año 0 | L59: Año 0 | M59: Año 0 | N59: Año 0 | O59: Año 0 | P59: Año 0 | Q59: Año 0 | R59: Año 0 | S59: Año 0 | T59: Año 0 | U59: Año 0 | V59: Año 0 | W59: Año 0 | X59: Año 0 | Y59: Año 0 | Z59: Año 0 | AA59: Año 0 | AB59: Año 0 | AC59: Año 0 | AD59: Año 0 | AE59: Año 0 | AF59: Año 0 | AG59: Año 0 | AH59: Año 0 | AI59: Año 0 | AJ59: Año 0
E60: Carga en la Hora Cargada del R99 en DL
G61: Demanda por AMR 12.2 | I61: [HC erlangs] | J61: =SUM(L61,M61,N61,O61,P61,Q61,R61,S61,T61,U61,V61,W61,X61,Y61,Z61,AA61,AB61,AC61,AD61,AE61,AF61,AG61,AH61,AI61,AJ61) -> 1935412.535 | L61: =INDEX(dda.dis.ran.voz,L$6) -> 96562.46203 | M61: 85895.51499 | N61: 86494.48668 | O61: 67748.62429 | P61: 80162.8819 | Q61: 73358.6982 | R61: 85222.1946 | S61: 65173.48745 | T61: 80271.15219 | U61: 74977.17641 | V61: 84551.77845 | W61: 77561.72301 | X61: 83068.6381 | Y61: 84109.86838 | Z61: 56695.64487 | AA61: 79545.4392 | AB61: 94507.3014 | AC61: 77232.38151 | AD61: 73258.09512 | AE61: 74794.67359 | AF61: 66455.18929 | AG61: 73848.70259 | AH61: 69006.51132 | AI61: 72418.65186 | AJ61: 72491.25801
G62: Demanda por CS de SMS y MMS | I62: [HC erlangs] | J62: =SUM(L62,M62,N62,O62,P62,Q62,R62,S62,T62,U62,V62,W62,X62,Y62,Z62,AA62,AB62,AC62,AD62,AE62,AF62,AG62,AH62,AI62,AJ62) -> 8.791919192 | L62: =INDEX(dda.dis.ran.sms,L$6)+INDEX(dda.dis.ran.mms,L$6) -> 0.4386503382 | M62: 0.3901940351 | N62: 0.3929149592 | O62: 0.3077588985 | P62: 0.3641526377 | Q62: 0.3332435513 | R62: 0.3871353701 | S62: 0.29606093 | T62: 0.3646444727 | U62: 0.340595746 | V62: 0.3840898982 | W62: 0.3523364599 | X62: 0.3773524973 | Y62: 0.3820824514 | Z62: 0.257548982 | AA62: 0.3613478061 | AB62: 0.4293144442 | AC62: 0.3508403737 | AD62: 0.3327865458 | AE62: 0.3397666979 | AF62: 0.3018832644 | AG62: 0.3354694742 | AH62: 0.3134730504 | AI62: 0.3289732413 | AJ62: 0.3293030663
G63: Demanda por PS | I63: [HC erlangs] | J63: =SUM(L63,M63,N63,O63,P63,Q63,R63,S63,T63,U63,V63,W63,X63,Y63,Z63,AA63,AB63,AC63,AD63,AE63,AF63,AG63,AH63,AI63,AJ63) -> 29515.60768 | L63: =INDEX(dda.dis.ran.ps,L$6) -> 1472.605811 | M63: 1309.931746 | N63: 1319.06624 | O63: 1033.186351 | P63: 1222.507413 | Q63: 1118.74162 | R63: 1299.663413 | S63: 993.9147604 | T63: 1224.158567 | U63: 1143.423887 | V63: 1289.43937 | W63: 1182.838979 | X63: 1266.821046 | Y63: 1282.700113 | Z63: 864.6251795 | AA63: 1213.091231 | AB63: 1441.264009 | AC63: 1177.816425 | AD63: 1117.207394 | AE63: 1140.640665 | AF63: 1013.461089 | AG63: 1126.214331 | AH63: 1052.369496 | AI63: 1104.405638 | AJ63: 1105.512903
G64: Demanda por PS por señalización HSPA | I64: [HC erlangs] | J64: =SUM(L64,M64,N64,O64,P64,Q64,R64,S64,T64,U64,V64,W64,X64,Y64,Z64,AA64,AB64,AC64,AD64,AE64,AF64,AG64,AH64,AI64,AJ64) -> 1256.591764 | L64: =INDEX(dda.dis.ran.hsdpa.ps.erlg,L$6) -> 62.69443454 | M64: 55.76878041 | N64: 56.15767058 | O64: 43.98667558 | P64: 52.04679381 | Q64: 47.62908904 | R64: 55.33161839 | S64: 42.31473449 | T64: 52.11708971 | U64: 48.67990707 | V64: 54.89634199 | W64: 50.35795757 | X64: 53.93339383 | Y64: 54.60942613 | Z64: 36.81038491 | AA64: 51.64591111 | AB64: 61.36009476 | AC64: 50.14412832 | AD64: 47.56377118 | AE64: 48.56141474 | AF64: 43.14689608 | AG64: 47.94723076 | AH64: 44.80337509 | AI64: 47.01875172 | AJ64: 47.06589221
E65: Carga en la Hora Cargada del R99 en UL
G66: Demanda por AMR 12.2 | I66: [HC erlangs] | J66: =SUM(L66,M66,N66,O66,P66,Q66,R66,S66,T66,U66,V66,W66,X66,Y66,Z66,AA66,AB66,AC66,AD66,AE66,AF66,AG66,AH66,AI66,AJ66) -> 1935412.535 | L66: =INDEX(dda.dis.ran.voz,L$6) -> 96562.46203 | M66: 85895.51499 | N66: 86494.48668 | O66: 67748.62429 | P66: 80162.8819 | Q66: 73358.6982 | R66: 85222.1946 | S66: 65173.48745 | T66: 80271.15219 | U66: 74977.17641 | V66: 84551.77845 | W66: 77561.72301 | X66: 83068.6381 | Y66: 84109.86838 | Z66: 56695.64487 | AA66: 79545.4392 | AB66: 94507.3014 | AC66: 77232.38151 | AD66: 73258.09512 | AE66: 74794.67359 | AF66: 66455.18929 | AG66: 73848.70259 | AH66: 69006.51132 | AI66: 72418.65186 | AJ66: 72491.25801
G67: Demanda por CS de SMS y MMS | I67: [HC erlangs] | J67: =SUM(L67,M67,N67,O67,P67,Q67,R67,S67,T67,U67,V67,W67,X67,Y67,Z67,AA67,AB67,AC67,AD67,AE67,AF67,AG67,AH67,AI67,AJ67) -> 8.791919192 | L67: =INDEX(dda.dis.ran.sms,L$6)+INDEX(dda.dis.ran.mms,L$6) -> 0.4386503382 | M67: 0.3901940351 | N67: 0.3929149592 | O67: 0.3077588985 | P67: 0.3641526377 | Q67: 0.3332435513 | R67: 0.3871353701 | S67: 0.29606093 | T67: 0.3646444727 | U67: 0.340595746 | V67: 0.3840898982 | W67: 0.3523364599 | X67: 0.3773524973 | Y67: 0.3820824514 | Z67: 0.257548982 | AA67: 0.3613478061 | AB67: 0.4293144442 | AC67: 0.3508403737 | AD67: 0.3327865458 | AE67: 0.3397666979 | AF67: 0.3018832644 | AG67: 0.3354694742 | AH67: 0.3134730504 | AI67: 0.3289732413 | AJ67: 0.3293030663
G68: Demanda por PS | I68: [HC erlangs] | J68: =SUM(L68,M68,N68,O68,P68,Q68,R68,S68,T68,U68,V68,W68,X68,Y68,Z68,AA68,AB68,AC68,AD68,AE68,AF68,AG68,AH68,AI68,AJ68) -> 29515.60768 | L68: =INDEX(dda.dis.ran.ps,L$6) -> 1472.605811 | M68: 1309.931746 | N68: 1319.06624 | O68: 1033.186351 | P68: 1222.507413 | Q68: 1118.74162 | R68: 1299.663413 | S68: 993.9147604 | T68: 1224.158567 | U68: 1143.423887 | V68: 1289.43937 | W68: 1182.838979 | X68: 1266.821046 | Y68: 1282.700113 | Z68: 864.6251795 | AA68: 1213.091231 | AB68: 1441.264009 | AC68: 1177.816425 | AD68: 1117.207394 | AE68: 1140.640665 | AF68: 1013.461089 | AG68: 1126.214331 | AH68: 1052.369496 | AI68: 1104.405638 | AJ68: 1105.512903
G69: Demanda por HSUPA | I69: [HC erlangs] | J69: =SUM(L69,M69,N69,O69,P69,Q69,R69,S69,T69,U69,V69,W69,X69,Y69,Z69,AA69,AB69,AC69,AD69,AE69,AF69,AG69,AH69,AI69,AJ69) -> 37.77706776 | L69: =INDEX(dda.dis.ran.hsupa.erlg,L$6)*(1-p.nodoB.sho) -> 1.884790247 | M69: 1.676583483 | N69: 1.688274735 | O69: 1.322376663 | P69: 1.564688957 | Q69: 1.431878973 | R69: 1.663441029 | S69: 1.272112899 | T69: 1.566802271 | U69: 1.46346984 | V69: 1.650355263 | W69: 1.513917272 | X69: 1.621406038 | Y69: 1.641729677 | Z69: 1.106634983 | AA69: 1.552637173 | AB69: 1.844675832 | AC69: 1.507488898 | AD69: 1.429915314 | AE69: 1.459907591 | AF69: 1.297130272 | AG69: 1.441443305 | AH69: 1.346929198 | AI69: 1.413530329 | AJ69: 1.414947519
E70: Carga en la Hora Cargada del R99
G71: Demanda de la Interfaz de Radio | I71: [HC erlangs] | J71: =SUM(L71,M71,N71,O71,P71,Q71,R71,S71,T71,U71,V71,W71,X71,Y71,Z71,AA71,AB71,AC71,AD71,AE71,AF71,AG71,AH71,AI71,AJ71) -> 1966193.527 | L71: =IF(MAX(SUM(L61:L64)*(1+p.nodoB.sho),SUM(L66:L69)) =SUM(L61:L64)*(1+p.nodoB.sho),SUM(L61:L64),SUM(L66:L69)) -> 98098.20093 | M71: 87261.60571 | N71: 87870.10351 | O71: 68826.10507 | P71: 81437.80026 | Q71: 74525.40215 | R71: =IF(MAX(SUM(R61:R64)*(1+p.nodoB.sho),SUM(R66:R69)) =SUM(R61:R64)*(1+p.nodoB.sho),SUM(R61:R64),SUM(R66:R69)) -> 86577.57676 | S71: 66210.013 | T71: 81547.79249 | U71: 76169.6208 | V71: 85896.49825 | W71: =IF(MAX(SUM(W61:W64)*(1+p.nodoB.sho),SUM(W66:W69)) =SUM(W61:W64)*(1+p.nodoB.sho),SUM(W61:W64),SUM(W66:W69)) -> 78795.27228 | X71: 84389.7699 | Y71: 85447.56 | Z71: =IF(MAX(SUM(Z61:Z64)*(1+p.nodoB.sho),SUM(Z66:Z69)) =SUM(Z61:Z64)*(1+p.nodoB.sho),SUM(Z61:Z64),SUM(Z66:Z69)) -> 57597.33798 | AA71: 80810.53769 | AB71: 96010.35481 | AC71: 78460.69291 | AD71: 74423.19907 | AE71: 75984.21544 | AF71: 67512.09916 | AG71: 75023.19962 | AH71: 70103.99766 | AI71: 73570.40522 | AJ71: 73644.1661
E72: Carga en la Hora Cargada del R99 por Geotipo
F73: 1 | G73: =INDEX(l.geo.nom,F73) -> 3G Tipo 1 | I73: [HC erlangs] | J73: =SUM(L73,M73,N73,O73,P73,Q73,R73,S73,T73,U73,V73,W73,X73,Y73,Z73,AA73,AB73,AC73,AD73,AE73,AF73,AG73,AH73,AI73,AJ73) -> 983096.7634 | L73: =INDEX(e.geo.traf,$F73,L$6)*L$71 -> 49049.10047 | M73: 43630.80285 | N73: 43935.05175 | O73: 34413.05254 | P73: 40718.90013 | Q73: 37262.70108 | R73: 43288.78838 | S73: 33105.0065 | T73: 40773.89624 | U73: 38084.8104 | V73: =INDEX(e.geo.traf,$F73,V$6)*V$71 -> 42948.24913 | W73: 39397.63614 | X73: 42194.88495 | Y73: 42723.78 | Z73: 28798.66899 | AA73: 40405.26884 | AB73: 48005.17741 | AC73: 39230.34645 | AD73: 37211.59954 | AE73: 37992.10772 | AF73: 33756.04958 | AG73: 37511.59981 | AH73: 35051.99883 | AI73: 36785.20261 | AJ73: 36822.08305
F74: 2 | G74: 3G Tipo 2 | I74: [HC erlangs] | J74: 589858.058 | L74: 29429.46028 | M74: 26178.48171 | N74: 26361.03105 | O74: 20647.83152 | P74: 24431.34008 | Q74: 22357.62065 | R74: 25973.27303 | S74: 19863.0039 | T74: 24464.33775 | U74: 22850.88624 | V74: 25768.94948 | W74: 23638.58168 | X74: 25316.93097 | Y74: 25634.268 | Z74: 17279.20139 | AA74: 24243.16131 | AB74: 28803.10644 | AC74: 23538.20787 | AD74: 22326.95972 | AE74: 22795.26463 | AF74: 20253.62975 | AG74: 22506.95988 | AH74: 21031.1993 | AI74: 22071.12157 | AJ74: 22093.24983
F75: 3 | G75: 3G Tipo 3 | I75: [HC erlangs] | J75: 294929.029 | L75: 14714.73014 | M75: 13089.24086 | N75: 13180.51553 | O75: 10323.91576 | P75: 12215.67004 | Q75: 11178.81032 | R75: 12986.63651 | S75: 9931.50195 | T75: 12232.16887 | U75: 11425.44312 | V75: 12884.47474 | W75: 11819.29084 | X75: 12658.46548 | Y75: 12817.134 | Z75: 8639.600697 | AA75: 12121.58065 | AB75: 14401.55322 | AC75: 11769.10394 | AD75: 11163.47986 | AE75: 11397.63232 | AF75: 10126.81487 | AG75: 11253.47994 | AH75: 10515.59965 | AI75: 11035.56078 | AJ75: 11046.62492
F76: 4 | G76: 3G Tipo 4 | I76: [HC erlangs] | J76: 22.05158227 | L76: 1.100207339 | M76: 0.9786709453 | N76: 0.9854954715 | O76: 0.7719100372 | P76: 0.913354829 | Q76: 0.8358297464 | R76: 0.9709993095 | S76: 0.7425696042 | T76: 0.9145884322 | U76: 0.8542702622 | V76: 0.963360764 | W76: 0.8837179076 | X76: 0.9464622523 | Y76: 0.9583257566 | Z76: 0.6459752917 | AA76: 0.906319849 | AB76: 1.076791379 | AC76: 0.879965477 | AD76: 0.8346835013 | AE76: 0.852190873 | AF76: 0.7571729785 | AG76: 0.8414127277 | AH76: 0.7862420718 | AI76: 0.8251191052 | AJ76: 0.8259463606
F77: 5 | G77: 2G Tipo 1 | I77: [HC erlangs] | J77: 196619.3527 | L77: 9809.820093 | M77: 8726.160571 | N77: 8787.010351 | O77: 6882.610507 | P77: 8143.780026 | Q77: 7452.540215 | R77: 8657.757676 | S77: 6621.0013 | T77: 8154.779249 | U77: 7616.96208 | V77: 8589.649825 | W77: 7879.527228 | X77: 8438.97699 | Y77: 8544.756 | Z77: 5759.733798 | AA77: 8081.053769 | AB77: 9601.035481 | AC77: 7846.069291 | AD77: 7442.319907 | AE77: 7598.421544 | AF77: 6751.209916 | AG77: 7502.319962 | AH77: 7010.399766 | AI77: 7357.040522 | AJ77: 7364.41661
F78: 6 | G78: 2G Tipo 2 | I78: [HC erlangs] | J78: 393238.7054 | L78: 19619.64019 | M78: 17452.32114 | N78: 17574.0207 | O78: 13765.22101 | P78: 16287.56005 | Q78: 14905.08043 | R78: 17315.51535 | S78: 13242.0026 | T78: 16309.5585 | U78: 15233.92416 | V78: 17179.29965 | W78: 15759.05446 | X78: 16877.95398 | Y78: 17089.512 | Z78: 11519.4676 | AA78: 16162.10754 | AB78: 19202.07096 | AC78: 15692.13858 | AD78: 14884.63981 | AE78: 15196.84309 | AF78: 13502.41983 | AG78: 15004.63992 | AH78: 14020.79953 | AI78: 14714.08104 | AJ78: 14728.83322
F79: 7 | G79: 2G Tipo 3 | I79: [HC erlangs] | J79: 589858.058 | L79: 29429.46028 | M79: 26178.48171 | N79: 26361.03105 | O79: 20647.83152 | P79: 24431.34008 | Q79: 22357.62065 | R79: 25973.27303 | S79: 19863.0039 | T79: 24464.33775 | U79: 22850.88624 | V79: 25768.94948 | W79: 23638.58168 | X79: 25316.93097 | Y79: 25634.268 | Z79: 17279.20139 | AA79: 24243.16131 | AB79: 28803.10644 | AC79: 23538.20787 | AD79: 22326.95972 | AE79: 22795.26463 | AF79: 20253.62975 | AG79: 22506.95988 | AH79: 21031.1993 | AI79: 22071.12157 | AJ79: 22093.24983
F80: 8 | G80: 2G Tipo 4 | I80: [HC erlangs] | J80: 786477.4107 | L80: 39239.28037 | M80: 34904.64228 | N80: 35148.0414 | O80: 27530.44203 | P80: 32575.1201 | Q80: 29810.16086 | R80: 34631.03071 | S80: 26484.0052 | T80: 32619.117 | U80: 30467.84832 | V80: 34358.5993 | W80: 31518.10891 | X80: 33755.90796 | Y80: 34179.024 | Z80: 23038.93519 | AA80: 32324.21508 | AB80: 38404.14193 | AC80: 31384.27716 | AD80: 29769.27963 | AE80: 30393.68618 | AF80: 27004.83966 | AG80: 30009.27985 | AH80: 28041.59906 | AI80: 29428.16209 | AJ80: 29457.66644
F81: 9 | G81: libre | I81: [HC erlangs] | J81: 0 | L81: 0 | M81: 0 | N81: 0 | O81: 0 | P81: 0 | Q81: 0 | R81: 0 | S81: 0 | T81: 0 | U81: 0 | V81: 0 | W81: 0 | X81: 0 | Y81: 0 | Z81: 0 | AA81: 0 | AB81: 0 | AC81: 0 | AD81: 0 | AE81: 0 | AF81: 0 | AG81: 0 | AH81: 0 | AI81: 0 | AJ81: 0
F82: 10 | G82: libre | I82: [HC erlangs] | J82: 0 | L82: 0 | M82: 0 | N82: 0 | O82: 0 | P82: 0 | Q82: 0 | R82: 0 | S82: 0 | T82: 0 | U82: 0 | V82: 0 | W82: 0 | X82: 0 | Y82: 0 | Z82: 0 | AA82: 0 | AB82: 0 | AC82: 0 | AD82: 0 | AE82: 0 | AF82: 0 | AG82: 0 | AH82: 0 | AI82: 0 | AJ82: 0
F83: 11 | G83: libre | I83: [HC erlangs] | J83: 0 | L83: 0 | M83: 0 | N83: 0 | O83: 0 | P83: 0 | Q83: 0 | R83: 0 | S83: 0 | T83: 0 | U83: 0 | V83: 0 | W83: 0 | X83: 0 | Y83: 0 | Z83: 0 | AA83: 0 | AB83: 0 | AC83: 0 | AD83: 0 | AE83: 0 | AF83: 0 | AG83: 0 | AH83: 0 | AI83: 0 | AJ83: 0
F84: 12 | G84: Carreteras | I84: [HC erlangs] | J84: 98309.67634 | L84: 4904.910047 | M84: 4363.080285 | N84: 4393.505175 | O84: 3441.305254 | P84: 4071.890013 | Q84: 3726.270108 | R84: 4328.878838 | S84: 3310.50065 | T84: 4077.389624 | U84: 3808.48104 | V84: 4294.824913 | W84: 3939.763614 | X84: 4219.488495 | Y84: 4272.378 | Z84: 2879.866899 | AA84: 4040.526884 | AB84: 4800.517741 | AC84: 3923.034645 | AD84: 3721.159954 | AE84: 3799.210772 | AF84: 3375.604958 | AG84: 3751.159981 | AH84: 3505.199883 | AI84: 3678.520261 | AJ84: 3682.208305
E85: Capacidad de la Red de Cobertura
F86: 1 | G86: =INDEX(l.geo.nom,F86) -> 3G Tipo 1 | I86: [HC erlangs] | J86: =SUM(L86,M86,N86,O86,P86,Q86,R86,S86,T86,U86,V86,W86,X86,Y86,Z86,AA86,AB86,AC86,AD86,AE86,AF86,AG86,AH86,AI86,AJ86) -> 493.4023006 | L86: =L27*INDEX(p.nodoB.por.R99,$F86)*INDEX(p.nodoB.sec,$F86)*INDEX(p.nodoB.erl99,$F86)*INDEX(p.util,1)*INDEX(p.util,2) -> 31.83240649 | M86: 15.91620324 | N86: 15.91620324 | O86: 31.83240649 | P86: 15.91620324 | Q86: 15.91620324 | R86: =R27*INDEX(p.nodoB.por.R99,$F86)*INDEX(p.nodoB.sec,$F86)*INDEX(p.nodoB.erl99,$F86)*INDEX(p.util,1)*INDEX(p.util,2) -> 15.91620324 | S86: 15.91620324 | T86: 15.91620324 | U86: 31.83240649 | V86: 15.91620324 | W86: =W27*INDEX(p.nodoB.por.R99,$F86)*INDEX(p.nodoB.sec,$F86)*INDEX(p.nodoB.erl99,$F86)*INDEX(p.util,1)*INDEX(p.util,2) -> 15.91620324 | X86: 15.91620324 | Y86: 15.91620324 | Z86: 15.91620324 | AA86: 63.66481298 | AB86: =AB27*INDEX(p.nodoB.por.R99,$F86)*INDEX(p.nodoB.sec,$F86)*INDEX(p.nodoB.erl99,$F86)*INDEX(p.util,1)*INDEX(p.util,2) -> 47.74860973 | AC86: 0 | AD86: 15.91620324 | AE86: 15.91620324 | AF86: 15.91620324 | AG86: 15.91620324 | AH86: =AH27*INDEX(p.nodoB.por.R99,$F86)*INDEX(p.nodoB.sec,$F86)*INDEX(p.nodoB.erl99,$F86)*INDEX(p.util,1)*INDEX(p.util,2) -> 15.91620324 | AI86: 15.91620324 | AJ86: 0
